Workbook

Sheet Home
B1: =uxb_works!$B$92 -> Coastal Governance Index: 2019 | C1: =uxb_works!$B$92 -> Coastal Governance Index: 2019 | BA1: 0 | BB1: 0

Sheet Contents
C1: =uxb_works!B92 -> Coastal Governance Index: 2019 | BA1: 0 | BB1: 1
C10: Table of Contents
D12: =uxb_works!B94 -> MAP | F12: An interactive heat map of scores
D13: =uxb_works!B95 -> SUMMARY | F13: Shows the overall and category scores and rankings for all countries and includes 2015 index comparison
D14: =uxb_works!B96 -> INDICATOR SCORING | F14: Offers a more detailed description of the scoring for each indicator
D15: =uxb_works!B97 -> COUNTRY SCORECARD | F15: Offers a more detailed country view and includes 2015 index comparison
D16: =uxb_works!B98 -> COUNTRY COMPARE | F16: Allows comparisons for up to six countries through spider charts and bar charts
D17: =uxb_works!B99 -> YEAR COMPARE | F17: Shows changes in indicator scores between 2015 and the current index
D18: =uxb_works!B100 -> CORRELATIONS | F18: Provides correlation analysis between indicators (including background indicators)
D19: =uxb_works!B101 -> SCATTER | F19: Displays scatter plots between indicators (including background indicators)
D20: =uxb_works!B102 -> DATA/SCORES | F20: Shows raw data and normalised scores for each indicator and country
D21: =uxb_works!B103 -> WEIGHTS | F21: Provides the option to change category, indicator or sub-indicator weights

Sheet Map
A1: =uxb_works!$B$92 -> Coastal Governance Index: 2019 | BA1: 1 | BB1: 0 | BC1: 1 | BD1: 2 | BF1: 1 | BG1: 2
BC2: 2 | BD2: 0
A6: =uxb_works!$C$5 -> The active weight profile has been changed from its default setting
A11: =uxb_works!$G$21 -> OVERVIEW
A12: =iIndiRank!$F$2 ->  | AG12: =A12 -> 
B28: =IF(uxb_works!$B$6=1,"SELECT COUNTRY","SELECTED COUNTRY") -> SELECT COUNTRY
B29: =iMap_Rank!C9 -> Click on map or select from the country highlight drop down box
B43: =uxb_works!J19 -> 0
B44: =iMap_Rank!AJ17 -> 4 | E44: =iMap_Rank!AK17 -> 3 | H44: =iMap_Rank!AL17 -> 2 | K44: =iMap_Rank!AM17 -> 1 | N44: =iMap_Rank!AN17 -> 0
A45: =MAX(A46,D46,G46,J46,M46) -> 10 | B45: =iMap_Rank!AP14 -> HIGH | E45: =iMap_Rank!AS14 -> MODERATE | H45: =iMap_Rank!AV14 -> LOW | K45: =iMap_Rank!AY14 -> VERY LOW | N45: =iMap_Rank!BB14 -> NASCENT
A46: =COUNTIF(A47:A66,"<>0") -> 10 | B46: =iMap_Rank!AP15 -> Score 75.1 to => 100 | D46: =COUNTIF(D47:D66,"<>0") -> 8 | E46: =iMap_Rank!AS15 -> Score 50.1 to => 75 | G46: =COUNTIF(G47:G66,"<>0") -> 2 | H46: =iMap_Rank!AV15 -> Score 25.1 to => 50 | J46: =COUNTIF(J47:J66,"<>0") -> 0 | K46: =iMap_Rank!AY15 -> Score 0 to => 25 | M46: =COUNTIF(M47:M66,"<>0") -> 0 | N46: =iMap_Rank!BB15 -> Score 0 to => 25 | AA46: =B46 -> Score 75.1 to => 100 | AB46: =E46 -> Score 50.1 to => 75 | AC46: =H46 -> Score 25.1 to => 50 | AD46: =K46 -> Score 0 to => 25 | AE46: =N46 -> Score 0 to => 25
A47: =iMap_Rank!AO19 -> 1 | B47: =iMap_Rank!AP19 -> Norway | C47: =iMap_Rank!AQ19 -> 89.5 | D47: =iMap_Rank!AR19 -> 1 | E47: =iMap_Rank!AS19 -> Mexico | F47: =iMap_Rank!AT19 -> 74.1 | G47: =iMap_Rank!AU19 -> 1 | H47: =iMap_Rank!AV19 -> Nigeria | I47: =iMap_Rank!AW19 -> 48.7 | J47: =iMap_Rank!AX19 -> 0 | K47: =iMap_Rank!AY19 ->  | L47: =iMap_Rank!AZ19 ->  | M47: =iMap_Rank!BA19 -> 0 | N47: =iMap_Rank!BB19 ->  | O47: =iMap_Rank!BC19 -> 
A48: =iMap_Rank!AO20 -> 1 | B48: =iMap_Rank!AP20 -> United States | C48: =iMap_Rank!AQ20 -> 85.4 | D48: =iMap_Rank!AR20 -> 1 | E48: =iMap_Rank!AS20 -> Brazil | F48: =iMap_Rank!AT20 -> 73.1 | G48: =iMap_Rank!AU20 -> 1 | H48: =iMap_Rank!AV20 -> Russia | I48: =iMap_Rank!AW20 -> 44.6 | J48: =iMap_Rank!AX20 -> 0 | K48: =iMap_Rank!AY20 ->  | L48: =iMap_Rank!AZ20 ->  | M48: =iMap_Rank!BA20 -> 0 | N48: =iMap_Rank!BB20 ->  | O48: =iMap_Rank!BC20 -> 
A49: =iMap_Rank!AO21 -> 1 | B49: =iMap_Rank!AP21 -> New Zealand | C49: =iMap_Rank!AQ21 -> 84.4 | D49: =iMap_Rank!AR21 -> 1 | E49: =iMap_Rank!AS21 -> China | F49: =iMap_Rank!AT21 -> 73 | G49: =iMap_Rank!AU21 -> 0 | H49: =iMap_Rank!AV21 ->  | I49: =iMap_Rank!AW21 ->  | J49: =iMap_Rank!AX21 -> 0 | K49: =iMap_Rank!AY21 ->  | L49: =iMap_Rank!AZ21 ->  | M49: =iMap_Rank!BA21 -> 0 | N49: =iMap_Rank!BB21 ->  | O49: =iMap_Rank!BC21 -> 
A50: =iMap_Rank!AO22 -> 1 | B50: =iMap_Rank!AP22 -> Japan | C50: =iMap_Rank!AQ22 -> 83.4 | D50: =iMap_Rank!AR22 -> 1 | E50: =iMap_Rank!AS22 -> Indonesia | F50: =iMap_Rank!AT22 -> 72.6 | G50: =iMap_Rank!AU22 -> 0 | H50: =iMap_Rank!AV22 ->  | I50: =iMap_Rank!AW22 ->  | J50: =iMap_Rank!AX22 -> 0 | K50: =iMap_Rank!AY22 ->  | L50: =iMap_Rank!AZ22 ->  | M50: =iMap_Rank!BA22 -> 0 | N50: =iMap_Rank!BB22 ->  | O50: =iMap_Rank!BC22 -> 
A51: =iMap_Rank!AO23 -> 1 | B51: =iMap_Rank!AP23 -> France | C51: =iMap_Rank!AQ23 -> 83.3 | D51: =iMap_Rank!AR23 -> 1 | E51: =iMap_Rank!AS23 -> Philippines | F51: =iMap_Rank!AT23 -> 71.4 | G51: =iMap_Rank!AU23 -> 0 | H51: =iMap_Rank!AV23 ->  | I51: =iMap_Rank!AW23 ->  | J51: =iMap_Rank!AX23 -> 0 | K51: =iMap_Rank!AY23 ->  | L51: =iMap_Rank!AZ23 ->  | M51: =iMap_Rank!BA23 -> 0 | N51: =iMap_Rank!BB23 ->  | O51: =iMap_Rank!BC23 -> 
A52: =iMap_Rank!AO24 -> 1 | B52: =iMap_Rank!AP24 -> Chile | C52: =iMap_Rank!AQ24 -> 82.3 | D52: =iMap_Rank!AR24 -> 1 | E52: =iMap_Rank!AS24 -> Peru | F52: =iMap_Rank!AT24 -> 69.5 | G52: =iMap_Rank!AU24 -> 0 | H52: =iMap_Rank!AV24 ->  | I52: =iMap_Rank!AW24 ->  | J52: =iMap_Rank!AX24 -> 0 | K52: =iMap_Rank!AY24 ->  | L52: =iMap_Rank!AZ24 ->  | M52: =iMap_Rank!BA24 -> 0 | N52: =iMap_Rank!BB24 ->  | O52: =iMap_Rank!BC24 -> 
A53: =iMap_Rank!AO25 -> 1 | B53: =iMap_Rank!AP25 -> Spain | C53: =iMap_Rank!AQ25 -> 80.3 | D53: =iMap_Rank!AR25 -> 1 | E53: =iMap_Rank!AS25 -> Vietnam | F53: =iMap_Rank!AT25 -> 65 | G53: =iMap_Rank!AU25 -> 0 | H53: =iMap_Rank!AV25 ->  | I53: =iMap_Rank!AW25 ->  | J53: =iMap_Rank!AX25 -> 0 | K53: =iMap_Rank!AY25 ->  | L53: =iMap_Rank!AZ25 ->  | M53: =iMap_Rank!BA25 -> 0 | N53: =iMap_Rank!BB25 ->  | O53: =iMap_Rank!BC25 -> 
A54: =iMap_Rank!AO26 -> 1 | B54: =iMap_Rank!AP26 -> South Korea | C54: =iMap_Rank!AQ26 -> 80.2 | D54: =iMap_Rank!AR26 -> 1 | E54: =iMap_Rank!AS26 -> India | F54: =iMap_Rank!AT26 -> 61.6 | G54: =iMap_Rank!AU26 -> 0 | H54: =iMap_Rank!AV26 ->  | I54: =iMap_Rank!AW26 ->  | J54: =iMap_Rank!AX26 -> 0 | K54: =iMap_Rank!AY26 ->  | L54: =iMap_Rank!AZ26 ->  | M54: =iMap_Rank!BA26 -> 0 | N54: =iMap_Rank!BB26 ->  | O54: =iMap_Rank!BC26 -> 
A55: =iMap_Rank!AO27 -> 1 | B55: =iMap_Rank!AP27 -> Canada | C55: =iMap_Rank!AQ27 -> 78.6 | D55: =iMap_Rank!AR27 -> 0 | E55: =iMap_Rank!AS27 ->  | F55: =iMap_Rank!AT27 ->  | G55: =iMap_Rank!AU27 -> 0 | H55: =iMap_Rank!AV27 ->  | I55: =iMap_Rank!AW27 ->  | J55: =iMap_Rank!AX27 -> 0 | K55: =iMap_Rank!AY27 ->  | L55: =iMap_Rank!AZ27 ->  | M55: =iMap_Rank!BA27 -> 0 | N55: =iMap_Rank!BB27 ->  | O55: =iMap_Rank!BC27 -> 
A56: =iMap_Rank!AO28 -> 1 | B56: =iMap_Rank!AP28 -> South Africa | C56: =iMap_Rank!AQ28 -> 75.7 | D56: =iMap_Rank!AR28 -> 0 | E56: =iMap_Rank!AS28 ->  | F56: =iMap_Rank!AT28 ->  | G56: =iMap_Rank!AU28 -> 0 | H56: =iMap_Rank!AV28 ->  | I56: =iMap_Rank!AW28 ->  | J56: =iMap_Rank!AX28 -> 0 | K56: =iMap_Rank!AY28 ->  | L56: =iMap_Rank!AZ28 ->  | M56: =iMap_Rank!BA28 -> 0 | N56: =iMap_Rank!BB28 ->  | O56: =iMap_Rank!BC28 -> 
A57: =iMap_Rank!AO29 -> 0 | B57: =iMap_Rank!AP29 ->  | C57: =iMap_Rank!AQ29 ->  | D57: =iMap_Rank!AR29 -> 0 | E57: =iMap_Rank!AS29 ->  | F57: =iMap_Rank!AT29 ->  | G57: =iMap_Rank!AU29 -> 0 | H57: =iMap_Rank!AV29 ->  | I57: =iMap_Rank!AW29 ->  | J57: =iMap_Rank!AX29 -> 0 | K57: =iMap_Rank!AY29 ->  | L57: =iMap_Rank!AZ29 ->  | M57: =iMap_Rank!BA29 -> 0 | N57: =iMap_Rank!BB29 ->  | O57: =iMap_Rank!BC29 -> 
A58: =iMap_Rank!AO30 -> 0 | B58: =iMap_Rank!AP30 ->  | C58: =iMap_Rank!AQ30 ->  | D58: =iMap_Rank!AR30 -> 0 | E58: =iMap_Rank!AS30 ->  | F58: =iMap_Rank!AT30 ->  | G58: =iMap_Rank!AU30 -> 0 | H58: =iMap_Rank!AV30 ->  | I58: =iMap_Rank!AW30 ->  | J58: =iMap_Rank!AX30 -> 0 | K58: =iMap_Rank!AY30 ->  | L58: =iMap_Rank!AZ30 ->  | M58: =iMap_Rank!BA30 -> 0 | N58: =iMap_Rank!BB30 ->  | O58: =iMap_Rank!BC30 -> 
A59: =iMap_Rank!AO31 -> 0 | B59: =iMap_Rank!AP31 ->  | C59: =iMap_Rank!AQ31 ->  | D59: =iMap_Rank!AR31 -> 0 | E59: =iMap_Rank!AS31 ->  | F59: =iMap_Rank!AT31 ->  | G59: =iMap_Rank!AU31 -> 0 | H59: =iMap_Rank!AV31 ->  | I59: =iMap_Rank!AW31 ->  | J59: =iMap_Rank!AX31 -> 0 | K59: =iMap_Rank!AY31 ->  | L59: =iMap_Rank!AZ31 ->  | M59: =iMap_Rank!BA31 -> 0 | N59: =iMap_Rank!BB31 ->  | O59: =iMap_Rank!BC31 -> 
A60: =iMap_Rank!AO32 -> 0 | B60: =iMap_Rank!AP32 ->  | C60: =iMap_Rank!AQ32 ->  | D60: =iMap_Rank!AR32 -> 0 | E60: =iMap_Rank!AS32 ->  | F60: =iMap_Rank!AT32 ->  | G60: =iMap_Rank!AU32 -> 0 | H60: =iMap_Rank!AV32 ->  | I60: =iMap_Rank!AW32 ->  | J60: =iMap_Rank!AX32 -> 0 | K60: =iMap_Rank!AY32 ->  | L60: =iMap_Rank!AZ32 ->  | M60: =iMap_Rank!BA32 -> 0 | N60: =iMap_Rank!BB32 ->  | O60: =iMap_Rank!BC32 -> 
A61: =iMap_Rank!AO33 -> 0 | B61: =iMap_Rank!AP33 ->  | C61: =iMap_Rank!AQ33 ->  | D61: =iMap_Rank!AR33 -> 0 | E61: =iMap_Rank!AS33 ->  | F61: =iMap_Rank!AT33 ->  | G61: =iMap_Rank!AU33 -> 0 | H61: =iMap_Rank!AV33 ->  | I61: =iMap_Rank!AW33 ->  | J61: =iMap_Rank!AX33 -> 0 | K61: =iMap_Rank!AY33 ->  | L61: =iMap_Rank!AZ33 ->  | M61: =iMap_Rank!BA33 -> 0 | N61: =iMap_Rank!BB33 ->  | O61: =iMap_Rank!BC33 -> 
A62: =iMap_Rank!AO34 -> 0 | B62: =iMap_Rank!AP34 ->  | C62: =iMap_Rank!AQ34 ->  | D62: =iMap_Rank!AR34 -> 0 | E62: =iMap_Rank!AS34 ->  | F62: =iMap_Rank!AT34 ->  | G62: =iMap_Rank!AU34 -> 0 | H62: =iMap_Rank!AV34 ->  | I62: =iMap_Rank!AW34 ->  | J62: =iMap_Rank!AX34 -> 0 | K62: =iMap_Rank!AY34 ->  | L62: =iMap_Rank!AZ34 ->  | M62: =iMap_Rank!BA34 -> 0 | N62: =iMap_Rank!BB34 ->  | O62: =iMap_Rank!BC34 -> 
A63: =iMap_Rank!AO35 -> 0 | B63: =iMap_Rank!AP35 ->  | C63: =iMap_Rank!AQ35 ->  | D63: =iMap_Rank!AR35 -> 0 | E63: =iMap_Rank!AS35 ->  | F63: =iMap_Rank!AT35 ->  | G63: =iMap_Rank!AU35 -> 0 | H63: =iMap_Rank!AV35 ->  | I63: =iMap_Rank!AW35 ->  | J63: =iMap_Rank!AX35 -> 0 | K63: =iMap_Rank!AY35 ->  | L63: =iMap_Rank!AZ35 ->  | M63: =iMap_Rank!BA35 -> 0 | N63: =iMap_Rank!BB35 ->  | O63: =iMap_Rank!BC35 -> 
A64: =iMap_Rank!AO36 -> 0 | B64: =iMap_Rank!AP36 ->  | C64: =iMap_Rank!AQ36 ->  | D64: =iMap_Rank!AR36 -> 0 | E64: =iMap_Rank!AS36 ->  | F64: =iMap_Rank!AT36 ->  | G64: =iMap_Rank!AU36 -> 0 | H64: =iMap_Rank!AV36 ->  | I64: =iMap_Rank!AW36 ->  | J64: =iMap_Rank!AX36 -> 0 | K64: =iMap_Rank!AY36 ->  | L64: =iMap_Rank!AZ36 ->  | M64: =iMap_Rank!BA36 -> 0 | N64: =iMap_Rank!BB36 ->  | O64: =iMap_Rank!BC36 -> 
A65: =iMap_Rank!AO37 -> 0 | B65: =iMap_Rank!AP37 ->  | C65: =iMap_Rank!AQ37 ->  | D65: =iMap_Rank!AR37 -> 0 | E65: =iMap_Rank!AS37 ->  | F65: =iMap_Rank!AT37 ->  | G65: =iMap_Rank!AU37 -> 0 | H65: =iMap_Rank!AV37 ->  | I65: =iMap_Rank!AW37 ->  | J65: =iMap_Rank!AX37 -> 0 | K65: =iMap_Rank!AY37 ->  | L65: =iMap_Rank!AZ37 ->  | M65: =iMap_Rank!BA37 -> 0 | N65: =iMap_Rank!BB37 ->  | O65: =iMap_Rank!BC37 -> 
A66: =iMap_Rank!AO38 -> 0 | B66: =iMap_Rank!AP38 ->  | C66: =iMap_Rank!AQ38 ->  | D66: =iMap_Rank!AR38 -> 0 | E66: =iMap_Rank!AS38 ->  | F66: =iMap_Rank!AT38 ->  | G66: =iMap_Rank!AU38 -> 0 | H66: =iMap_Rank!AV38 ->  | I66: =iMap_Rank!AW38 ->  | J66: =iMap_Rank!AX38 -> 0 | K66: =iMap_Rank!AY38 ->  | L66: =iMap_Rank!AZ38 ->  | M66: =iMap_Rank!BA38 -> 0 | N66: =iMap_Rank!BB38 ->  | O66: =iMap_Rank!BC38 -> 

Sheet Summary
D1: =uxb_works!B92 -> Coastal Governance Index: 2019 | BA1: 1 | BB1: 1
D6: =uxb_works!$C$5 -> The active weight profile has been changed from its default setting
B13: =COUNTIF(B15:B35,"<>0") -> 21 | D13: =iSummary!R6 -> OVERALL SCORE | H13: r | I13: Score | J13: r | K13: Rank | O13: =iSummary!AL6 -> 1) POLICY AND INSTITUTIONAL CAPACITY | S13: r | T13: Score | U13: r | V13: Rank | Z13: =iSummary!BF6 -> 2) BUSINESS ENVIRONMENT FOR COASTAL ACTIVITIES | AD13: r | AE13: Score | AF13: r | AG13: Rank | AK13: =iSummary!BZ6 -> 3) WATER QUALITY | AO13: r | AP13: Score | AQ13: r | AR13: Rank | AV13: =iSummary!CT6 -> 4) MINERALS, ENERGY AND SHIPPING | AZ13: r | BA13: Score | BB13: r | BC13: Rank | BG13: =iSummary!DN6 -> 5) LAND | BK13: r | BL13: Score | BM13: r | BN13: Rank | BR13: =iSummary!EH6 -> 6) LIVING RESOURCES | BV13: r | BW13: Score | BX13: r | BY13: Rank
B15: =iSummary!Q8 -> 1 | C15: =IF(B15=0,0,IF(G15<=uxb_works!$B$122,1,IF(G15<=uxb_works!$B$121,2,IF(G15<=uxb_works!$B$120,3,4)))) -> 4 | E15: =iSummary!R8 -> 1 | F15: =iSummary!S8 -> Norway | G15: =IF(ISNUMBER(iSummary!T8),ROUND(iSummary!T8,1),"") -> 89.5 | H15: =iSummary!W8 -> 3.6 | I15: =iSummary!X8 -> p | J15: =IF(iSummary!Y8=0,"",iSummary!Y8) ->  | K15: =iSummary!Z8 -> 1 | M15: =iSummary!AK8 -> 1 | N15: =IF(M15=0,0,IF(R15<=uxb_works!$B$122,1,IF(R15<=uxb_works!$B$121,2,IF(R15<=uxb_works!$B$120,3,4)))) -> 4 | P15: =iSummary!AL8 -> =1 | Q15: =iSummary!AM8 -> Norway | R15: =iSummary!AN8 -> 88.5 | S15: =iSummary!AQ8 -> 7.7 | T15: =iSummary!AR8 -> p | U15: =IF(iSummary!AS8=0,"",iSummary!AS8) -> 2 | V15: =iSummary!AT8 -> p | X15: =iSummary!BE8 -> 1 | Y15: =IF(X15=0,0,IF(AC15<=uxb_works!$B$122,1,IF(AC15<=uxb_works!$B$121,2,IF(AC15<=uxb_works!$B$120,3,4)))) -> 4 | AA15: =iSummary!BF8 -> 1 | AB15: =iSummary!BG8 -> Canada | AC15: =iSummary!BH8 -> 91.8 | AD15: =iSummary!BK8 -> 2.8 | AE15: =iSummary!BL8 -> p | AF15: =IF(iSummary!BM8=0,"",iSummary!BM8) ->  | AG15: =iSummary!BN8 -> 1 | AI15: =iSummary!BY8 -> 1 | AJ15: =IF(AI15=0,0,IF(AN15<=uxb_works!$B$122,1,IF(AN15<=uxb_works!$B$121,2,IF(AN15<=uxb_works!$B$120,3,4)))) -> 4 | AL15: =iSummary!BZ8 -> 1 | AM15: =iSummary!CA8 -> Canada | AN15: =iSummary!CB8 -> 99.2 | AO15: =iSummary!CE8 -> = | AP15: =iSummary!CF8 ->  | AQ15: =IF(iSummary!CG8=0,"",iSummary!CG8) ->  | AR15: =iSummary!CH8 -> 1 | AT15: =iSummary!CS8 -> 1 | AU15: =IF(AT15=0,0,IF(AY15<=uxb_works!$B$122,1,IF(AY15<=uxb_works!$B$121,2,IF(AY15<=uxb_works!$B$120,3,4)))) -> 4 | AW15: =iSummary!CT8 -> 1 | AX15: =iSummary!CU8 -> Norway | AY15: =iSummary!CV8 -> 100 | AZ15: =iSummary!CY8 -> = | BA15: =iSummary!CZ8 ->  | BB15: =IF(iSummary!DA8=0,"",iSummary!DA8) ->  | BC15: =iSummary!DB8 -> 1 | BE15: =iSummary!DM8 -> 1 | BF15: =IF(BE15=0,0,IF(BJ15<=uxb_works!$B$122,1,IF(BJ15<=uxb_works!$B$121,2,IF(BJ15<=uxb_works!$B$120,3,4)))) -> 4 | BH15: =iSummary!DN8 -> 1 | BI15: =iSummary!DO8 -> New Zealand | BJ15: =iSummary!DP8 -> 96.7 | BK15: =iSummary!DS8 -> -0.8 | BL15: =iSummary!DT8 -> q | BM15: =IF(iSummary!DU8=0,"",iSummary!DU8) ->  | BN15: =iSummary!DV8 -> 1 | BP15: =iSummary!EG8 -> 1 | BQ15: =IF(BP15=0,0,IF(BU15<=uxb_works!$B$122,1,IF(BU15<=uxb_works!$B$121,2,IF(BU15<=uxb_works!$B$120,3,4)))) -> 4 | BS15: =iSummary!EH8 -> 1 | BT15: =iSummary!EI8 -> United States | BU15: =iSummary!EJ8 -> 89.9 | BV15: =iSummary!EM8 -> 8 | BW15: =iSummary!EN8 -> p | BX15: =IF(iSummary!EO8=0,"",iSummary!EO8) -> 1 | BY15: =iSummary!EP8 -> p
B16: =iSummary!Q9 -> 1 | C16: =IF(B16=0,0,IF(G16<=uxb_works!$B$122,1,IF(G16<=uxb_works!$B$121,2,IF(G16<=uxb_works!$B$120,3,4)))) -> 4 | E16: =iSummary!R9 -> 2 | F16: =iSummary!S9 -> United States | G16: =IF(ISNUMBER(iSummary!T9),ROUND(iSummary!T9,1),"") -> 85.4 | H16: =iSummary!W9 -> 4.4 | I16: =iSummary!X9 -> p | J16: =IF(iSummary!Y9=0,"",iSummary!Y9) -> 1 | K16: =iSummary!Z9 -> p | M16: =iSummary!AK9 -> 1 | N16: =IF(M16=0,0,IF(R16<=uxb_works!$B$122,1,IF(R16<=uxb_works!$B$121,2,IF(R16<=uxb_works!$B$120,3,4)))) -> 4 | P16: =iSummary!AL9 -> =1 | Q16: =iSummary!AM9 -> South Africa | R16: =iSummary!AN9 -> 88.5 | S16: =iSummary!AQ9 -> 9.7 | T16: =iSummary!AR9 -> p | U16: =IF(iSummary!AS9=0,"",iSummary!AS9) -> 5 | V16: =iSummary!AT9 -> p | X16: =iSummary!BE9 -> 1 | Y16: =IF(X16=0,0,IF(AC16<=uxb_works!$B$122,1,IF(AC16<=uxb_works!$B$121,2,IF(AC16<=uxb_works!$B$120,3,4)))) -> 4 | AA16: =iSummary!BF9 -> 2 | AB16: =iSummary!BG9 -> Norway | AC16: =iSummary!BH9 -> 91.7 | AD16: =iSummary!BK9 -> 4.2 | AE16: =iSummary!BL9 -> p | AF16: =IF(iSummary!BM9=0,"",iSummary!BM9) -> 1 | AG16: =iSummary!BN9 -> p | AI16: =iSummary!BY9 -> 1 | AJ16: =IF(AI16=0,0,IF(AN16<=uxb_works!$B$122,1,IF(AN16<=uxb_works!$B$121,2,IF(AN16<=uxb_works!$B$120,3,4)))) -> 4 | AL16: =iSummary!BZ9 -> =2 | AM16: =iSummary!CA9 -> New Zealand | AN16: =iSummary!CB9 -> 99.1 | AO16: =iSummary!CE9 -> = | AP16: =iSummary!CF9 ->  | AQ16: =IF(iSummary!CG9=0,"",iSummary!CG9) ->  | AR16: =iSummary!CH9 -> 1 | AT16: =iSummary!CS9 -> 1 | AU16: =IF(AT16=0,0,IF(AY16<=uxb_works!$B$122,1,IF(AY16<=uxb_works!$B$121,2,IF(AY16<=uxb_works!$B$120,3,4)))) -> 4 | AW16: =iSummary!CT9 -> =2 | AX16: =iSummary!CU9 -> China | AY16: =iSummary!CV9 -> 91.7 | AZ16: =iSummary!CY9 -> 3.2 | BA16: =iSummary!CZ9 -> p | BB16: =IF(iSummary!DA9=0,"",iSummary!DA9) -> 1 | BC16: =iSummary!DB9 -> p | BE16: =iSummary!DM9 -> 1 | BF16: =IF(BE16=0,0,IF(BJ16<=uxb_works!$B$122,1,IF(BJ16<=uxb_works!$B$121,2,IF(BJ16<=uxb_works!$B$120,3,4)))) -> 4 | BH16: =iSummary!DN9 -> 2 | BI16: =iSummary!DO9 -> Norway | BJ16: =iSummary!DP9 -> 95.3 | BK16: =iSummary!DS9 -> 18.4 | BL16: =iSummary!DT9 -> p | BM16: =IF(iSummary!DU9=0,"",iSummary!DU9) -> 3 | BN16: =iSummary!DV9 -> p | BP16: =iSummary!EG9 -> 1 | BQ16: =IF(BP16=0,0,IF(BU16<=uxb_works!$B$122,1,IF(BU16<=uxb_works!$B$121,2,IF(BU16<=uxb_works!$B$120,3,4)))) -> 4 | BS16: =iSummary!EH9 -> 2 | BT16: =iSummary!EI9 -> New Zealand | BU16: =iSummary!EJ9 -> 85.1 | BV16: =iSummary!EM9 -> 0.4 | BW16: =iSummary!EN9 -> p | BX16: =IF(iSummary!EO9=0,"",iSummary!EO9) -> -1 | BY16: =iSummary!EP9 -> q
B17: =iSummary!Q10 -> 1 | C17: =IF(B17=0,0,IF(G17<=uxb_works!$B$122,1,IF(G17<=uxb_works!$B$121,2,IF(G17<=uxb_works!$B$120,3,4)))) -> 4 | E17: =iSummary!R10 -> 3 | F17: =iSummary!S10 -> New Zealand | G17: =IF(ISNUMBER(iSummary!T10),ROUND(iSummary!T10,1),"") -> 84.4 | H17: =iSummary!W10 -> 0.2 | I17: =iSummary!X10 -> p | J17: =IF(iSummary!Y10=0,"",iSummary!Y10) -> -1 | K17: =iSummary!Z10 -> q | M17: =iSummary!AK10 -> 1 | N17: =IF(M17=0,0,IF(R17<=uxb_works!$B$122,1,IF(R17<=uxb_works!$B$121,2,IF(R17<=uxb_works!$B$120,3,4)))) -> 4 | P17: =iSummary!AL10 -> =1 | Q17: =iSummary!AM10 -> South Korea | R17: =iSummary!AN10 -> 88.5 | S17: =iSummary!AQ10 -> 27 | T17: =iSummary!AR10 -> p | U17: =IF(iSummary!AS10=0,"",iSummary!AS10) -> 12 | V17: =iSummary!AT10 -> p | X17: =iSummary!BE10 -> 1 | Y17: =IF(X17=0,0,IF(AC17<=uxb_works!$B$122,1,IF(AC17<=uxb_works!$B$121,2,IF(AC17<=uxb_works!$B$120,3,4)))) -> 4 | AA17: =iSummary!BF10 -> 3 | AB17: =iSummary!BG10 -> New Zealand | AC17: =iSummary!BH10 -> 91.2 | AD17: =iSummary!BK10 -> 3.1 | AE17: =iSummary!BL10 -> p | AF17: =IF(iSummary!BM10=0,"",iSummary!BM10) -> -1 | AG17: =iSummary!BN10 -> q | AI17: =iSummary!BY10 -> 1 | AJ17: =IF(AI17=0,0,IF(AN17<=uxb_works!$B$122,1,IF(AN17<=uxb_works!$B$121,2,IF(AN17<=uxb_works!$B$120,3,4)))) -> 4 | AL17: =iSummary!BZ10 -> =2 | AM17: =iSummary!CA10 -> Spain | AN17: =iSummary!CB10 -> 99.1 | AO17: =iSummary!CE10 -> 5.6 | AP17: =iSummary!CF10 -> p | AQ17: =IF(iSummary!CG10=0,"",iSummary!CG10) -> 11 | AR17: =iSummary!CH10 -> p | AT17: =iSummary!CS10 -> 1 | AU17: =IF(AT17=0,0,IF(AY17<=uxb_works!$B$122,1,IF(AY17<=uxb_works!$B$121,2,IF(AY17<=uxb_works!$B$120,3,4)))) -> 4 | AW17: =iSummary!CT10 -> =2 | AX17: =iSummary!CU10 -> Japan | AY17: =iSummary!CV10 -> 91.7 | AZ17: =iSummary!CY10 -> = | BA17: =iSummary!CZ10 ->  | BB17: =IF(iSummary!DA10=0,"",iSummary!DA10) ->  | BC17: =iSummary!DB10 -> 1 | BE17: =iSummary!DM10 -> 1 | BF17: =IF(BE17=0,0,IF(BJ17<=uxb_works!$B$122,1,IF(BJ17<=uxb_works!$B$121,2,IF(BJ17<=uxb_works!$B$120,3,4)))) -> 4 | BH17: =iSummary!DN10 -> 3 | BI17: =iSummary!DO10 -> Japan | BJ17: =iSummary!DP10 -> 94.4 | BK17: =iSummary!DS10 -> 18 | BL17: =iSummary!DT10 -> p | BM17: =IF(iSummary!DU10=0,"",iSummary!DU10) -> 4 | BN17: =iSummary!DV10 -> p | BP17: =iSummary!EG10 -> 1 | BQ17: =IF(BP17=0,0,IF(BU17<=uxb_works!$B$122,1,IF(BU17<=uxb_works!$B$121,2,IF(BU17<=uxb_works!$B$120,3,4)))) -> 4 | BS17: =iSummary!EH10 -> 3 | BT17: =iSummary!EI10 -> Chile | BU17: =iSummary!EJ10 -> 80.4 | BV17: =iSummary!EM10 -> 17.7 | BW17: =iSummary!EN10 -> p | BX17: =IF(iSummary!EO10=0,"",iSummary!EO10) -> 6 | BY17: =iSummary!EP10 -> p
B18: =iSummary!Q11 -> 1 | C18: =IF(B18=0,0,IF(G18<=uxb_works!$B$122,1,IF(G18<=uxb_works!$B$121,2,IF(G18<=uxb_works!$B$120,3,4)))) -> 4 | E18: =iSummary!R11 -> 4 | F18: =iSummary!S11 -> Japan | G18: =IF(ISNUMBER(iSummary!T11),ROUND(iSummary!T11,1),"") -> 83.4 | H18: =iSummary!W11 -> 6.9 | I18: =iSummary!X11 -> p | J18: =IF(iSummary!Y11=0,"",iSummary!Y11) -> 3 | K18: =iSummary!Z11 -> p | M18: =iSummary!AK11 -> 1 | N18: =IF(M18=0,0,IF(R18<=uxb_works!$B$122,1,IF(R18<=uxb_works!$B$121,2,IF(R18<=uxb_works!$B$120,3,4)))) -> 4 | P18: =iSummary!AL11 -> 4 | Q18: =iSummary!AM11 -> Indonesia | R18: =iSummary!AN11 -> 86.5 | S18: =iSummary!AQ11 -> 16.6 | T18: =iSummary!AR11 -> p | U18: =IF(iSummary!AS11=0,"",iSummary!AS11) -> 6 | V18: =iSummary!AT11 -> p | X18: =iSummary!BE11 -> 1 | Y18: =IF(X18=0,0,IF(AC18<=uxb_works!$B$122,1,IF(AC18<=uxb_works!$B$121,2,IF(AC18<=uxb_works!$B$120,3,4)))) -> 4 | AA18: =iSummary!BF11 -> 4 | AB18: =iSummary!BG11 -> United States | AC18: =iSummary!BH11 -> 91 | AD18: =iSummary!BK11 -> 4.7 | AE18: =iSummary!BL11 -> p | AF18: =IF(iSummary!BM11=0,"",iSummary!BM11) ->  | AG18: =iSummary!BN11 -> 1 | AI18: =iSummary!BY11 -> 1 | AJ18: =IF(AI18=0,0,IF(AN18<=uxb_works!$B$122,1,IF(AN18<=uxb_works!$B$121,2,IF(AN18<=uxb_works!$B$120,3,4)))) -> 4 | AL18: =iSummary!BZ11 -> 4 | AM18: =iSummary!CA11 -> Chile | AN18: =iSummary!CB11 -> 99 | AO18: =iSummary!CE11 -> = | AP18: =iSummary!CF11 ->  | AQ18: =IF(iSummary!CG11=0,"",iSummary!CG11) -> -1 | AR18: =iSummary!CH11 -> q | AT18: =iSummary!CS11 -> 1 | AU18: =IF(AT18=0,0,IF(AY18<=uxb_works!$B$122,1,IF(AY18<=uxb_works!$B$121,2,IF(AY18<=uxb_works!$B$120,3,4)))) -> 4 | AW18: =iSummary!CT11 -> 4 | AX18: =iSummary!CU11 -> Canada | AY18: =iSummary!CV11 -> 87.5 | AZ18: =iSummary!CY11 -> = | BA18: =iSummary!CZ11 ->  | BB18: =IF(iSummary!DA11=0,"",iSummary!DA11) ->  | BC18: =iSummary!DB11 -> 1 | BE18: =iSummary!DM11 -> 1 | BF18: =IF(BE18=0,0,IF(BJ18<=uxb_works!$B$122,1,IF(BJ18<=uxb_works!$B$121,2,IF(BJ18<=uxb_works!$B$120,3,4)))) -> 4 | BH18: =iSummary!DN11 -> 4 | BI18: =iSummary!DO11 -> Peru | BJ18: =iSummary!DP11 -> 93.1 | BK18: =iSummary!DS11 -> -0.8 | BL18: =iSummary!DT11 -> q | BM18: =IF(iSummary!DU11=0,"",iSummary!DU11) -> -2 | BN18: =iSummary!DV11 -> q | BP18: =iSummary!EG11 -> 1 | BQ18: =IF(BP18=0,0,IF(BU18<=uxb_works!$B$122,1,IF(BU18<=uxb_works!$B$121,2,IF(BU18<=uxb_works!$B$120,3,4)))) -> 4 | BS18: =iSummary!EH11 -> 4 | BT18: =iSummary!EI11 -> France | BU18: =iSummary!EJ11 -> 78.3 | BV18: =iSummary!EM11 -> 3.7 | BW18: =iSummary!EN11 -> p | BX18: =IF(iSummary!EO11=0,"",iSummary!EO11) ->  | BY18: =iSummary!EP11 -> 1
B19: =iSummary!Q12 -> 1 | C19: =IF(B19=0,0,IF(G19<=uxb_works!$B$122,1,IF(G19<=uxb_works!$B$121,2,IF(G19<=uxb_works!$B$120,3,4)))) -> 4 | E19: =iSummary!R12 -> 5 | F19: =iSummary!S12 -> France | G19: =IF(ISNUMBER(iSummary!T12),ROUND(iSummary!T12,1),"") -> 83.3 | H19: =iSummary!W12 -> 6.6 | I19: =iSummary!X12 -> p | J19: =IF(iSummary!Y12=0,"",iSummary!Y12) -> 1 | K19: =iSummary!Z12 -> p | M19: =iSummary!AK12 -> 1 | N19: =IF(M19=0,0,IF(R19<=uxb_works!$B$122,1,IF(R19<=uxb_works!$B$121,2,IF(R19<=uxb_works!$B$120,3,4)))) -> 4 | P19: =iSummary!AL12 -> =5 | Q19: =iSummary!AM12 -> Japan | R19: =iSummary!AN12 -> 84.6 | S19: =iSummary!AQ12 -> 3.8 | T19: =iSummary!AR12 -> p | U19: =IF(iSummary!AS12=0,"",iSummary!AS12) -> -2 | V19: =iSummary!AT12 -> q | X19: =iSummary!BE12 -> 1 | Y19: =IF(X19=0,0,IF(AC19<=uxb_works!$B$122,1,IF(AC19<=uxb_works!$B$121,2,IF(AC19<=uxb_works!$B$120,3,4)))) -> 4 | AA19: =iSummary!BF12 -> 5 | AB19: =iSummary!BG12 -> Japan | AC19: =iSummary!BH12 -> 88.1 | AD19: =iSummary!BK12 -> 10.4 | AE19: =iSummary!BL12 -> p | AF19: =IF(iSummary!BM12=0,"",iSummary!BM12) -> 2 | AG19: =iSummary!BN12 -> p | AI19: =iSummary!BY12 -> 1 | AJ19: =IF(AI19=0,0,IF(AN19<=uxb_works!$B$122,1,IF(AN19<=uxb_works!$B$121,2,IF(AN19<=uxb_works!$B$120,3,4)))) -> 4 | AL19: =iSummary!BZ12 -> 5 | AM19: =iSummary!CA12 -> Norway | AN19: =iSummary!CB12 -> 98.7 | AO19: =iSummary!CE12 -> = | AP19: =iSummary!CF12 ->  | AQ19: =IF(iSummary!CG12=0,"",iSummary!CG12) -> -1 | AR19: =iSummary!CH12 -> q | AT19: =iSummary!CS12 -> 1 | AU19: =IF(AT19=0,0,IF(AY19<=uxb_works!$B$122,1,IF(AY19<=uxb_works!$B$121,2,IF(AY19<=uxb_works!$B$120,3,4)))) -> 4 | AW19: =iSummary!CT12 -> =5 | AX19: =iSummary!CU12 -> Brazil | AY19: =iSummary!CV12 -> 84.4 | AZ19: =iSummary!CY12 -> = | BA19: =iSummary!CZ12 ->  | BB19: =IF(iSummary!DA12=0,"",iSummary!DA12) ->  | BC19: =iSummary!DB12 -> 1 | BE19: =iSummary!DM12 -> 1 | BF19: =IF(BE19=0,0,IF(BJ19<=uxb_works!$B$122,1,IF(BJ19<=uxb_works!$B$121,2,IF(BJ19<=uxb_works!$B$120,3,4)))) -> 4 | BH19: =iSummary!DN12 -> 5 | BI19: =iSummary!DO12 -> Chile | BJ19: =iSummary!DP12 -> 92.5 | BK19: =iSummary!DS12 -> 16.4 | BL19: =iSummary!DT12 -> p | BM19: =IF(iSummary!DU12=0,"",iSummary!DU12) -> 3 | BN19: =iSummary!DV12 -> p | BP19: =iSummary!EG12 -> 1 | BQ19: =IF(BP19=0,0,IF(BU19<=uxb_works!$B$122,1,IF(BU19<=uxb_works!$B$121,2,IF(BU19<=uxb_works!$B$120,3,4)))) -> 3 | BS19: =iSummary!EH12 -> 5 | BT19: =iSummary!EI12 -> Norway | BU19: =iSummary!EJ12 -> 73 | BV19: =iSummary!EM12 -> -5.6 | BW19: =iSummary!EN12 -> q | BX19: =IF(iSummary!EO12=0,"",iSummary!EO12) -> -2 | BY19: =iSummary!EP12 -> q
B20: =iSummary!Q13 -> 1 | C20: =IF(B20=0,0,IF(G20<=uxb_works!$B$122,1,IF(G20<=uxb_works!$B$121,2,IF(G20<=uxb_works!$B$120,3,4)))) -> 4 | E20: =iSummary!R13 -> 6 | F20: =iSummary!S13 -> Chile | G20: =IF(ISNUMBER(iSummary!T13),ROUND(iSummary!T13,1),"") -> 82.3 | H20: =iSummary!W13 -> 9.9 | I20: =iSummary!X13 -> p | J20: =IF(iSummary!Y13=0,"",iSummary!Y13) -> 2 | K20: =iSummary!Z13 -> p | M20: =iSummary!AK13 -> 1 | N20: =IF(M20=0,0,IF(R20<=uxb_works!$B$122,1,IF(R20<=uxb_works!$B$121,2,IF(R20<=uxb_works!$B$120,3,4)))) -> 4 | P20: =iSummary!AL13 -> =5 | Q20: =iSummary!AM13 -> Philippines | R20: =iSummary!AN13 -> 84.6 | S20: =iSummary!AQ13 -> 10.2 | T20: =iSummary!AR13 -> p | U20: =IF(iSummary!AS13=0,"",iSummary!AS13) -> 3 | V20: =iSummary!AT13 -> p | X20: =iSummary!BE13 -> 1 | Y20: =IF(X20=0,0,IF(AC20<=uxb_works!$B$122,1,IF(AC20<=uxb_works!$B$121,2,IF(AC20<=uxb_works!$B$120,3,4)))) -> 4 | AA20: =iSummary!BF13 -> 6 | AB20: =iSummary!BG13 -> France | AC20: =iSummary!BH13 -> 87.7 | AD20: =iSummary!BK13 -> 4.7 | AE20: =iSummary!BL13 -> p | AF20: =IF(iSummary!BM13=0,"",iSummary!BM13) -> -1 | AG20: =iSummary!BN13 -> q | AI20: =iSummary!BY13 -> 1 | AJ20: =IF(AI20=0,0,IF(AN20<=uxb_works!$B$122,1,IF(AN20<=uxb_works!$B$121,2,IF(AN20<=uxb_works!$B$120,3,4)))) -> 4 | AL20: =iSummary!BZ13 -> 6 | AM20: =iSummary!CA13 -> France | AN20: =iSummary!CB13 -> 98.6 | AO20: =iSummary!CE13 -> = | AP20: =iSummary!CF13 ->  | AQ20: =IF(iSummary!CG13=0,"",iSummary!CG13) -> -1 | AR20: =iSummary!CH13 -> q | AT20: =iSummary!CS13 -> 1 | AU20: =IF(AT20=0,0,IF(AY20<=uxb_works!$B$122,1,IF(AY20<=uxb_works!$B$121,2,IF(AY20<=uxb_works!$B$120,3,4)))) -> 4 | AW20: =iSummary!CT13 -> =5 | AX20: =iSummary!CU13 -> India | AY20: =iSummary!CV13 -> 84.4 | AZ20: =iSummary!CY13 -> 6.3 | BA20: =iSummary!CZ13 -> p | BB20: =IF(iSummary!DA13=0,"",iSummary!DA13) -> 7 | BC20: =iSummary!DB13 -> p | BE20: =iSummary!DM13 -> 1 | BF20: =IF(BE20=0,0,IF(BJ20<=uxb_works!$B$122,1,IF(BJ20<=uxb_works!$B$121,2,IF(BJ20<=uxb_works!$B$120,3,4)))) -> 4 | BH20: =iSummary!DN13 -> 6 | BI20: =iSummary!DO13 -> France | BJ20: =iSummary!DP13 -> 78.1 | BK20: =iSummary!DS13 -> 0.3 | BL20: =iSummary!DT13 -> p | BM20: =IF(iSummary!DU13=0,"",iSummary!DU13) -> -2 | BN20: =iSummary!DV13 -> q | BP20: =iSummary!EG13 -> 1 | BQ20: =IF(BP20=0,0,IF(BU20<=uxb_works!$B$122,1,IF(BU20<=uxb_works!$B$121,2,IF(BU20<=uxb_works!$B$120,3,4)))) -> 3 | BS20: =iSummary!EH13 -> 6 | BT20: =iSummary!EI13 -> South Africa | BU20: =iSummary!EJ13 -> 69.6 | BV20: =iSummary!EM13 -> 6.3 | BW20: =iSummary!EN13 -> p | BX20: =IF(iSummary!EO13=0,"",iSummary!EO13) -> 1 | BY20: =iSummary!EP13 -> p
B21: =iSummary!Q14 -> 1 | C21: =IF(B21=0,0,IF(G21<=uxb_works!$B$122,1,IF(G21<=uxb_works!$B$121,2,IF(G21<=uxb_works!$B$120,3,4)))) -> 4 | E21: =iSummary!R14 -> 7 | F21: =iSummary!S14 -> Spain | G21: =IF(ISNUMBER(iSummary!T14),ROUND(iSummary!T14,1),"") -> 80.3 | H21: =iSummary!W14 -> = | I21: =iSummary!X14 ->  | J21: =IF(iSummary!Y14=0,"",iSummary!Y14) -> -3 | K21: =iSummary!Z14 -> q | M21: =iSummary!AK14 -> 1 | N21: =IF(M21=0,0,IF(R21<=uxb_works!$B$122,1,IF(R21<=uxb_works!$B$121,2,IF(R21<=uxb_works!$B$120,3,4)))) -> 4 | P21: =iSummary!AL14 -> =5 | Q21: =iSummary!AM14 -> Spain | R21: =iSummary!AN14 -> 84.6 | S21: =iSummary!AQ14 -> = | T21: =iSummary!AR14 ->  | U21: =IF(iSummary!AS14=0,"",iSummary!AS14) -> -4 | V21: =iSummary!AT14 -> q | X21: =iSummary!BE14 -> 1 | Y21: =IF(X21=0,0,IF(AC21<=uxb_works!$B$122,1,IF(AC21<=uxb_works!$B$121,2,IF(AC21<=uxb_works!$B$120,3,4)))) -> 4 | AA21: =iSummary!BF14 -> 7 | AB21: =iSummary!BG14 -> Chile | AC21: =iSummary!BH14 -> 77.7 | AD21: =iSummary!BK14 -> 1.6 | AE21: =iSummary!BL14 -> p | AF21: =IF(iSummary!BM14=0,"",iSummary!BM14) -> 1 | AG21: =iSummary!BN14 -> p | AI21: =iSummary!BY14 -> 1 | AJ21: =IF(AI21=0,0,IF(AN21<=uxb_works!$B$122,1,IF(AN21<=uxb_works!$B$121,2,IF(AN21<=uxb_works!$B$120,3,4)))) -> 4 | AL21: =iSummary!BZ14 -> 7 | AM21: =iSummary!CA14 -> Japan | AN21: =iSummary!CB14 -> 98.5 | AO21: =iSummary!CE14 -> = | AP21: =iSummary!CF14 ->  | AQ21: =IF(iSummary!CG14=0,"",iSummary!CG14) -> -1 | AR21: =iSummary!CH14 -> q | AT21: =iSummary!CS14 -> 1 | AU21: =IF(AT21=0,0,IF(AY21<=uxb_works!$B$122,1,IF(AY21<=uxb_works!$B$121,2,IF(AY21<=uxb_works!$B$120,3,4)))) -> 4 | AW21: =iSummary!CT14 -> =5 | AX21: =iSummary!CU14 -> Mexico | AY21: =iSummary!CV14 -> 84.4 | AZ21: =iSummary!CY14 -> 11.5 | BA21: =iSummary!CZ14 -> p | BB21: =IF(iSummary!DA14=0,"",iSummary!DA14) -> 10 | BC21: =iSummary!DB14 -> p | BE21: =iSummary!DM14 -> 1 | BF21: =IF(BE21=0,0,IF(BJ21<=uxb_works!$B$122,1,IF(BJ21<=uxb_works!$B$121,2,IF(BJ21<=uxb_works!$B$120,3,4)))) -> 4 | BH21: =iSummary!DN14 -> 7 | BI21: =iSummary!DO14 -> United States | BJ21: =iSummary!DP14 -> 77.8 | BK21: =iSummary!DS14 -> 16.7 | BL21: =iSummary!DT14 -> p | BM21: =IF(iSummary!DU14=0,"",iSummary!DU14) -> 3 | BN21: =iSummary!DV14 -> p | BP21: =iSummary!EG14 -> 1 | BQ21: =IF(BP21=0,0,IF(BU21<=uxb_works!$B$122,1,IF(BU21<=uxb_works!$B$121,2,IF(BU21<=uxb_works!$B$120,3,4)))) -> 3 | BS21: =iSummary!EH14 -> 7 | BT21: =iSummary!EI14 -> Peru | BU21: =iSummary!EJ14 -> 69 | BV21: =iSummary!EM14 -> 13.9 | BW21: =iSummary!EN14 -> p | BX21: =IF(iSummary!EO14=0,"",iSummary!EO14) -> 4 | BY21: =iSummary!EP14 -> p
B22: =iSummary!Q15 -> 1 | C22: =IF(B22=0,0,IF(G22<=uxb_works!$B$122,1,IF(G22<=uxb_works!$B$121,2,IF(G22<=uxb_works!$B$120,3,4)))) -> 4 | E22: =iSummary!R15 -> 8 | F22: =iSummary!S15 -> South Korea | G22: =IF(ISNUMBER(iSummary!T15),ROUND(iSummary!T15,1),"") -> 80.2 | H22: =iSummary!W15 -> 11.7 | I22: =iSummary!X15 -> p | J22: =IF(iSummary!Y15=0,"",iSummary!Y15) -> 3 | K22: =iSummary!Z15 -> p | M22: =iSummary!AK15 -> 1 | N22: =IF(M22=0,0,IF(R22<=uxb_works!$B$122,1,IF(R22<=uxb_works!$B$121,2,IF(R22<=uxb_works!$B$120,3,4)))) -> 4 | P22: =iSummary!AL15 -> =5 | Q22: =iSummary!AM15 -> Vietnam | R22: =iSummary!AN15 -> 84.6 | S22: =iSummary!AQ15 -> 7.7 | T22: =iSummary!AR15 -> p | U22: =IF(iSummary!AS15=0,"",iSummary!AS15) -> 2 | V22: =iSummary!AT15 -> p | X22: =iSummary!BE15 -> 1 | Y22: =IF(X22=0,0,IF(AC22<=uxb_works!$B$122,1,IF(AC22<=uxb_works!$B$121,2,IF(AC22<=uxb_works!$B$120,3,4)))) -> 4 | AA22: =iSummary!BF15 -> 8 | AB22: =iSummary!BG15 -> South Korea | AC22: =iSummary!BH15 -> 77.1 | AD22: =iSummary!BK15 -> 3.4 | AE22: =iSummary!BL15 -> p | AF22: =IF(iSummary!BM15=0,"",iSummary!BM15) -> 1 | AG22: =iSummary!BN15 -> p | AI22: =iSummary!BY15 -> 1 | AJ22: =IF(AI22=0,0,IF(AN22<=uxb_works!$B$122,1,IF(AN22<=uxb_works!$B$121,2,IF(AN22<=uxb_works!$B$120,3,4)))) -> 4 | AL22: =iSummary!BZ15 -> 8 | AM22: =iSummary!CA15 -> South Africa | AN22: =iSummary!CB15 -> 97.3 | AO22: =iSummary!CE15 -> = | AP22: =iSummary!CF15 ->  | AQ22: =IF(iSummary!CG15=0,"",iSummary!CG15) -> -1 | AR22: =iSummary!CH15 -> q | AT22: =iSummary!CS15 -> 1 | AU22: =IF(AT22=0,0,IF(AY22<=uxb_works!$B$122,1,IF(AY22<=uxb_works!$B$121,2,IF(AY22<=uxb_works!$B$120,3,4)))) -> 4 | AW22: =iSummary!CT15 -> =5 | AX22: =iSummary!CU15 -> New Zealand | AY22: =iSummary!CV15 -> 84.4 | AZ22: =iSummary!CY15 -> = | BA22: =iSummary!CZ15 ->  | BB22: =IF(iSummary!DA15=0,"",iSummary!DA15) ->  | BC22: =iSummary!DB15 -> 1 | BE22: =iSummary!DM15 -> 1 | BF22: =IF(BE22=0,0,IF(BJ22<=uxb_works!$B$122,1,IF(BJ22<=uxb_works!$B$121,2,IF(BJ22<=uxb_works!$B$120,3,4)))) -> 4 | BH22: =iSummary!DN15 -> 8 | BI22: =iSummary!DO15 -> Spain | BJ22: =iSummary!DP15 -> 77.2 | BK22: =iSummary!DS15 -> -0.9 | BL22: =iSummary!DT15 -> q | BM22: =IF(iSummary!DU15=0,"",iSummary!DU15) -> -5 | BN22: =iSummary!DV15 -> q | BP22: =iSummary!EG15 -> 1 | BQ22: =IF(BP22=0,0,IF(BU22<=uxb_works!$B$122,1,IF(BU22<=uxb_works!$B$121,2,IF(BU22<=uxb_works!$B$120,3,4)))) -> 3 | BS22: =iSummary!EH15 -> 8 | BT22: =iSummary!EI15 -> Mexico | BU22: =iSummary!EJ15 -> 67.3 | BV22: =iSummary!EM15 -> 15.6 | BW22: =iSummary!EN15 -> p | BX22: =IF(iSummary!EO15=0,"",iSummary!EO15) -> 5 | BY22: =iSummary!EP15 -> p
B23: =iSummary!Q16 -> 1 | C23: =IF(B23=0,0,IF(G23<=uxb_works!$B$122,1,IF(G23<=uxb_works!$B$121,2,IF(G23<=uxb_works!$B$120,3,4)))) -> 4 | E23: =iSummary!R16 -> 9 | F23: =iSummary!S16 -> Canada | G23: =IF(ISNUMBER(iSummary!T16),ROUND(iSummary!T16,1),"") -> 78.6 | H23: =iSummary!W16 -> 0.4 | I23: =iSummary!X16 -> p | J23: =IF(iSummary!Y16=0,"",iSummary!Y16) -> -4 | K23: =iSummary!Z16 -> q | M23: =iSummary!AK16 -> 1 | N23: =IF(M23=0,0,IF(R23<=uxb_works!$B$122,1,IF(R23<=uxb_works!$B$121,2,IF(R23<=uxb_works!$B$120,3,4)))) -> 4 | P23: =iSummary!AL16 -> =9 | Q23: =iSummary!AM16 -> Canada | R23: =iSummary!AN16 -> 80.8 | S23: =iSummary!AQ16 -> = | T23: =iSummary!AR16 ->  | U23: =IF(iSummary!AS16=0,"",iSummary!AS16) -> -6 | V23: =iSummary!AT16 -> q | X23: =iSummary!BE16 -> 1 | Y23: =IF(X23=0,0,IF(AC23<=uxb_works!$B$122,1,IF(AC23<=uxb_works!$B$121,2,IF(AC23<=uxb_works!$B$120,3,4)))) -> 4 | AA23: =iSummary!BF16 -> 9 | AB23: =iSummary!BG16 -> Spain | AC23: =iSummary!BH16 -> 76.8 | AD23: =iSummary!BK16 -> -2.8 | AE23: =iSummary!BL16 -> q | AF23: =IF(iSummary!BM16=0,"",iSummary!BM16) -> -3 | AG23: =iSummary!BN16 -> q | AI23: =iSummary!BY16 -> 1 | AJ23: =IF(AI23=0,0,IF(AN23<=uxb_works!$B$122,1,IF(AN23<=uxb_works!$B$121,2,IF(AN23<=uxb_works!$B$120,3,4)))) -> 4 | AL23: =iSummary!BZ16 -> 9 | AM23: =iSummary!CA16 -> United States | AN23: =iSummary!CB16 -> 97 | AO23: =iSummary!CE16 -> = | AP23: =iSummary!CF16 ->  | AQ23: =IF(iSummary!CG16=0,"",iSummary!CG16) -> -1 | AR23: =iSummary!CH16 -> q | AT23: =iSummary!CS16 -> 1 | AU23: =IF(AT23=0,0,IF(AY23<=uxb_works!$B$122,1,IF(AY23<=uxb_works!$B$121,2,IF(AY23<=uxb_works!$B$120,3,4)))) -> 4 | AW23: =iSummary!CT16 -> =5 | AX23: =iSummary!CU16 -> South Africa | AY23: =iSummary!CV16 -> 84.4 | AZ23: =iSummary!CY16 -> 8.4 | BA23: =iSummary!CZ16 -> p | BB23: =IF(iSummary!DA16=0,"",iSummary!DA16) -> 8 | BC23: =iSummary!DB16 -> p | BE23: =iSummary!DM16 -> 1 | BF23: =IF(BE23=0,0,IF(BJ23<=uxb_works!$B$122,1,IF(BJ23<=uxb_works!$B$121,2,IF(BJ23<=uxb_works!$B$120,3,4)))) -> 4 | BH23: =iSummary!DN16 -> 9 | BI23: =iSummary!DO16 -> Indonesia | BJ23: =iSummary!DP16 -> 76.4 | BK23: =iSummary!DS16 -> 0.6 | BL23: =iSummary!DT16 -> p | BM23: =IF(iSummary!DU16=0,"",iSummary!DU16) ->  | BN23: =iSummary!DV16 -> 1 | BP23: =iSummary!EG16 -> 1 | BQ23: =IF(BP23=0,0,IF(BU23<=uxb_works!$B$122,1,IF(BU23<=uxb_works!$B$121,2,IF(BU23<=uxb_works!$B$120,3,4)))) -> 3 | BS23: =iSummary!EH16 -> =9 | BT23: =iSummary!EI16 -> South Korea | BU23: =iSummary!EJ16 -> 65.3 | BV23: =iSummary!EM16 -> 11.4 | BW23: =iSummary!EN16 -> p | BX23: =IF(iSummary!EO16=0,"",iSummary!EO16) -> 3 | BY23: =iSummary!EP16 -> p
B24: =iSummary!Q17 -> 1 | C24: =IF(B24=0,0,IF(G24<=uxb_works!$B$122,1,IF(G24<=uxb_works!$B$121,2,IF(G24<=uxb_works!$B$120,3,4)))) -> 4 | E24: =iSummary!R17 -> 10 | F24: =iSummary!S17 -> South Africa | G24: =IF(ISNUMBER(iSummary!T17),ROUND(iSummary!T17,1),"") -> 75.7 | H24: =iSummary!W17 -> 5.1 | I24: =iSummary!X17 -> p | J24: =IF(iSummary!Y17=0,"",iSummary!Y17) ->  | K24: =iSummary!Z17 -> 1 | M24: =iSummary!AK17 -> 1 | N24: =IF(M24=0,0,IF(R24<=uxb_works!$B$122,1,IF(R24<=uxb_works!$B$121,2,IF(R24<=uxb_works!$B$120,3,4)))) -> 4 | P24: =iSummary!AL17 -> =9 | Q24: =iSummary!AM17 -> France | R24: =iSummary!AN17 -> 80.8 | S24: =iSummary!AQ17 -> 23.1 | T24: =iSummary!AR17 -> p | U24: =IF(iSummary!AS17=0,"",iSummary!AS17) -> 6 | V24: =iSummary!AT17 -> p | X24: =iSummary!BE17 -> 4 | Y24: =IF(X24=0,0,IF(AC24<=uxb_works!$B$122,1,IF(AC24<=uxb_works!$B$121,2,IF(AC24<=uxb_works!$B$120,3,4)))) -> 3 | AA24: =iSummary!BF17 ->  | AB24: =iSummary!BG17 -> AVERAGE | AC24: =iSummary!BH17 -> 64.67 | AD24: =iSummary!BK17 ->  | AE24: =iSummary!BL17 ->  | AF24: =IF(iSummary!BM17=0,"",iSummary!BM17) ->  | AG24: =iSummary!BN17 ->  | AI24: =iSummary!BY17 -> 1 | AJ24: =IF(AI24=0,0,IF(AN24<=uxb_works!$B$122,1,IF(AN24<=uxb_works!$B$121,2,IF(AN24<=uxb_works!$B$120,3,4)))) -> 4 | AL24: =iSummary!BZ17 -> 10 | AM24: =iSummary!CA17 -> Peru | AN24: =iSummary!CB17 -> 96.9 | AO24: =iSummary!CE17 -> = | AP24: =iSummary!CF17 ->  | AQ24: =IF(iSummary!CG17=0,"",iSummary!CG17) -> -1 | AR24: =iSummary!CH17 -> q | AT24: =iSummary!CS17 -> 1 | AU24: =IF(AT24=0,0,IF(AY24<=uxb_works!$B$122,1,IF(AY24<=uxb_works!$B$121,2,IF(AY24<=uxb_works!$B$120,3,4)))) -> 4 | AW24: =iSummary!CT17 -> 10 | AX24: =iSummary!CU17 -> South Korea | AY24: =iSummary!CV17 -> 83.3 | AZ24: =iSummary!CY17 -> = | BA24: =iSummary!CZ17 ->  | BB24: =IF(iSummary!DA17=0,"",iSummary!DA17) -> -3 | BC24: =iSummary!DB17 -> q | BE24: =iSummary!DM17 -> 1 | BF24: =IF(BE24=0,0,IF(BJ24<=uxb_works!$B$122,1,IF(BJ24<=uxb_works!$B$121,2,IF(BJ24<=uxb_works!$B$120,3,4)))) -> 4 | BH24: =iSummary!DN17 -> 10 | BI24: =iSummary!DO17 -> China | BJ24: =iSummary!DP17 -> 76.1 | BK24: =iSummary!DS17 -> -0.8 | BL24: =iSummary!DT17 -> q | BM24: =IF(iSummary!DU17=0,"",iSummary!DU17) -> -5 | BN24: =iSummary!DV17 -> q | BP24: =iSummary!EG17 -> 1 | BQ24: =IF(BP24=0,0,IF(BU24<=uxb_works!$B$122,1,IF(BU24<=uxb_works!$B$121,2,IF(BU24<=uxb_works!$B$120,3,4)))) -> 3 | BS24: =iSummary!EH17 -> =9 | BT24: =iSummary!EI17 -> Spain | BU24: =iSummary!EJ17 -> 65.3 | BV24: =iSummary!EM17 -> -2.1 | BW24: =iSummary!EN17 -> q | BX24: =IF(iSummary!EO17=0,"",iSummary!EO17) -> -4 | BY24: =iSummary!EP17 -> q
B25: =iSummary!Q18 -> 1 | C25: =IF(B25=0,0,IF(G25<=uxb_works!$B$122,1,IF(G25<=uxb_works!$B$121,2,IF(G25<=uxb_works!$B$120,3,4)))) -> 3 | E25: =iSummary!R18 -> 11 | F25: =iSummary!S18 -> Mexico | G25: =IF(ISNUMBER(iSummary!T18),ROUND(iSummary!T18,1),"") -> 74.1 | H25: =iSummary!W18 -> 16.3 | I25: =iSummary!X18 -> p | J25: =IF(iSummary!Y18=0,"",iSummary!Y18) -> 7 | K25: =iSummary!Z18 -> p | M25: =iSummary!AK18 -> 1 | N25: =IF(M25=0,0,IF(R25<=uxb_works!$B$122,1,IF(R25<=uxb_works!$B$121,2,IF(R25<=uxb_works!$B$120,3,4)))) -> 4 | P25: =iSummary!AL18 -> =9 | Q25: =iSummary!AM18 -> United States | R25: =iSummary!AN18 -> 80.8 | S25: =iSummary!AQ18 -> -1.3 | T25: =iSummary!AR18 -> q | U25: =IF(iSummary!AS18=0,"",iSummary!AS18) -> -7 | V25: =iSummary!AT18 -> q | X25: =iSummary!BE18 -> 1 | Y25: =IF(X25=0,0,IF(AC25<=uxb_works!$B$122,1,IF(AC25<=uxb_works!$B$121,2,IF(AC25<=uxb_works!$B$120,3,4)))) -> 3 | AA25: =iSummary!BF18 -> 10 | AB25: =iSummary!BG18 -> South Africa | AC25: =iSummary!BH18 -> 58.1 | AD25: =iSummary!BK18 -> 2.8 | AE25: =iSummary!BL18 -> p | AF25: =IF(iSummary!BM18=0,"",iSummary!BM18) ->  | AG25: =iSummary!BN18 -> 1 | AI25: =iSummary!BY18 -> 1 | AJ25: =IF(AI25=0,0,IF(AN25<=uxb_works!$B$122,1,IF(AN25<=uxb_works!$B$121,2,IF(AN25<=uxb_works!$B$120,3,4)))) -> 4 | AL25: =iSummary!BZ18 -> 11 | AM25: =iSummary!CA18 -> Mexico | AN25: =iSummary!CB18 -> 96.8 | AO25: =iSummary!CE18 -> = | AP25: =iSummary!CF18 ->  | AQ25: =IF(iSummary!CG18=0,"",iSummary!CG18) -> -1 | AR25: =iSummary!CH18 -> q | AT25: =iSummary!CS18 -> 1 | AU25: =IF(AT25=0,0,IF(AY25<=uxb_works!$B$122,1,IF(AY25<=uxb_works!$B$121,2,IF(AY25<=uxb_works!$B$120,3,4)))) -> 4 | AW25: =iSummary!CT18 -> =11 | AX25: =iSummary!CU18 -> France | AY25: =iSummary!CV18 -> 82.3 | AZ25: =iSummary!CY18 -> = | BA25: =iSummary!CZ18 ->  | BB25: =IF(iSummary!DA18=0,"",iSummary!DA18) -> -3 | BC25: =iSummary!DB18 -> q | BE25: =iSummary!DM18 -> 1 | BF25: =IF(BE25=0,0,IF(BJ25<=uxb_works!$B$122,1,IF(BJ25<=uxb_works!$B$121,2,IF(BJ25<=uxb_works!$B$120,3,4)))) -> 4 | BH25: =iSummary!DN18 -> 11 | BI25: =iSummary!DO18 -> Philippines | BJ25: =iSummary!DP18 -> 75.6 | BK25: =iSummary!DS18 -> 17 | BL25: =iSummary!DT18 -> p | BM25: =IF(iSummary!DU18=0,"",iSummary!DU18) -> 1 | BN25: =iSummary!DV18 -> p | BP25: =iSummary!EG18 -> 1 | BQ25: =IF(BP25=0,0,IF(BU25<=uxb_works!$B$122,1,IF(BU25<=uxb_works!$B$121,2,IF(BU25<=uxb_works!$B$120,3,4)))) -> 3 | BS25: =iSummary!EH18 -> 11 | BT25: =iSummary!EI18 -> Canada | BU25: =iSummary!EJ18 -> 64.1 | BV25: =iSummary!EM18 -> 0.8 | BW25: =iSummary!EN18 -> p | BX25: =IF(iSummary!EO18=0,"",iSummary!EO18) -> -4 | BY25: =iSummary!EP18 -> q
B26: =iSummary!Q19 -> 4 | C26: =IF(B26=0,0,IF(G26<=uxb_works!$B$122,1,IF(G26<=uxb_works!$B$121,2,IF(G26<=uxb_works!$B$120,3,4)))) -> 3 | E26: =iSummary!R19 ->  | F26: =iSummary!S19 -> AVERAGE | G26: =IF(ISNUMBER(iSummary!T19),ROUND(iSummary!T19,1),"") -> 73.8 | H26: =iSummary!W19 ->  | I26: =iSummary!X19 ->  | J26: =IF(iSummary!Y19=0,"",iSummary!Y19) ->  | K26: =iSummary!Z19 ->  | M26: =iSummary!AK19 -> 1 | N26: =IF(M26=0,0,IF(R26<=uxb_works!$B$122,1,IF(R26<=uxb_works!$B$121,2,IF(R26<=uxb_works!$B$120,3,4)))) -> 4 | P26: =iSummary!AL19 -> 12 | Q26: =iSummary!AM19 -> Brazil | R26: =iSummary!AN19 -> 76.9 | S26: =iSummary!AQ19 -> 3.8 | T26: =iSummary!AR19 -> p | U26: =IF(iSummary!AS19=0,"",iSummary!AS19) -> -3 | V26: =iSummary!AT19 -> q | X26: =iSummary!BE19 -> 1 | Y26: =IF(X26=0,0,IF(AC26<=uxb_works!$B$122,1,IF(AC26<=uxb_works!$B$121,2,IF(AC26<=uxb_works!$B$120,3,4)))) -> 3 | AA26: =iSummary!BF19 -> 11 | AB26: =iSummary!BG19 -> China | AC26: =iSummary!BH19 -> 54.1 | AD26: =iSummary!BK19 -> 5.3 | AE26: =iSummary!BL19 -> p | AF26: =IF(iSummary!BM19=0,"",iSummary!BM19) -> 2 | AG26: =iSummary!BN19 -> p | AI26: =iSummary!BY19 -> 1 | AJ26: =IF(AI26=0,0,IF(AN26<=uxb_works!$B$122,1,IF(AN26<=uxb_works!$B$121,2,IF(AN26<=uxb_works!$B$120,3,4)))) -> 4 | AL26: =iSummary!BZ19 -> 12 | AM26: =iSummary!CA19 -> Brazil | AN26: =iSummary!CB19 -> 96.6 | AO26: =iSummary!CE19 -> = | AP26: =iSummary!CF19 ->  | AQ26: =IF(iSummary!CG19=0,"",iSummary!CG19) -> -1 | AR26: =iSummary!CH19 -> q | AT26: =iSummary!CS19 -> 1 | AU26: =IF(AT26=0,0,IF(AY26<=uxb_works!$B$122,1,IF(AY26<=uxb_works!$B$121,2,IF(AY26<=uxb_works!$B$120,3,4)))) -> 4 | AW26: =iSummary!CT19 -> =11 | AX26: =iSummary!CU19 -> Spain | AY26: =iSummary!CV19 -> 82.3 | AZ26: =iSummary!CY19 -> = | BA26: =iSummary!CZ19 ->  | BB26: =IF(iSummary!DA19=0,"",iSummary!DA19) -> -3 | BC26: =iSummary!DB19 -> q | BE26: =iSummary!DM19 -> 1 | BF26: =IF(BE26=0,0,IF(BJ26<=uxb_works!$B$122,1,IF(BJ26<=uxb_works!$B$121,2,IF(BJ26<=uxb_works!$B$120,3,4)))) -> 4 | BH26: =iSummary!DN19 -> 12 | BI26: =iSummary!DO19 -> South Korea | BJ26: =iSummary!DP19 -> 75.3 | BK26: =iSummary!DS19 -> 16.7 | BL26: =iSummary!DT19 -> p | BM26: =IF(iSummary!DU19=0,"",iSummary!DU19) ->  | BN26: =iSummary!DV19 -> 1 | BP26: =iSummary!EG19 -> 1 | BQ26: =IF(BP26=0,0,IF(BU26<=uxb_works!$B$122,1,IF(BU26<=uxb_works!$B$121,2,IF(BU26<=uxb_works!$B$120,3,4)))) -> 3 | BS26: =iSummary!EH19 -> 12 | BT26: =iSummary!EI19 -> Indonesia | BU26: =iSummary!EJ19 -> 62.6 | BV26: =iSummary!EM19 -> 25.3 | BW26: =iSummary!EN19 -> p | BX26: =IF(iSummary!EO19=0,"",iSummary!EO19) -> 3 | BY26: =iSummary!EP19 -> p
B27: =iSummary!Q20 -> 1 | C27: =IF(B27=0,0,IF(G27<=uxb_works!$B$122,1,IF(G27<=uxb_works!$B$121,2,IF(G27<=uxb_works!$B$120,3,4)))) -> 3 | E27: =iSummary!R20 -> 12 | F27: =iSummary!S20 -> Brazil | G27: =IF(ISNUMBER(iSummary!T20),ROUND(iSummary!T20,1),"") -> 73.1 | H27: =iSummary!W20 -> 2.4 | I27: =iSummary!X20 -> p | J27: =IF(iSummary!Y20=0,"",iSummary!Y20) -> -3 | K27: =iSummary!Z20 -> q | M27: =iSummary!AK20 -> 1 | N27: =IF(M27=0,0,IF(R27<=uxb_works!$B$122,1,IF(R27<=uxb_works!$B$121,2,IF(R27<=uxb_works!$B$120,3,4)))) -> 4 | P27: =iSummary!AL20 -> 13 | Q27: =iSummary!AM20 -> Mexico | R27: =iSummary!AN20 -> 76.3 | S27: =iSummary!AQ20 -> 37.8 | T27: =iSummary!AR20 -> p | U27: =IF(iSummary!AS20=0,"",iSummary!AS20) -> 4 | V27: =iSummary!AT20 -> p | X27: =iSummary!BE20 -> 1 | Y27: =IF(X27=0,0,IF(AC27<=uxb_works!$B$122,1,IF(AC27<=uxb_works!$B$121,2,IF(AC27<=uxb_works!$B$120,3,4)))) -> 3 | AA27: =iSummary!BF20 -> 12 | AB27: =iSummary!BG20 -> Mexico | AC27: =iSummary!BH20 -> 51.3 | AD27: =iSummary!BK20 -> -3.4 | AE27: =iSummary!BL20 -> q | AF27: =IF(iSummary!BM20=0,"",iSummary!BM20) -> -1 | AG27: =iSummary!BN20 -> q | AI27: =iSummary!BY20 -> 1 | AJ27: =IF(AI27=0,0,IF(AN27<=uxb_works!$B$122,1,IF(AN27<=uxb_works!$B$121,2,IF(AN27<=uxb_works!$B$120,3,4)))) -> 4 | AL27: =iSummary!BZ20 -> 13 | AM27: =iSummary!CA20 -> India | AN27: =iSummary!CB20 -> 94.5 | AO27: =iSummary!CE20 -> = | AP27: =iSummary!CF20 ->  | AQ27: =IF(iSummary!CG20=0,"",iSummary!CG20) -> -1 | AR27: =iSummary!CH20 -> q | AT27: =iSummary!CS20 -> 4 | AU27: =IF(AT27=0,0,IF(AY27<=uxb_works!$B$122,1,IF(AY27<=uxb_works!$B$121,2,IF(AY27<=uxb_works!$B$120,3,4)))) -> 4 | AW27: =iSummary!CT20 ->  | AX27: =iSummary!CU20 -> AVERAGE | AY27: =iSummary!CV20 -> 80.53 | AZ27: =iSummary!CY20 ->  | BA27: =iSummary!CZ20 ->  | BB27: =IF(iSummary!DA20=0,"",iSummary!DA20) ->  | BC27: =iSummary!DB20 ->  | BE27: =iSummary!DM20 -> 1 | BF27: =IF(BE27=0,0,IF(BJ27<=uxb_works!$B$122,1,IF(BJ27<=uxb_works!$B$121,2,IF(BJ27<=uxb_works!$B$120,3,4)))) -> 3 | BH27: =iSummary!DN20 -> 13 | BI27: =iSummary!DO20 -> Brazil | BJ27: =iSummary!DP20 -> 73.1 | BK27: =iSummary!DS20 -> 15 | BL27: =iSummary!DT20 -> p | BM27: =IF(iSummary!DU20=0,"",iSummary!DU20) -> 2 | BN27: =iSummary!DV20 -> p | BP27: =iSummary!EG20 -> 4 | BQ27: =IF(BP27=0,0,IF(BU27<=uxb_works!$B$122,1,IF(BU27<=uxb_works!$B$121,2,IF(BU27<=uxb_works!$B$120,3,4)))) -> 3 | BS27: =iSummary!EH20 ->  | BT27: =iSummary!EI20 -> AVERAGE | BU27: =iSummary!EJ20 -> 62.215 | BV27: =iSummary!EM20 ->  | BW27: =iSummary!EN20 ->  | BX27: =IF(iSummary!EO20=0,"",iSummary!EO20) ->  | BY27: =iSummary!EP20 -> 
B28: =iSummary!Q21 -> 1 | C28: =IF(B28=0,0,IF(G28<=uxb_works!$B$122,1,IF(G28<=uxb_works!$B$121,2,IF(G28<=uxb_works!$B$120,3,4)))) -> 3 | E28: =iSummary!R21 -> 13 | F28: =iSummary!S21 -> China | G28: =IF(ISNUMBER(iSummary!T21),ROUND(iSummary!T21,1),"") -> 73 | H28: =iSummary!W21 -> 7.8 | I28: =iSummary!X21 -> p | J28: =IF(iSummary!Y21=0,"",iSummary!Y21) -> -1 | K28: =iSummary!Z21 -> q | M28: =iSummary!AK21 -> 1 | N28: =IF(M28=0,0,IF(R28<=uxb_works!$B$122,1,IF(R28<=uxb_works!$B$121,2,IF(R28<=uxb_works!$B$120,3,4)))) -> 3 | P28: =iSummary!AL21 -> 14 | Q28: =iSummary!AM21 -> China | R28: =iSummary!AN21 -> 73.1 | S28: =iSummary!AQ21 -> 3.9 | T28: =iSummary!AR21 -> p | U28: =IF(iSummary!AS21=0,"",iSummary!AS21) -> -3 | V28: =iSummary!AT21 -> q | X28: =iSummary!BE21 -> 1 | Y28: =IF(X28=0,0,IF(AC28<=uxb_works!$B$122,1,IF(AC28<=uxb_works!$B$121,2,IF(AC28<=uxb_works!$B$120,3,4)))) -> 3 | AA28: =iSummary!BF21 -> 13 | AB28: =iSummary!BG21 -> Brazil | AC28: =iSummary!BH21 -> 51.1 | AD28: =iSummary!BK21 -> 1.2 | AE28: =iSummary!BL21 -> p | AF28: =IF(iSummary!BM21=0,"",iSummary!BM21) -> -1 | AG28: =iSummary!BN21 -> q | AI28: =iSummary!BY21 -> 4 | AJ28: =IF(AI28=0,0,IF(AN28<=uxb_works!$B$122,1,IF(AN28<=uxb_works!$B$121,2,IF(AN28<=uxb_works!$B$120,3,4)))) -> 4 | AL28: =iSummary!BZ21 ->  | AM28: =iSummary!CA21 -> AVERAGE | AN28: =iSummary!CB21 -> 94.38 | AO28: =iSummary!CE21 ->  | AP28: =iSummary!CF21 ->  | AQ28: =IF(iSummary!CG21=0,"",iSummary!CG21) ->  | AR28: =iSummary!CH21 ->  | AT28: =iSummary!CS21 -> 1 | AU28: =IF(AT28=0,0,IF(AY28<=uxb_works!$B$122,1,IF(AY28<=uxb_works!$B$121,2,IF(AY28<=uxb_works!$B$120,3,4)))) -> 4 | AW28: =iSummary!CT21 -> =13 | AX28: =iSummary!CU21 -> Nigeria | AY28: =iSummary!CV21 -> 79.2 | AZ28: =iSummary!CY21 -> = | BA28: =iSummary!CZ21 ->  | BB28: =IF(iSummary!DA21=0,"",iSummary!DA21) -> -3 | BC28: =iSummary!DB21 -> q | BE28: =iSummary!DM21 -> 4 | BF28: =IF(BE28=0,0,IF(BJ28<=uxb_works!$B$122,1,IF(BJ28<=uxb_works!$B$121,2,IF(BJ28<=uxb_works!$B$120,3,4)))) -> 3 | BH28: =iSummary!DN21 ->  | BI28: =iSummary!DO21 -> AVERAGE | BJ28: =iSummary!DP21 -> 72.11 | BK28: =iSummary!DS21 ->  | BL28: =iSummary!DT21 ->  | BM28: =IF(iSummary!DU21=0,"",iSummary!DU21) ->  | BN28: =iSummary!DV21 ->  | BP28: =iSummary!EG21 -> 1 | BQ28: =IF(BP28=0,0,IF(BU28<=uxb_works!$B$122,1,IF(BU28<=uxb_works!$B$121,2,IF(BU28<=uxb_works!$B$120,3,4)))) -> 3 | BS28: =iSummary!EH21 -> 13 | BT28: =iSummary!EI21 -> Japan | BU28: =iSummary!EJ21 -> 57.7 | BV28: =iSummary!EM21 -> 10.6 | BW28: =iSummary!EN21 -> p | BX28: =IF(iSummary!EO21=0,"",iSummary!EO21) -> 1 | BY28: =iSummary!EP21 -> p
B29: =iSummary!Q22 -> 1 | C29: =IF(B29=0,0,IF(G29<=uxb_works!$B$122,1,IF(G29<=uxb_works!$B$121,2,IF(G29<=uxb_works!$B$120,3,4)))) -> 3 | E29: =iSummary!R22 -> 14 | F29: =iSummary!S22 -> Indonesia | G29: =IF(ISNUMBER(iSummary!T22),ROUND(iSummary!T22,1),"") -> 72.6 | H29: =iSummary!W22 -> 11.4 | I29: =iSummary!X22 -> p | J29: =IF(iSummary!Y22=0,"",iSummary!Y22) -> 2 | K29: =iSummary!Z22 -> p | M29: =iSummary!AK22 -> 4 | N29: =IF(M29=0,0,IF(R29<=uxb_works!$B$122,1,IF(R29<=uxb_works!$B$121,2,IF(R29<=uxb_works!$B$120,3,4)))) -> 3 | P29: =iSummary!AL22 ->  | Q29: =iSummary!AM22 -> AVERAGE | R29: =iSummary!AN22 -> 71.515 | S29: =iSummary!AQ22 ->  | T29: =iSummary!AR22 ->  | U29: =IF(iSummary!AS22=0,"",iSummary!AS22) ->  | V29: =iSummary!AT22 ->  | X29: =iSummary!BE22 -> 1 | Y29: =IF(X29=0,0,IF(AC29<=uxb_works!$B$122,1,IF(AC29<=uxb_works!$B$121,2,IF(AC29<=uxb_works!$B$120,3,4)))) -> 2 | AA29: =iSummary!BF22 -> 14 | AB29: =iSummary!BG22 -> India | AC29: =iSummary!BH22 -> 49.6 | AD29: =iSummary!BK22 -> 10.4 | AE29: =iSummary!BL22 -> p | AF29: =IF(iSummary!BM22=0,"",iSummary!BM22) -> 3 | AG29: =iSummary!BN22 -> p | AI29: =iSummary!BY22 -> 1 | AJ29: =IF(AI29=0,0,IF(AN29<=uxb_works!$B$122,1,IF(AN29<=uxb_works!$B$121,2,IF(AN29<=uxb_works!$B$120,3,4)))) -> 4 | AL29: =iSummary!BZ22 -> 14 | AM29: =iSummary!CA22 -> South Korea | AN29: =iSummary!CB22 -> 93.4 | AO29: =iSummary!CE22 -> = | AP29: =iSummary!CF22 ->  | AQ29: =IF(iSummary!CG22=0,"",iSummary!CG22) ->  | AR29: =iSummary!CH22 -> 1 | AT29: =iSummary!CS22 -> 1 | AU29: =IF(AT29=0,0,IF(AY29<=uxb_works!$B$122,1,IF(AY29<=uxb_works!$B$121,2,IF(AY29<=uxb_works!$B$120,3,4)))) -> 4 | AW29: =iSummary!CT22 -> =13 | AX29: =iSummary!CU22 -> United States | AY29: =iSummary!CV22 -> 79.2 | AZ29: =iSummary!CY22 -> = | BA29: =iSummary!CZ22 ->  | BB29: =IF(iSummary!DA22=0,"",iSummary!DA22) -> -3 | BC29: =iSummary!DB22 -> q | BE29: =iSummary!DM22 -> 1 | BF29: =IF(BE29=0,0,IF(BJ29<=uxb_works!$B$122,1,IF(BJ29<=uxb_works!$B$121,2,IF(BJ29<=uxb_works!$B$120,3,4)))) -> 3 | BH29: =iSummary!DN22 -> 14 | BI29: =iSummary!DO22 -> Canada | BJ29: =iSummary!DP22 -> 61.1 | BK29: =iSummary!DS22 -> = | BL29: =iSummary!DT22 ->  | BM29: =IF(iSummary!DU22=0,"",iSummary!DU22) -> -4 | BN29: =iSummary!DV22 -> q | BP29: =iSummary!EG22 -> 1 | BQ29: =IF(BP29=0,0,IF(BU29<=uxb_works!$B$122,1,IF(BU29<=uxb_works!$B$121,2,IF(BU29<=uxb_works!$B$120,3,4)))) -> 3 | BS29: =iSummary!EH22 -> 14 | BT29: =iSummary!EI22 -> Brazil | BU29: =iSummary!EJ22 -> 53.6 | BV29: =iSummary!EM22 -> -3.8 | BW29: =iSummary!EN22 -> q | BX29: =IF(iSummary!EO22=0,"",iSummary!EO22) -> -4 | BY29: =iSummary!EP22 -> q
B30: =iSummary!Q23 -> 1 | C30: =IF(B30=0,0,IF(G30<=uxb_works!$B$122,1,IF(G30<=uxb_works!$B$121,2,IF(G30<=uxb_works!$B$120,3,4)))) -> 3 | E30: =iSummary!R23 -> 15 | F30: =iSummary!S23 -> Philippines | G30: =IF(ISNUMBER(iSummary!T23),ROUND(iSummary!T23,1),"") -> 71.4 | H30: =iSummary!W23 -> 9.7 | I30: =iSummary!X23 -> p | J30: =IF(iSummary!Y23=0,"",iSummary!Y23) -> -1 | K30: =iSummary!Z23 -> q | M30: =iSummary!AK23 -> 1 | N30: =IF(M30=0,0,IF(R30<=uxb_works!$B$122,1,IF(R30<=uxb_works!$B$121,2,IF(R30<=uxb_works!$B$120,3,4)))) -> 3 | P30: =iSummary!AL23 -> 15 | Q30: =iSummary!AM23 -> Chile | R30: =iSummary!AN23 -> 71.2 | S30: =iSummary!AQ23 -> 9.7 | T30: =iSummary!AR23 -> p | U30: =IF(iSummary!AS23=0,"",iSummary!AS23) -> -2 | V30: =iSummary!AT23 -> q | X30: =iSummary!BE23 -> 1 | Y30: =IF(X30=0,0,IF(AC30<=uxb_works!$B$122,1,IF(AC30<=uxb_works!$B$121,2,IF(AC30<=uxb_works!$B$120,3,4)))) -> 2 | AA30: =iSummary!BF23 -> 15 | AB30: =iSummary!BG23 -> Peru | AC30: =iSummary!BH23 -> 47.9 | AD30: =iSummary!BK23 -> 6.1 | AE30: =iSummary!BL23 -> p | AF30: =IF(iSummary!BM23=0,"",iSummary!BM23) -> 1 | AG30: =iSummary!BN23 -> p | AI30: =iSummary!BY23 -> 1 | AJ30: =IF(AI30=0,0,IF(AN30<=uxb_works!$B$122,1,IF(AN30<=uxb_works!$B$121,2,IF(AN30<=uxb_works!$B$120,3,4)))) -> 4 | AL30: =iSummary!BZ23 -> =15 | AM30: =iSummary!CA23 -> China | AN30: =iSummary!CB23 -> 92.5 | AO30: =iSummary!CE23 -> = | AP30: =iSummary!CF23 ->  | AQ30: =IF(iSummary!CG23=0,"",iSummary!CG23) ->  | AR30: =iSummary!CH23 -> 1 | AT30: =iSummary!CS23 -> 1 | AU30: =IF(AT30=0,0,IF(AY30<=uxb_works!$B$122,1,IF(AY30<=uxb_works!$B$121,2,IF(AY30<=uxb_works!$B$120,3,4)))) -> 4 | AW30: =iSummary!CT23 -> 15 | AX30: =iSummary!CU23 -> Chile | AY30: =iSummary!CV23 -> 77.1 | AZ30: =iSummary!CY23 -> 6.3 | BA30: =iSummary!CZ23 -> p | BB30: =IF(iSummary!DA23=0,"",iSummary!DA23) -> 1 | BC30: =iSummary!DB23 -> p | BE30: =iSummary!DM23 -> 1 | BF30: =IF(BE30=0,0,IF(BJ30<=uxb_works!$B$122,1,IF(BJ30<=uxb_works!$B$121,2,IF(BJ30<=uxb_works!$B$120,3,4)))) -> 3 | BH30: =iSummary!DN23 -> 15 | BI30: =iSummary!DO23 -> Mexico | BJ30: =iSummary!DP23 -> 59.2 | BK30: =iSummary!DS23 -> 15.9 | BL30: =iSummary!DT23 -> p | BM30: =IF(iSummary!DU23=0,"",iSummary!DU23) -> 4 | BN30: =iSummary!DV23 -> p | BP30: =iSummary!EG23 -> 1 | BQ30: =IF(BP30=0,0,IF(BU30<=uxb_works!$B$122,1,IF(BU30<=uxb_works!$B$121,2,IF(BU30<=uxb_works!$B$120,3,4)))) -> 3 | BS30: =iSummary!EH23 -> 15 | BT30: =iSummary!EI23 -> Philippines | BU30: =iSummary!EJ23 -> 52 | BV30: =iSummary!EM23 -> 19.7 | BW30: =iSummary!EN23 -> p | BX30: =IF(iSummary!EO23=0,"",iSummary!EO23) -> 4 | BY30: =iSummary!EP23 -> p
B31: =iSummary!Q24 -> 1 | C31: =IF(B31=0,0,IF(G31<=uxb_works!$B$122,1,IF(G31<=uxb_works!$B$121,2,IF(G31<=uxb_works!$B$120,3,4)))) -> 3 | E31: =iSummary!R24 -> 16 | F31: =iSummary!S24 -> Peru | G31: =IF(ISNUMBER(iSummary!T24),ROUND(iSummary!T24,1),"") -> 69.5 | H31: =iSummary!W24 -> 7.6 | I31: =iSummary!X24 -> p | J31: =IF(iSummary!Y24=0,"",iSummary!Y24) -> -3 | K31: =iSummary!Z24 -> q | M31: =iSummary!AK24 -> 1 | N31: =IF(M31=0,0,IF(R31<=uxb_works!$B$122,1,IF(R31<=uxb_works!$B$121,2,IF(R31<=uxb_works!$B$120,3,4)))) -> 3 | P31: =iSummary!AL24 -> 16 | Q31: =iSummary!AM24 -> New Zealand | R31: =iSummary!AN24 -> 63.5 | S31: =iSummary!AQ24 -> = | T31: =iSummary!AR24 ->  | U31: =IF(iSummary!AS24=0,"",iSummary!AS24) -> -4 | V31: =iSummary!AT24 -> q | X31: =iSummary!BE24 -> 1 | Y31: =IF(X31=0,0,IF(AC31<=uxb_works!$B$122,1,IF(AC31<=uxb_works!$B$121,2,IF(AC31<=uxb_works!$B$120,3,4)))) -> 2 | AA31: =iSummary!BF24 -> 16 | AB31: =iSummary!BG24 -> Indonesia | AC31: =iSummary!BH24 -> 47.4 | AD31: =iSummary!BK24 -> 8.4 | AE31: =iSummary!BL24 -> p | AF31: =IF(iSummary!BM24=0,"",iSummary!BM24) -> 2 | AG31: =iSummary!BN24 -> p | AI31: =iSummary!BY24 -> 1 | AJ31: =IF(AI31=0,0,IF(AN31<=uxb_works!$B$122,1,IF(AN31<=uxb_works!$B$121,2,IF(AN31<=uxb_works!$B$120,3,4)))) -> 4 | AL31: =iSummary!BZ24 -> =15 | AM31: =iSummary!CA24 -> Philippines | AN31: =iSummary!CB24 -> 92.5 | AO31: =iSummary!CE24 -> = | AP31: =iSummary!CF24 ->  | AQ31: =IF(iSummary!CG24=0,"",iSummary!CG24) ->  | AR31: =iSummary!CH24 -> 1 | AT31: =iSummary!CS24 -> 1 | AU31: =IF(AT31=0,0,IF(AY31<=uxb_works!$B$122,1,IF(AY31<=uxb_works!$B$121,2,IF(AY31<=uxb_works!$B$120,3,4)))) -> 4 | AW31: =iSummary!CT24 -> 16 | AX31: =iSummary!CU24 -> Russia | AY31: =iSummary!CV24 -> 76 | AZ31: =iSummary!CY24 -> = | BA31: =iSummary!CZ24 ->  | BB31: =IF(iSummary!DA24=0,"",iSummary!DA24) -> -3 | BC31: =iSummary!DB24 -> q | BE31: =iSummary!DM24 -> 1 | BF31: =IF(BE31=0,0,IF(BJ31<=uxb_works!$B$122,1,IF(BJ31<=uxb_works!$B$121,2,IF(BJ31<=uxb_works!$B$120,3,4)))) -> 3 | BH31: =iSummary!DN24 -> 16 | BI31: =iSummary!DO24 -> India | BJ31: =iSummary!DP24 -> 58.9 | BK31: =iSummary!DS24 -> 0.3 | BL31: =iSummary!DT24 -> p | BM31: =IF(iSummary!DU24=0,"",iSummary!DU24) -> -4 | BN31: =iSummary!DV24 -> q | BP31: =iSummary!EG24 -> 1 | BQ31: =IF(BP31=0,0,IF(BU31<=uxb_works!$B$122,1,IF(BU31<=uxb_works!$B$121,2,IF(BU31<=uxb_works!$B$120,3,4)))) -> 3 | BS31: =iSummary!EH24 -> 16 | BT31: =iSummary!EI24 -> China | BU31: =iSummary!EJ24 -> 51.6 | BV31: =iSummary!EM24 -> 26.6 | BW31: =iSummary!EN24 -> p | BX31: =IF(iSummary!EO24=0,"",iSummary!EO24) -> 4 | BY31: =iSummary!EP24 -> p
B32: =iSummary!Q25 -> 1 | C32: =IF(B32=0,0,IF(G32<=uxb_works!$B$122,1,IF(G32<=uxb_works!$B$121,2,IF(G32<=uxb_works!$B$120,3,4)))) -> 3 | E32: =iSummary!R25 -> 17 | F32: =iSummary!S25 -> Vietnam | G32: =IF(ISNUMBER(iSummary!T25),ROUND(iSummary!T25,1),"") -> 65 | H32: =iSummary!W25 -> 3.7 | I32: =iSummary!X25 -> p | J32: =IF(iSummary!Y25=0,"",iSummary!Y25) -> -2 | K32: =iSummary!Z25 -> q | M32: =iSummary!AK25 -> 1 | N32: =IF(M32=0,0,IF(R32<=uxb_works!$B$122,1,IF(R32<=uxb_works!$B$121,2,IF(R32<=uxb_works!$B$120,3,4)))) -> 3 | P32: =iSummary!AL25 -> 17 | Q32: =iSummary!AM25 -> India | R32: =iSummary!AN25 -> 59.6 | S32: =iSummary!AQ25 -> 3.8 | T32: =iSummary!AR25 -> p | U32: =IF(iSummary!AS25=0,"",iSummary!AS25) -> -1 | V32: =iSummary!AT25 -> q | X32: =iSummary!BE25 -> 1 | Y32: =IF(X32=0,0,IF(AC32<=uxb_works!$B$122,1,IF(AC32<=uxb_works!$B$121,2,IF(AC32<=uxb_works!$B$120,3,4)))) -> 2 | AA32: =iSummary!BF25 -> 17 | AB32: =iSummary!BG25 -> Philippines | AC32: =iSummary!BH25 -> 46.4 | AD32: =iSummary!BK25 -> 1.9 | AE32: =iSummary!BL25 -> p | AF32: =IF(iSummary!BM25=0,"",iSummary!BM25) -> -3 | AG32: =iSummary!BN25 -> q | AI32: =iSummary!BY25 -> 1 | AJ32: =IF(AI32=0,0,IF(AN32<=uxb_works!$B$122,1,IF(AN32<=uxb_works!$B$121,2,IF(AN32<=uxb_works!$B$120,3,4)))) -> 4 | AL32: =iSummary!BZ25 -> 17 | AM32: =iSummary!CA25 -> Vietnam | AN32: =iSummary!CB25 -> 91.2 | AO32: =iSummary!CE25 -> = | AP32: =iSummary!CF25 ->  | AQ32: =IF(iSummary!CG25=0,"",iSummary!CG25) ->  | AR32: =iSummary!CH25 -> 1 | AT32: =iSummary!CS25 -> 1 | AU32: =IF(AT32=0,0,IF(AY32<=uxb_works!$B$122,1,IF(AY32<=uxb_works!$B$121,2,IF(AY32<=uxb_works!$B$120,3,4)))) -> 3 | AW32: =iSummary!CT25 -> =17 | AX32: =iSummary!CU25 -> Peru | AY32: =iSummary!CV25 -> 67.7 | AZ32: =iSummary!CY25 -> = | BA32: =iSummary!CZ25 ->  | BB32: =IF(iSummary!DA25=0,"",iSummary!DA25) ->  | BC32: =iSummary!DB25 -> 1 | BE32: =iSummary!DM25 -> 1 | BF32: =IF(BE32=0,0,IF(BJ32<=uxb_works!$B$122,1,IF(BJ32<=uxb_works!$B$121,2,IF(BJ32<=uxb_works!$B$120,3,4)))) -> 3 | BH32: =iSummary!DN25 -> 17 | BI32: =iSummary!DO25 -> Vietnam | BJ32: =iSummary!DP25 -> 57.8 | BK32: =iSummary!DS25 -> = | BL32: =iSummary!DT25 ->  | BM32: =IF(iSummary!DU25=0,"",iSummary!DU25) -> -1 | BN32: =iSummary!DV25 -> q | BP32: =iSummary!EG25 -> 1 | BQ32: =IF(BP32=0,0,IF(BU32<=uxb_works!$B$122,1,IF(BU32<=uxb_works!$B$121,2,IF(BU32<=uxb_works!$B$120,3,4)))) -> 3 | BS32: =iSummary!EH25 -> 17 | BT32: =iSummary!EI25 -> Russia | BU32: =iSummary!EJ25 -> 50.3 | BV32: =iSummary!EM25 -> -15.1 | BW32: =iSummary!EN25 -> q | BX32: =IF(iSummary!EO25=0,"",iSummary!EO25) -> -11 | BY32: =iSummary!EP25 -> q
B33: =iSummary!Q26 -> 1 | C33: =IF(B33=0,0,IF(G33<=uxb_works!$B$122,1,IF(G33<=uxb_works!$B$121,2,IF(G33<=uxb_works!$B$120,3,4)))) -> 3 | E33: =iSummary!R26 -> 18 | F33: =iSummary!S26 -> India | G33: =IF(ISNUMBER(iSummary!T26),ROUND(iSummary!T26,1),"") -> 61.6 | H33: =iSummary!W26 -> 2.5 | I33: =iSummary!X26 -> p | J33: =IF(iSummary!Y26=0,"",iSummary!Y26) -> -1 | K33: =iSummary!Z26 -> q | M33: =iSummary!AK26 -> 1 | N33: =IF(M33=0,0,IF(R33<=uxb_works!$B$122,1,IF(R33<=uxb_works!$B$121,2,IF(R33<=uxb_works!$B$120,3,4)))) -> 2 | P33: =iSummary!AL26 -> 18 | Q33: =iSummary!AM26 -> Peru | R33: =iSummary!AN26 -> 44.2 | S33: =iSummary!AQ26 -> 17.3 | T33: =iSummary!AR26 -> p | U33: =IF(iSummary!AS26=0,"",iSummary!AS26) ->  | V33: =iSummary!AT26 -> 1 | X33: =iSummary!BE26 -> 1 | Y33: =IF(X33=0,0,IF(AC33<=uxb_works!$B$122,1,IF(AC33<=uxb_works!$B$121,2,IF(AC33<=uxb_works!$B$120,3,4)))) -> 2 | AA33: =iSummary!BF26 -> 18 | AB33: =iSummary!BG26 -> Vietnam | AC33: =iSummary!BH26 -> 45.5 | AD33: =iSummary!BK26 -> 2.7 | AE33: =iSummary!BL26 -> p | AF33: =IF(iSummary!BM26=0,"",iSummary!BM26) -> -3 | AG33: =iSummary!BN26 -> q | AI33: =iSummary!BY26 -> 1 | AJ33: =IF(AI33=0,0,IF(AN33<=uxb_works!$B$122,1,IF(AN33<=uxb_works!$B$121,2,IF(AN33<=uxb_works!$B$120,3,4)))) -> 4 | AL33: =iSummary!BZ26 -> 18 | AM33: =iSummary!CA26 -> Indonesia | AN33: =iSummary!CB26 -> 88.6 | AO33: =iSummary!CE26 -> = | AP33: =iSummary!CF26 ->  | AQ33: =IF(iSummary!CG26=0,"",iSummary!CG26) ->  | AR33: =iSummary!CH26 -> 1 | AT33: =iSummary!CS26 -> 1 | AU33: =IF(AT33=0,0,IF(AY33<=uxb_works!$B$122,1,IF(AY33<=uxb_works!$B$121,2,IF(AY33<=uxb_works!$B$120,3,4)))) -> 3 | AW33: =iSummary!CT26 -> =17 | AX33: =iSummary!CU26 -> Philippines | AY33: =iSummary!CV26 -> 67.7 | AZ33: =iSummary!CY26 -> = | BA33: =iSummary!CZ26 ->  | BB33: =IF(iSummary!DA26=0,"",iSummary!DA26) ->  | BC33: =iSummary!DB26 -> 1 | BE33: =iSummary!DM26 -> 1 | BF33: =IF(BE33=0,0,IF(BJ33<=uxb_works!$B$122,1,IF(BJ33<=uxb_works!$B$121,2,IF(BJ33<=uxb_works!$B$120,3,4)))) -> 3 | BH33: =iSummary!DN26 -> 18 | BI33: =iSummary!DO26 -> Nigeria | BJ33: =iSummary!DP26 -> 54.2 | BK33: =iSummary!DS26 -> -3 | BL33: =iSummary!DT26 -> q | BM33: =IF(iSummary!DU26=0,"",iSummary!DU26) -> -1 | BN33: =iSummary!DV26 -> q | BP33: =iSummary!EG26 -> 1 | BQ33: =IF(BP33=0,0,IF(BU33<=uxb_works!$B$122,1,IF(BU33<=uxb_works!$B$121,2,IF(BU33<=uxb_works!$B$120,3,4)))) -> 2 | BS33: =iSummary!EH26 -> 18 | BT33: =iSummary!EI26 -> Vietnam | BU33: =iSummary!EJ26 -> 40.3 | BV33: =iSummary!EM26 -> 3.3 | BW33: =iSummary!EN26 -> p | BX33: =IF(iSummary!EO26=0,"",iSummary!EO26) -> -2 | BY33: =iSummary!EP26 -> q
B34: =iSummary!Q27 -> 1 | C34: =IF(B34=0,0,IF(G34<=uxb_works!$B$122,1,IF(G34<=uxb_works!$B$121,2,IF(G34<=uxb_works!$B$120,3,4)))) -> 2 | E34: =iSummary!R27 -> 19 | F34: =iSummary!S27 -> Nigeria | G34: =IF(ISNUMBER(iSummary!T27),ROUND(iSummary!T27,1),"") -> 48.7 | H34: =iSummary!W27 -> 1.2 | I34: =iSummary!X27 -> p | J34: =IF(iSummary!Y27=0,"",iSummary!Y27) ->  | K34: =iSummary!Z27 -> 1 | M34: =iSummary!AK27 -> 1 | N34: =IF(M34=0,0,IF(R34<=uxb_works!$B$122,1,IF(R34<=uxb_works!$B$121,2,IF(R34<=uxb_works!$B$120,3,4)))) -> 1 | P34: =iSummary!AL27 -> 19 | Q34: =iSummary!AM27 -> Nigeria | R34: =iSummary!AN27 -> 23.1 | S34: =iSummary!AQ27 -> = | T34: =iSummary!AR27 ->  | U34: =IF(iSummary!AS27=0,"",iSummary!AS27) ->  | V34: =iSummary!AT27 -> 1 | X34: =iSummary!BE27 -> 1 | Y34: =IF(X34=0,0,IF(AC34<=uxb_works!$B$122,1,IF(AC34<=uxb_works!$B$121,2,IF(AC34<=uxb_works!$B$120,3,4)))) -> 2 | AA34: =iSummary!BF27 -> 19 | AB34: =iSummary!BG27 -> Russia | AC34: =iSummary!BH27 -> 40.6 | AD34: =iSummary!BK27 -> 7.2 | AE34: =iSummary!BL27 -> p | AF34: =IF(iSummary!BM27=0,"",iSummary!BM27) ->  | AG34: =iSummary!BN27 -> 1 | AI34: =iSummary!BY27 -> 1 | AJ34: =IF(AI34=0,0,IF(AN34<=uxb_works!$B$122,1,IF(AN34<=uxb_works!$B$121,2,IF(AN34<=uxb_works!$B$120,3,4)))) -> 4 | AL34: =iSummary!BZ27 -> 19 | AM34: =iSummary!CA27 -> Nigeria | AN34: =iSummary!CB27 -> 79.4 | AO34: =iSummary!CE27 -> = | AP34: =iSummary!CF27 ->  | AQ34: =IF(iSummary!CG27=0,"",iSummary!CG27) ->  | AR34: =iSummary!CH27 -> 1 | AT34: =iSummary!CS27 -> 1 | AU34: =IF(AT34=0,0,IF(AY34<=uxb_works!$B$122,1,IF(AY34<=uxb_works!$B$121,2,IF(AY34<=uxb_works!$B$120,3,4)))) -> 3 | AW34: =iSummary!CT27 -> 19 | AX34: =iSummary!CU27 -> Vietnam | AY34: =iSummary!CV27 -> 63.5 | AZ34: =iSummary!CY27 -> 6.2 | BA34: =iSummary!CZ27 -> p | BB34: =IF(iSummary!DA27=0,"",iSummary!DA27) ->  | BC34: =iSummary!DB27 -> 1 | BE34: =iSummary!DM27 -> 1 | BF34: =IF(BE34=0,0,IF(BJ34<=uxb_works!$B$122,1,IF(BJ34<=uxb_works!$B$121,2,IF(BJ34<=uxb_works!$B$120,3,4)))) -> 2 | BH34: =iSummary!DN27 -> 19 | BI34: =iSummary!DO27 -> South Africa | BJ34: =iSummary!DP27 -> 44.4 | BK34: =iSummary!DS27 -> = | BL34: =iSummary!DT27 ->  | BM34: =IF(iSummary!DU27=0,"",iSummary!DU27) -> -1 | BN34: =iSummary!DV27 -> q | BP34: =iSummary!EG27 -> 1 | BQ34: =IF(BP34=0,0,IF(BU34<=uxb_works!$B$122,1,IF(BU34<=uxb_works!$B$121,2,IF(BU34<=uxb_works!$B$120,3,4)))) -> 2 | BS34: =iSummary!EH27 -> 19 | BT34: =iSummary!EI27 -> Nigeria | BU34: =iSummary!EJ27 -> 36.6 | BV34: =iSummary!EM27 -> 3.5 | BW34: =iSummary!EN27 -> p | BX34: =IF(iSummary!EO27=0,"",iSummary!EO27) -> -2 | BY34: =iSummary!EP27 -> q
B35: =iSummary!Q28 -> 1 | C35: =IF(B35=0,0,IF(G35<=uxb_works!$B$122,1,IF(G35<=uxb_works!$B$121,2,IF(G35<=uxb_works!$B$120,3,4)))) -> 2 | E35: =iSummary!R28 -> 20 | F35: =iSummary!S28 -> Russia | G35: =IF(ISNUMBER(iSummary!T28),ROUND(iSummary!T28,1),"") -> 44.6 | H35: =iSummary!W28 -> -2.6 | I35: =iSummary!X28 -> q | J35: =IF(iSummary!Y28=0,"",iSummary!Y28) ->  | K35: =iSummary!Z28 -> 1 | M35: =iSummary!AK28 -> 1 | N35: =IF(M35=0,0,IF(R35<=uxb_works!$B$122,1,IF(R35<=uxb_works!$B$121,2,IF(R35<=uxb_works!$B$120,3,4)))) -> 1 | P35: =iSummary!AL28 -> 20 | Q35: =iSummary!AM28 -> Russia | R35: =iSummary!AN28 -> 9.6 | S35: =iSummary!AQ28 -> = | T35: =iSummary!AR28 ->  | U35: =IF(iSummary!AS28=0,"",iSummary!AS28) ->  | V35: =iSummary!AT28 -> 1 | X35: =iSummary!BE28 -> 1 | Y35: =IF(X35=0,0,IF(AC35<=uxb_works!$B$122,1,IF(AC35<=uxb_works!$B$121,2,IF(AC35<=uxb_works!$B$120,3,4)))) -> 2 | AA35: =iSummary!BF28 -> 20 | AB35: =iSummary!BG28 -> Nigeria | AC35: =iSummary!BH28 -> 28.3 | AD35: =iSummary!BK28 -> 11.5 | AE35: =iSummary!BL28 -> p | AF35: =IF(iSummary!BM28=0,"",iSummary!BM28) ->  | AG35: =iSummary!BN28 -> 1 | AI35: =iSummary!BY28 -> 1 | AJ35: =IF(AI35=0,0,IF(AN35<=uxb_works!$B$122,1,IF(AN35<=uxb_works!$B$121,2,IF(AN35<=uxb_works!$B$120,3,4)))) -> 4 | AL35: =iSummary!BZ28 -> 20 | AM35: =iSummary!CA28 -> Russia | AN35: =iSummary!CB28 -> 78.7 | AO35: =iSummary!CE28 -> = | AP35: =iSummary!CF28 ->  | AQ35: =IF(iSummary!CG28=0,"",iSummary!CG28) ->  | AR35: =iSummary!CH28 -> 1 | AT35: =iSummary!CS28 -> 1 | AU35: =IF(AT35=0,0,IF(AY35<=uxb_works!$B$122,1,IF(AY35<=uxb_works!$B$121,2,IF(AY35<=uxb_works!$B$120,3,4)))) -> 3 | AW35: =iSummary!CT28 -> 20 | AX35: =iSummary!CU28 -> Indonesia | AY35: =iSummary!CV28 -> 59.4 | AZ35: =iSummary!CY28 -> 6.3 | BA35: =iSummary!CZ28 -> p | BB35: =IF(iSummary!DA28=0,"",iSummary!DA28) ->  | BC35: =iSummary!DB28 -> 1 | BE35: =iSummary!DM28 -> 1 | BF35: =IF(BE35=0,0,IF(BJ35<=uxb_works!$B$122,1,IF(BJ35<=uxb_works!$B$121,2,IF(BJ35<=uxb_works!$B$120,3,4)))) -> 1 | BH35: =iSummary!DN28 -> 20 | BI35: =iSummary!DO28 -> Russia | BJ35: =iSummary!DP28 -> 25 | BK35: =iSummary!DS28 -> 2.2 | BL35: =iSummary!DT28 -> p | BM35: =IF(iSummary!DU28=0,"",iSummary!DU28) ->  | BN35: =iSummary!DV28 -> 1 | BP35: =iSummary!EG28 -> 1 | BQ35: =IF(BP35=0,0,IF(BU35<=uxb_works!$B$122,1,IF(BU35<=uxb_works!$B$121,2,IF(BU35<=uxb_works!$B$120,3,4)))) -> 2 | BS35: =iSummary!EH28 -> 20 | BT35: =iSummary!EI28 -> India | BU35: =iSummary!EJ28 -> 32.3 | BV35: =iSummary!EM28 -> -0.8 | BW35: =iSummary!EN28 -> q | BX35: =IF(iSummary!EO28=0,"",iSummary!EO28) -> -3 | BY35: =iSummary!EP28 -> q

Sheet Indicator_Ranking
A1: =uxb_works!$B$92 -> Coastal Governance Index: 2019 | AN1: 1600 | AO1: =INDEX(Indicator_Ranking!AN1:AN10,uxb_works!$J$21) -> 1600 | AP1: =2.2*AO1 -> 3520 | BA1: 1 | BB1: 2
AN2: 1600 | AR2: =iIndiRank!U2 ->  | AT2: =iIndiRank!V2 -> -
A4: =iIndiRank!Q2 -> Description: The overall score is the weighted sum of the following category scores: 1) POLICY AND INSTITUTIONAL CAPACITY (23.1%) 2) BUSINESS ENVIRONMENT FOR COASTAL ACTIVITIES (7.7%) 3) WATER QUALITY (15.4%) 4) MINERALS, ENERGY AND SHIPPING (15.4%) 5) LAND (15.4%) 6) LIVING RESOURCES (23.1%) Source: Calculated from category scores | AN4: 1600
C6: =uxb_works!$C$5 -> The active weight profile has been changed from its default setting | AN6: 1000
C10: =iIndiRank!$G$2 -> OVERVIEW | AN10: 1000
C11: =iIndiRank!$F$2 ->  | BO11: =C11 -> 
C14: Forecast spend on defense equipment Source: Jane's Year: 2025-2027 Scoring Guidance: US$ million | E14: =iIndiRank!AO2 -> 0 | K14: =COUNT(J17:J36) -> 20 | V14: =IF(COUNTIF(V17:V36,"<>0")=0,1,COUNTIF(V17:V36,"<>0")) -> 1 | W14: =iIndiRank!AU1 -> 0 | Y14: =IF(COUNTIF(Y17:Y36,"<>0")=0,1,COUNTIF(Y17:Y36,"<>0")) -> 20 | Z14: =iIndiRank!AX1 -> 0 | AB14: =IF(COUNTIF(AB17:AB36,"<>0")=0,1,COUNTIF(AB17:AB36,"<>0")) -> 20 | AC14: =iIndiRank!BA1 -> 0 | AE14: =IF(COUNTIF(AE17:AE36,"<>0")=0,1,COUNTIF(AE17:AE36,"<>0")) -> 20 | AF14: =iIndiRank!BD1 -> 0 | AH14: =IF(COUNTIF(AH17:AH36,"<>0")=0,1,COUNTIF(AH17:AH36,"<>0")) -> 20 | AI14: =iIndiRank!BG1 -> 0
B15: =SUM(B16:B37) -> 21 | W15: =IF(W14<>0,iIndiRank!AU3,"") ->  | Z15: =IF(Z14<>0,iIndiRank!AX3,"") ->  | AC15: =IF(AC14<>0,iIndiRank!BA3,"") ->  | AF15: =IF(AF14<>0,iIndiRank!BD3,"") ->  | AI15: =IF(AI14<>0,iIndiRank!BG3,"") -> 
B16: =iIndiRank!T2 -> 0 | C16: Description: The overall score is the weighted sum of the following category scores: 1) POLICY AND INSTITUTIONAL CAPACITY (23.1%) 2) BUSINESS ENVIRONMENT FOR COASTAL ACTIVITIES (7.7%) 3) WATER QUALITY (15.4%) 4) MINERALS, ENERGY AND SHIPPING (15.4%) 5) LAND (15.4%) 6) LIVING RESOURCES (23.1%) Source: Calculated from category scores | J16: =IF(uxb_works!$J$21=1,COUNTIF(J17:J36,">0"),MAX(V16,Indicator_Ranking!Y16,Indicator_Ranking!AB16,Indicator_Ranking!AE16,Indicator_Ranking!AH16)) -> 20 | L16: Rank | N16: Country | O16: Score / 100 | P16: =IF(iIndiRank!$G$3=1,"","Score / 100") -> Score / 100 | Q16: =IF(iIndiRank!$G$3=1,"","Visualisation") -> Visualisation | R16: =iIndiRank!S5 ->  | V16: =COUNTIF(V17:V36,">0") -> 0 | Y16: =COUNTIF(Y17:Y36,">0") -> 20 | AB16: =COUNTIF(AB17:AB36,">0") -> 20 | AE16: =COUNTIF(AE17:AE36,">0") -> 20 | AH16: =COUNTIF(AH17:AH36,">0") -> 20 | BA16: =W15 ->  | BD16: =Z15 ->  | BG16: =AC15 ->  | BJ16: =AF15 ->  | BM16: =AI15 -> 
B17: =IF(uxb_works!$J$21=1,1,IF(OR(V17>0,Y17>0,AB17>0,AE17>0,AH17>0),1,0)) -> 1 | J17: =iIndiRank!L6 -> 1 | K17: =IF(J17=0,4,IF(P17<=uxb_works!$B$122,0,IF(P17<=uxb_works!$B$121,1,IF(P17<=uxb_works!$B$120,2,3)))) -> 3 | M17: =iIndiRank!P6 -> 1 | N17: =iIndiRank!Q6 -> Norway | O17: =iIndiRank!R6 -> 89.5 | P17: =iIndiRank!T6 -> 89.5 | Q17: =IF(ISNUMBER(O17),REPT("|",O17/3),"") -> ||||||||||||||||||||||||||||| | R17: =TEXT(iIndiRank!S6,iIndiRank!$E$2) ->  | V17: =iIndiRank!AT6 -> 0 | W17: =iIndiRank!AU6 -> Norway | Y17: =iIndiRank!AW6 -> 1 | Z17: =iIndiRank!AX6 -> Norway | AB17: =iIndiRank!AZ6 -> 1 | AC17: =iIndiRank!BA6 -> Norway | AE17: =iIndiRank!BC6 -> 1 | AF17: =iIndiRank!BD6 -> Norway | AH17: =iIndiRank!BF6 -> 1 | AI17: =iIndiRank!BG6 -> Norway
B18: =IF(uxb_works!$J$21=1,1,IF(OR(V18>0,Y18>0,AB18>0,AE18>0,AH18>0),1,0)) -> 1 | J18: =iIndiRank!L7 -> 1 | K18: =IF(J18=0,4,IF(P18<=uxb_works!$B$122,0,IF(P18<=uxb_works!$B$121,1,IF(P18<=uxb_works!$B$120,2,3)))) -> 3 | M18: =iIndiRank!P7 -> 2 | N18: =iIndiRank!Q7 -> United States | O18: =iIndiRank!R7 -> 85.4 | P18: =iIndiRank!T7 -> 85.4 | Q18: =IF(ISNUMBER(O18),REPT("|",O18/3),"") -> |||||||||||||||||||||||||||| | R18: =TEXT(iIndiRank!S7,iIndiRank!$E$2) ->  | V18: =iIndiRank!AT7 -> 0 | W18: =iIndiRank!AU7 -> United States | Y18: =iIndiRank!AW7 -> 1 | Z18: =iIndiRank!AX7 -> United States | AB18: =iIndiRank!AZ7 -> 1 | AC18: =iIndiRank!BA7 -> United States | AE18: =iIndiRank!BC7 -> 1 | AF18: =iIndiRank!BD7 -> United States | AH18: =iIndiRank!BF7 -> 1 | AI18: =iIndiRank!BG7 -> United States
B19: =IF(uxb_works!$J$21=1,1,IF(OR(V19>0,Y19>0,AB19>0,AE19>0,AH19>0),1,0)) -> 1 | J19: =iIndiRank!L8 -> 1 | K19: =IF(J19=0,4,IF(P19<=uxb_works!$B$122,0,IF(P19<=uxb_works!$B$121,1,IF(P19<=uxb_works!$B$120,2,3)))) -> 3 | M19: =iIndiRank!P8 -> 3 | N19: =iIndiRank!Q8 -> New Zealand | O19: =iIndiRank!R8 -> 84.4 | P19: =iIndiRank!T8 -> 84.4 | Q19: =IF(ISNUMBER(O19),REPT("|",O19/3),"") -> |||||||||||||||||||||||||||| | R19: =TEXT(iIndiRank!S8,iIndiRank!$E$2) ->  | V19: =iIndiRank!AT8 -> 0 | W19: =iIndiRank!AU8 -> New Zealand | Y19: =iIndiRank!AW8 -> 1 | Z19: =iIndiRank!AX8 -> New Zealand | AB19: =iIndiRank!AZ8 -> 1 | AC19: =iIndiRank!BA8 -> New Zealand | AE19: =iIndiRank!BC8 -> 1 | AF19: =iIndiRank!BD8 -> New Zealand | AH19: =iIndiRank!BF8 -> 1 | AI19: =iIndiRank!BG8 -> New Zealand
B20: =IF(uxb_works!$J$21=1,1,IF(OR(V20>0,Y20>0,AB20>0,AE20>0,AH20>0),1,0)) -> 1 | J20: =iIndiRank!L9 -> 1 | K20: =IF(J20=0,4,IF(P20<=uxb_works!$B$122,0,IF(P20<=uxb_works!$B$121,1,IF(P20<=uxb_works!$B$120,2,3)))) -> 3 | M20: =iIndiRank!P9 -> 4 | N20: =iIndiRank!Q9 -> Japan | O20: =iIndiRank!R9 -> 83.4 | P20: =iIndiRank!T9 -> 83.4 | Q20: =IF(ISNUMBER(O20),REPT("|",O20/3),"") -> ||||||||||||||||||||||||||| | R20: =TEXT(iIndiRank!S9,iIndiRank!$E$2) ->  | V20: =iIndiRank!AT9 -> 0 | W20: =iIndiRank!AU9 -> Japan | Y20: =iIndiRank!AW9 -> 1 | Z20: =iIndiRank!AX9 -> Japan | AB20: =iIndiRank!AZ9 -> 1 | AC20: =iIndiRank!BA9 -> Japan | AE20: =iIndiRank!BC9 -> 1 | AF20: =iIndiRank!BD9 -> Japan | AH20: =iIndiRank!BF9 -> 1 | AI20: =iIndiRank!BG9 -> Japan
B21: =IF(uxb_works!$J$21=1,1,IF(OR(V21>0,Y21>0,AB21>0,AE21>0,AH21>0),1,0)) -> 1 | J21: =iIndiRank!L10 -> 1 | K21: =IF(J21=0,4,IF(P21<=uxb_works!$B$122,0,IF(P21<=uxb_works!$B$121,1,IF(P21<=uxb_works!$B$120,2,3)))) -> 3 | M21: =iIndiRank!P10 -> 5 | N21: =iIndiRank!Q10 -> France | O21: =iIndiRank!R10 -> 83.3 | P21: =iIndiRank!T10 -> 83.3 | Q21: ||||||||||||||||||||||||||| | R21: =TEXT(iIndiRank!S10,iIndiRank!$E$2) ->  | V21: =iIndiRank!AT10 -> 0 | W21: =iIndiRank!AU10 -> France | Y21: =iIndiRank!AW10 -> 1 | Z21: =iIndiRank!AX10 -> France | AB21: =iIndiRank!AZ10 -> 1 | AC21: =iIndiRank!BA10 -> France | AE21: =iIndiRank!BC10 -> 1 | AF21: =iIndiRank!BD10 -> France | AH21: =iIndiRank!BF10 -> 1 | AI21: =iIndiRank!BG10 -> France
B22: =IF(uxb_works!$J$21=1,1,IF(OR(V22>0,Y22>0,AB22>0,AE22>0,AH22>0),1,0)) -> 1 | J22: =iIndiRank!L11 -> 1 | K22: =IF(J22=0,4,IF(P22<=uxb_works!$B$122,0,IF(P22<=uxb_works!$B$121,1,IF(P22<=uxb_works!$B$120,2,3)))) -> 3 | M22: =iIndiRank!P11 -> 6 | N22: =iIndiRank!Q11 -> Chile | O22: =iIndiRank!R11 -> 82.3 | P22: =iIndiRank!T11 -> 82.3 | Q22: ||||||||||||||||||||||||||| | R22: =TEXT(iIndiRank!S11,iIndiRank!$E$2) ->  | V22: =iIndiRank!AT11 -> 0 | W22: =iIndiRank!AU11 -> Chile | Y22: =iIndiRank!AW11 -> 1 | Z22: =iIndiRank!AX11 -> Chile | AB22: =iIndiRank!AZ11 -> 1 | AC22: =iIndiRank!BA11 -> Chile | AE22: =iIndiRank!BC11 -> 1 | AF22: =iIndiRank!BD11 -> Chile | AH22: =iIndiRank!BF11 -> 1 | AI22: =iIndiRank!BG11 -> Chile
B23: =IF(uxb_works!$J$21=1,1,IF(OR(V23>0,Y23>0,AB23>0,AE23>0,AH23>0),1,0)) -> 1 | J23: =iIndiRank!L12 -> 1 | K23: =IF(J23=0,4,IF(P23<=uxb_works!$B$122,0,IF(P23<=uxb_works!$B$121,1,IF(P23<=uxb_works!$B$120,2,3)))) -> 3 | M23: =iIndiRank!P12 -> 7 | N23: =iIndiRank!Q12 -> Spain | O23: =iIndiRank!R12 -> 80.3 | P23: =iIndiRank!T12 -> 80.3 | Q23: |||||||||||||||||||||||||| | R23: =TEXT(iIndiRank!S12,iIndiRank!$E$2) ->  | V23: =iIndiRank!AT12 -> 0 | W23: =iIndiRank!AU12 -> Spain | Y23: =iIndiRank!AW12 -> 1 | Z23: =iIndiRank!AX12 -> Spain | AB23: =iIndiRank!AZ12 -> 1 | AC23: =iIndiRank!BA12 -> Spain | AE23: =iIndiRank!BC12 -> 1 | AF23: =iIndiRank!BD12 -> Spain | AH23: =iIndiRank!BF12 -> 1 | AI23: =iIndiRank!BG12 -> Spain
B24: =IF(uxb_works!$J$21=1,1,IF(OR(V24>0,Y24>0,AB24>0,AE24>0,AH24>0),1,0)) -> 1 | J24: =iIndiRank!L13 -> 1 | K24: =IF(J24=0,4,IF(P24<=uxb_works!$B$122,0,IF(P24<=uxb_works!$B$121,1,IF(P24<=uxb_works!$B$120,2,3)))) -> 3 | M24: =iIndiRank!P13 -> 8 | N24: =iIndiRank!Q13 -> South Korea | O24: =iIndiRank!R13 -> 80.2 | P24: =iIndiRank!T13 -> 80.2 | Q24: |||||||||||||||||||||||||| | R24: =TEXT(iIndiRank!S13,iIndiRank!$E$2) ->  | V24: =iIndiRank!AT13 -> 0 | W24: =iIndiRank!AU13 -> South Korea | Y24: =iIndiRank!AW13 -> 1 | Z24: =iIndiRank!AX13 -> South Korea | AB24: =iIndiRank!AZ13 -> 1 | AC24: =iIndiRank!BA13 -> South Korea | AE24: =iIndiRank!BC13 -> 1 | AF24: =iIndiRank!BD13 -> South Korea | AH24: =iIndiRank!BF13 -> 1 | AI24: =iIndiRank!BG13 -> South Korea
B25: =IF(uxb_works!$J$21=1,1,IF(OR(V25>0,Y25>0,AB25>0,AE25>0,AH25>0),1,0)) -> 1 | J25: =iIndiRank!L14 -> 1 | K25: =IF(J25=0,4,IF(P25<=uxb_works!$B$122,0,IF(P25<=uxb_works!$B$121,1,IF(P25<=uxb_works!$B$120,2,3)))) -> 3 | M25: =iIndiRank!P14 -> 9 | N25: =iIndiRank!Q14 -> Canada | O25: =iIndiRank!R14 -> 78.6 | P25: =iIndiRank!T14 -> 78.6 | Q25: |||||||||||||||||||||||||| | R25: =TEXT(iIndiRank!S14,iIndiRank!$E$2) ->  | V25: =iIndiRank!AT14 -> 0 | W25: =iIndiRank!AU14 -> Canada | Y25: =iIndiRank!AW14 -> 1 | Z25: =iIndiRank!AX14 -> Canada | AB25: =iIndiRank!AZ14 -> 1 | AC25: =iIndiRank!BA14 -> Canada | AE25: =iIndiRank!BC14 -> 1 | AF25: =iIndiRank!BD14 -> Canada | AH25: =iIndiRank!BF14 -> 1 | AI25: =iIndiRank!BG14 -> Canada
B26: =IF(uxb_works!$J$21=1,1,IF(OR(V26>0,Y26>0,AB26>0,AE26>0,AH26>0),1,0)) -> 1 | J26: =iIndiRank!L15 -> 1 | K26: =IF(J26=0,4,IF(P26<=uxb_works!$B$122,0,IF(P26<=uxb_works!$B$121,1,IF(P26<=uxb_works!$B$120,2,3)))) -> 3 | M26: =iIndiRank!P15 -> 10 | N26: =iIndiRank!Q15 -> South Africa | O26: =iIndiRank!R15 -> 75.7 | P26: =iIndiRank!T15 -> 75.7 | Q26: ||||||||||||||||||||||||| | R26: =TEXT(iIndiRank!S15,iIndiRank!$E$2) ->  | V26: =iIndiRank!AT15 -> 0 | W26: =iIndiRank!AU15 -> South Africa | Y26: =iIndiRank!AW15 -> 1 | Z26: =iIndiRank!AX15 -> South Africa | AB26: =iIndiRank!AZ15 -> 1 | AC26: =iIndiRank!BA15 -> South Africa | AE26: =iIndiRank!BC15 -> 1 | AF26: =iIndiRank!BD15 -> South Africa | AH26: =iIndiRank!BF15 -> 1 | AI26: =iIndiRank!BG15 -> South Africa
B27: =IF(uxb_works!$J$21=1,1,IF(OR(V27>0,Y27>0,AB27>0,AE27>0,AH27>0),1,0)) -> 1 | J27: =iIndiRank!L16 -> 1 | K27: =IF(J27=0,4,IF(P27<=uxb_works!$B$122,0,IF(P27<=uxb_works!$B$121,1,IF(P27<=uxb_works!$B$120,2,3)))) -> 2 | M27: =iIndiRank!P16 -> 11 | N27: =iIndiRank!Q16 -> Mexico | O27: =iIndiRank!R16 -> 74.1 | P27: =iIndiRank!T16 -> 74.1 | Q27: |||||||||||||||||||||||| | R27: =TEXT(iIndiRank!S16,iIndiRank!$E$2) ->  | V27: =iIndiRank!AT16 -> 0 | W27: =iIndiRank!AU16 -> Mexico | Y27: =iIndiRank!AW16 -> 1 | Z27: =iIndiRank!AX16 -> Mexico | AB27: =iIndiRank!AZ16 -> 1 | AC27: =iIndiRank!BA16 -> Mexico | AE27: =iIndiRank!BC16 -> 1 | AF27: =iIndiRank!BD16 -> Mexico | AH27: =iIndiRank!BF16 -> 1 | AI27: =iIndiRank!BG16 -> Mexico
B28: =IF(uxb_works!$J$21=1,1,IF(OR(V28>0,Y28>0,AB28>0,AE28>0,AH28>0),1,0)) -> 1 | J28: =iIndiRank!L17 -> 1 | K28: =IF(J28=0,4,IF(P28<=uxb_works!$B$122,0,IF(P28<=uxb_works!$B$121,1,IF(P28<=uxb_works!$B$120,2,3)))) -> 2 | M28: =iIndiRank!P17 -> 12 | N28: =iIndiRank!Q17 -> Brazil | O28: =iIndiRank!R17 -> 73.1 | P28: =iIndiRank!T17 -> 73.1 | Q28: |||||||||||||||||||||||| | R28: =TEXT(iIndiRank!S17,iIndiRank!$E$2) ->  | V28: =iIndiRank!AT17 -> 0 | W28: =iIndiRank!AU17 -> Brazil | Y28: =iIndiRank!AW17 -> 1 | Z28: =iIndiRank!AX17 -> Brazil | AB28: =iIndiRank!AZ17 -> 1 | AC28: =iIndiRank!BA17 -> Brazil | AE28: =iIndiRank!BC17 -> 1 | AF28: =iIndiRank!BD17 -> Brazil | AH28: =iIndiRank!BF17 -> 1 | AI28: =iIndiRank!BG17 -> Brazil
B29: =IF(uxb_works!$J$21=1,1,IF(OR(V29>0,Y29>0,AB29>0,AE29>0,AH29>0),1,0)) -> 1 | J29: =iIndiRank!L18 -> 1 | K29: =IF(J29=0,4,IF(P29<=uxb_works!$B$122,0,IF(P29<=uxb_works!$B$121,1,IF(P29<=uxb_works!$B$120,2,3)))) -> 2 | M29: =iIndiRank!P18 -> 13 | N29: =iIndiRank!Q18 -> China | O29: =iIndiRank!R18 -> 73 | P29: =iIndiRank!T18 -> 73 | Q29: |||||||||||||||||||||||| | R29: =TEXT(iIndiRank!S18,iIndiRank!$E$2) ->  | V29: =iIndiRank!AT18 -> 0 | W29: =iIndiRank!AU18 -> China | Y29: =iIndiRank!AW18 -> 1 | Z29: =iIndiRank!AX18 -> China | AB29: =iIndiRank!AZ18 -> 1 | AC29: =iIndiRank!BA18 -> China | AE29: =iIndiRank!BC18 -> 1 | AF29: =iIndiRank!BD18 -> China | AH29: =iIndiRank!BF18 -> 1 | AI29: =iIndiRank!BG18 -> China
B30: =IF(uxb_works!$J$21=1,1,IF(OR(V30>0,Y30>0,AB30>0,AE30>0,AH30>0),1,0)) -> 1 | J30: =iIndiRank!L19 -> 1 | K30: =IF(J30=0,4,IF(P30<=uxb_works!$B$122,0,IF(P30<=uxb_works!$B$121,1,IF(P30<=uxb_works!$B$120,2,3)))) -> 2 | M30: =iIndiRank!P19 -> 14 | N30: =iIndiRank!Q19 -> Indonesia | O30: =iIndiRank!R19 -> 72.6 | P30: =iIndiRank!T19 -> 72.6 | Q30: |||||||||||||||||||||||| | R30: =TEXT(iIndiRank!S19,iIndiRank!$E$2) ->  | V30: =iIndiRank!AT19 -> 0 | W30: =iIndiRank!AU19 -> Indonesia | Y30: =iIndiRank!AW19 -> 1 | Z30: =iIndiRank!AX19 -> Indonesia | AB30: =iIndiRank!AZ19 -> 1 | AC30: =iIndiRank!BA19 -> Indonesia | AE30: =iIndiRank!BC19 -> 1 | AF30: =iIndiRank!BD19 -> Indonesia | AH30: =iIndiRank!BF19 -> 1 | AI30: =iIndiRank!BG19 -> Indonesia
B31: =IF(uxb_works!$J$21=1,1,IF(OR(V31>0,Y31>0,AB31>0,AE31>0,AH31>0),1,0)) -> 1 | J31: =iIndiRank!L20 -> 1 | K31: =IF(J31=0,4,IF(P31<=uxb_works!$B$122,0,IF(P31<=uxb_works!$B$121,1,IF(P31<=uxb_works!$B$120,2,3)))) -> 2 | M31: =iIndiRank!P20 -> 15 | N31: =iIndiRank!Q20 -> Philippines | O31: =iIndiRank!R20 -> 71.4 | P31: =iIndiRank!T20 -> 71.4 | Q31: ||||||||||||||||||||||| | R31: =TEXT(iIndiRank!S20,iIndiRank!$E$2) ->  | V31: =iIndiRank!AT20 -> 0 | W31: =iIndiRank!AU20 -> Philippines | Y31: =iIndiRank!AW20 -> 1 | Z31: =iIndiRank!AX20 -> Philippines | AB31: =iIndiRank!AZ20 -> 1 | AC31: =iIndiRank!BA20 -> Philippines | AE31: =iIndiRank!BC20 -> 1 | AF31: =iIndiRank!BD20 -> Philippines | AH31: =iIndiRank!BF20 -> 1 | AI31: =iIndiRank!BG20 -> Philippines
B32: =IF(uxb_works!$J$21=1,1,IF(OR(V32>0,Y32>0,AB32>0,AE32>0,AH32>0),1,0)) -> 1 | J32: =iIndiRank!L21 -> 1 | K32: =IF(J32=0,4,IF(P32<=uxb_works!$B$122,0,IF(P32<=uxb_works!$B$121,1,IF(P32<=uxb_works!$B$120,2,3)))) -> 2 | M32: =iIndiRank!P21 -> 16 | N32: =iIndiRank!Q21 -> Peru | O32: =iIndiRank!R21 -> 69.5 | P32: =iIndiRank!T21 -> 69.5 | Q32: ||||||||||||||||||||||| | R32: =TEXT(iIndiRank!S21,iIndiRank!$E$2) ->  | V32: =iIndiRank!AT21 -> 0 | W32: =iIndiRank!AU21 -> Peru | Y32: =iIndiRank!AW21 -> 1 | Z32: =iIndiRank!AX21 -> Peru | AB32: =iIndiRank!AZ21 -> 1 | AC32: =iIndiRank!BA21 -> Peru | AE32: =iIndiRank!BC21 -> 1 | AF32: =iIndiRank!BD21 -> Peru | AH32: =iIndiRank!BF21 -> 1 | AI32: =iIndiRank!BG21 -> Peru
B33: =IF(uxb_works!$J$21=1,1,IF(OR(V33>0,Y33>0,AB33>0,AE33>0,AH33>0),1,0)) -> 1 | J33: =iIndiRank!L22 -> 1 | K33: =IF(J33=0,4,IF(P33<=uxb_works!$B$122,0,IF(P33<=uxb_works!$B$121,1,IF(P33<=uxb_works!$B$120,2,3)))) -> 2 | M33: =iIndiRank!P22 -> 17 | N33: =iIndiRank!Q22 -> Vietnam | O33: =iIndiRank!R22 -> 65 | P33: =iIndiRank!T22 -> 65 | Q33: ||||||||||||||||||||| | R33: =TEXT(iIndiRank!S22,iIndiRank!$E$2) ->  | V33: =iIndiRank!AT22 -> 0 | W33: =iIndiRank!AU22 -> Vietnam | Y33: =iIndiRank!AW22 -> 1 | Z33: =iIndiRank!AX22 -> Vietnam | AB33: =iIndiRank!AZ22 -> 1 | AC33: =iIndiRank!BA22 -> Vietnam | AE33: =iIndiRank!BC22 -> 1 | AF33: =iIndiRank!BD22 -> Vietnam | AH33: =iIndiRank!BF22 -> 1 | AI33: =iIndiRank!BG22 -> Vietnam
B34: =IF(uxb_works!$J$21=1,1,IF(OR(V34>0,Y34>0,AB34>0,AE34>0,AH34>0),1,0)) -> 1 | J34: =iIndiRank!L23 -> 1 | K34: =IF(J34=0,4,IF(P34<=uxb_works!$B$122,0,IF(P34<=uxb_works!$B$121,1,IF(P34<=uxb_works!$B$120,2,3)))) -> 2 | M34: =iIndiRank!P23 -> 18 | N34: =iIndiRank!Q23 -> India | O34: =iIndiRank!R23 -> 61.6 | P34: =iIndiRank!T23 -> 61.6 | Q34: |||||||||||||||||||| | R34: =TEXT(iIndiRank!S23,iIndiRank!$E$2) ->  | V34: =iIndiRank!AT23 -> 0 | W34: =iIndiRank!AU23 -> India | Y34: =iIndiRank!AW23 -> 1 | Z34: =iIndiRank!AX23 -> India | AB34: =iIndiRank!AZ23 -> 1 | AC34: =iIndiRank!BA23 -> India | AE34: =iIndiRank!BC23 -> 1 | AF34: =iIndiRank!BD23 -> India | AH34: =iIndiRank!BF23 -> 1 | AI34: =iIndiRank!BG23 -> India
B35: =IF(uxb_works!$J$21=1,1,IF(OR(V35>0,Y35>0,AB35>0,AE35>0,AH35>0),1,0)) -> 1 | J35: =iIndiRank!L24 -> 1 | K35: =IF(J35=0,4,IF(P35<=uxb_works!$B$122,0,IF(P35<=uxb_works!$B$121,1,IF(P35<=uxb_works!$B$120,2,3)))) -> 1 | M35: =iIndiRank!P24 -> 19 | N35: =iIndiRank!Q24 -> Nigeria | O35: =iIndiRank!R24 -> 48.7 | P35: =iIndiRank!T24 -> 48.7 | Q35: |||||||||||||||| | R35: =TEXT(iIndiRank!S24,iIndiRank!$E$2) ->  | V35: =iIndiRank!AT24 -> 0 | W35: =iIndiRank!AU24 -> Nigeria | Y35: =iIndiRank!AW24 -> 1 | Z35: =iIndiRank!AX24 -> Nigeria | AB35: =iIndiRank!AZ24 -> 1 | AC35: =iIndiRank!BA24 -> Nigeria | AE35: =iIndiRank!BC24 -> 1 | AF35: =iIndiRank!BD24 -> Nigeria | AH35: =iIndiRank!BF24 -> 1 | AI35: =iIndiRank!BG24 -> Nigeria
B36: =IF(uxb_works!$J$21=1,1,IF(OR(V36>0,Y36>0,AB36>0,AE36>0,AH36>0),1,0)) -> 1 | J36: =iIndiRank!L25 -> 1 | K36: =IF(J36=0,4,IF(P36<=uxb_works!$B$122,0,IF(P36<=uxb_works!$B$121,1,IF(P36<=uxb_works!$B$120,2,3)))) -> 1 | M36: =iIndiRank!P25 -> 20 | N36: =iIndiRank!Q25 -> Russia | O36: =iIndiRank!R25 -> 44.6 | P36: =iIndiRank!T25 -> 44.6 | Q36: |||||||||||||| | R36: =TEXT(iIndiRank!S25,iIndiRank!$E$2) ->  | V36: =iIndiRank!AT25 -> 0 | W36: =iIndiRank!AU25 -> Russia | Y36: =iIndiRank!AW25 -> 1 | Z36: =iIndiRank!AX25 -> Russia | AB36: =iIndiRank!AZ25 -> 1 | AC36: =iIndiRank!BA25 -> Russia | AE36: =iIndiRank!BC25 -> 1 | AF36: =iIndiRank!BD25 -> Russia | AH36: =iIndiRank!BF25 -> 1 | AI36: =iIndiRank!BG25 -> Russia
B37: =IF(uxb_works!$J$21=1,1,IF(OR(V37>0,Y37>0,AB37>0,AE37>0,AH37>0),1,0)) -> 1

Sheet CountryScoreCard
A1: =uxb_works!$B$92 -> Coastal Governance Index: 2019 | AG1: $C$30 | BA1: 1 | BB1: 3
BG2: 2 | BH2: 0
A6: =uxb_works!$C$5 -> The active weight profile has been changed from its default setting
C12: =uxb_works!C26 -> Brazil | I12: Current results | K12: Change from 2015 | O12: Current all country average | P12: Change in Average from 2015
C13: =IF(iCSCtbl!S1,"",uxb_works!C26) -> Brazil | I13: Score | J13: ="Rank/ "&uxb_works!$B$1 -> Rank/ 20 | K13: r | L13: Score | M13: r | N13: Rank | P13: r | Q13: Score
B14: 1 | C14: =iCSCtbl!C3 -> OVERVIEW | I14: =iCSCtbl!D3 -> 73.1 | J14: =iCSCtbl!E3 -> 12 | K14: =iCSCtbl!R3 -> 2.4 | L14: =iCSCtbl!S3 -> p | M14: =IF(iCSCtbl!T3=0,"",iCSCtbl!T3) -> -3 | N14: =iCSCtbl!U3 -> q | O14: =iCSCtbl!G3 -> 73.835 | P14: =iCSCtbl!W3 -> 5.44 | Q14: =iCSCtbl!X3 -> p
B15: =iCSCtbl!F4 -> 1 | C15: =TRIM(iCSCtbl!C4) -> 1) POLICY AND INSTITUTIONAL CAPACITY | I15: =iCSCtbl!D4 -> 76.9 | J15: =iCSCtbl!E4 -> 12 | K15: =iCSCtbl!R4 -> 3.8 | L15: =iCSCtbl!S4 -> p | M15: =IF(iCSCtbl!T4=0,"",iCSCtbl!T4) -> -3 | N15: =iCSCtbl!U4 -> q | O15: =iCSCtbl!G4 -> 71.515 | P15: =iCSCtbl!W4 -> 9.04 | Q15: =iCSCtbl!X4 -> p
B16: =iCSCtbl!F5 -> 2 | C16: =TRIM(iCSCtbl!C5) -> 1.1) Coastal management policy and strategy | I16: =iCSCtbl!D5 -> 100 | J16: =iCSCtbl!E5 -> 1 | K16: =iCSCtbl!R5 -> = | L16: =iCSCtbl!S5 ->  | M16: =IF(iCSCtbl!T5=0,"",iCSCtbl!T5) ->  | N16: =iCSCtbl!U5 -> 1 | O16: =iCSCtbl!G5 -> 83.75 | P16: =iCSCtbl!W5 -> 8.75 | Q16: =iCSCtbl!X5 -> p
B17: =iCSCtbl!F6 -> 2 | C17: =TRIM(iCSCtbl!C6) -> 1.2) Presence of established institution(s) | I17: =iCSCtbl!D6 -> 100 | J17: =iCSCtbl!E6 -> 1 | K17: =iCSCtbl!R6 -> = | L17: =iCSCtbl!S6 ->  | M17: =IF(iCSCtbl!T6=0,"",iCSCtbl!T6) ->  | N17: =iCSCtbl!U6 -> 1 | O17: =iCSCtbl!G6 -> 72.5 | P17: =iCSCtbl!W6 -> 5 | Q17: =iCSCtbl!X6 -> p
B18: =iCSCtbl!F7 -> 2 | C18: =TRIM(iCSCtbl!C7) -> 1.3) National strategies to address climate change | I18: =iCSCtbl!D7 -> 50 | J18: =iCSCtbl!E7 -> 7 | K18: =iCSCtbl!R7 -> 25 | L18: =iCSCtbl!S7 -> p | M18: =IF(iCSCtbl!T7=0,"",iCSCtbl!T7) -> 7 | N18: =iCSCtbl!U7 -> p | O18: =iCSCtbl!G7 -> 55 | P18: =iCSCtbl!W7 -> 15 | Q18: =iCSCtbl!X7 -> p
B19: =iCSCtbl!F8 -> 2 | C19: =TRIM(iCSCtbl!C8) -> 1.4) Maritime spatial planning | I19: =iCSCtbl!D8 -> 0 | J19: =iCSCtbl!E8 -> 17 | K19: =iCSCtbl!R8 -> = | L19: =iCSCtbl!S8 ->  | M19: =IF(iCSCtbl!T8=0,"",iCSCtbl!T8) -> -3 | N19: =iCSCtbl!U8 -> q | O19: =iCSCtbl!G8 -> 65 | P19: =iCSCtbl!W8 -> 18.75 | Q19: =iCSCtbl!X8 -> p
B20: =iCSCtbl!F9 -> 2 | C20: =TRIM(iCSCtbl!C9) -> 1.5) Stakeholder engagement | I20: =iCSCtbl!D9 -> 100 | J20: =iCSCtbl!E9 -> 1 | K20: =iCSCtbl!R9 -> = | L20: =iCSCtbl!S9 ->  | M20: =IF(iCSCtbl!T9=0,"",iCSCtbl!T9) ->  | N20: =iCSCtbl!U9 -> 1 | O20: =iCSCtbl!G9 -> 73.75 | P20: =iCSCtbl!W9 -> 11.25 | Q20: =iCSCtbl!X9 -> p
B21: =iCSCtbl!F10 -> 2 | C21: =TRIM(iCSCtbl!C10) -> 1.6) Extractive industries transparency | I21: =iCSCtbl!D10 -> 0 | J21: =iCSCtbl!E10 -> 11 | K21: =iCSCtbl!R10 -> = | L21: =iCSCtbl!S10 ->  | M21: =IF(iCSCtbl!T10=0,"",iCSCtbl!T10) ->  | N21: =iCSCtbl!U10 -> 1 | O21: =iCSCtbl!G10 -> 48.335 | P21: =iCSCtbl!W10 -> 5 | Q21: =iCSCtbl!X10 -> p
B22: =iCSCtbl!F11 -> 2 | C22: =TRIM(iCSCtbl!C11) -> 1.7) Adoption of the United Nations Convention on the Law of the Sea (UNCLOS) | I22: =iCSCtbl!D11 -> 100 | J22: =iCSCtbl!E11 -> 1 | K22: =iCSCtbl!R11 -> = | L22: =iCSCtbl!S11 ->  | M22: =IF(iCSCtbl!T11=0,"",iCSCtbl!T11) ->  | N22: =iCSCtbl!U11 -> 1 | O22: =iCSCtbl!G11 -> 90 | P22: =iCSCtbl!W11 -> = | Q22: =iCSCtbl!X11 -> 
B23: =iCSCtbl!F12 -> 1 | C23: =TRIM(iCSCtbl!C12) -> 2) BUSINESS ENVIRONMENT FOR COASTAL ACTIVITIES | I23: =iCSCtbl!D12 -> 51.1 | J23: =iCSCtbl!E12 -> 13 | K23: =iCSCtbl!R12 -> 1.2 | L23: =iCSCtbl!S12 -> p | M23: =IF(iCSCtbl!T12=0,"",iCSCtbl!T12) -> -1 | N23: =iCSCtbl!U12 -> q | O23: =iCSCtbl!G12 -> 64.67 | P23: =iCSCtbl!W12 -> 4.31 | Q23: =iCSCtbl!X12 -> p
B24: =iCSCtbl!F13 -> 2 | C24: =TRIM(iCSCtbl!C13) -> 2.1) Ease of doing business | I24: =iCSCtbl!D13 -> 67.8 | J24: =iCSCtbl!E13 -> 14 | K24: =iCSCtbl!R13 -> 6.7 | L24: =iCSCtbl!S13 -> p | M24: =IF(iCSCtbl!T13=0,"",iCSCtbl!T13) -> -3 | N24: =iCSCtbl!U13 -> q | O24: =iCSCtbl!G13 -> 76.44 | P24: =iCSCtbl!W13 -> 12.325 | Q24: =iCSCtbl!X13 -> p
B25: =iCSCtbl!F14 -> 2 | C25: =TRIM(iCSCtbl!C14) -> 2.2) Corruption perception | I25: =iCSCtbl!D14 -> 36.1 | J25: =iCSCtbl!E14 -> 16 | K25: =iCSCtbl!R14 -> -18.9 | L25: =iCSCtbl!S14 -> q | M25: =IF(iCSCtbl!T14=0,"",iCSCtbl!T14) -> -6 | N25: =iCSCtbl!U14 -> q | O25: =iCSCtbl!G14 -> 58.65 | P25: =iCSCtbl!W14 -> -1.68 | Q25: =iCSCtbl!X14 -> q
B26: =iCSCtbl!F15 -> 2 | C26: =TRIM(iCSCtbl!C15) -> 2.3) Effectiveness of dispute resolution mechanisms | I26: =iCSCtbl!D15 -> 62.5 | J26: =iCSCtbl!E15 -> 10 | K26: =iCSCtbl!R15 -> 12.5 | L26: =iCSCtbl!S15 -> p | M26: =IF(iCSCtbl!T15=0,"",iCSCtbl!T15) -> 2 | N26: =iCSCtbl!U15 -> p | O26: =iCSCtbl!G15 -> 63.125 | P26: =iCSCtbl!W15 -> 5.625 | Q26: =iCSCtbl!X15 -> p
B27: =iCSCtbl!F16 -> 2 | C27: =TRIM(iCSCtbl!C16) -> 2.4) Quality of coastal infrastructure | I27: =iCSCtbl!D16 -> 37.8 | J27: =iCSCtbl!E16 -> 19 | K27: =iCSCtbl!R16 -> 4.4 | L27: =iCSCtbl!S16 -> p | M27: =IF(iCSCtbl!T16=0,"",iCSCtbl!T16) ->  | N27: =iCSCtbl!U16 -> 1 | O27: =iCSCtbl!G16 -> 60.44 | P27: =iCSCtbl!W16 -> 0.945 | Q27: =iCSCtbl!X16 -> p
B28: =iCSCtbl!F17 -> 1 | C28: =TRIM(iCSCtbl!C17) -> 3) WATER QUALITY | I28: =iCSCtbl!D17 -> 96.6 | J28: =iCSCtbl!E17 -> 12 | K28: =iCSCtbl!R17 -> = | L28: =iCSCtbl!S17 ->  | M28: =IF(iCSCtbl!T17=0,"",iCSCtbl!T17) -> -1 | N28: =iCSCtbl!U17 -> q | O28: =iCSCtbl!G17 -> 94.38 | P28: =iCSCtbl!W17 -> 0.28 | Q28: =iCSCtbl!X17 -> p
B29: =iCSCtbl!F18 -> 2 | C29: =TRIM(iCSCtbl!C18) -> 3.1) Freshwater pollution control agency | I29: =iCSCtbl!D18 -> 100 | J29: =iCSCtbl!E18 -> 1 | K29: =iCSCtbl!R18 -> = | L29: =iCSCtbl!S18 ->  | M29: =IF(iCSCtbl!T18=0,"",iCSCtbl!T18) ->  | N29: =iCSCtbl!U18 -> 1 | O29: =iCSCtbl!G18 -> 100 | P29: =iCSCtbl!W18 -> = | Q29: =iCSCtbl!X18 -> 
B30: =iCSCtbl!F19 -> 2 | C30: =TRIM(iCSCtbl!C19) -> 3.2) Regulatory standards for water pollution | I30: =iCSCtbl!D19 -> 89.7 | J30: =iCSCtbl!E19 -> 13 | K30: =iCSCtbl!R19 -> = | L30: =iCSCtbl!S19 ->  | M30: =IF(iCSCtbl!T19=0,"",iCSCtbl!T19) ->  | N30: =iCSCtbl!U19 -> 1 | O30: =iCSCtbl!G19 -> 87.295 | P30: =iCSCtbl!W19 -> = | Q30: =iCSCtbl!X19 -> 
B31: =iCSCtbl!F20 -> 2 | C31: =TRIM(iCSCtbl!C20) -> 3.3) Monitoring and enforcement | I31: =iCSCtbl!D20 -> 100 | J31: =iCSCtbl!E20 -> 1 | K31: =iCSCtbl!R20 -> = | L31: =iCSCtbl!S20 ->  | M31: =IF(iCSCtbl!T20=0,"",iCSCtbl!T20) ->  | N31: =iCSCtbl!U20 -> 1 | O31: =iCSCtbl!G20 -> 95.835 | P31: =iCSCtbl!W20 -> 0.835 | Q31: =iCSCtbl!X20 -> p
B32: =iCSCtbl!F21 -> 1 | C32: =TRIM(iCSCtbl!C21) -> 4) MINERALS, ENERGY AND SHIPPING | I32: =iCSCtbl!D21 -> 84.4 | J32: =iCSCtbl!E21 -> 5 | K32: =iCSCtbl!R21 -> = | L32: =iCSCtbl!S21 ->  | M32: =IF(iCSCtbl!T21=0,"",iCSCtbl!T21) ->  | N32: =iCSCtbl!U21 -> 1 | O32: =iCSCtbl!G21 -> 80.53 | P32: =iCSCtbl!W21 -> 2.41 | Q32: =iCSCtbl!X21 -> p
B33: =iCSCtbl!F22 -> 2 | C33: =TRIM(iCSCtbl!C22) -> 4.1) Permitting and licensing | I33: =iCSCtbl!D22 -> 100 | J33: =iCSCtbl!E22 -> 1 | K33: =iCSCtbl!R22 -> = | L33: =iCSCtbl!S22 ->  | M33: =IF(iCSCtbl!T22=0,"",iCSCtbl!T22) ->  | N33: =iCSCtbl!U22 -> 1 | O33: =iCSCtbl!G22 -> 96.25 | P33: =iCSCtbl!W22 -> 6.25 | Q33: =iCSCtbl!X22 -> p
B34: =iCSCtbl!F23 -> 2 | C34: =TRIM(iCSCtbl!C23) -> 4.2) Monitoring and enforcement | I34: =iCSCtbl!D23 -> 87.5 | J34: =iCSCtbl!E23 -> 9 | K34: =iCSCtbl!R23 -> = | L34: =iCSCtbl!S23 ->  | M34: =IF(iCSCtbl!T23=0,"",iCSCtbl!T23) ->  | N34: =iCSCtbl!U23 -> 1 | O34: =iCSCtbl!G23 -> 90 | P34: =iCSCtbl!W23 -> = | Q34: =iCSCtbl!X23 -> 
B35: =iCSCtbl!F24 -> 2 | C35: =TRIM(iCSCtbl!C24) -> 4.3) Risk mitigation for the mineral and oil and gas industries | I35: =iCSCtbl!D24 -> 83.3 | J35: =iCSCtbl!E24 -> 4 | K35: =iCSCtbl!R24 -> = | L35: =iCSCtbl!S24 ->  | M35: =IF(iCSCtbl!T24=0,"",iCSCtbl!T24) ->  | N35: =iCSCtbl!U24 -> 1 | O35: =iCSCtbl!G24 -> 72.495 | P35: =iCSCtbl!W24 -> 1.665 | Q35: =iCSCtbl!X24 -> p
B36: =iCSCtbl!F25 -> 2 | C36: =TRIM(iCSCtbl!C25) -> 4.4) Shipping/maritime pollution | I36: =iCSCtbl!D25 -> 66.7 | J36: =iCSCtbl!E25 -> 4 | K36: =iCSCtbl!R25 -> = | L36: =iCSCtbl!S25 ->  | M36: =IF(iCSCtbl!T25=0,"",iCSCtbl!T25) ->  | N36: =iCSCtbl!U25 -> 1 | O36: =iCSCtbl!G25 -> 63.345 | P36: =iCSCtbl!W25 -> 1.67 | Q36: =iCSCtbl!X25 -> p
B37: =iCSCtbl!F26 -> 1 | C37: =TRIM(iCSCtbl!C26) -> 5) LAND | I37: =iCSCtbl!D26 -> 73.1 | J37: =iCSCtbl!E26 -> 13 | K37: =iCSCtbl!R26 -> 15 | L37: =iCSCtbl!S26 -> p | M37: =IF(iCSCtbl!T26=0,"",iCSCtbl!T26) -> 2 | N37: =iCSCtbl!U26 -> p | O37: =iCSCtbl!G26 -> 72.11 | P37: =iCSCtbl!W26 -> 6.56 | Q37: =iCSCtbl!X26 -> p
B38: =iCSCtbl!F27 -> 2 | C38: =TRIM(iCSCtbl!C27) -> 5.1) Prevalence of coastal protected areas | I38: =iCSCtbl!D27 -> 100 | J38: =iCSCtbl!E27 -> 1 | K38: =iCSCtbl!R27 -> = | L38: =iCSCtbl!S27 ->  | M38: =IF(iCSCtbl!T27=0,"",iCSCtbl!T27) ->  | N38: =iCSCtbl!U27 -> 1 | O38: =iCSCtbl!G27 -> 57.5 | P38: =iCSCtbl!W27 -> 15 | Q38: =iCSCtbl!X27 -> p
B39: =iCSCtbl!F28 -> 2 | C39: =TRIM(iCSCtbl!C28) -> 5.2) Environmental impact of coastal development | I39: =iCSCtbl!D28 -> 50 | J39: =iCSCtbl!E28 -> 15 | K39: =iCSCtbl!R28 -> = | L39: =iCSCtbl!S28 ->  | M39: =IF(iCSCtbl!T28=0,"",iCSCtbl!T28) ->  | N39: =iCSCtbl!U28 -> 1 | O39: =iCSCtbl!G28 -> 85 | P39: =iCSCtbl!W28 -> = | Q39: =iCSCtbl!X28 -> 
B40: =iCSCtbl!F29 -> 2 | C40: =TRIM(iCSCtbl!C29) -> 5.3) Government commitment to sustainability in coastal tourism development | I40: =iCSCtbl!D29 -> 38.3 | J40: =iCSCtbl!E29 -> 19 | K40: =iCSCtbl!R29 -> -10 | L40: =iCSCtbl!S29 -> q | M40: =IF(iCSCtbl!T29=0,"",iCSCtbl!T29) -> -2 | N40: =iCSCtbl!U29 -> q | O40: =iCSCtbl!G29 -> 57.585 | P40: =iCSCtbl!W29 -> -0.76 | Q40: =iCSCtbl!X29 -> q
B41: =iCSCtbl!F30 -> 2 | C41: =TRIM(iCSCtbl!C30) -> 5.4) Natural disaster risk mitigation | I41: =iCSCtbl!D30 -> 100 | J41: =iCSCtbl!E30 -> 1 | K41: =iCSCtbl!R30 -> 100 | L41: =iCSCtbl!S30 -> p | M41: =IF(iCSCtbl!T30=0,"",iCSCtbl!T30) -> 16 | N41: =iCSCtbl!U30 -> p | O41: =iCSCtbl!G30 -> 90 | P41: =iCSCtbl!W30 -> 10 | Q41: =iCSCtbl!X30 -> p
B42: =iCSCtbl!F31 -> 1 | C42: =TRIM(iCSCtbl!C31) -> 6) LIVING RESOURCES | I42: =iCSCtbl!D31 -> 53.6 | J42: =iCSCtbl!E31 -> 14 | K42: =iCSCtbl!R31 -> -3.8 | L42: =iCSCtbl!S31 -> q | M42: =IF(iCSCtbl!T31=0,"",iCSCtbl!T31) -> -4 | N42: =iCSCtbl!U31 -> q | O42: =iCSCtbl!G31 -> 62.215 | P42: =iCSCtbl!W31 -> 6.97 | Q42: =iCSCtbl!X31 -> p
B43: =iCSCtbl!F32 -> 2 | C43: =TRIM(iCSCtbl!C32) -> 6.1) Fisheries governance and management effectiveness | I43: =iCSCtbl!D32 -> 25 | J43: =iCSCtbl!E32 -> 20 | K43: =iCSCtbl!R32 -> -9 | L43: =iCSCtbl!S32 -> q | M43: =IF(iCSCtbl!T32=0,"",iCSCtbl!T32) -> -1 | N43: =iCSCtbl!U32 -> q | O43: =iCSCtbl!G32 -> 62.65 | P43: =iCSCtbl!W32 -> 0.4 | Q43: =iCSCtbl!X32 -> p
B44: =iCSCtbl!F33 -> 2 | C44: =TRIM(iCSCtbl!C33) -> 6.2) Protection for marine/coastal species | I44: =iCSCtbl!D33 -> 100 | J44: =iCSCtbl!E33 -> 1 | K44: =iCSCtbl!R33 -> = | L44: =iCSCtbl!S33 ->  | M44: =IF(iCSCtbl!T33=0,"",iCSCtbl!T33) ->  | N44: =iCSCtbl!U33 -> 1 | O44: =iCSCtbl!G33 -> 68.75 | P44: =iCSCtbl!W33 -> = | Q44: =iCSCtbl!X33 -> 
B45: =iCSCtbl!F34 -> 2 | C45: =TRIM(iCSCtbl!C34) -> 6.3) Ballast water treatment | I45: =iCSCtbl!D34 -> 100 | J45: =iCSCtbl!E34 -> 1 | K45: =iCSCtbl!R34 -> = | L45: =iCSCtbl!S34 ->  | M45: =IF(iCSCtbl!T34=0,"",iCSCtbl!T34) ->  | N45: =iCSCtbl!U34 -> 1 | O45: =iCSCtbl!G34 -> 75 | P45: =iCSCtbl!W34 -> 20 | Q45: =iCSCtbl!X34 -> p
B46: =iCSCtbl!F35 -> 2 | C46: =TRIM(iCSCtbl!C35) -> 6.4) Transparency in living resources management | I46: =iCSCtbl!D35 -> 0 | J46: =iCSCtbl!E35 -> 13 | K46: =iCSCtbl!R35 -> = | L46: =iCSCtbl!S35 ->  | M46: =IF(iCSCtbl!T35=0,"",iCSCtbl!T35) -> -9 | N46: =iCSCtbl!U35 -> q | O46: =iCSCtbl!G35 -> 35 | P46: =iCSCtbl!W35 -> 27.5 | Q46: =iCSCtbl!X35 -> p
C51: Score > 75 | G51: Score < 25
B52: =MAX(SUM(B53:B107),1) -> 10 | F52: =MAX(SUM(F53:F107),1) -> 3
B53: =IF(C53="",0,1) -> 1 | C53: =TRIM(iCountryP!V22) -> 1.1) Coastal management policy and strategy | D53: =iCountryP!W22 -> 100 | F53: =IF(G53="",0,1) -> 1 | G53: =TRIM(iCountryP!Z22) -> 1.4) Maritime spatial planning | H53: =iCountryP!AA22 -> 0 | I53: =iCountryP!AA22 -> 0 | AA53: =C53 -> 1.1) Coastal management policy and strategy | AB53: =G53 -> 1.4) Maritime spatial planning
B54: =IF(C54="",0,1) -> 1 | C54: =TRIM(iCountryP!V23) -> 1.2) Presence of established institution(s) | D54: =iCountryP!W23 -> 100 | F54: =IF(G54="",0,1) -> 1 | G54: =TRIM(iCountryP!Z23) -> 1.6) Extractive industries transparency | H54: =iCountryP!AA23 -> 0 | I54: =iCountryP!AA23 -> 0 | AA54: =C54 -> 1.2) Presence of established institution(s) | AB54: =G54 -> 1.6) Extractive industries transparency
B55: 1 | C55: =TRIM(iCountryP!V24) -> 1.5) Stakeholder engagement | D55: =iCountryP!W24 -> 100 | F55: 1 | G55: =TRIM(iCountryP!Z24) -> 6.4) Transparency in living resources management | H55: =iCountryP!AA24 -> 0 | I55: =iCountryP!AA24 -> 0 | AA55: 1.5) Stakeholder engagement | AB55: 6.4) Transparency in living resources management
B56: 1 | C56: =TRIM(iCountryP!V25) -> 1.7) Adoption of the United Nations Convention on the Law of the Sea (UNCLOS) | D56: =iCountryP!W25 -> 100 | F56: 0 | G56: =TRIM(iCountryP!Z25) ->  | H56: =iCountryP!AA25 ->  | I56: =iCountryP!AA25 ->  | AA56: 1.7) Adoption of the United Nations Convention on the Law of the Sea (UNCLOS)
B57: 1 | C57: =TRIM(iCountryP!V30) -> 4.2) Monitoring and enforcement | D57: =iCountryP!W30 -> 87.5 | F57: 0 | G57: =TRIM(iCountryP!Z30) ->  | H57: =iCountryP!AA30 ->  | I57: =iCountryP!AA30 ->  | AA57: 4.2) Monitoring and enforcement
B58: 1 | C58: =TRIM(iCountryP!V31) -> 4.3) Risk mitigation for the mineral and oil and gas industries | D58: =iCountryP!W31 -> 83.3 | F58: 0 | G58: =TRIM(iCountryP!Z31) ->  | H58: =iCountryP!AA31 ->  | I58: =iCountryP!AA31 ->  | AA58: 4.3) Risk mitigation for the mineral and oil and gas industries
B59: 1 | C59: =TRIM(iCountryP!V32) -> 5.1) Prevalence of coastal protected areas | D59: =iCountryP!W32 -> 100 | F59: 0 | G59: =TRIM(iCountryP!Z32) ->  | H59: =iCountryP!AA32 ->  | I59: =iCountryP!AA32 ->  | AA59: 5.1) Prevalence of coastal protected areas
B60: 1 | C60: =TRIM(iCountryP!V33) -> 5.4) Natural disaster risk mitigation | D60: =iCountryP!W33 -> 100 | F60: 0 | G60: =TRIM(iCountryP!Z33) ->  | H60: =iCountryP!AA33 ->  | I60: =iCountryP!AA33 ->  | AA60: 5.4) Natural disaster risk mitigation
B61: 1 | C61: =TRIM(iCountryP!V34) -> 6.2) Protection for marine/coastal species | D61: =iCountryP!W34 -> 100 | F61: 0 | G61: =TRIM(iCountryP!Z34) ->  | H61: =iCountryP!AA34 ->  | I61: =iCountryP!AA34 ->  | AA61: 6.2) Protection for marine/coastal species
B62: 1 | C62: =TRIM(iCountryP!V35) -> 6.3) Ballast water treatment | D62: =iCountryP!W35 -> 100 | F62: 0 | G62: =TRIM(iCountryP!Z35) ->  | H62: =iCountryP!AA35 ->  | I62: =iCountryP!AA35 ->  | AA62: 6.3) Ballast water treatment
B63: 0 | C63: =TRIM(iCountryP!V36) ->  | D63: =iCountryP!W36 ->  | F63: 0 | G63: =TRIM(iCountryP!Z36) ->  | H63: =iCountryP!AA36 ->  | I63: =iCountryP!AA36 -> 
B64: 0 | C64: =TRIM(iCountryP!V37) ->  | D64: =iCountryP!W37 ->  | F64: 0 | G64: =TRIM(iCountryP!Z37) ->  | H64: =iCountryP!AA37 ->  | I64: =iCountryP!AA37 -> 
B65: 0 | C65: =TRIM(iCountryP!V38) ->  | D65: =iCountryP!W38 ->  | F65: 0 | G65: =TRIM(iCountryP!Z38) ->  | H65: =iCountryP!AA38 ->  | I65: =iCountryP!AA38 -> 
B66: 0 | C66: =TRIM(iCountryP!V39) ->  | D66: =iCountryP!W39 ->  | F66: 0 | G66: =TRIM(iCountryP!Z39) ->  | H66: =iCountryP!AA39 ->  | I66: =iCountryP!AA39 -> 
B67: 0 | C67: =TRIM(iCountryP!V40) ->  | D67: =iCountryP!W40 ->  | F67: 0 | G67: =TRIM(iCountryP!Z40) ->  | H67: =iCountryP!AA40 ->  | I67: =iCountryP!AA40 -> 
B68: 0 | C68: =TRIM(iCountryP!V41) ->  | D68: =iCountryP!W41 ->  | F68: 0 | G68: =TRIM(iCountryP!Z41) ->  | H68: =iCountryP!AA41 ->  | I68: =iCountryP!AA41 -> 
B69: 0 | C69: =TRIM(iCountryP!V42) ->  | D69: =iCountryP!W42 ->  | F69: 0 | G69: =TRIM(iCountryP!Z42) ->  | H69: =iCountryP!AA42 ->  | I69: =iCountryP!AA42 -> 
B70: 0 | C70: =TRIM(iCountryP!V43) ->  | D70: =iCountryP!W43 ->  | F70: 0 | G70: =TRIM(iCountryP!Z43) ->  | H70: =iCountryP!AA43 ->  | I70: =iCountryP!AA43 -> 
B71: 0 | C71: =TRIM(iCountryP!V44) ->  | D71: =iCountryP!W44 ->  | F71: 0 | G71: =TRIM(iCountryP!Z44) ->  | H71: =iCountryP!AA44 ->  | I71: =iCountryP!AA44 -> 
B72: 0 | C72: =TRIM(iCountryP!V45) ->  | D72: =iCountryP!W45 ->  | F72: 0 | G72: =TRIM(iCountryP!Z45) ->  | H72: =iCountryP!AA45 ->  | I72: =iCountryP!AA45 -> 
B73: 0 | C73: =TRIM(iCountryP!V46) ->  | D73: =iCountryP!W46 ->  | F73: 0 | G73: =TRIM(iCountryP!Z46) ->  | H73: =iCountryP!AA46 ->  | I73: =iCountryP!AA46 -> 
B74: 0 | C74: =TRIM(iCountryP!V47) ->  | D74: =iCountryP!W47 ->  | F74: 0 | G74: =TRIM(iCountryP!Z47) ->  | H74: =iCountryP!AA47 ->  | I74: =iCountryP!AA47 -> 
B75: 0 | C75: =TRIM(iCountryP!V48) ->  | D75: =iCountryP!W48 ->  | F75: 0 | G75: =TRIM(iCountryP!Z48) ->  | H75: =iCountryP!AA48 ->  | I75: =iCountryP!AA48 -> 
B76: 0 | C76: =TRIM(iCountryP!V49) ->  | D76: =iCountryP!W49 ->  | F76: 0 | G76: =TRIM(iCountryP!Z49) ->  | H76: =iCountryP!AA49 ->  | I76: =iCountryP!AA49 -> 
B77: 0 | C77: =TRIM(iCountryP!V50) ->  | D77: =iCountryP!W50 ->  | F77: 0 | G77: =TRIM(iCountryP!Z50) ->  | H77: =iCountryP!AA50 ->  | I77: =iCountryP!AA50 -> 
B78: 0 | C78: =TRIM(iCountryP!V51) ->  | D78: =iCountryP!W51 ->  | F78: 0 | G78: =TRIM(iCountryP!Z51) ->  | H78: =iCountryP!AA51 ->  | I78: =iCountryP!AA51 -> 
B79: 0 | C79: =TRIM(iCountryP!V52) ->  | D79: =iCountryP!W52 ->  | F79: 0 | G79: =TRIM(iCountryP!Z52) ->  | H79: =iCountryP!AA52 ->  | I79: =iCountryP!AA52 -> 
B80: 0 | C80: =TRIM(iCountryP!V53) ->  | D80: =iCountryP!W53 ->  | F80: 0 | G80: =TRIM(iCountryP!Z53) ->  | H80: =iCountryP!AA53 ->  | I80: =iCountryP!AA53 -> 
B81: 0 | C81: =TRIM(iCountryP!V54) ->  | D81: =iCountryP!W54 ->  | F81: 0 | G81: =TRIM(iCountryP!Z54) ->  | H81: =iCountryP!AA54 ->  | I81: =iCountryP!AA54 -> 
B82: 0 | C82: =TRIM(iCountryP!V55) ->  | D82: =iCountryP!W55 ->  | F82: 0 | G82: =TRIM(iCountryP!Z55) ->  | H82: =iCountryP!AA55 ->  | I82: =iCountryP!AA55 -> 
B83: 0 | C83: =TRIM(iCountryP!V56) ->  | D83: =iCountryP!W56 ->  | F83: 0 | G83: =TRIM(iCountryP!Z56) ->  | H83: =iCountryP!AA56 ->  | I83: =iCountryP!AA56 -> 
B84: 0 | C84: =TRIM(iCountryP!V57) ->  | D84: =iCountryP!W57 ->  | F84: 0 | G84: =TRIM(iCountryP!Z57) ->  | H84: =iCountryP!AA57 ->  | I84: =iCountryP!AA57 -> 
B85: 0 | C85: =TRIM(iCountryP!V58) ->  | D85: =iCountryP!W58 ->  | F85: 0 | G85: =TRIM(iCountryP!Z58) ->  | H85: =iCountryP!AA58 ->  | I85: =iCountryP!AA58 -> 
B86: 0 | C86: =TRIM(iCountryP!V59) ->  | D86: =iCountryP!W59 ->  | F86: 0 | G86: =TRIM(iCountryP!Z59) ->  | H86: =iCountryP!AA59 ->  | I86: =iCountryP!AA59 -> 
B87: 0 | C87: =TRIM(iCountryP!V60) ->  | D87: =iCountryP!W60 ->  | F87: 0 | G87: =TRIM(iCountryP!Z60) ->  | H87: =iCountryP!AA60 ->  | I87: =iCountryP!AA60 -> 
B88: 0 | C88: =TRIM(iCountryP!V61) ->  | D88: =iCountryP!W61 ->  | F88: 0 | G88: =TRIM(iCountryP!Z61) ->  | H88: =iCountryP!AA61 ->  | I88: =iCountryP!AA61 -> 
B89: 0 | C89: =TRIM(iCountryP!V62) ->  | D89: =iCountryP!W62 ->  | F89: 0 | G89: =TRIM(iCountryP!Z62) ->  | H89: =iCountryP!AA62 ->  | I89: =iCountryP!AA62 -> 
B90: 0 | C90: =TRIM(iCountryP!V63) ->  | D90: =iCountryP!W63 ->  | F90: 0 | G90: =TRIM(iCountryP!Z63) ->  | H90: =iCountryP!AA63 ->  | I90: =iCountryP!AA63 -> 
B91: 0 | C91: =TRIM(iCountryP!V64) ->  | D91: =iCountryP!W64 ->  | F91: 0 | G91: =TRIM(iCountryP!Z64) ->  | H91: =iCountryP!AA64 ->  | I91: =iCountryP!AA64 -> 
B92: 0 | C92: =TRIM(iCountryP!V65) ->  | D92: =iCountryP!W65 ->  | F92: 0 | G92: =TRIM(iCountryP!Z65) ->  | H92: =iCountryP!AA65 ->  | I92: =iCountryP!AA65 -> 
B93: 0 | C93: =TRIM(iCountryP!V66) ->  | D93: =iCountryP!W66 ->  | F93: 0 | G93: =TRIM(iCountryP!Z66) ->  | H93: =iCountryP!AA66 ->  | I93: =iCountryP!AA66 -> 
B94: 0 | C94: =TRIM(iCountryP!V67) ->  | D94: =iCountryP!W67 ->  | F94: 0 | G94: =TRIM(iCountryP!Z67) ->  | H94: =iCountryP!AA67 ->  | I94: =iCountryP!AA67 -> 
B95: 0 | C95: =TRIM(iCountryP!V68) ->  | D95: =iCountryP!W68 ->  | F95: 0 | G95: =TRIM(iCountryP!Z68) ->  | H95: =iCountryP!AA68 ->  | I95: =iCountryP!AA68 -> 
B96: 0 | C96: =TRIM(iCountryP!V69) ->  | D96: =iCountryP!W69 ->  | F96: 0 | G96: =TRIM(iCountryP!Z69) ->  | H96: =iCountryP!AA69 ->  | I96: =iCountryP!AA69 -> 
B97: 0 | C97: =TRIM(iCountryP!V70) ->  | D97: =iCountryP!W70 ->  | F97: 0 | G97: =TRIM(iCountryP!Z70) ->  | H97: =iCountryP!AA70 ->  | I97: =iCountryP!AA70 -> 
B98: 0 | C98: =TRIM(iCountryP!V71) ->  | D98: =iCountryP!W71 ->  | F98: 0 | G98: =TRIM(iCountryP!Z71) ->  | H98: =iCountryP!AA71 ->  | I98: =iCountryP!AA71 -> 
B99: 0 | C99: =TRIM(iCountryP!V72) ->  | D99: =iCountryP!W72 ->  | F99: 0 | G99: =TRIM(iCountryP!Z72) ->  | H99: =iCountryP!AA72 ->  | I99: =iCountryP!AA72 -> 
B100: 0 | C100: =TRIM(iCountryP!V73) ->  | D100: =iCountryP!W73 ->  | F100: 0 | G100: =TRIM(iCountryP!Z73) ->  | H100: =iCountryP!AA73 ->  | I100: =iCountryP!AA73 -> 
B101: 0 | C101: =TRIM(iCountryP!V74) ->  | D101: =iCountryP!W74 ->  | F101: 0 | G101: =TRIM(iCountryP!Z74) ->  | H101: =iCountryP!AA74 ->  | I101: =iCountryP!AA74 -> 
B102: 0 | C102: =TRIM(iCountryP!V75) ->  | D102: =iCountryP!W75 ->  | F102: 0 | G102: =TRIM(iCountryP!Z75) ->  | H102: =iCountryP!AA75 ->  | I102: =iCountryP!AA75 -> 
B103: 0 | C103: =TRIM(iCountryP!V76) ->  | D103: =iCountryP!W76 ->  | F103: 0 | G103: =TRIM(iCountryP!Z76) ->  | H103: =iCountryP!AA76 ->  | I103: =iCountryP!AA76 -> 
B104: 0 | C104: =TRIM(iCountryP!V77) ->  | D104: =iCountryP!W77 ->  | F104: 0 | G104: =TRIM(iCountryP!Z77) ->  | H104: =iCountryP!AA77 ->  | I104: =iCountryP!AA77 -> 
B105: 0 | C105: =TRIM(iCountryP!V78) ->  | D105: =iCountryP!W78 ->  | F105: 0 | G105: =TRIM(iCountryP!Z78) ->  | H105: =iCountryP!AA78 ->  | I105: =iCountryP!AA78 -> 
B106: 0 | C106: =TRIM(iCountryP!V79) ->  | D106: =iCountryP!W79 ->  | F106: 0 | G106: =TRIM(iCountryP!Z79) ->  | H106: =iCountryP!AA79 ->  | I106: =iCountryP!AA79 -> 
B107: 0 | C107: =TRIM(iCountryP!V80) ->  | D107: =iCountryP!W80 ->  | F107: 0 | G107: =TRIM(iCountryP!Z80) ->  | H107: =iCountryP!AA80 ->  | I107: =iCountryP!AA80 -> 

Sheet CountryCompare
B1: s | E1: Coastal Governance Index: 2019 | J1: 1 | BA1: 1 | BB1: 4
H12: 1 | I12: 2 | J12: 3 | K12: 1 | L12: 2 | M12: =iCountryComp!AH17 -> 3 | N12: =iCountryComp!AI17 -> 1 | O12: =iCountryComp!AJ17 -> 2 | P12: =iCountryComp!AK17 -> 3 | Q12: =iCountryComp!AL17 -> 1 | R12: =iCountryComp!AM17 -> 2 | S12: =iCountryComp!AN17 -> 3 | T12: =iCountryComp!AO17 -> 1 | U12: =iCountryComp!AP17 -> 2 | V12: =iCountryComp!AQ17 -> 3 | W12: =iCountryComp!AR17 -> 1 | X12: =iCountryComp!AS17 -> 2
B14: =MAX(COUNTIF(C16:C44,"<>0"),11) -> 11 | C14: =COUNTIF(C16:C44,"<>0") -> 7 | D14: =uxb_works!E32 -> 0 | H14: =iCountryComp!C2 -> Brazil | K14: =iCountryComp!C3 -> China | N14: =iCountryComp!C4 -> Japan | Q14: =iCountryComp!C5 -> Indonesia | T14: =iCountryComp!C6 -> Mexico | W14: =iCountryComp!C7 -> Chile
H15: Score | I15: Rank | K15: Score | L15: Rank | N15: Score | O15: Rank | Q15: Score | R15: Rank | T15: Score | U15: Rank | W15: Score | X15: Rank
C16: =iCountryComp!AB22 -> 2 | D16: =iCountryComp!AC22 -> 2 | F16: =iCountryComp!AD22 -> OVERALL SCORE | H16: =iCountryComp!AE22 -> 73.1 | I16: =iCountryComp!AF22 -> 12 | K16: =iCountryComp!AG22 -> 73 | L16: =iCountryComp!AH22 -> 13 | N16: =iCountryComp!AI22 -> 83.4 | O16: =iCountryComp!AJ22 -> 4 | Q16: =iCountryComp!AL22 -> 72.6 | R16: =iCountryComp!AM22 -> 14 | T16: =iCountryComp!AO22 -> 74.1 | U16: =iCountryComp!AP22 -> 11 | W16: =iCountryComp!AR22 -> 82.3 | X16: =iCountryComp!AS22 -> 6 | AB16: =MIN(H16,K16,N16,Q16,T16,W16) -> 72.6 | AC16: =MAX(H16,K16,N16,Q16,T16,W16) -> 83.4 | AE16: =F16 -> OVERALL SCORE
C17: =iCountryComp!AB23 -> 1 | D17: =iCountryComp!AC23 -> 1 | F17: =iCountryComp!AD23 -> 1) POLICY AND INSTITUTIONAL CAPACITY | H17: =iCountryComp!AE23 -> 76.9 | I17: =iCountryComp!AF23 -> 12 | K17: =iCountryComp!AG23 -> 73.1 | L17: =iCountryComp!AH23 -> 14 | N17: =iCountryComp!AI23 -> 84.6 | O17: =iCountryComp!AJ23 -> =5 | Q17: =iCountryComp!AL23 -> 86.5 | R17: =iCountryComp!AM23 -> 4 | T17: =iCountryComp!AO23 -> 76.3 | U17: =iCountryComp!AP23 -> 13 | W17: =iCountryComp!AR23 -> 71.2 | X17: =iCountryComp!AS23 -> 15 | AB17: =MIN(H17,K17,N17,Q17,T17,W17) -> 71.2 | AC17: =MAX(H17,K17,N17,Q17,T17,W17) -> 86.5 | AE17: =F17 -> 1) POLICY AND INSTITUTIONAL CAPACITY
C18: =iCountryComp!AB24 -> 2 | D18: =iCountryComp!AC24 -> 1 | F18: =iCountryComp!AD24 -> 2) BUSINESS ENVIRONMENT FOR COASTAL ACTIVITIES | H18: =iCountryComp!AE24 -> 51.1 | I18: =iCountryComp!AF24 -> 13 | K18: =iCountryComp!AG24 -> 54.1 | L18: =iCountryComp!AH24 -> 11 | N18: =iCountryComp!AI24 -> 88.1 | O18: =iCountryComp!AJ24 -> 5 | Q18: =iCountryComp!AL24 -> 47.4 | R18: =iCountryComp!AM24 -> 16 | T18: =iCountryComp!AO24 -> 51.3 | U18: =iCountryComp!AP24 -> 12 | W18: =iCountryComp!AR24 -> 77.7 | X18: =iCountryComp!AS24 -> 7 | AB18: 47.4 | AC18: 88.1 | AE18: 2) BUSINESS ENVIRONMENT FOR COASTAL ACTIVITIES
C19: =iCountryComp!AB25 -> 1 | D19: =iCountryComp!AC25 -> 1 | F19: =iCountryComp!AD25 -> 3) WATER QUALITY | H19: =iCountryComp!AE25 -> 96.6 | I19: =iCountryComp!AF25 -> 12 | K19: =iCountryComp!AG25 -> 92.5 | L19: =iCountryComp!AH25 -> =15 | N19: =iCountryComp!AI25 -> 98.5 | O19: =iCountryComp!AJ25 -> 7 | Q19: =iCountryComp!AL25 -> 88.6 | R19: =iCountryComp!AM25 -> 18 | T19: =iCountryComp!AO25 -> 96.8 | U19: =iCountryComp!AP25 -> 11 | W19: =iCountryComp!AR25 -> 99 | X19: =iCountryComp!AS25 -> 4 | AB19: 88.6 | AC19: 99 | AE19: 3) WATER QUALITY
C20: =iCountryComp!AB26 -> 2 | D20: =iCountryComp!AC26 -> 1 | F20: =iCountryComp!AD26 -> 4) MINERALS, ENERGY AND SHIPPING | H20: =iCountryComp!AE26 -> 84.4 | I20: =iCountryComp!AF26 -> =5 | K20: =iCountryComp!AG26 -> 91.7 | L20: =iCountryComp!AH26 -> =2 | N20: =iCountryComp!AI26 -> 91.7 | O20: =iCountryComp!AJ26 -> =2 | Q20: =iCountryComp!AL26 -> 59.4 | R20: =iCountryComp!AM26 -> 20 | T20: =iCountryComp!AO26 -> 84.4 | U20: =iCountryComp!AP26 -> =5 | W20: =iCountryComp!AR26 -> 77.1 | X20: =iCountryComp!AS26 -> 15 | AB20: 59.4 | AC20: 91.7 | AE20: 4) MINERALS, ENERGY AND SHIPPING
C21: =iCountryComp!AB27 -> 1 | D21: =iCountryComp!AC27 -> 1 | F21: =iCountryComp!AD27 -> 5) LAND | H21: =iCountryComp!AE27 -> 73.1 | I21: =iCountryComp!AF27 -> 13 | K21: =iCountryComp!AG27 -> 76.1 | L21: =iCountryComp!AH27 -> 10 | N21: =iCountryComp!AI27 -> 94.4 | O21: =iCountryComp!AJ27 -> 3 | Q21: =iCountryComp!AL27 -> 76.4 | R21: =iCountryComp!AM27 -> 9 | T21: =iCountryComp!AO27 -> 59.2 | U21: =iCountryComp!AP27 -> 15 | W21: =iCountryComp!AR27 -> 92.5 | X21: =iCountryComp!AS27 -> 5 | AB21: 59.2 | AC21: 94.4 | AE21: 5) LAND
C22: =iCountryComp!AB28 -> 2 | D22: =iCountryComp!AC28 -> 1 | F22: =iCountryComp!AD28 -> 6) LIVING RESOURCES | H22: =iCountryComp!AE28 -> 53.6 | I22: =iCountryComp!AF28 -> 14 | K22: =iCountryComp!AG28 -> 51.6 | L22: =iCountryComp!AH28 -> 16 | N22: =iCountryComp!AI28 -> 57.7 | O22: =iCountryComp!AJ28 -> 13 | Q22: =iCountryComp!AL28 -> 62.6 | R22: =iCountryComp!AM28 -> 12 | T22: =iCountryComp!AO28 -> 67.3 | U22: =iCountryComp!AP28 -> 8 | W22: =iCountryComp!AR28 -> 80.4 | X22: =iCountryComp!AS28 -> 3 | AB22: 51.6 | AC22: 80.4 | AE22: 6) LIVING RESOURCES
C23: =iCountryComp!AB29 -> 0 | D23: =iCountryComp!AC29 -> 0 | F23: =iCountryComp!AD29 ->  | H23: =iCountryComp!AE29 ->  | I23: =iCountryComp!AF29 ->  | K23: =iCountryComp!AG29 ->  | L23: =iCountryComp!AH29 ->  | N23: =iCountryComp!AI29 ->  | O23: =iCountryComp!AJ29 ->  | Q23: =iCountryComp!AL29 ->  | R23: =iCountryComp!AM29 ->  | T23: =iCountryComp!AO29 ->  | U23: =iCountryComp!AP29 ->  | W23: =iCountryComp!AR29 ->  | X23: =iCountryComp!AS29 ->  | AB23: 0 | AC23: 0
C24: =iCountryComp!AB30 -> 0 | D24: =iCountryComp!AC30 -> 0 | F24: =iCountryComp!AD30 ->  | H24: =iCountryComp!AE30 ->  | I24: =iCountryComp!AF30 ->  | K24: =iCountryComp!AG30 ->  | L24: =iCountryComp!AH30 ->  | N24: =iCountryComp!AI30 ->  | O24: =iCountryComp!AJ30 ->  | Q24: =iCountryComp!AL30 ->  | R24: =iCountryComp!AM30 ->  | T24: =iCountryComp!AO30 ->  | U24: =iCountryComp!AP30 ->  | W24: =iCountryComp!AR30 ->  | X24: =iCountryComp!AS30 ->  | AB24: 0 | AC24: 0
C25: =iCountryComp!AB31 -> 0 | D25: =iCountryComp!AC31 -> 0 | F25: =iCountryComp!AD31 ->  | H25: =iCountryComp!AE31 ->  | I25: =iCountryComp!AF31 ->  | K25: =iCountryComp!AG31 ->  | L25: =iCountryComp!AH31 ->  | N25: =iCountryComp!AI31 ->  | O25: =iCountryComp!AJ31 ->  | Q25: =iCountryComp!AL31 ->  | R25: =iCountryComp!AM31 ->  | T25: =iCountryComp!AO31 ->  | U25: =iCountryComp!AP31 ->  | W25: =iCountryComp!AR31 ->  | X25: =iCountryComp!AS31 ->  | AB25: 0 | AC25: 0
C26: =iCountryComp!AB32 -> 0 | D26: =iCountryComp!AC32 -> 0 | F26: =iCountryComp!AD32 ->  | H26: =iCountryComp!AE32 ->  | I26: =iCountryComp!AF32 ->  | K26: =iCountryComp!AG32 ->  | L26: =iCountryComp!AH32 ->  | N26: =iCountryComp!AI32 ->  | O26: =iCountryComp!AJ32 ->  | Q26: =iCountryComp!AL32 ->  | R26: =iCountryComp!AM32 ->  | T26: =iCountryComp!AO32 ->  | U26: =iCountryComp!AP32 ->  | W26: =iCountryComp!AR32 ->  | X26: =iCountryComp!AS32 ->  | AB26: 0 | AC26: 0
C27: =iCountryComp!AB33 -> 0 | D27: =iCountryComp!AC33 -> 0 | F27: =iCountryComp!AD33 ->  | H27: =iCountryComp!AE33 ->  | I27: =iCountryComp!AF33 ->  | K27: =iCountryComp!AG33 ->  | L27: =iCountryComp!AH33 ->  | N27: =iCountryComp!AI33 ->  | O27: =iCountryComp!AJ33 ->  | Q27: =iCountryComp!AL33 ->  | R27: =iCountryComp!AM33 ->  | T27: =iCountryComp!AO33 ->  | U27: =iCountryComp!AP33 ->  | W27: =iCountryComp!AR33 ->  | X27: =iCountryComp!AS33 ->  | AB27: 0 | AC27: 0
C28: =iCountryComp!AB34 -> 0 | D28: =iCountryComp!AC34 -> 0 | F28: =iCountryComp!AD34 ->  | H28: =iCountryComp!AE34 ->  | I28: =iCountryComp!AF34 ->  | K28: =iCountryComp!AG34 ->  | L28: =iCountryComp!AH34 ->  | N28: =iCountryComp!AI34 ->  | O28: =iCountryComp!AJ34 ->  | Q28: =iCountryComp!AL34 ->  | R28: =iCountryComp!AM34 ->  | T28: =iCountryComp!AO34 ->  | U28: =iCountryComp!AP34 ->  | W28: =iCountryComp!AR34 ->  | X28: =iCountryComp!AS34 ->  | AB28: 0 | AC28: 0
C29: =iCountryComp!AB35 -> 0 | D29: =iCountryComp!AC35 -> 0 | F29: =iCountryComp!AD35 ->  | H29: =iCountryComp!AE35 ->  | I29: =iCountryComp!AF35 ->  | K29: =iCountryComp!AG35 ->  | L29: =iCountryComp!AH35 ->  | N29: =iCountryComp!AI35 ->  | O29: =iCountryComp!AJ35 ->  | Q29: =iCountryComp!AL35 ->  | R29: =iCountryComp!AM35 ->  | T29: =iCountryComp!AO35 ->  | U29: =iCountryComp!AP35 ->  | W29: =iCountryComp!AR35 ->  | X29: =iCountryComp!AS35 ->  | AB29: 0 | AC29: 0
C30: =iCountryComp!AB36 -> 0 | D30: =iCountryComp!AC36 -> 0 | F30: =iCountryComp!AD36 ->  | H30: =iCountryComp!AE36 ->  | I30: =iCountryComp!AF36 ->  | K30: =iCountryComp!AG36 ->  | L30: =iCountryComp!AH36 ->  | N30: =iCountryComp!AI36 ->  | O30: =iCountryComp!AJ36 ->  | Q30: =iCountryComp!AL36 ->  | R30: =iCountryComp!AM36 ->  | T30: =iCountryComp!AO36 ->  | U30: =iCountryComp!AP36 ->  | W30: =iCountryComp!AR36 ->  | X30: =iCountryComp!AS36 ->  | AB30: 0 | AC30: 0
C31: =iCountryComp!AB37 -> 0 | D31: =iCountryComp!AC37 -> 0 | F31: =iCountryComp!AD37 ->  | H31: =iCountryComp!AE37 ->  | I31: =iCountryComp!AF37 ->  | K31: =iCountryComp!AG37 ->  | L31: =iCountryComp!AH37 ->  | N31: =iCountryComp!AI37 ->  | O31: =iCountryComp!AJ37 ->  | Q31: =iCountryComp!AL37 ->  | R31: =iCountryComp!AM37 ->  | T31: =iCountryComp!AO37 ->  | U31: =iCountryComp!AP37 ->  | W31: =iCountryComp!AR37 ->  | X31: =iCountryComp!AS37 ->  | AB31: 0 | AC31: 0
C32: =iCountryComp!AB38 -> 0 | D32: =iCountryComp!AC38 -> 0 | F32: =iCountryComp!AD38 ->  | H32: =iCountryComp!AE38 ->  | I32: =iCountryComp!AF38 ->  | K32: =iCountryComp!AG38 ->  | L32: =iCountryComp!AH38 ->  | N32: =iCountryComp!AI38 ->  | O32: =iCountryComp!AJ38 ->  | Q32: =iCountryComp!AL38 ->  | R32: =iCountryComp!AM38 ->  | T32: =iCountryComp!AO38 ->  | U32: =iCountryComp!AP38 ->  | W32: =iCountryComp!AR38 ->  | X32: =iCountryComp!AS38 ->  | AB32: 0 | AC32: 0
C33: =iCountryComp!AB39 -> 0 | D33: =iCountryComp!AC39 -> 0 | F33: =iCountryComp!AD39 ->  | H33: =iCountryComp!AE39 ->  | I33: =iCountryComp!AF39 ->  | K33: =iCountryComp!AG39 ->  | L33: =iCountryComp!AH39 ->  | N33: =iCountryComp!AI39 ->  | O33: =iCountryComp!AJ39 ->  | Q33: =iCountryComp!AL39 ->  | R33: =iCountryComp!AM39 ->  | T33: =iCountryComp!AO39 ->  | U33: =iCountryComp!AP39 ->  | W33: =iCountryComp!AR39 ->  | X33: =iCountryComp!AS39 ->  | AB33: 0 | AC33: 0
C34: =iCountryComp!AB40 -> 0 | D34: =iCountryComp!AC40 -> 0 | F34: =iCountryComp!AD40 ->  | H34: =iCountryComp!AE40 ->  | I34: =iCountryComp!AF40 ->  | K34: =iCountryComp!AG40 ->  | L34: =iCountryComp!AH40 ->  | N34: =iCountryComp!AI40 ->  | O34: =iCountryComp!AJ40 ->  | Q34: =iCountryComp!AL40 ->  | R34: =iCountryComp!AM40 ->  | T34: =iCountryComp!AO40 ->  | U34: =iCountryComp!AP40 ->  | W34: =iCountryComp!AR40 ->  | X34: =iCountryComp!AS40 ->  | AB34: 0 | AC34: 0
C35: =iCountryComp!AB41 -> 0 | D35: =iCountryComp!AC41 -> 0 | F35: =iCountryComp!AD41 ->  | H35: =iCountryComp!AE41 ->  | I35: =iCountryComp!AF41 ->  | K35: =iCountryComp!AG41 ->  | L35: =iCountryComp!AH41 ->  | N35: =iCountryComp!AI41 ->  | O35: =iCountryComp!AJ41 ->  | Q35: =iCountryComp!AL41 ->  | R35: =iCountryComp!AM41 ->  | T35: =iCountryComp!AO41 ->  | U35: =iCountryComp!AP41 ->  | W35: =iCountryComp!AR41 ->  | X35: =iCountryComp!AS41 ->  | AB35: 0 | AC35: 0
C36: =iCountryComp!AB42 -> 0 | D36: =iCountryComp!AC42 -> 0 | F36: =iCountryComp!AD42 ->  | H36: =iCountryComp!AE42 ->  | I36: =iCountryComp!AF42 ->  | K36: =iCountryComp!AG42 ->  | L36: =iCountryComp!AH42 ->  | N36: =iCountryComp!AI42 ->  | O36: =iCountryComp!AJ42 ->  | Q36: =iCountryComp!AL42 ->  | R36: =iCountryComp!AM42 ->  | T36: =iCountryComp!AO42 ->  | U36: =iCountryComp!AP42 ->  | W36: =iCountryComp!AR42 ->  | X36: =iCountryComp!AS42 ->  | AB36: 0 | AC36: 0
C37: =iCountryComp!AB43 -> 0 | D37: =iCountryComp!AC43 -> 0 | F37: =iCountryComp!AD43 ->  | H37: =iCountryComp!AE43 ->  | I37: =iCountryComp!AF43 ->  | K37: =iCountryComp!AG43 ->  | L37: =iCountryComp!AH43 ->  | N37: =iCountryComp!AI43 ->  | O37: =iCountryComp!AJ43 ->  | Q37: =iCountryComp!AL43 ->  | R37: =iCountryComp!AM43 ->  | T37: =iCountryComp!AO43 ->  | U37: =iCountryComp!AP43 ->  | W37: =iCountryComp!AR43 ->  | X37: =iCountryComp!AS43 ->  | AB37: 0 | AC37: 0
C38: =iCountryComp!AB44 -> 0 | D38: =iCountryComp!AC44 -> 0 | F38: =iCountryComp!AD44 ->  | H38: =iCountryComp!AE44 ->  | I38: =iCountryComp!AF44 ->  | K38: =iCountryComp!AG44 ->  | L38: =iCountryComp!AH44 ->  | N38: =iCountryComp!AI44 ->  | O38: =iCountryComp!AJ44 ->  | Q38: =iCountryComp!AL44 ->  | R38: =iCountryComp!AM44 ->  | T38: =iCountryComp!AO44 ->  | U38: =iCountryComp!AP44 ->  | W38: =iCountryComp!AR44 ->  | X38: =iCountryComp!AS44 ->  | AB38: 0 | AC38: 0
C39: =iCountryComp!AB45 -> 0 | D39: =iCountryComp!AC45 -> 0 | F39: =iCountryComp!AD45 ->  | H39: =iCountryComp!AE45 ->  | I39: =iCountryComp!AF45 ->  | K39: =iCountryComp!AG45 ->  | L39: =iCountryComp!AH45 ->  | N39: =iCountryComp!AI45 ->  | O39: =iCountryComp!AJ45 ->  | Q39: =iCountryComp!AL45 ->  | R39: =iCountryComp!AM45 ->  | T39: =iCountryComp!AO45 ->  | U39: =iCountryComp!AP45 ->  | W39: =iCountryComp!AR45 ->  | X39: =iCountryComp!AS45 ->  | AB39: 0 | AC39: 0
C40: =iCountryComp!AB46 -> 0 | D40: =iCountryComp!AC46 -> 0 | F40: =iCountryComp!AD46 ->  | H40: =iCountryComp!AE46 ->  | I40: =iCountryComp!AF46 ->  | K40: =iCountryComp!AG46 ->  | L40: =iCountryComp!AH46 ->  | N40: =iCountryComp!AI46 ->  | O40: =iCountryComp!AJ46 ->  | Q40: =iCountryComp!AL46 ->  | R40: =iCountryComp!AM46 ->  | T40: =iCountryComp!AO46 ->  | U40: =iCountryComp!AP46 ->  | W40: =iCountryComp!AR46 ->  | X40: =iCountryComp!AS46 ->  | AB40: 0 | AC40: 0
C41: =iCountryComp!AB47 -> 0 | D41: =iCountryComp!AC47 -> 0 | F41: =iCountryComp!AD47 ->  | H41: =iCountryComp!AE47 ->  | I41: =iCountryComp!AF47 ->  | K41: =iCountryComp!AG47 ->  | L41: =iCountryComp!AH47 ->  | N41: =iCountryComp!AI47 ->  | O41: =iCountryComp!AJ47 ->  | Q41: =iCountryComp!AL47 ->  | R41: =iCountryComp!AM47 ->  | T41: =iCountryComp!AO47 ->  | U41: =iCountryComp!AP47 ->  | W41: =iCountryComp!AR47 ->  | X41: =iCountryComp!AS47 ->  | AB41: 0 | AC41: 0
C42: =iCountryComp!AB48 -> 0 | D42: =iCountryComp!AC48 -> 0 | F42: =iCountryComp!AD48 ->  | H42: =iCountryComp!AE48 ->  | I42: =iCountryComp!AF48 ->  | K42: =iCountryComp!AG48 ->  | L42: =iCountryComp!AH48 ->  | N42: =iCountryComp!AI48 ->  | O42: =iCountryComp!AJ48 ->  | Q42: =iCountryComp!AL48 ->  | R42: =iCountryComp!AM48 ->  | T42: =iCountryComp!AO48 ->  | U42: =iCountryComp!AP48 ->  | W42: =iCountryComp!AR48 ->  | X42: =iCountryComp!AS48 ->  | AB42: 0 | AC42: 0
C43: =iCountryComp!AB49 -> 0 | D43: =iCountryComp!AC49 -> 0 | F43: =iCountryComp!AD49 ->  | H43: =iCountryComp!AE49 ->  | I43: =iCountryComp!AF49 ->  | K43: =iCountryComp!AG49 ->  | L43: =iCountryComp!AH49 ->  | N43: =iCountryComp!AI49 ->  | O43: =iCountryComp!AJ49 ->  | Q43: =iCountryComp!AL49 ->  | R43: =iCountryComp!AM49 ->  | T43: =iCountryComp!AO49 ->  | U43: =iCountryComp!AP49 ->  | W43: =iCountryComp!AR49 ->  | X43: =iCountryComp!AS49 ->  | AB43: 0 | AC43: 0
C44: =iCountryComp!AB50 -> 0 | D44: =iCountryComp!AC50 -> 0 | F44: =iCountryComp!AD50 ->  | H44: =iCountryComp!AE50 ->  | I44: =iCountryComp!AF50 ->  | K44: =iCountryComp!AG50 ->  | L44: =iCountryComp!AH50 ->  | N44: =iCountryComp!AI50 ->  | O44: =iCountryComp!AJ50 ->  | Q44: =iCountryComp!AL50 ->  | R44: =iCountryComp!AM50 ->  | T44: =iCountryComp!AO50 ->  | U44: =iCountryComp!AP50 ->  | W44: =iCountryComp!AR50 ->  | X44: =iCountryComp!AS50 ->  | AB44: 0 | AC44: 0
D45: 0

Sheet YearCompare
A1: =uxb_works!B92 -> Coastal Governance Index: 2019 | BA1: 1 | BB1: 5 | BC1: 1 | BD1: 6
D6: =uxb_works!$C$5 -> The active weight profile has been changed from its default setting
D11: =iIndiRank!$G$2 -> OVERVIEW
D12: =iIndiRank!$F$2 -> 
F14: Decline since 2015 | G14: Delta | K14: No Change since 2015 | N14: Improvement since 2015 | O14: Delta
E15: =iChanges!V6 -> 1 | F15: =iChanges!W6 -> Russia | G15: =iChanges!X6 -> -2.6 | I15: =iChanges!AA6 -> 1 | K15: =iChanges!AB6 -> Spain | M15: =iChanges!AF6 -> 1 | N15: =iChanges!AG6 -> Mexico | O15: =iChanges!AH6 -> 16.3
E16: =iChanges!V7 -> 0 | F16: =iChanges!W7 ->  | G16: =iChanges!X7 ->  | I16: =iChanges!AA7 -> 0 | K16: =iChanges!AB7 ->  | M16: =iChanges!AF7 -> 1 | N16: =iChanges!AG7 -> South Korea | O16: =iChanges!AH7 -> 11.7
E17: =iChanges!V8 -> 0 | F17: =iChanges!W8 ->  | G17: =iChanges!X8 ->  | I17: =iChanges!AA8 -> 0 | K17: =iChanges!AB8 ->  | M17: =iChanges!AF8 -> 1 | N17: =iChanges!AG8 -> Indonesia | O17: =iChanges!AH8 -> 11.4
E18: =iChanges!V9 -> 0 | F18: =iChanges!W9 ->  | G18: =iChanges!X9 ->  | I18: =iChanges!AA9 -> 0 | K18: =iChanges!AB9 ->  | M18: =iChanges!AF9 -> 1 | N18: =iChanges!AG9 -> Chile | O18: =iChanges!AH9 -> 9.9
E19: =iChanges!V10 -> 0 | F19: =iChanges!W10 ->  | G19: =iChanges!X10 ->  | I19: =iChanges!AA10 -> 0 | K19: =iChanges!AB10 ->  | M19: =iChanges!AF10 -> 1 | N19: =iChanges!AG10 -> Philippines | O19: =iChanges!AH10 -> 9.7
E20: =iChanges!V11 -> 0 | F20: =iChanges!W11 ->  | G20: =iChanges!X11 ->  | I20: =iChanges!AA11 -> 0 | K20: =iChanges!AB11 ->  | M20: =iChanges!AF11 -> 1 | N20: =iChanges!AG11 -> China | O20: =iChanges!AH11 -> 7.8
E21: =iChanges!V12 -> 0 | F21: =iChanges!W12 ->  | G21: =iChanges!X12 ->  | I21: =iChanges!AA12 -> 0 | K21: =iChanges!AB12 ->  | M21: =iChanges!AF12 -> 1 | N21: =iChanges!AG12 -> Peru | O21: =iChanges!AH12 -> 7.6
E22: =iChanges!V13 -> 0 | F22: =iChanges!W13 ->  | G22: =iChanges!X13 ->  | I22: =iChanges!AA13 -> 0 | K22: =iChanges!AB13 ->  | M22: =iChanges!AF13 -> 1 | N22: =iChanges!AG13 -> Japan | O22: =iChanges!AH13 -> 6.9
E23: =iChanges!V14 -> 0 | F23: =iChanges!W14 ->  | G23: =iChanges!X14 ->  | I23: =iChanges!AA14 -> 0 | K23: =iChanges!AB14 ->  | M23: =iChanges!AF14 -> 1 | N23: =iChanges!AG14 -> France | O23: =iChanges!AH14 -> 6.6
E24: =iChanges!V15 -> 0 | F24: =iChanges!W15 ->  | G24: =iChanges!X15 ->  | I24: =iChanges!AA15 -> 0 | K24: =iChanges!AB15 ->  | M24: =iChanges!AF15 -> 1 | N24: =iChanges!AG15 -> South Africa | O24: =iChanges!AH15 -> 5.1
E25: =iChanges!V16 -> 0 | F25: =iChanges!W16 ->  | G25: =iChanges!X16 ->  | I25: =iChanges!AA16 -> 0 | K25: =iChanges!AB16 ->  | M25: =iChanges!AF16 -> 1 | N25: =iChanges!AG16 -> United States | O25: =iChanges!AH16 -> 4.4
E26: =iChanges!V17 -> 0 | F26: =iChanges!W17 ->  | G26: =iChanges!X17 ->  | I26: =iChanges!AA17 -> 0 | K26: =iChanges!AB17 ->  | M26: =iChanges!AF17 -> 1 | N26: =iChanges!AG17 -> Vietnam | O26: =iChanges!AH17 -> 3.7
E27: =iChanges!V18 -> 0 | F27: =iChanges!W18 ->  | G27: =iChanges!X18 ->  | I27: =iChanges!AA18 -> 0 | K27: =iChanges!AB18 ->  | M27: =iChanges!AF18 -> 1 | N27: =iChanges!AG18 -> Norway | O27: =iChanges!AH18 -> 3.6
E28: =iChanges!V19 -> 0 | F28: =iChanges!W19 ->  | G28: =iChanges!X19 ->  | I28: =iChanges!AA19 -> 0 | K28: =iChanges!AB19 ->  | M28: =iChanges!AF19 -> 1 | N28: =iChanges!AG19 -> India | O28: =iChanges!AH19 -> 2.5
E29: =iChanges!V20 -> 0 | F29: =iChanges!W20 ->  | G29: =iChanges!X20 ->  | I29: =iChanges!AA20 -> 0 | K29: =iChanges!AB20 ->  | M29: =iChanges!AF20 -> 1 | N29: =iChanges!AG20 -> Brazil | O29: =iChanges!AH20 -> 2.4
E30: =iChanges!V21 -> 0 | F30: =iChanges!W21 ->  | G30: =iChanges!X21 ->  | I30: =iChanges!AA21 -> 0 | K30: =iChanges!AB21 ->  | M30: =iChanges!AF21 -> 1 | N30: =iChanges!AG21 -> Nigeria | O30: =iChanges!AH21 -> 1.2
E31: =iChanges!V22 -> 0 | F31: =iChanges!W22 ->  | G31: =iChanges!X22 ->  | I31: =iChanges!AA22 -> 0 | K31: =iChanges!AB22 ->  | M31: =iChanges!AF22 -> 1 | N31: =iChanges!AG22 -> Canada | O31: =iChanges!AH22 -> 0.4
E32: =iChanges!V23 -> 0 | F32: =iChanges!W23 ->  | G32: =iChanges!X23 ->  | I32: =iChanges!AA23 -> 0 | K32: =iChanges!AB23 ->  | M32: =iChanges!AF23 -> 1 | N32: =iChanges!AG23 -> New Zealand | O32: =iChanges!AH23 -> 0.2
E33: =iChanges!V24 -> 0 | F33: =iChanges!W24 ->  | G33: =iChanges!X24 ->  | I33: =iChanges!AA24 -> 0 | K33: =iChanges!AB24 ->  | M33: =iChanges!AF24 -> 0 | N33: =iChanges!AG24 ->  | O33: =iChanges!AH24 -> 
E34: =iChanges!V25 -> 0 | F34: =iChanges!W25 ->  | G34: =iChanges!X25 ->  | I34: =iChanges!AA25 -> 0 | K34: =iChanges!AB25 ->  | M34: =iChanges!AF25 -> 0 | N34: =iChanges!AG25 ->  | O34: =iChanges!AH25 -> 

Sheet Correlations
A1: =uxb_works!B92 -> Coastal Governance Index: 2019 | BA1: 1 | BB1: 6
D6: =uxb_works!$C$5 -> The active weight profile has been changed from its default setting
H22: Compare
H23: =UPPER(iCorrel1!C6) -> OVERALL SCORE
H24: with *
F25: Most postive correlations | K25: Most negative correlations
E26: =MAX(G26,L26) -> 32 | G26: =MAX(COUNT(G27:G61),1) -> 32 | L26: =MAX(COUNT(L27:L61),1) -> 3
E27: =iCorrel1!AF8 -> 3 | F27: =TRIM(iCorrel1!AG8) -> 3) WATER QUALITY | G27: =iCorrel1!AH8 -> 0.88 | J27: =iCorrel1!AL8 -> 1 | K27: =TRIM(iCorrel1!AM8) -> 1.7) Adoption of the United Nations Convention on the Law of the Sea (UNCLOS) | L27: =iCorrel1!AN8 -> -0.11
E28: =iCorrel1!AF9 -> 3 | F28: =TRIM(iCorrel1!AG9) -> 2.1) Ease of doing business | G28: =iCorrel1!AH9 -> 0.87 | J28: =iCorrel1!AL9 -> 1 | K28: =TRIM(iCorrel1!AM9) -> 4.1) Permitting and licensing | L28: =iCorrel1!AN9 -> -0.06
E29: =iCorrel1!AF10 -> 3 | F29: =TRIM(iCorrel1!AG10) -> 2) BUSINESS ENVIRONMENT FOR COASTAL ACTIVITIES | G29: =iCorrel1!AH10 -> 0.85 | J29: =iCorrel1!AL10 -> 1 | K29: =TRIM(iCorrel1!AM10) -> 4.2) Monitoring and enforcement | L29: =iCorrel1!AN10 -> -0.01
E30: =iCorrel1!AF11 -> 3 | F30: =TRIM(iCorrel1!AG11) -> 2.2) Corruption perception | G30: =iCorrel1!AH11 -> 0.83 | J30: =iCorrel1!AL11 -> 0 | K30: =TRIM(iCorrel1!AM11) ->  | L30: =iCorrel1!AN11 -> 
E31: =iCorrel1!AF12 -> 3 | F31: =TRIM(iCorrel1!AG12) -> 1.1) Coastal management policy and strategy | G31: =iCorrel1!AH12 -> 0.81 | J31: =iCorrel1!AL12 -> 0 | K31: =TRIM(iCorrel1!AM12) ->  | L31: =iCorrel1!AN12 -> 
E32: =iCorrel1!AF13 -> 3 | F32: =TRIM(iCorrel1!AG13) -> 1) POLICY AND INSTITUTIONAL CAPACITY | G32: =iCorrel1!AH13 -> 0.8 | J32: =iCorrel1!AL13 -> 0 | K32: =TRIM(iCorrel1!AM13) ->  | L32: =iCorrel1!AN13 -> 
E33: =iCorrel1!AF14 -> 3 | F33: =TRIM(iCorrel1!AG14) -> 2.3) Effectiveness of dispute resolution mechanisms | G33: =iCorrel1!AH14 -> 0.8 | J33: =iCorrel1!AL14 -> 0 | K33: =TRIM(iCorrel1!AM14) ->  | L33: =iCorrel1!AN14 -> 
E34: =iCorrel1!AF15 -> 2 | F34: =TRIM(iCorrel1!AG15) -> BG 4) Democracy Index (2018) | G34: =iCorrel1!AH15 -> 0.79 | J34: =iCorrel1!AL15 -> 0 | K34: =TRIM(iCorrel1!AM15) ->  | L34: =iCorrel1!AN15 -> 
E35: =iCorrel1!AF16 -> 2 | F35: =TRIM(iCorrel1!AG16) -> 3.2) Regulatory standards for water pollution | G35: =iCorrel1!AH16 -> 0.77 | J35: =iCorrel1!AL16 -> 0 | K35: =TRIM(iCorrel1!AM16) ->  | L35: =iCorrel1!AN16 -> 
E36: =iCorrel1!AF17 -> 2 | F36: =TRIM(iCorrel1!AG17) -> 6) LIVING RESOURCES | G36: =iCorrel1!AH17 -> 0.76 | J36: =iCorrel1!AL17 -> 0 | K36: =TRIM(iCorrel1!AM17) ->  | L36: =iCorrel1!AN17 -> 
E37: =iCorrel1!AF18 -> 2 | F37: =TRIM(iCorrel1!AG18) -> 6.3) Ballast water treatment | G37: =iCorrel1!AH18 -> 0.75 | J37: =iCorrel1!AL18 -> 0 | K37: =TRIM(iCorrel1!AM18) ->  | L37: =iCorrel1!AN18 -> 
E38: =iCorrel1!AF19 -> 2 | F38: =TRIM(iCorrel1!AG19) -> 5) LAND | G38: =iCorrel1!AH19 -> 0.74 | J38: =iCorrel1!AL19 -> 0 | K38: =TRIM(iCorrel1!AM19) ->  | L38: =iCorrel1!AN19 -> 
E39: =iCorrel1!AF20 -> 2 | F39: =TRIM(iCorrel1!AG20) -> 5.3) Government commitment to sustainability in coastal tourism development | G39: =iCorrel1!AH20 -> 0.73 | J39: =iCorrel1!AL20 -> 0 | K39: =TRIM(iCorrel1!AM20) ->  | L39: =iCorrel1!AN20 -> 
E40: =iCorrel1!AF21 -> 2 | F40: =TRIM(iCorrel1!AG21) -> 3.3) Monitoring and enforcement | G40: =iCorrel1!AH21 -> 0.72 | J40: =iCorrel1!AL21 -> 0 | K40: =TRIM(iCorrel1!AM21) ->  | L40: =iCorrel1!AN21 -> 
E41: =iCorrel1!AF22 -> 2 | F41: =TRIM(iCorrel1!AG22) -> BG 3) Human Development Index (2018) | G41: =iCorrel1!AH22 -> 0.72 | J41: =iCorrel1!AL22 -> 0 | K41: =TRIM(iCorrel1!AM22) ->  | L41: =iCorrel1!AN22 -> 
E42: =iCorrel1!AF23 -> 2 | F42: =TRIM(iCorrel1!AG23) -> 2.4) Quality of coastal infrastructure | G42: =iCorrel1!AH23 -> 0.7 | J42: =iCorrel1!AL23 -> 0 | K42: =TRIM(iCorrel1!AM23) ->  | L42: =iCorrel1!AN23 -> 
E43: =iCorrel1!AF24 -> 1 | F43: =TRIM(iCorrel1!AG24) -> BG 1) GDP per head (PPP, $, 2018) | G43: =iCorrel1!AH24 -> 0.67 | J43: =iCorrel1!AL24 -> 0 | K43: =TRIM(iCorrel1!AM24) ->  | L43: =iCorrel1!AN24 -> 
E44: =iCorrel1!AF25 -> 1 | F44: =TRIM(iCorrel1!AG25) -> 1.2) Presence of established institution(s) | G44: =iCorrel1!AH25 -> 0.65 | J44: =iCorrel1!AL25 -> 0 | K44: =TRIM(iCorrel1!AM25) ->  | L44: =iCorrel1!AN25 -> 
E45: =iCorrel1!AF26 -> 1 | F45: =TRIM(iCorrel1!AG26) -> 1.5) Stakeholder engagement | G45: =iCorrel1!AH26 -> 0.65 | J45: =iCorrel1!AL26 -> 0 | K45: =TRIM(iCorrel1!AM26) ->  | L45: =iCorrel1!AN26 -> 
E46: =iCorrel1!AF27 -> 1 | F46: =TRIM(iCorrel1!AG27) -> 4.3) Risk mitigation for the mineral and oil and gas industries | G46: =iCorrel1!AH27 -> 0.57 | J46: =iCorrel1!AL27 -> 0 | K46: =TRIM(iCorrel1!AM27) ->  | L46: =iCorrel1!AN27 -> 
E47: =iCorrel1!AF28 -> 1 | F47: =TRIM(iCorrel1!AG28) -> 5.1) Prevalence of coastal protected areas | G47: =iCorrel1!AH28 -> 0.55 | J47: =iCorrel1!AL28 -> 0 | K47: =TRIM(iCorrel1!AM28) ->  | L47: =iCorrel1!AN28 -> 
E48: =iCorrel1!AF29 -> 1 | F48: =TRIM(iCorrel1!AG29) -> BG 2) Environmental Performance Index scores (2018) | G48: =iCorrel1!AH29 -> 0.53 | J48: =iCorrel1!AL29 -> 0 | K48: =TRIM(iCorrel1!AM29) ->  | L48: =iCorrel1!AN29 -> 
E49: =iCorrel1!AF30 -> 1 | F49: =TRIM(iCorrel1!AG30) -> 1.4) Maritime spatial planning | G49: =iCorrel1!AH30 -> 0.49 | J49: =iCorrel1!AL30 -> 0 | K49: =TRIM(iCorrel1!AM30) ->  | L49: =iCorrel1!AN30 -> 
E50: =iCorrel1!AF31 -> 1 | F50: =TRIM(iCorrel1!AG31) -> 5.4) Natural disaster risk mitigation | G50: =iCorrel1!AH31 -> 0.42 | J50: =iCorrel1!AL31 -> 0 | K50: =TRIM(iCorrel1!AM31) ->  | L50: =iCorrel1!AN31 -> 
E51: =iCorrel1!AF32 -> 1 | F51: =TRIM(iCorrel1!AG32) -> 4) MINERALS, ENERGY AND SHIPPING | G51: =iCorrel1!AH32 -> 0.39 | J51: =iCorrel1!AL32 -> 0 | K51: =TRIM(iCorrel1!AM32) ->  | L51: =iCorrel1!AN32 -> 
E52: =iCorrel1!AF33 -> 1 | F52: =TRIM(iCorrel1!AG33) -> 5.2) Environmental impact of coastal development | G52: =iCorrel1!AH33 -> 0.36 | J52: =iCorrel1!AL33 -> 0 | K52: =TRIM(iCorrel1!AM33) ->  | L52: =iCorrel1!AN33 -> 
E53: =iCorrel1!AF34 -> 1 | F53: =TRIM(iCorrel1!AG34) -> 6.1) Fisheries governance and management effectiveness | G53: =iCorrel1!AH34 -> 0.35 | J53: =iCorrel1!AL34 -> 0 | K53: =TRIM(iCorrel1!AM34) ->  | L53: =iCorrel1!AN34 -> 
E54: =iCorrel1!AF35 -> 1 | F54: =TRIM(iCorrel1!AG35) -> 6.2) Protection for marine/coastal species | G54: =iCorrel1!AH35 -> 0.35 | J54: =iCorrel1!AL35 -> 0 | K54: =TRIM(iCorrel1!AM35) ->  | L54: =iCorrel1!AN35 -> 
E55: =iCorrel1!AF36 -> 1 | F55: =TRIM(iCorrel1!AG36) -> 6.4) Transparency in living resources management | G55: =iCorrel1!AH36 -> 0.35 | J55: =iCorrel1!AL36 -> 0 | K55: =TRIM(iCorrel1!AM36) ->  | L55: =iCorrel1!AN36 -> 
E56: =iCorrel1!AF37 -> 1 | F56: =TRIM(iCorrel1!AG37) -> 4.4) Shipping/maritime pollution | G56: =iCorrel1!AH37 -> 0.26 | J56: =iCorrel1!AL37 -> 0 | K56: =TRIM(iCorrel1!AM37) ->  | L56: =iCorrel1!AN37 -> 
E57: =iCorrel1!AF38 -> 1 | F57: =TRIM(iCorrel1!AG38) -> 1.3) National strategies to address climate change | G57: =iCorrel1!AH38 -> 0.22 | J57: =iCorrel1!AL38 -> 0 | K57: =TRIM(iCorrel1!AM38) ->  | L57: =iCorrel1!AN38 -> 
E58: =iCorrel1!AF39 -> 1 | F58: =TRIM(iCorrel1!AG39) -> 1.6) Extractive industries transparency | G58: =iCorrel1!AH39 -> 0.17 | J58: =iCorrel1!AL39 -> 0 | K58: =TRIM(iCorrel1!AM39) ->  | L58: =iCorrel1!AN39 -> 
E59: =iCorrel1!AF40 -> 0 | F59: =TRIM(iCorrel1!AG40) ->  | G59: =iCorrel1!AH40 ->  | J59: =iCorrel1!AL40 -> 0 | K59: =TRIM(iCorrel1!AM40) ->  | L59: =iCorrel1!AN40 -> 
E60: =iCorrel1!AF41 -> 0 | F60: =TRIM(iCorrel1!AG41) ->  | G60: =iCorrel1!AH41 ->  | J60: =iCorrel1!AL41 -> 0 | K60: =TRIM(iCorrel1!AM41) ->  | L60: =iCorrel1!AN41 -> 
E61: =iCorrel1!AF42 -> 0 | F61: =TRIM(iCorrel1!AG42) ->  | G61: =iCorrel1!AH42 ->  | J61: =iCorrel1!AL42 -> 0 | K61: =TRIM(iCorrel1!AM42) ->  | L61: =iCorrel1!AN42 -> 
E62: =iCorrel1!AF43 -> 0 | F62: =TRIM(iCorrel1!AG43) ->  | G62: =iCorrel1!AH43 ->  | J62: =iCorrel1!AL43 -> 0 | K62: =TRIM(iCorrel1!AM43) ->  | L62: =iCorrel1!AN43 -> 
E63: =iCorrel1!AF44 -> 0 | F63: =TRIM(iCorrel1!AG44) ->  | G63: =iCorrel1!AH44 ->  | J63: =iCorrel1!AL44 -> 0 | K63: =TRIM(iCorrel1!AM44) ->  | L63: =iCorrel1!AN44 -> 

Sheet Scatter
A1: =uxb_works!B92 -> Coastal Governance Index: 2019 | BA1: 1 | BB1: 7
B6: =uxb_works!$C$5 -> The active weight profile has been changed from its default setting
B11: =iScatter!G1 -> OVERVIEW | H11: =iScatter!G2 -> BG 1) SPENDING
B12: =IF(iScatter!B1=1,"",iScatter!F1) ->  | H12: =IF(iScatter!B2=1,"",iScatter!F2) -> BG 1) GDP per head (PPP, $, 2018)
S22: CORRELATION(X,Y)
R23: =IF(ISERROR(iScatter!B14),"n/a",iScatter!B14) -> 0.6753374632

Sheet Scores
N1: =uxb_works!$B$92 -> Coastal Governance Index: 2019 | Z1: =uxb_works!$B$47 -> 1 | AM1: =uxb_works!B47 -> 1 | AS1: 1 | AT1: 8 | BA1: 1 | BB1: 8
P4: 0 | Q4: =1+P4 -> 1 | R4: =1+Q4 -> 2 | S4: 3 | T4: 4 | U4: 5 | V4: 6 | W4: 7 | X4: 8 | Y4: 9 | Z4: 10 | AA4: 11 | AB4: 12 | AC4: 13 | AD4: 14 | AE4: 15 | AF4: 16 | AG4: 17 | AH4: 18 | AI4: 19 | AJ4: 20
C6: =iWeights1!#REF! ->  | N6: =uxb_works!C5 -> The active weight profile has been changed from its default setting
B10: =tblIndicators!A1 -> line | F10: =tblIndicators!G1 -> depth | H10: =tblIndicators!AC1 -> Format | K10: =SUM(K11:K95) -> 85 | N10: Indicators | O10: =CHOOSE(uxb_works!$B$47,"Unit","Weight") -> Unit | P10: Source | Q10: =iScores!P5 -> Brazil | R10: =iScores!Q5 -> Canada | S10: =iScores!R5 -> Chile | T10: =iScores!S5 -> China | U10: =iScores!T5 -> France | V10: =iScores!U5 -> India | W10: =iScores!V5 -> Indonesia | X10: =iScores!W5 -> Japan | Y10: =iScores!X5 -> Mexico | Z10: =iScores!Y5 -> New Zealand | AA10: =iScores!Z5 -> Nigeria | AB10: =iScores!AA5 -> Norway | AC10: =iScores!AB5 -> Peru | AD10: =iScores!AC5 -> Philippines | AE10: =iScores!AD5 -> Russia | AF10: =iScores!AE5 -> South Africa | AG10: =iScores!AF5 -> South Korea | AH10: =iScores!AG5 -> Spain | AI10: =iScores!AH5 -> United States | AJ10: =iScores!AI5 -> Vietnam
B11: =tblIndicators!A2 -> 1 | F11: 5 | H11: =tblIndicators!AC2 -> #,##0.0 | K11: =IF(uxb_works!$B$46>=L11,1,0) -> 1 | L11: =tblIndicators!G2 -> 0 | N11: =iScores!N6 -> OVERALL SCORE | P11: =IF(tblIndicators!T2="","",IF(AND(uxb_works!$B$47=1,OR(F11=5,Scores!F11<=2)),"",tblIndicators!T2)) ->  | Q11: =CHOOSE(uxb_works!$B$47,IF(iData!K6="","-",TEXT(iData!K6,$H11)),INDEX(aScores,$B11,Q$4)) -> - | R11: =CHOOSE(uxb_works!$B$47,IF(iData!L6="","-",TEXT(iData!L6,$H11)),INDEX(aScores,$B11,R$4)) -> - | S11: =CHOOSE(uxb_works!$B$47,IF(iData!M6="","-",TEXT(iData!M6,$H11)),INDEX(aScores,$B11,S$4)) -> - | T11: =CHOOSE(uxb_works!$B$47,IF(iData!N6="","-",TEXT(iData!N6,$H11)),INDEX(aScores,$B11,T$4)) -> - | U11: =CHOOSE(uxb_works!$B$47,IF(iData!O6="","-",TEXT(iData!O6,$H11)),INDEX(aScores,$B11,U$4)) -> - | V11: =CHOOSE(uxb_works!$B$47,IF(iData!P6="","-",TEXT(iData!P6,$H11)),INDEX(aScores,$B11,V$4)) -> - | W11: =CHOOSE(uxb_works!$B$47,IF(iData!Q6="","-",TEXT(iData!Q6,$H11)),INDEX(aScores,$B11,W$4)) -> - | X11: =CHOOSE(uxb_works!$B$47,IF(iData!R6="","-",TEXT(iData!R6,$H11)),INDEX(aScores,$B11,X$4)) -> - | Y11: =CHOOSE(uxb_works!$B$47,IF(iData!S6="","-",TEXT(iData!S6,$H11)),INDEX(aScores,$B11,Y$4)) -> - | Z11: =CHOOSE(uxb_works!$B$47,IF(iData!T6="","-",TEXT(iData!T6,$H11)),INDEX(aScores,$B11,Z$4)) -> - | AA11: =CHOOSE(uxb_works!$B$47,IF(iData!U6="","-",TEXT(iData!U6,$H11)),INDEX(aScores,$B11,AA$4)) -> - | AB11: =CHOOSE(uxb_works!$B$47,IF(iData!V6="","-",TEXT(iData!V6,$H11)),INDEX(aScores,$B11,AB$4)) -> - | AC11: =CHOOSE(uxb_works!$B$47,IF(iData!W6="","-",TEXT(iData!W6,$H11)),INDEX(aScores,$B11,AC$4)) -> - | AD11: =CHOOSE(uxb_works!$B$47,IF(iData!X6="","-",TEXT(iData!X6,$H11)),INDEX(aScores,$B11,AD$4)) -> - | AE11: =CHOOSE(uxb_works!$B$47,IF(iData!Y6="","-",TEXT(iData!Y6,$H11)),INDEX(aScores,$B11,AE$4)) -> - | AF11: =CHOOSE(uxb_works!$B$47,IF(iData!Z6="","-",TEXT(iData!Z6,$H11)),INDEX(aScores,$B11,AF$4)) -> - | AG11: =CHOOSE(uxb_works!$B$47,IF(iData!AA6="","-",TEXT(iData!AA6,$H11)),INDEX(aScores,$B11,AG$4)) -> - | AH11: =CHOOSE(uxb_works!$B$47,IF(iData!AB6="","-",TEXT(iData!AB6,$H11)),INDEX(aScores,$B11,AH$4)) -> - | AI11: =CHOOSE(uxb_works!$B$47,IF(iData!AC6="","-",TEXT(iData!AC6,$H11)),INDEX(aScores,$B11,AI$4)) -> - | AJ11: =CHOOSE(uxb_works!$B$47,IF(iData!AD6="","-",TEXT(iData!AD6,$H11)),INDEX(aScores,$B11,AJ$4)) -> -
B12: =tblIndicators!A3 -> 2 | F12: =iScores!F7 -> 1 | H12: =tblIndicators!AC3 -> #,##0.0 | K12: =IF(uxb_works!$B$46>=L12,1,0) -> 1 | L12: =tblIndicators!G3 -> 1 | N12: =iScores!N7 -> 1) POLICY AND INSTITUTIONAL CAPACITY | O12: =CHOOSE(uxb_works!$B$47,iData!I7,iScores!O7) ->  | P12: =IF(tblIndicators!T3="","",IF(AND(uxb_works!$B$47=1,OR(F12=5,Scores!F12<=2)),"",tblIndicators!T3)) ->  | Q12: =CHOOSE(uxb_works!$B$47,IF(iData!K7="","-",TEXT(iData!K7,$H12)),INDEX(aScores,$B12,Q$4)) -> - | R12: =CHOOSE(uxb_works!$B$47,IF(iData!L7="","-",TEXT(iData!L7,$H12)),INDEX(aScores,$B12,R$4)) -> - | S12: =CHOOSE(uxb_works!$B$47,IF(iData!M7="","-",TEXT(iData!M7,$H12)),INDEX(aScores,$B12,S$4)) -> - | T12: =CHOOSE(uxb_works!$B$47,IF(iData!N7="","-",TEXT(iData!N7,$H12)),INDEX(aScores,$B12,T$4)) -> - | U12: =CHOOSE(uxb_works!$B$47,IF(iData!O7="","-",TEXT(iData!O7,$H12)),INDEX(aScores,$B12,U$4)) -> - | V12: =CHOOSE(uxb_works!$B$47,IF(iData!P7="","-",TEXT(iData!P7,$H12)),INDEX(aScores,$B12,V$4)) -> - | W12: =CHOOSE(uxb_works!$B$47,IF(iData!Q7="","-",TEXT(iData!Q7,$H12)),INDEX(aScores,$B12,W$4)) -> - | X12: =CHOOSE(uxb_works!$B$47,IF(iData!R7="","-",TEXT(iData!R7,$H12)),INDEX(aScores,$B12,X$4)) -> - | Y12: =CHOOSE(uxb_works!$B$47,IF(iData!S7="","-",TEXT(iData!S7,$H12)),INDEX(aScores,$B12,Y$4)) -> - | Z12: =CHOOSE(uxb_works!$B$47,IF(iData!T7="","-",TEXT(iData!T7,$H12)),INDEX(aScores,$B12,Z$4)) -> - | AA12: =CHOOSE(uxb_works!$B$47,IF(iData!U7="","-",TEXT(iData!U7,$H12)),INDEX(aScores,$B12,AA$4)) -> - | AB12: =CHOOSE(uxb_works!$B$47,IF(iData!V7="","-",TEXT(iData!V7,$H12)),INDEX(aScores,$B12,AB$4)) -> - | AC12: =CHOOSE(uxb_works!$B$47,IF(iData!W7="","-",TEXT(iData!W7,$H12)),INDEX(aScores,$B12,AC$4)) -> - | AD12: =CHOOSE(uxb_works!$B$47,IF(iData!X7="","-",TEXT(iData!X7,$H12)),INDEX(aScores,$B12,AD$4)) -> - | AE12: =CHOOSE(uxb_works!$B$47,IF(iData!Y7="","-",TEXT(iData!Y7,$H12)),INDEX(aScores,$B12,AE$4)) -> - | AF12: =CHOOSE(uxb_works!$B$47,IF(iData!Z7="","-",TEXT(iData!Z7,$H12)),INDEX(aScores,$B12,AF$4)) -> - | AG12: =CHOOSE(uxb_works!$B$47,IF(iData!AA7="","-",TEXT(iData!AA7,$H12)),INDEX(aScores,$B12,AG$4)) -> - | AH12: =CHOOSE(uxb_works!$B$47,IF(iData!AB7="","-",TEXT(iData!AB7,$H12)),INDEX(aScores,$B12,AH$4)) -> - | AI12: =CHOOSE(uxb_works!$B$47,IF(iData!AC7="","-",TEXT(iData!AC7,$H12)),INDEX(aScores,$B12,AI$4)) -> - | AJ12: =CHOOSE(uxb_works!$B$47,IF(iData!AD7="","-",TEXT(iData!AD7,$H12)),INDEX(aScores,$B12,AJ$4)) -> -
B13: =tblIndicators!A4 -> 3 | F13: =iScores!F8 -> 2 | H13: =tblIndicators!AC4 -> #,##0.0 | K13: =IF(uxb_works!$B$46>=L13,1,0) -> 1 | L13: =tblIndicators!G4 -> 2 | N13: =iScores!N8 -> 1.1) Coastal management policy and strategy | O13: =CHOOSE(uxb_works!$B$47,iData!I8,iScores!O8) ->  | P13: =IF(tblIndicators!T4="","",IF(AND(uxb_works!$B$47=1,OR(F13=5,Scores!F13<=2)),"",tblIndicators!T4)) ->  | Q13: =CHOOSE(uxb_works!$B$47,IF(iData!K8="","-",TEXT(iData!K8,$H13)),INDEX(aScores,$B13,Q$4)) -> - | R13: =CHOOSE(uxb_works!$B$47,IF(iData!L8="","-",TEXT(iData!L8,$H13)),INDEX(aScores,$B13,R$4)) -> - | S13: =CHOOSE(uxb_works!$B$47,IF(iData!M8="","-",TEXT(iData!M8,$H13)),INDEX(aScores,$B13,S$4)) -> - | T13: =CHOOSE(uxb_works!$B$47,IF(iData!N8="","-",TEXT(iData!N8,$H13)),INDEX(aScores,$B13,T$4)) -> - | U13: =CHOOSE(uxb_works!$B$47,IF(iData!O8="","-",TEXT(iData!O8,$H13)),INDEX(aScores,$B13,U$4)) -> - | V13: =CHOOSE(uxb_works!$B$47,IF(iData!P8="","-",TEXT(iData!P8,$H13)),INDEX(aScores,$B13,V$4)) -> - | W13: =CHOOSE(uxb_works!$B$47,IF(iData!Q8="","-",TEXT(iData!Q8,$H13)),INDEX(aScores,$B13,W$4)) -> - | X13: =CHOOSE(uxb_works!$B$47,IF(iData!R8="","-",TEXT(iData!R8,$H13)),INDEX(aScores,$B13,X$4)) -> - | Y13: =CHOOSE(uxb_works!$B$47,IF(iData!S8="","-",TEXT(iData!S8,$H13)),INDEX(aScores,$B13,Y$4)) -> - | Z13: =CHOOSE(uxb_works!$B$47,IF(iData!T8="","-",TEXT(iData!T8,$H13)),INDEX(aScores,$B13,Z$4)) -> - | AA13: =CHOOSE(uxb_works!$B$47,IF(iData!U8="","-",TEXT(iData!U8,$H13)),INDEX(aScores,$B13,AA$4)) -> - | AB13: =CHOOSE(uxb_works!$B$47,IF(iData!V8="","-",TEXT(iData!V8,$H13)),INDEX(aScores,$B13,AB$4)) -> - | AC13: =CHOOSE(uxb_works!$B$47,IF(iData!W8="","-",TEXT(iData!W8,$H13)),INDEX(aScores,$B13,AC$4)) -> - | AD13: =CHOOSE(uxb_works!$B$47,IF(iData!X8="","-",TEXT(iData!X8,$H13)),INDEX(aScores,$B13,AD$4)) -> - | AE13: =CHOOSE(uxb_works!$B$47,IF(iData!Y8="","-",TEXT(iData!Y8,$H13)),INDEX(aScores,$B13,AE$4)) -> - | AF13: =CHOOSE(uxb_works!$B$47,IF(iData!Z8="","-",TEXT(iData!Z8,$H13)),INDEX(aScores,$B13,AF$4)) -> - | AG13: =CHOOSE(uxb_works!$B$47,IF(iData!AA8="","-",TEXT(iData!AA8,$H13)),INDEX(aScores,$B13,AG$4)) -> - | AH13: =CHOOSE(uxb_works!$B$47,IF(iData!AB8="","-",TEXT(iData!AB8,$H13)),INDEX(aScores,$B13,AH$4)) -> - | AI13: =CHOOSE(uxb_works!$B$47,IF(iData!AC8="","-",TEXT(iData!AC8,$H13)),INDEX(aScores,$B13,AI$4)) -> - | AJ13: =CHOOSE(uxb_works!$B$47,IF(iData!AD8="","-",TEXT(iData!AD8,$H13)),INDEX(aScores,$B13,AJ$4)) -> -
B14: =tblIndicators!A5 -> 4 | F14: =iScores!F9 -> 3 | H14: =tblIndicators!AC5 -> #,##0 | K14: =IF(uxb_works!$B$46>=L14,1,0) -> 1 | L14: =tblIndicators!G5 -> 3 | N14: =iScores!N9 -> 1.1.1) Coastal management policy | O14: =CHOOSE(uxb_works!$B$47,iData!I9,iScores!O9) -> Score 0-1 | P14: =IF(tblIndicators!T5="","",IF(AND(uxb_works!$B$47=1,OR(F14=5,Scores!F14<=2)),"",tblIndicators!T5)) -> 1 | Q14: =CHOOSE(uxb_works!$B$47,IF(iData!K9="","-",TEXT(iData!K9,$H14)),INDEX(aScores,$B14,Q$4)) -> 1 | R14: =CHOOSE(uxb_works!$B$47,IF(iData!L9="","-",TEXT(iData!L9,$H14)),INDEX(aScores,$B14,R$4)) -> 1 | S14: =CHOOSE(uxb_works!$B$47,IF(iData!M9="","-",TEXT(iData!M9,$H14)),INDEX(aScores,$B14,S$4)) -> 1 | T14: =CHOOSE(uxb_works!$B$47,IF(iData!N9="","-",TEXT(iData!N9,$H14)),INDEX(aScores,$B14,T$4)) -> 1 | U14: =CHOOSE(uxb_works!$B$47,IF(iData!O9="","-",TEXT(iData!O9,$H14)),INDEX(aScores,$B14,U$4)) -> 1 | V14: =CHOOSE(uxb_works!$B$47,IF(iData!P9="","-",TEXT(iData!P9,$H14)),INDEX(aScores,$B14,V$4)) -> 1 | W14: =CHOOSE(uxb_works!$B$47,IF(iData!Q9="","-",TEXT(iData!Q9,$H14)),INDEX(aScores,$B14,W$4)) -> 1 | X14: =CHOOSE(uxb_works!$B$47,IF(iData!R9="","-",TEXT(iData!R9,$H14)),INDEX(aScores,$B14,X$4)) -> 1 | Y14: =CHOOSE(uxb_works!$B$47,IF(iData!S9="","-",TEXT(iData!S9,$H14)),INDEX(aScores,$B14,Y$4)) -> 1 | Z14: =CHOOSE(uxb_works!$B$47,IF(iData!T9="","-",TEXT(iData!T9,$H14)),INDEX(aScores,$B14,Z$4)) -> 1 | AA14: =CHOOSE(uxb_works!$B$47,IF(iData!U9="","-",TEXT(iData!U9,$H14)),INDEX(aScores,$B14,AA$4)) -> 0 | AB14: =CHOOSE(uxb_works!$B$47,IF(iData!V9="","-",TEXT(iData!V9,$H14)),INDEX(aScores,$B14,AB$4)) -> 1 | AC14: =CHOOSE(uxb_works!$B$47,IF(iData!W9="","-",TEXT(iData!W9,$H14)),INDEX(aScores,$B14,AC$4)) -> 1 | AD14: =CHOOSE(uxb_works!$B$47,IF(iData!X9="","-",TEXT(iData!X9,$H14)),INDEX(aScores,$B14,AD$4)) -> 1 | AE14: =CHOOSE(uxb_works!$B$47,IF(iData!Y9="","-",TEXT(iData!Y9,$H14)),INDEX(aScores,$B14,AE$4)) -> 0 | AF14: =CHOOSE(uxb_works!$B$47,IF(iData!Z9="","-",TEXT(iData!Z9,$H14)),INDEX(aScores,$B14,AF$4)) -> 1 | AG14: =CHOOSE(uxb_works!$B$47,IF(iData!AA9="","-",TEXT(iData!AA9,$H14)),INDEX(aScores,$B14,AG$4)) -> 1 | AH14: =CHOOSE(uxb_works!$B$47,IF(iData!AB9="","-",TEXT(iData!AB9,$H14)),INDEX(aScores,$B14,AH$4)) -> 1 | AI14: =CHOOSE(uxb_works!$B$47,IF(iData!AC9="","-",TEXT(iData!AC9,$H14)),INDEX(aScores,$B14,AI$4)) -> 1 | AJ14: =CHOOSE(uxb_works!$B$47,IF(iData!AD9="","-",TEXT(iData!AD9,$H14)),INDEX(aScores,$B14,AJ$4)) -> 1
B15: =tblIndicators!A6 -> 5 | F15: =iScores!F10 -> 3 | H15: =tblIndicators!AC6 -> #,##0 | K15: =IF(uxb_works!$B$46>=L15,1,0) -> 1 | L15: =tblIndicators!G6 -> 3 | N15: =iScores!N10 -> 1.1.2) Coastal management strategy | O15: =CHOOSE(uxb_works!$B$47,iData!I10,iScores!O10) -> Score 0-2 | P15: =IF(tblIndicators!T6="","",IF(AND(uxb_works!$B$47=1,OR(F15=5,Scores!F15<=2)),"",tblIndicators!T6)) -> 1 | Q15: =CHOOSE(uxb_works!$B$47,IF(iData!K10="","-",TEXT(iData!K10,$H15)),INDEX(aScores,$B15,Q$4)) -> 2 | R15: =CHOOSE(uxb_works!$B$47,IF(iData!L10="","-",TEXT(iData!L10,$H15)),INDEX(aScores,$B15,R$4)) -> 2 | S15: =CHOOSE(uxb_works!$B$47,IF(iData!M10="","-",TEXT(iData!M10,$H15)),INDEX(aScores,$B15,S$4)) -> 2 | T15: =CHOOSE(uxb_works!$B$47,IF(iData!N10="","-",TEXT(iData!N10,$H15)),INDEX(aScores,$B15,T$4)) -> 2 | U15: =CHOOSE(uxb_works!$B$47,IF(iData!O10="","-",TEXT(iData!O10,$H15)),INDEX(aScores,$B15,U$4)) -> 2 | V15: =CHOOSE(uxb_works!$B$47,IF(iData!P10="","-",TEXT(iData!P10,$H15)),INDEX(aScores,$B15,V$4)) -> 1 | W15: =CHOOSE(uxb_works!$B$47,IF(iData!Q10="","-",TEXT(iData!Q10,$H15)),INDEX(aScores,$B15,W$4)) -> 2 | X15: =CHOOSE(uxb_works!$B$47,IF(iData!R10="","-",TEXT(iData!R10,$H15)),INDEX(aScores,$B15,X$4)) -> 2 | Y15: =CHOOSE(uxb_works!$B$47,IF(iData!S10="","-",TEXT(iData!S10,$H15)),INDEX(aScores,$B15,Y$4)) -> 1 | Z15: =CHOOSE(uxb_works!$B$47,IF(iData!T10="","-",TEXT(iData!T10,$H15)),INDEX(aScores,$B15,Z$4)) -> 1 | AA15: =CHOOSE(uxb_works!$B$47,IF(iData!U10="","-",TEXT(iData!U10,$H15)),INDEX(aScores,$B15,AA$4)) -> 0 | AB15: =CHOOSE(uxb_works!$B$47,IF(iData!V10="","-",TEXT(iData!V10,$H15)),INDEX(aScores,$B15,AB$4)) -> 2 | AC15: =CHOOSE(uxb_works!$B$47,IF(iData!W10="","-",TEXT(iData!W10,$H15)),INDEX(aScores,$B15,AC$4)) -> 0 | AD15: =CHOOSE(uxb_works!$B$47,IF(iData!X10="","-",TEXT(iData!X10,$H15)),INDEX(aScores,$B15,AD$4)) -> 2 | AE15: =CHOOSE(uxb_works!$B$47,IF(iData!Y10="","-",TEXT(iData!Y10,$H15)),INDEX(aScores,$B15,AE$4)) -> 0 | AF15: =CHOOSE(uxb_works!$B$47,IF(iData!Z10="","-",TEXT(iData!Z10,$H15)),INDEX(aScores,$B15,AF$4)) -> 2 | AG15: =CHOOSE(uxb_works!$B$47,IF(iData!AA10="","-",TEXT(iData!AA10,$H15)),INDEX(aScores,$B15,AG$4)) -> 2 | AH15: =CHOOSE(uxb_works!$B$47,IF(iData!AB10="","-",TEXT(iData!AB10,$H15)),INDEX(aScores,$B15,AH$4)) -> 2 | AI15: =CHOOSE(uxb_works!$B$47,IF(iData!AC10="","-",TEXT(iData!AC10,$H15)),INDEX(aScores,$B15,AI$4)) -> 2 | AJ15: =CHOOSE(uxb_works!$B$47,IF(iData!AD10="","-",TEXT(iData!AD10,$H15)),INDEX(aScores,$B15,AJ$4)) -> 2
B16: =tblIndicators!A7 -> 6 | F16: =iScores!F11 -> 2 | H16: =tblIndicators!AC7 -> #,##0.0 | K16: =IF(uxb_works!$B$46>=L16,1,0) -> 1 | L16: =tblIndicators!G7 -> 2 | N16: =iScores!N11 -> 1.2) Presence of established institution(s) | O16: =CHOOSE(uxb_works!$B$47,iData!I11,iScores!O11) ->  | P16: =IF(tblIndicators!T7="","",IF(AND(uxb_works!$B$47=1,OR(F16=5,Scores!F16<=2)),"",tblIndicators!T7)) ->  | Q16: =CHOOSE(uxb_works!$B$47,IF(iData!K11="","-",TEXT(iData!K11,$H16)),INDEX(aScores,$B16,Q$4)) -> - | R16: =CHOOSE(uxb_works!$B$47,IF(iData!L11="","-",TEXT(iData!L11,$H16)),INDEX(aScores,$B16,R$4)) -> - | S16: =CHOOSE(uxb_works!$B$47,IF(iData!M11="","-",TEXT(iData!M11,$H16)),INDEX(aScores,$B16,S$4)) -> - | T16: =CHOOSE(uxb_works!$B$47,IF(iData!N11="","-",TEXT(iData!N11,$H16)),INDEX(aScores,$B16,T$4)) -> - | U16: =CHOOSE(uxb_works!$B$47,IF(iData!O11="","-",TEXT(iData!O11,$H16)),INDEX(aScores,$B16,U$4)) -> - | V16: =CHOOSE(uxb_works!$B$47,IF(iData!P11="","-",TEXT(iData!P11,$H16)),INDEX(aScores,$B16,V$4)) -> - | W16: =CHOOSE(uxb_works!$B$47,IF(iData!Q11="","-",TEXT(iData!Q11,$H16)),INDEX(aScores,$B16,W$4)) -> - | X16: =CHOOSE(uxb_works!$B$47,IF(iData!R11="","-",TEXT(iData!R11,$H16)),INDEX(aScores,$B16,X$4)) -> - | Y16: =CHOOSE(uxb_works!$B$47,IF(iData!S11="","-",TEXT(iData!S11,$H16)),INDEX(aScores,$B16,Y$4)) -> - | Z16: =CHOOSE(uxb_works!$B$47,IF(iData!T11="","-",TEXT(iData!T11,$H16)),INDEX(aScores,$B16,Z$4)) -> - | AA16: =CHOOSE(uxb_works!$B$47,IF(iData!U11="","-",TEXT(iData!U11,$H16)),INDEX(aScores,$B16,AA$4)) -> - | AB16: =CHOOSE(uxb_works!$B$47,IF(iData!V11="","-",TEXT(iData!V11,$H16)),INDEX(aScores,$B16,AB$4)) -> - | AC16: =CHOOSE(uxb_works!$B$47,IF(iData!W11="","-",TEXT(iData!W11,$H16)),INDEX(aScores,$B16,AC$4)) -> - | AD16: =CHOOSE(uxb_works!$B$47,IF(iData!X11="","-",TEXT(iData!X11,$H16)),INDEX(aScores,$B16,AD$4)) -> - | AE16: =CHOOSE(uxb_works!$B$47,IF(iData!Y11="","-",TEXT(iData!Y11,$H16)),INDEX(aScores,$B16,AE$4)) -> - | AF16: =CHOOSE(uxb_works!$B$47,IF(iData!Z11="","-",TEXT(iData!Z11,$H16)),INDEX(aScores,$B16,AF$4)) -> - | AG16: =CHOOSE(uxb_works!$B$47,IF(iData!AA11="","-",TEXT(iData!AA11,$H16)),INDEX(aScores,$B16,AG$4)) -> - | AH16: =CHOOSE(uxb_works!$B$47,IF(iData!AB11="","-",TEXT(iData!AB11,$H16)),INDEX(aScores,$B16,AH$4)) -> - | AI16: =CHOOSE(uxb_works!$B$47,IF(iData!AC11="","-",TEXT(iData!AC11,$H16)),INDEX(aScores,$B16,AI$4)) -> - | AJ16: =CHOOSE(uxb_works!$B$47,IF(iData!AD11="","-",TEXT(iData!AD11,$H16)),INDEX(aScores,$B16,AJ$4)) -> -
B17: =tblIndicators!A8 -> 7 | F17: =iScores!F12 -> 3 | H17: =tblIndicators!AC8 -> #,##0 | K17: =IF(uxb_works!$B$46>=L17,1,0) -> 1 | L17: =tblIndicators!G8 -> 3 | N17: =iScores!N12 -> 1.2.1) Presence of coastal management strategy authority | O17: =CHOOSE(uxb_works!$B$47,iData!I12,iScores!O12) -> Score 0-2 | P17: =IF(tblIndicators!T8="","",IF(AND(uxb_works!$B$47=1,OR(F17=5,Scores!F17<=2)),"",tblIndicators!T8)) -> 1 | Q17: =CHOOSE(uxb_works!$B$47,IF(iData!K12="","-",TEXT(iData!K12,$H17)),INDEX(aScores,$B17,Q$4)) -> 2 | R17: =CHOOSE(uxb_works!$B$47,IF(iData!L12="","-",TEXT(iData!L12,$H17)),INDEX(aScores,$B17,R$4)) -> 2 | S17: =CHOOSE(uxb_works!$B$47,IF(iData!M12="","-",TEXT(iData!M12,$H17)),INDEX(aScores,$B17,S$4)) -> 1 | T17: =CHOOSE(uxb_works!$B$47,IF(iData!N12="","-",TEXT(iData!N12,$H17)),INDEX(aScores,$B17,T$4)) -> 2 | U17: =CHOOSE(uxb_works!$B$47,IF(iData!O12="","-",TEXT(iData!O12,$H17)),INDEX(aScores,$B17,U$4)) -> 1 | V17: =CHOOSE(uxb_works!$B$47,IF(iData!P12="","-",TEXT(iData!P12,$H17)),INDEX(aScores,$B17,V$4)) -> 1 | W17: =CHOOSE(uxb_works!$B$47,IF(iData!Q12="","-",TEXT(iData!Q12,$H17)),INDEX(aScores,$B17,W$4)) -> 2 | X17: =CHOOSE(uxb_works!$B$47,IF(iData!R12="","-",TEXT(iData!R12,$H17)),INDEX(aScores,$B17,X$4)) -> 2 | Y17: =CHOOSE(uxb_works!$B$47,IF(iData!S12="","-",TEXT(iData!S12,$H17)),INDEX(aScores,$B17,Y$4)) -> 1 | Z17: =CHOOSE(uxb_works!$B$47,IF(iData!T12="","-",TEXT(iData!T12,$H17)),INDEX(aScores,$B17,Z$4)) -> 1 | AA17: =CHOOSE(uxb_works!$B$47,IF(iData!U12="","-",TEXT(iData!U12,$H17)),INDEX(aScores,$B17,AA$4)) -> 0 | AB17: =CHOOSE(uxb_works!$B$47,IF(iData!V12="","-",TEXT(iData!V12,$H17)),INDEX(aScores,$B17,AB$4)) -> 2 | AC17: =CHOOSE(uxb_works!$B$47,IF(iData!W12="","-",TEXT(iData!W12,$H17)),INDEX(aScores,$B17,AC$4)) -> 1 | AD17: =CHOOSE(uxb_works!$B$47,IF(iData!X12="","-",TEXT(iData!X12,$H17)),INDEX(aScores,$B17,AD$4)) -> 1 | AE17: =CHOOSE(uxb_works!$B$47,IF(iData!Y12="","-",TEXT(iData!Y12,$H17)),INDEX(aScores,$B17,AE$4)) -> 0 | AF17: =CHOOSE(uxb_works!$B$47,IF(iData!Z12="","-",TEXT(iData!Z12,$H17)),INDEX(aScores,$B17,AF$4)) -> 2 | AG17: =CHOOSE(uxb_works!$B$47,IF(iData!AA12="","-",TEXT(iData!AA12,$H17)),INDEX(aScores,$B17,AG$4)) -> 2 | AH17: =CHOOSE(uxb_works!$B$47,IF(iData!AB12="","-",TEXT(iData!AB12,$H17)),INDEX(aScores,$B17,AH$4)) -> 2 | AI17: =CHOOSE(uxb_works!$B$47,IF(iData!AC12="","-",TEXT(iData!AC12,$H17)),INDEX(aScores,$B17,AI$4)) -> 2 | AJ17: =CHOOSE(uxb_works!$B$47,IF(iData!AD12="","-",TEXT(iData!AD12,$H17)),INDEX(aScores,$B17,AJ$4)) -> 2
B18: =tblIndicators!A9 -> 8 | F18: =iScores!F13 -> 2 | H18: =tblIndicators!AC9 -> #,##0.0 | K18: =IF(uxb_works!$B$46>=L18,1,0) -> 1 | L18: =tblIndicators!G9 -> 2 | N18: =iScores!N13 -> 1.3) National strategies to address climate change | O18: =CHOOSE(uxb_works!$B$47,iData!I13,iScores!O13) ->  | P18: =IF(tblIndicators!T9="","",IF(AND(uxb_works!$B$47=1,OR(F18=5,Scores!F18<=2)),"",tblIndicators!T9)) ->  | Q18: =CHOOSE(uxb_works!$B$47,IF(iData!K13="","-",TEXT(iData!K13,$H18)),INDEX(aScores,$B18,Q$4)) -> - | R18: =CHOOSE(uxb_works!$B$47,IF(iData!L13="","-",TEXT(iData!L13,$H18)),INDEX(aScores,$B18,R$4)) -> - | S18: =CHOOSE(uxb_works!$B$47,IF(iData!M13="","-",TEXT(iData!M13,$H18)),INDEX(aScores,$B18,S$4)) -> - | T18: =CHOOSE(uxb_works!$B$47,IF(iData!N13="","-",TEXT(iData!N13,$H18)),INDEX(aScores,$B18,T$4)) -> - | U18: =CHOOSE(uxb_works!$B$47,IF(iData!O13="","-",TEXT(iData!O13,$H18)),INDEX(aScores,$B18,U$4)) -> - | V18: =CHOOSE(uxb_works!$B$47,IF(iData!P13="","-",TEXT(iData!P13,$H18)),INDEX(aScores,$B18,V$4)) -> - | W18: =CHOOSE(uxb_works!$B$47,IF(iData!Q13="","-",TEXT(iData!Q13,$H18)),INDEX(aScores,$B18,W$4)) -> - | X18: =CHOOSE(uxb_works!$B$47,IF(iData!R13="","-",TEXT(iData!R13,$H18)),INDEX(aScores,$B18,X$4)) -> - | Y18: =CHOOSE(uxb_works!$B$47,IF(iData!S13="","-",TEXT(iData!S13,$H18)),INDEX(aScores,$B18,Y$4)) -> - | Z18: =CHOOSE(uxb_works!$B$47,IF(iData!T13="","-",TEXT(iData!T13,$H18)),INDEX(aScores,$B18,Z$4)) -> - | AA18: =CHOOSE(uxb_works!$B$47,IF(iData!U13="","-",TEXT(iData!U13,$H18)),INDEX(aScores,$B18,AA$4)) -> - | AB18: =CHOOSE(uxb_works!$B$47,IF(iData!V13="","-",TEXT(iData!V13,$H18)),INDEX(aScores,$B18,AB$4)) -> - | AC18: =CHOOSE(uxb_works!$B$47,IF(iData!W13="","-",TEXT(iData!W13,$H18)),INDEX(aScores,$B18,AC$4)) -> - | AD18: =CHOOSE(uxb_works!$B$47,IF(iData!X13="","-",TEXT(iData!X13,$H18)),INDEX(aScores,$B18,AD$4)) -> - | AE18: =CHOOSE(uxb_works!$B$47,IF(iData!Y13="","-",TEXT(iData!Y13,$H18)),INDEX(aScores,$B18,AE$4)) -> - | AF18: =CHOOSE(uxb_works!$B$47,IF(iData!Z13="","-",TEXT(iData!Z13,$H18)),INDEX(aScores,$B18,AF$4)) -> - | AG18: =CHOOSE(uxb_works!$B$47,IF(iData!AA13="","-",TEXT(iData!AA13,$H18)),INDEX(aScores,$B18,AG$4)) -> - | AH18: =CHOOSE(uxb_works!$B$47,IF(iData!AB13="","-",TEXT(iData!AB13,$H18)),INDEX(aScores,$B18,AH$4)) -> - | AI18: =CHOOSE(uxb_works!$B$47,IF(iData!AC13="","-",TEXT(iData!AC13,$H18)),INDEX(aScores,$B18,AI$4)) -> - | AJ18: =CHOOSE(uxb_works!$B$47,IF(iData!AD13="","-",TEXT(iData!AD13,$H18)),INDEX(aScores,$B18,AJ$4)) -> -
B19: =tblIndicators!A10 -> 9 | F19: =iScores!F14 -> 3 | H19: =tblIndicators!AC10 -> #,##0 | K19: =IF(uxb_works!$B$46>=L19,1,0) -> 1 | L19: =tblIndicators!G10 -> 3 | N19: =iScores!N14 -> 1.3.1) Strategy to adapt coastal areas to climate change | O19: =CHOOSE(uxb_works!$B$47,iData!I14,iScores!O14) -> Score 0-2 | P19: =IF(tblIndicators!T10="","",IF(AND(uxb_works!$B$47=1,OR(F19=5,Scores!F19<=2)),"",tblIndicators!T10)) -> 2 | Q19: =CHOOSE(uxb_works!$B$47,IF(iData!K14="","-",TEXT(iData!K14,$H19)),INDEX(aScores,$B19,Q$4)) -> 2 | R19: =CHOOSE(uxb_works!$B$47,IF(iData!L14="","-",TEXT(iData!L14,$H19)),INDEX(aScores,$B19,R$4)) -> 2 | S19: =CHOOSE(uxb_works!$B$47,IF(iData!M14="","-",TEXT(iData!M14,$H19)),INDEX(aScores,$B19,S$4)) -> 2 | T19: =CHOOSE(uxb_works!$B$47,IF(iData!N14="","-",TEXT(iData!N14,$H19)),INDEX(aScores,$B19,T$4)) -> 2 | U19: =CHOOSE(uxb_works!$B$47,IF(iData!O14="","-",TEXT(iData!O14,$H19)),INDEX(aScores,$B19,U$4)) -> 2 | V19: =CHOOSE(uxb_works!$B$47,IF(iData!P14="","-",TEXT(iData!P14,$H19)),INDEX(aScores,$B19,V$4)) -> 1 | W19: =CHOOSE(uxb_works!$B$47,IF(iData!Q14="","-",TEXT(iData!Q14,$H19)),INDEX(aScores,$B19,W$4)) -> 2 | X19: =CHOOSE(uxb_works!$B$47,IF(iData!R14="","-",TEXT(iData!R14,$H19)),INDEX(aScores,$B19,X$4)) -> 2 | Y19: =CHOOSE(uxb_works!$B$47,IF(iData!S14="","-",TEXT(iData!S14,$H19)),INDEX(aScores,$B19,Y$4)) -> 2 | Z19: =CHOOSE(uxb_works!$B$47,IF(iData!T14="","-",TEXT(iData!T14,$H19)),INDEX(aScores,$B19,Z$4)) -> 2 | AA19: =CHOOSE(uxb_works!$B$47,IF(iData!U14="","-",TEXT(iData!U14,$H19)),INDEX(aScores,$B19,AA$4)) -> 2 | AB19: =CHOOSE(uxb_works!$B$47,IF(iData!V14="","-",TEXT(iData!V14,$H19)),INDEX(aScores,$B19,AB$4)) -> 1 | AC19: =CHOOSE(uxb_works!$B$47,IF(iData!W14="","-",TEXT(iData!W14,$H19)),INDEX(aScores,$B19,AC$4)) -> 1 | AD19: =CHOOSE(uxb_works!$B$47,IF(iData!X14="","-",TEXT(iData!X14,$H19)),INDEX(aScores,$B19,AD$4)) -> 2 | AE19: =CHOOSE(uxb_works!$B$47,IF(iData!Y14="","-",TEXT(iData!Y14,$H19)),INDEX(aScores,$B19,AE$4)) -> 0 | AF19: =CHOOSE(uxb_works!$B$47,IF(iData!Z14="","-",TEXT(iData!Z14,$H19)),INDEX(aScores,$B19,AF$4)) -> 2 | AG19: =CHOOSE(uxb_works!$B$47,IF(iData!AA14="","-",TEXT(iData!AA14,$H19)),INDEX(aScores,$B19,AG$4)) -> 2 | AH19: =CHOOSE(uxb_works!$B$47,IF(iData!AB14="","-",TEXT(iData!AB14,$H19)),INDEX(aScores,$B19,AH$4)) -> 2 | AI19: =CHOOSE(uxb_works!$B$47,IF(iData!AC14="","-",TEXT(iData!AC14,$H19)),INDEX(aScores,$B19,AI$4)) -> 2 | AJ19: =CHOOSE(uxb_works!$B$47,IF(iData!AD14="","-",TEXT(iData!AD14,$H19)),INDEX(aScores,$B19,AJ$4)) -> 2
B20: =tblIndicators!A11 -> 10 | F20: =iScores!F15 -> 3 | H20: =tblIndicators!AC11 -> #,##0 | K20: =IF(uxb_works!$B$46>=L20,1,0) -> 1 | L20: =tblIndicators!G11 -> 3 | N20: =iScores!N15 -> 1.3.2) Efforts to increase blue carbon | O20: =CHOOSE(uxb_works!$B$47,iData!I15,iScores!O15) -> Score 0-2 | P20: =IF(tblIndicators!T11="","",IF(AND(uxb_works!$B$47=1,OR(F20=5,Scores!F20<=2)),"",tblIndicators!T11)) -> 1 | Q20: =CHOOSE(uxb_works!$B$47,IF(iData!K15="","-",TEXT(iData!K15,$H20)),INDEX(aScores,$B20,Q$4)) -> 0 | R20: =CHOOSE(uxb_works!$B$47,IF(iData!L15="","-",TEXT(iData!L15,$H20)),INDEX(aScores,$B20,R$4)) -> 0 | S20: =CHOOSE(uxb_works!$B$47,IF(iData!M15="","-",TEXT(iData!M15,$H20)),INDEX(aScores,$B20,S$4)) -> 0 | T20: =CHOOSE(uxb_works!$B$47,IF(iData!N15="","-",TEXT(iData!N15,$H20)),INDEX(aScores,$B20,T$4)) -> 1 | U20: =CHOOSE(uxb_works!$B$47,IF(iData!O15="","-",TEXT(iData!O15,$H20)),INDEX(aScores,$B20,U$4)) -> 0 | V20: =CHOOSE(uxb_works!$B$47,IF(iData!P15="","-",TEXT(iData!P15,$H20)),INDEX(aScores,$B20,V$4)) -> 1 | W20: =CHOOSE(uxb_works!$B$47,IF(iData!Q15="","-",TEXT(iData!Q15,$H20)),INDEX(aScores,$B20,W$4)) -> 0 | X20: =CHOOSE(uxb_works!$B$47,IF(iData!R15="","-",TEXT(iData!R15,$H20)),INDEX(aScores,$B20,X$4)) -> 0 | Y20: =CHOOSE(uxb_works!$B$47,IF(iData!S15="","-",TEXT(iData!S15,$H20)),INDEX(aScores,$B20,Y$4)) -> 2 | Z20: =CHOOSE(uxb_works!$B$47,IF(iData!T15="","-",TEXT(iData!T15,$H20)),INDEX(aScores,$B20,Z$4)) -> 0 | AA20: =CHOOSE(uxb_works!$B$47,IF(iData!U15="","-",TEXT(iData!U15,$H20)),INDEX(aScores,$B20,AA$4)) -> 0 | AB20: =CHOOSE(uxb_works!$B$47,IF(iData!V15="","-",TEXT(iData!V15,$H20)),INDEX(aScores,$B20,AB$4)) -> 0 | AC20: =CHOOSE(uxb_works!$B$47,IF(iData!W15="","-",TEXT(iData!W15,$H20)),INDEX(aScores,$B20,AC$4)) -> 0 | AD20: =CHOOSE(uxb_works!$B$47,IF(iData!X15="","-",TEXT(iData!X15,$H20)),INDEX(aScores,$B20,AD$4)) -> 2 | AE20: =CHOOSE(uxb_works!$B$47,IF(iData!Y15="","-",TEXT(iData!Y15,$H20)),INDEX(aScores,$B20,AE$4)) -> 0 | AF20: =CHOOSE(uxb_works!$B$47,IF(iData!Z15="","-",TEXT(iData!Z15,$H20)),INDEX(aScores,$B20,AF$4)) -> 1 | AG20: =CHOOSE(uxb_works!$B$47,IF(iData!AA15="","-",TEXT(iData!AA15,$H20)),INDEX(aScores,$B20,AG$4)) -> 0 | AH20: =CHOOSE(uxb_works!$B$47,IF(iData!AB15="","-",TEXT(iData!AB15,$H20)),INDEX(aScores,$B20,AH$4)) -> 0 | AI20: =CHOOSE(uxb_works!$B$47,IF(iData!AC15="","-",TEXT(iData!AC15,$H20)),INDEX(aScores,$B20,AI$4)) -> 1 | AJ20: =CHOOSE(uxb_works!$B$47,IF(iData!AD15="","-",TEXT(iData!AD15,$H20)),INDEX(aScores,$B20,AJ$4)) -> 1
B21: =tblIndicators!A12 -> 11 | F21: =iScores!F16 -> 2 | H21: =tblIndicators!AC12 -> #,##0 | K21: =IF(uxb_works!$B$46>=L21,1,0) -> 1 | L21: =tblIndicators!G12 -> 2 | N21: =iScores!N16 -> 1.4) Maritime spatial planning | O21: =CHOOSE(uxb_works!$B$47,iData!I16,iScores!O16) ->  | P21: =IF(tblIndicators!T12="","",IF(AND(uxb_works!$B$47=1,OR(F21=5,Scores!F21<=2)),"",tblIndicators!T12)) ->  | Q21: =CHOOSE(uxb_works!$B$47,IF(iData!K16="","-",TEXT(iData!K16,$H21)),INDEX(aScores,$B21,Q$4)) -> - | R21: =CHOOSE(uxb_works!$B$47,IF(iData!L16="","-",TEXT(iData!L16,$H21)),INDEX(aScores,$B21,R$4)) -> - | S21: =CHOOSE(uxb_works!$B$47,IF(iData!M16="","-",TEXT(iData!M16,$H21)),INDEX(aScores,$B21,S$4)) -> - | T21: =CHOOSE(uxb_works!$B$47,IF(iData!N16="","-",TEXT(iData!N16,$H21)),INDEX(aScores,$B21,T$4)) -> - | U21: =CHOOSE(uxb_works!$B$47,IF(iData!O16="","-",TEXT(iData!O16,$H21)),INDEX(aScores,$B21,U$4)) -> - | V21: =CHOOSE(uxb_works!$B$47,IF(iData!P16="","-",TEXT(iData!P16,$H21)),INDEX(aScores,$B21,V$4)) -> - | W21: =CHOOSE(uxb_works!$B$47,IF(iData!Q16="","-",TEXT(iData!Q16,$H21)),INDEX(aScores,$B21,W$4)) -> - | X21: =CHOOSE(uxb_works!$B$47,IF(iData!R16="","-",TEXT(iData!R16,$H21)),INDEX(aScores,$B21,X$4)) -> - | Y21: =CHOOSE(uxb_works!$B$47,IF(iData!S16="","-",TEXT(iData!S16,$H21)),INDEX(aScores,$B21,Y$4)) -> - | Z21: =CHOOSE(uxb_works!$B$47,IF(iData!T16="","-",TEXT(iData!T16,$H21)),INDEX(aScores,$B21,Z$4)) -> - | AA21: =CHOOSE(uxb_works!$B$47,IF(iData!U16="","-",TEXT(iData!U16,$H21)),INDEX(aScores,$B21,AA$4)) -> - | AB21: =CHOOSE(uxb_works!$B$47,IF(iData!V16="","-",TEXT(iData!V16,$H21)),INDEX(aScores,$B21,AB$4)) -> - | AC21: =CHOOSE(uxb_works!$B$47,IF(iData!W16="","-",TEXT(iData!W16,$H21)),INDEX(aScores,$B21,AC$4)) -> - | AD21: =CHOOSE(uxb_works!$B$47,IF(iData!X16="","-",TEXT(iData!X16,$H21)),INDEX(aScores,$B21,AD$4)) -> - | AE21: =CHOOSE(uxb_works!$B$47,IF(iData!Y16="","-",TEXT(iData!Y16,$H21)),INDEX(aScores,$B21,AE$4)) -> - | AF21: =CHOOSE(uxb_works!$B$47,IF(iData!Z16="","-",TEXT(iData!Z16,$H21)),INDEX(aScores,$B21,AF$4)) -> - | AG21: =CHOOSE(uxb_works!$B$47,IF(iData!AA16="","-",TEXT(iData!AA16,$H21)),INDEX(aScores,$B21,AG$4)) -> - | AH21: =CHOOSE(uxb_works!$B$47,IF(iData!AB16="","-",TEXT(iData!AB16,$H21)),INDEX(aScores,$B21,AH$4)) -> - | AI21: =CHOOSE(uxb_works!$B$47,IF(iData!AC16="","-",TEXT(iData!AC16,$H21)),INDEX(aScores,$B21,AI$4)) -> - | AJ21: =CHOOSE(uxb_works!$B$47,IF(iData!AD16="","-",TEXT(iData!AD16,$H21)),INDEX(aScores,$B21,AJ$4)) -> -
B22: =tblIndicators!A13 -> 12 | F22: =iScores!F17 -> 3 | H22: =tblIndicators!AC13 -> #,##0 | K22: =IF(uxb_works!$B$46>=L22,1,0) -> 1 | L22: =tblIndicators!G13 -> 3 | N22: =iScores!N17 -> 1.4.1) Legal basis for maritime spatial planning | O22: =CHOOSE(uxb_works!$B$47,iData!I17,iScores!O17) -> Score 0-2 | P22: =IF(tblIndicators!T13="","",IF(AND(uxb_works!$B$47=1,OR(F22=5,Scores!F22<=2)),"",tblIndicators!T13)) -> 1 | Q22: =CHOOSE(uxb_works!$B$47,IF(iData!K17="","-",TEXT(iData!K17,$H22)),INDEX(aScores,$B22,Q$4)) -> 0 | R22: =CHOOSE(uxb_works!$B$47,IF(iData!L17="","-",TEXT(iData!L17,$H22)),INDEX(aScores,$B22,R$4)) -> 1 | S22: =CHOOSE(uxb_works!$B$47,IF(iData!M17="","-",TEXT(iData!M17,$H22)),INDEX(aScores,$B22,S$4)) -> 2 | T22: =CHOOSE(uxb_works!$B$47,IF(iData!N17="","-",TEXT(iData!N17,$H22)),INDEX(aScores,$B22,T$4)) -> 2 | U22: =CHOOSE(uxb_works!$B$47,IF(iData!O17="","-",TEXT(iData!O17,$H22)),INDEX(aScores,$B22,U$4)) -> 2 | V22: =CHOOSE(uxb_works!$B$47,IF(iData!P17="","-",TEXT(iData!P17,$H22)),INDEX(aScores,$B22,V$4)) -> 0 | W22: =CHOOSE(uxb_works!$B$47,IF(iData!Q17="","-",TEXT(iData!Q17,$H22)),INDEX(aScores,$B22,W$4)) -> 2 | X22: =CHOOSE(uxb_works!$B$47,IF(iData!R17="","-",TEXT(iData!R17,$H22)),INDEX(aScores,$B22,X$4)) -> 0 | Y22: =CHOOSE(uxb_works!$B$47,IF(iData!S17="","-",TEXT(iData!S17,$H22)),INDEX(aScores,$B22,Y$4)) -> 2 | Z22: =CHOOSE(uxb_works!$B$47,IF(iData!T17="","-",TEXT(iData!T17,$H22)),INDEX(aScores,$B22,Z$4)) -> 1 | AA22: =CHOOSE(uxb_works!$B$47,IF(iData!U17="","-",TEXT(iData!U17,$H22)),INDEX(aScores,$B22,AA$4)) -> 0 | AB22: =CHOOSE(uxb_works!$B$47,IF(iData!V17="","-",TEXT(iData!V17,$H22)),INDEX(aScores,$B22,AB$4)) -> 2 | AC22: =CHOOSE(uxb_works!$B$47,IF(iData!W17="","-",TEXT(iData!W17,$H22)),INDEX(aScores,$B22,AC$4)) -> 2 | AD22: =CHOOSE(uxb_works!$B$47,IF(iData!X17="","-",TEXT(iData!X17,$H22)),INDEX(aScores,$B22,AD$4)) -> 1 | AE22: =CHOOSE(uxb_works!$B$47,IF(iData!Y17="","-",TEXT(iData!Y17,$H22)),INDEX(aScores,$B22,AE$4)) -> 1 | AF22: =CHOOSE(uxb_works!$B$47,IF(iData!Z17="","-",TEXT(iData!Z17,$H22)),INDEX(aScores,$B22,AF$4)) -> 2 | AG22: =CHOOSE(uxb_works!$B$47,IF(iData!AA17="","-",TEXT(iData!AA17,$H22)),INDEX(aScores,$B22,AG$4)) -> 2 | AH22: =CHOOSE(uxb_works!$B$47,IF(iData!AB17="","-",TEXT(iData!AB17,$H22)),INDEX(aScores,$B22,AH$4)) -> 2 | AI22: =CHOOSE(uxb_works!$B$47,IF(iData!AC17="","-",TEXT(iData!AC17,$H22)),INDEX(aScores,$B22,AI$4)) -> 2 | AJ22: =CHOOSE(uxb_works!$B$47,IF(iData!AD17="","-",TEXT(iData!AD17,$H22)),INDEX(aScores,$B22,AJ$4)) -> 2
B23: =tblIndicators!A14 -> 13 | F23: =iScores!F18 -> 3 | H23: =tblIndicators!AC14 -> #,##0 | K23: =IF(uxb_works!$B$46>=L23,1,0) -> 1 | L23: =tblIndicators!G14 -> 3 | N23: =iScores!N18 -> 1.4.2) Institution for maritime spatial planning | O23: =CHOOSE(uxb_works!$B$47,iData!I18,iScores!O18) -> Score 0-2 | P23: =IF(tblIndicators!T14="","",IF(AND(uxb_works!$B$47=1,OR(F23=5,Scores!F23<=2)),"",tblIndicators!T14)) -> 1 | Q23: =CHOOSE(uxb_works!$B$47,IF(iData!K18="","-",TEXT(iData!K18,$H23)),INDEX(aScores,$B23,Q$4)) -> 0 | R23: =CHOOSE(uxb_works!$B$47,IF(iData!L18="","-",TEXT(iData!L18,$H23)),INDEX(aScores,$B23,R$4)) -> 1 | S23: =CHOOSE(uxb_works!$B$47,IF(iData!M18="","-",TEXT(iData!M18,$H23)),INDEX(aScores,$B23,S$4)) -> 1 | T23: =CHOOSE(uxb_works!$B$47,IF(iData!N18="","-",TEXT(iData!N18,$H23)),INDEX(aScores,$B23,T$4)) -> 2 | U23: =CHOOSE(uxb_works!$B$47,IF(iData!O18="","-",TEXT(iData!O18,$H23)),INDEX(aScores,$B23,U$4)) -> 2 | V23: =CHOOSE(uxb_works!$B$47,IF(iData!P18="","-",TEXT(iData!P18,$H23)),INDEX(aScores,$B23,V$4)) -> 0 | W23: =CHOOSE(uxb_works!$B$47,IF(iData!Q18="","-",TEXT(iData!Q18,$H23)),INDEX(aScores,$B23,W$4)) -> 1 | X23: =CHOOSE(uxb_works!$B$47,IF(iData!R18="","-",TEXT(iData!R18,$H23)),INDEX(aScores,$B23,X$4)) -> 0 | Y23: =CHOOSE(uxb_works!$B$47,IF(iData!S18="","-",TEXT(iData!S18,$H23)),INDEX(aScores,$B23,Y$4)) -> 2 | Z23: =CHOOSE(uxb_works!$B$47,IF(iData!T18="","-",TEXT(iData!T18,$H23)),INDEX(aScores,$B23,Z$4)) -> 1 | AA23: =CHOOSE(uxb_works!$B$47,IF(iData!U18="","-",TEXT(iData!U18,$H23)),INDEX(aScores,$B23,AA$4)) -> 0 | AB23: =CHOOSE(uxb_works!$B$47,IF(iData!V18="","-",TEXT(iData!V18,$H23)),INDEX(aScores,$B23,AB$4)) -> 2 | AC23: =CHOOSE(uxb_works!$B$47,IF(iData!W18="","-",TEXT(iData!W18,$H23)),INDEX(aScores,$B23,AC$4)) -> 1 | AD23: =CHOOSE(uxb_works!$B$47,IF(iData!X18="","-",TEXT(iData!X18,$H23)),INDEX(aScores,$B23,AD$4)) -> 1 | AE23: =CHOOSE(uxb_works!$B$47,IF(iData!Y18="","-",TEXT(iData!Y18,$H23)),INDEX(aScores,$B23,AE$4)) -> 0 | AF23: =CHOOSE(uxb_works!$B$47,IF(iData!Z18="","-",TEXT(iData!Z18,$H23)),INDEX(aScores,$B23,AF$4)) -> 2 | AG23: =CHOOSE(uxb_works!$B$47,IF(iData!AA18="","-",TEXT(iData!AA18,$H23)),INDEX(aScores,$B23,AG$4)) -> 2 | AH23: =CHOOSE(uxb_works!$B$47,IF(iData!AB18="","-",TEXT(iData!AB18,$H23)),INDEX(aScores,$B23,AH$4)) -> 2 | AI23: =CHOOSE(uxb_works!$B$47,IF(iData!AC18="","-",TEXT(iData!AC18,$H23)),INDEX(aScores,$B23,AI$4)) -> 2 | AJ23: =CHOOSE(uxb_works!$B$47,IF(iData!AD18="","-",TEXT(iData!AD18,$H23)),INDEX(aScores,$B23,AJ$4)) -> 2
B24: =tblIndicators!A15 -> 14 | F24: =iScores!F19 -> 2 | H24: =tblIndicators!AC15 -> #,##0.0 | K24: =IF(uxb_works!$B$46>=L24,1,0) -> 1 | L24: =tblIndicators!G15 -> 2 | N24: =iScores!N19 -> 1.5) Stakeholder engagement | O24: =CHOOSE(uxb_works!$B$47,iData!I19,iScores!O19) ->  | P24: =IF(tblIndicators!T15="","",IF(AND(uxb_works!$B$47=1,OR(F24=5,Scores!F24<=2)),"",tblIndicators!T15)) ->  | Q24: =CHOOSE(uxb_works!$B$47,IF(iData!K19="","-",TEXT(iData!K19,$H24)),INDEX(aScores,$B24,Q$4)) -> - | R24: =CHOOSE(uxb_works!$B$47,IF(iData!L19="","-",TEXT(iData!L19,$H24)),INDEX(aScores,$B24,R$4)) -> - | S24: =CHOOSE(uxb_works!$B$47,IF(iData!M19="","-",TEXT(iData!M19,$H24)),INDEX(aScores,$B24,S$4)) -> - | T24: =CHOOSE(uxb_works!$B$47,IF(iData!N19="","-",TEXT(iData!N19,$H24)),INDEX(aScores,$B24,T$4)) -> - | U24: =CHOOSE(uxb_works!$B$47,IF(iData!O19="","-",TEXT(iData!O19,$H24)),INDEX(aScores,$B24,U$4)) -> - | V24: =CHOOSE(uxb_works!$B$47,IF(iData!P19="","-",TEXT(iData!P19,$H24)),INDEX(aScores,$B24,V$4)) -> - | W24: =CHOOSE(uxb_works!$B$47,IF(iData!Q19="","-",TEXT(iData!Q19,$H24)),INDEX(aScores,$B24,W$4)) -> - | X24: =CHOOSE(uxb_works!$B$47,IF(iData!R19="","-",TEXT(iData!R19,$H24)),INDEX(aScores,$B24,X$4)) -> - | Y24: =CHOOSE(uxb_works!$B$47,IF(iData!S19="","-",TEXT(iData!S19,$H24)),INDEX(aScores,$B24,Y$4)) -> - | Z24: =CHOOSE(uxb_works!$B$47,IF(iData!T19="","-",TEXT(iData!T19,$H24)),INDEX(aScores,$B24,Z$4)) -> - | AA24: =CHOOSE(uxb_works!$B$47,IF(iData!U19="","-",TEXT(iData!U19,$H24)),INDEX(aScores,$B24,AA$4)) -> - | AB24: =CHOOSE(uxb_works!$B$47,IF(iData!V19="","-",TEXT(iData!V19,$H24)),INDEX(aScores,$B24,AB$4)) -> - | AC24: =CHOOSE(uxb_works!$B$47,IF(iData!W19="","-",TEXT(iData!W19,$H24)),INDEX(aScores,$B24,AC$4)) -> - | AD24: =CHOOSE(uxb_works!$B$47,IF(iData!X19="","-",TEXT(iData!X19,$H24)),INDEX(aScores,$B24,AD$4)) -> - | AE24: =CHOOSE(uxb_works!$B$47,IF(iData!Y19="","-",TEXT(iData!Y19,$H24)),INDEX(aScores,$B24,AE$4)) -> - | AF24: =CHOOSE(uxb_works!$B$47,IF(iData!Z19="","-",TEXT(iData!Z19,$H24)),INDEX(aScores,$B24,AF$4)) -> - | AG24: =CHOOSE(uxb_works!$B$47,IF(iData!AA19="","-",TEXT(iData!AA19,$H24)),INDEX(aScores,$B24,AG$4)) -> - | AH24: =CHOOSE(uxb_works!$B$47,IF(iData!AB19="","-",TEXT(iData!AB19,$H24)),INDEX(aScores,$B24,AH$4)) -> - | AI24: =CHOOSE(uxb_works!$B$47,IF(iData!AC19="","-",TEXT(iData!AC19,$H24)),INDEX(aScores,$B24,AI$4)) -> - | AJ24: =CHOOSE(uxb_works!$B$47,IF(iData!AD19="","-",TEXT(iData!AD19,$H24)),INDEX(aScores,$B24,AJ$4)) -> -
B25: =tblIndicators!A16 -> 15 | F25: =iScores!F20 -> 3 | H25: =tblIndicators!AC16 -> #,##0 | K25: =IF(uxb_works!$B$46>=L25,1,0) -> 1 | L25: =tblIndicators!G16 -> 3 | N25: =iScores!N20 -> 1.5.1) Grievance redress | O25: =CHOOSE(uxb_works!$B$47,iData!I20,iScores!O20) -> Score 0-2 | P25: =IF(tblIndicators!T16="","",IF(AND(uxb_works!$B$47=1,OR(F25=5,Scores!F25<=2)),"",tblIndicators!T16)) -> 2 | Q25: =CHOOSE(uxb_works!$B$47,IF(iData!K20="","-",TEXT(iData!K20,$H25)),INDEX(aScores,$B25,Q$4)) -> 2 | R25: =CHOOSE(uxb_works!$B$47,IF(iData!L20="","-",TEXT(iData!L20,$H25)),INDEX(aScores,$B25,R$4)) -> 2 | S25: =CHOOSE(uxb_works!$B$47,IF(iData!M20="","-",TEXT(iData!M20,$H25)),INDEX(aScores,$B25,S$4)) -> 2 | T25: =CHOOSE(uxb_works!$B$47,IF(iData!N20="","-",TEXT(iData!N20,$H25)),INDEX(aScores,$B25,T$4)) -> 0 | U25: =CHOOSE(uxb_works!$B$47,IF(iData!O20="","-",TEXT(iData!O20,$H25)),INDEX(aScores,$B25,U$4)) -> 2 | V25: =CHOOSE(uxb_works!$B$47,IF(iData!P20="","-",TEXT(iData!P20,$H25)),INDEX(aScores,$B25,V$4)) -> 2 | W25: =CHOOSE(uxb_works!$B$47,IF(iData!Q20="","-",TEXT(iData!Q20,$H25)),INDEX(aScores,$B25,W$4)) -> 1 | X25: =CHOOSE(uxb_works!$B$47,IF(iData!R20="","-",TEXT(iData!R20,$H25)),INDEX(aScores,$B25,X$4)) -> 2 | Y25: =CHOOSE(uxb_works!$B$47,IF(iData!S20="","-",TEXT(iData!S20,$H25)),INDEX(aScores,$B25,Y$4)) -> 1 | Z25: =CHOOSE(uxb_works!$B$47,IF(iData!T20="","-",TEXT(iData!T20,$H25)),INDEX(aScores,$B25,Z$4)) -> 2 | AA25: =CHOOSE(uxb_works!$B$47,IF(iData!U20="","-",TEXT(iData!U20,$H25)),INDEX(aScores,$B25,AA$4)) -> 0 | AB25: =CHOOSE(uxb_works!$B$47,IF(iData!V20="","-",TEXT(iData!V20,$H25)),INDEX(aScores,$B25,AB$4)) -> 2 | AC25: =CHOOSE(uxb_works!$B$47,IF(iData!W20="","-",TEXT(iData!W20,$H25)),INDEX(aScores,$B25,AC$4)) -> 1 | AD25: =CHOOSE(uxb_works!$B$47,IF(iData!X20="","-",TEXT(iData!X20,$H25)),INDEX(aScores,$B25,AD$4)) -> 2 | AE25: =CHOOSE(uxb_works!$B$47,IF(iData!Y20="","-",TEXT(iData!Y20,$H25)),INDEX(aScores,$B25,AE$4)) -> 0 | AF25: =CHOOSE(uxb_works!$B$47,IF(iData!Z20="","-",TEXT(iData!Z20,$H25)),INDEX(aScores,$B25,AF$4)) -> 2 | AG25: =CHOOSE(uxb_works!$B$47,IF(iData!AA20="","-",TEXT(iData!AA20,$H25)),INDEX(aScores,$B25,AG$4)) -> 1 | AH25: =CHOOSE(uxb_works!$B$47,IF(iData!AB20="","-",TEXT(iData!AB20,$H25)),INDEX(aScores,$B25,AH$4)) -> 2 | AI25: =CHOOSE(uxb_works!$B$47,IF(iData!AC20="","-",TEXT(iData!AC20,$H25)),INDEX(aScores,$B25,AI$4)) -> 2 | AJ25: =CHOOSE(uxb_works!$B$47,IF(iData!AD20="","-",TEXT(iData!AD20,$H25)),INDEX(aScores,$B25,AJ$4)) -> 1
B26: =tblIndicators!A17 -> 16 | F26: =iScores!F21 -> 3 | H26: =tblIndicators!AC17 -> #,##0 | K26: =IF(uxb_works!$B$46>=L26,1,0) -> 1 | L26: =tblIndicators!G17 -> 3 | N26: =iScores!N21 -> 1.5.2) Multi-stakeholder engagement | O26: =CHOOSE(uxb_works!$B$47,iData!I21,iScores!O21) -> Score 0-1 | P26: =IF(tblIndicators!T17="","",IF(AND(uxb_works!$B$47=1,OR(F26=5,Scores!F26<=2)),"",tblIndicators!T17)) -> 0 | Q26: =CHOOSE(uxb_works!$B$47,IF(iData!K21="","-",TEXT(iData!K21,$H26)),INDEX(aScores,$B26,Q$4)) -> 1 | R26: =CHOOSE(uxb_works!$B$47,IF(iData!L21="","-",TEXT(iData!L21,$H26)),INDEX(aScores,$B26,R$4)) -> 1 | S26: =CHOOSE(uxb_works!$B$47,IF(iData!M21="","-",TEXT(iData!M21,$H26)),INDEX(aScores,$B26,S$4)) -> 1 | T26: =CHOOSE(uxb_works!$B$47,IF(iData!N21="","-",TEXT(iData!N21,$H26)),INDEX(aScores,$B26,T$4)) -> 0 | U26: =CHOOSE(uxb_works!$B$47,IF(iData!O21="","-",TEXT(iData!O21,$H26)),INDEX(aScores,$B26,U$4)) -> 1 | V26: =CHOOSE(uxb_works!$B$47,IF(iData!P21="","-",TEXT(iData!P21,$H26)),INDEX(aScores,$B26,V$4)) -> 1 | W26: =CHOOSE(uxb_works!$B$47,IF(iData!Q21="","-",TEXT(iData!Q21,$H26)),INDEX(aScores,$B26,W$4)) -> 1 | X26: =CHOOSE(uxb_works!$B$47,IF(iData!R21="","-",TEXT(iData!R21,$H26)),INDEX(aScores,$B26,X$4)) -> 1 | Y26: =CHOOSE(uxb_works!$B$47,IF(iData!S21="","-",TEXT(iData!S21,$H26)),INDEX(aScores,$B26,Y$4)) -> 1 | Z26: =CHOOSE(uxb_works!$B$47,IF(iData!T21="","-",TEXT(iData!T21,$H26)),INDEX(aScores,$B26,Z$4)) -> 0 | AA26: =CHOOSE(uxb_works!$B$47,IF(iData!U21="","-",TEXT(iData!U21,$H26)),INDEX(aScores,$B26,AA$4)) -> 0 | AB26: =CHOOSE(uxb_works!$B$47,IF(iData!V21="","-",TEXT(iData!V21,$H26)),INDEX(aScores,$B26,AB$4)) -> 1 | AC26: =CHOOSE(uxb_works!$B$47,IF(iData!W21="","-",TEXT(iData!W21,$H26)),INDEX(aScores,$B26,AC$4)) -> 0 | AD26: =CHOOSE(uxb_works!$B$47,IF(iData!X21="","-",TEXT(iData!X21,$H26)),INDEX(aScores,$B26,AD$4)) -> 1 | AE26: =CHOOSE(uxb_works!$B$47,IF(iData!Y21="","-",TEXT(iData!Y21,$H26)),INDEX(aScores,$B26,AE$4)) -> 0 | AF26: =CHOOSE(uxb_works!$B$47,IF(iData!Z21="","-",TEXT(iData!Z21,$H26)),INDEX(aScores,$B26,AF$4)) -> 1 | AG26: =CHOOSE(uxb_works!$B$47,IF(iData!AA21="","-",TEXT(iData!AA21,$H26)),INDEX(aScores,$B26,AG$4)) -> 1 | AH26: =CHOOSE(uxb_works!$B$47,IF(iData!AB21="","-",TEXT(iData!AB21,$H26)),INDEX(aScores,$B26,AH$4)) -> 1 | AI26: =CHOOSE(uxb_works!$B$47,IF(iData!AC21="","-",TEXT(iData!AC21,$H26)),INDEX(aScores,$B26,AI$4)) -> 1 | AJ26: =CHOOSE(uxb_works!$B$47,IF(iData!AD21="","-",TEXT(iData!AD21,$H26)),INDEX(aScores,$B26,AJ$4)) -> 1
B27: =tblIndicators!A18 -> 17 | F27: =iScores!F22 -> 2 | H27: =tblIndicators!AC18 -> #,##0.0 | K27: =IF(uxb_works!$B$46>=L27,1,0) -> 1 | L27: =tblIndicators!G18 -> 2 | N27: =iScores!N22 -> 1.6) Extractive industries transparency | O27: =CHOOSE(uxb_works!$B$47,iData!I22,iScores!O22) ->  | P27: =IF(tblIndicators!T18="","",IF(AND(uxb_works!$B$47=1,OR(F27=5,Scores!F27<=2)),"",tblIndicators!T18)) ->  | Q27: =CHOOSE(uxb_works!$B$47,IF(iData!K22="","-",TEXT(iData!K22,$H27)),INDEX(aScores,$B27,Q$4)) -> - | R27: =CHOOSE(uxb_works!$B$47,IF(iData!L22="","-",TEXT(iData!L22,$H27)),INDEX(aScores,$B27,R$4)) -> - | S27: =CHOOSE(uxb_works!$B$47,IF(iData!M22="","-",TEXT(iData!M22,$H27)),INDEX(aScores,$B27,S$4)) -> - | T27: =CHOOSE(uxb_works!$B$47,IF(iData!N22="","-",TEXT(iData!N22,$H27)),INDEX(aScores,$B27,T$4)) -> - | U27: =CHOOSE(uxb_works!$B$47,IF(iData!O22="","-",TEXT(iData!O22,$H27)),INDEX(aScores,$B27,U$4)) -> - | V27: =CHOOSE(uxb_works!$B$47,IF(iData!P22="","-",TEXT(iData!P22,$H27)),INDEX(aScores,$B27,V$4)) -> - | W27: =CHOOSE(uxb_works!$B$47,IF(iData!Q22="","-",TEXT(iData!Q22,$H27)),INDEX(aScores,$B27,W$4)) -> - | X27: =CHOOSE(uxb_works!$B$47,IF(iData!R22="","-",TEXT(iData!R22,$H27)),INDEX(aScores,$B27,X$4)) -> - | Y27: =CHOOSE(uxb_works!$B$47,IF(iData!S22="","-",TEXT(iData!S22,$H27)),INDEX(aScores,$B27,Y$4)) -> - | Z27: =CHOOSE(uxb_works!$B$47,IF(iData!T22="","-",TEXT(iData!T22,$H27)),INDEX(aScores,$B27,Z$4)) -> - | AA27: =CHOOSE(uxb_works!$B$47,IF(iData!U22="","-",TEXT(iData!U22,$H27)),INDEX(aScores,$B27,AA$4)) -> - | AB27: =CHOOSE(uxb_works!$B$47,IF(iData!V22="","-",TEXT(iData!V22,$H27)),INDEX(aScores,$B27,AB$4)) -> - | AC27: =CHOOSE(uxb_works!$B$47,IF(iData!W22="","-",TEXT(iData!W22,$H27)),INDEX(aScores,$B27,AC$4)) -> - | AD27: =CHOOSE(uxb_works!$B$47,IF(iData!X22="","-",TEXT(iData!X22,$H27)),INDEX(aScores,$B27,AD$4)) -> - | AE27: =CHOOSE(uxb_works!$B$47,IF(iData!Y22="","-",TEXT(iData!Y22,$H27)),INDEX(aScores,$B27,AE$4)) -> - | AF27: =CHOOSE(uxb_works!$B$47,IF(iData!Z22="","-",TEXT(iData!Z22,$H27)),INDEX(aScores,$B27,AF$4)) -> - | AG27: =CHOOSE(uxb_works!$B$47,IF(iData!AA22="","-",TEXT(iData!AA22,$H27)),INDEX(aScores,$B27,AG$4)) -> - | AH27: =CHOOSE(uxb_works!$B$47,IF(iData!AB22="","-",TEXT(iData!AB22,$H27)),INDEX(aScores,$B27,AH$4)) -> - | AI27: =CHOOSE(uxb_works!$B$47,IF(iData!AC22="","-",TEXT(iData!AC22,$H27)),INDEX(aScores,$B27,AI$4)) -> - | AJ27: =CHOOSE(uxb_works!$B$47,IF(iData!AD22="","-",TEXT(iData!AD22,$H27)),INDEX(aScores,$B27,AJ$4)) -> -
B28: =tblIndicators!A19 -> 18 | F28: =iScores!F23 -> 3 | H28: =tblIndicators!AC19 -> #,##0 | K28: =IF(uxb_works!$B$46>=L28,1,0) -> 1 | L28: =tblIndicators!G19 -> 3 | N28: =iScores!N23 -> 1.6.1) Adoption of EITI standards | O28: =CHOOSE(uxb_works!$B$47,iData!I23,iScores!O23) -> Score 0-3 | P28: =IF(tblIndicators!T19="","",IF(AND(uxb_works!$B$47=1,OR(F28=5,Scores!F28<=2)),"",tblIndicators!T19)) -> 3 | Q28: =CHOOSE(uxb_works!$B$47,IF(iData!K23="","-",TEXT(iData!K23,$H28)),INDEX(aScores,$B28,Q$4)) -> 0 | R28: =CHOOSE(uxb_works!$B$47,IF(iData!L23="","-",TEXT(iData!L23,$H28)),INDEX(aScores,$B28,R$4)) -> 0 | S28: =CHOOSE(uxb_works!$B$47,IF(iData!M23="","-",TEXT(iData!M23,$H28)),INDEX(aScores,$B28,S$4)) -> 0 | T28: =CHOOSE(uxb_works!$B$47,IF(iData!N23="","-",TEXT(iData!N23,$H28)),INDEX(aScores,$B28,T$4)) -> 0 | U28: =CHOOSE(uxb_works!$B$47,IF(iData!O23="","-",TEXT(iData!O23,$H28)),INDEX(aScores,$B28,U$4)) -> 3 | V28: =CHOOSE(uxb_works!$B$47,IF(iData!P23="","-",TEXT(iData!P23,$H28)),INDEX(aScores,$B28,V$4)) -> 0 | W28: =CHOOSE(uxb_works!$B$47,IF(iData!Q23="","-",TEXT(iData!Q23,$H28)),INDEX(aScores,$B28,W$4)) -> 3 | X28: =CHOOSE(uxb_works!$B$47,IF(iData!R23="","-",TEXT(iData!R23,$H28)),INDEX(aScores,$B28,X$4)) -> 3 | Y28: =CHOOSE(uxb_works!$B$47,IF(iData!S23="","-",TEXT(iData!S23,$H28)),INDEX(aScores,$B28,Y$4)) -> 2 | Z28: =CHOOSE(uxb_works!$B$47,IF(iData!T23="","-",TEXT(iData!T23,$H28)),INDEX(aScores,$B28,Z$4)) -> 3 | AA28: =CHOOSE(uxb_works!$B$47,IF(iData!U23="","-",TEXT(iData!U23,$H28)),INDEX(aScores,$B28,AA$4)) -> 3 | AB28: =CHOOSE(uxb_works!$B$47,IF(iData!V23="","-",TEXT(iData!V23,$H28)),INDEX(aScores,$B28,AB$4)) -> 3 | AC28: =CHOOSE(uxb_works!$B$47,IF(iData!W23="","-",TEXT(iData!W23,$H28)),INDEX(aScores,$B28,AC$4)) -> 3 | AD28: =CHOOSE(uxb_works!$B$47,IF(iData!X23="","-",TEXT(iData!X23,$H28)),INDEX(aScores,$B28,AD$4)) -> 3 | AE28: =CHOOSE(uxb_works!$B$47,IF(iData!Y23="","-",TEXT(iData!Y23,$H28)),INDEX(aScores,$B28,AE$4)) -> 0 | AF28: =CHOOSE(uxb_works!$B$47,IF(iData!Z23="","-",TEXT(iData!Z23,$H28)),INDEX(aScores,$B28,AF$4)) -> 0 | AG28: =CHOOSE(uxb_works!$B$47,IF(iData!AA23="","-",TEXT(iData!AA23,$H28)),INDEX(aScores,$B28,AG$4)) -> 3 | AH28: =CHOOSE(uxb_works!$B$47,IF(iData!AB23="","-",TEXT(iData!AB23,$H28)),INDEX(aScores,$B28,AH$4)) -> 0 | AI28: =CHOOSE(uxb_works!$B$47,IF(iData!AC23="","-",TEXT(iData!AC23,$H28)),INDEX(aScores,$B28,AI$4)) -> 0 | AJ28: =CHOOSE(uxb_works!$B$47,IF(iData!AD23="","-",TEXT(iData!AD23,$H28)),INDEX(aScores,$B28,AJ$4)) -> 0
B29: =tblIndicators!A20 -> 19 | F29: =iScores!F24 -> 2 | H29: =tblIndicators!AC20 -> #,##0.0 | K29: =IF(uxb_works!$B$46>=L29,1,0) -> 1 | L29: =tblIndicators!G20 -> 2 | N29: =iScores!N24 -> 1.7) Adoption of the United Nations Convention on the Law of the Sea (UNCLOS) | O29: =CHOOSE(uxb_works!$B$47,iData!I24,iScores!O24) ->  | P29: =IF(tblIndicators!T20="","",IF(AND(uxb_works!$B$47=1,OR(F29=5,Scores!F29<=2)),"",tblIndicators!T20)) ->  | Q29: =CHOOSE(uxb_works!$B$47,IF(iData!K24="","-",TEXT(iData!K24,$H29)),INDEX(aScores,$B29,Q$4)) -> - | R29: =CHOOSE(uxb_works!$B$47,IF(iData!L24="","-",TEXT(iData!L24,$H29)),INDEX(aScores,$B29,R$4)) -> - | S29: =CHOOSE(uxb_works!$B$47,IF(iData!M24="","-",TEXT(iData!M24,$H29)),INDEX(aScores,$B29,S$4)) -> - | T29: =CHOOSE(uxb_works!$B$47,IF(iData!N24="","-",TEXT(iData!N24,$H29)),INDEX(aScores,$B29,T$4)) -> - | U29: =CHOOSE(uxb_works!$B$47,IF(iData!O24="","-",TEXT(iData!O24,$H29)),INDEX(aScores,$B29,U$4)) -> - | V29: =CHOOSE(uxb_works!$B$47,IF(iData!P24="","-",TEXT(iData!P24,$H29)),INDEX(aScores,$B29,V$4)) -> - | W29: =CHOOSE(uxb_works!$B$47,IF(iData!Q24="","-",TEXT(iData!Q24,$H29)),INDEX(aScores,$B29,W$4)) -> - | X29: =CHOOSE(uxb_works!$B$47,IF(iData!R24="","-",TEXT(iData!R24,$H29)),INDEX(aScores,$B29,X$4)) -> - | Y29: =CHOOSE(uxb_works!$B$47,IF(iData!S24="","-",TEXT(iData!S24,$H29)),INDEX(aScores,$B29,Y$4)) -> - | Z29: =CHOOSE(uxb_works!$B$47,IF(iData!T24="","-",TEXT(iData!T24,$H29)),INDEX(aScores,$B29,Z$4)) -> - | AA29: =CHOOSE(uxb_works!$B$47,IF(iData!U24="","-",TEXT(iData!U24,$H29)),INDEX(aScores,$B29,AA$4)) -> - | AB29: =CHOOSE(uxb_works!$B$47,IF(iData!V24="","-",TEXT(iData!V24,$H29)),INDEX(aScores,$B29,AB$4)) -> - | AC29: =CHOOSE(uxb_works!$B$47,IF(iData!W24="","-",TEXT(iData!W24,$H29)),INDEX(aScores,$B29,AC$4)) -> - | AD29: =CHOOSE(uxb_works!$B$47,IF(iData!X24="","-",TEXT(iData!X24,$H29)),INDEX(aScores,$B29,AD$4)) -> - | AE29: =CHOOSE(uxb_works!$B$47,IF(iData!Y24="","-",TEXT(iData!Y24,$H29)),INDEX(aScores,$B29,AE$4)) -> - | AF29: =CHOOSE(uxb_works!$B$47,IF(iData!Z24="","-",TEXT(iData!Z24,$H29)),INDEX(aScores,$B29,AF$4)) -> - | AG29: =CHOOSE(uxb_works!$B$47,IF(iData!AA24="","-",TEXT(iData!AA24,$H29)),INDEX(aScores,$B29,AG$4)) -> - | AH29: =CHOOSE(uxb_works!$B$47,IF(iData!AB24="","-",TEXT(iData!AB24,$H29)),INDEX(aScores,$B29,AH$4)) -> - | AI29: =CHOOSE(uxb_works!$B$47,IF(iData!AC24="","-",TEXT(iData!AC24,$H29)),INDEX(aScores,$B29,AI$4)) -> - | AJ29: =CHOOSE(uxb_works!$B$47,IF(iData!AD24="","-",TEXT(iData!AD24,$H29)),INDEX(aScores,$B29,AJ$4)) -> -
B30: =tblIndicators!A21 -> 20 | F30: =iScores!F25 -> 3 | H30: =tblIndicators!AC21 -> #,##0 | K30: =IF(uxb_works!$B$46>=L30,1,0) -> 1 | L30: =tblIndicators!G21 -> 3 | N30: =iScores!N25 -> 1.7.1) Adoption of UNCLOS | O30: =CHOOSE(uxb_works!$B$47,iData!I25,iScores!O25) -> Score 0-2 | P30: =IF(tblIndicators!T21="","",IF(AND(uxb_works!$B$47=1,OR(F30=5,Scores!F30<=2)),"",tblIndicators!T21)) -> 2 | Q30: =CHOOSE(uxb_works!$B$47,IF(iData!K25="","-",TEXT(iData!K25,$H30)),INDEX(aScores,$B30,Q$4)) -> 2 | R30: =CHOOSE(uxb_works!$B$47,IF(iData!L25="","-",TEXT(iData!L25,$H30)),INDEX(aScores,$B30,R$4)) -> 2 | S30: =CHOOSE(uxb_works!$B$47,IF(iData!M25="","-",TEXT(iData!M25,$H30)),INDEX(aScores,$B30,S$4)) -> 2 | T30: =CHOOSE(uxb_works!$B$47,IF(iData!N25="","-",TEXT(iData!N25,$H30)),INDEX(aScores,$B30,T$4)) -> 2 | U30: =CHOOSE(uxb_works!$B$47,IF(iData!O25="","-",TEXT(iData!O25,$H30)),INDEX(aScores,$B30,U$4)) -> 2 | V30: =CHOOSE(uxb_works!$B$47,IF(iData!P25="","-",TEXT(iData!P25,$H30)),INDEX(aScores,$B30,V$4)) -> 2 | W30: =CHOOSE(uxb_works!$B$47,IF(iData!Q25="","-",TEXT(iData!Q25,$H30)),INDEX(aScores,$B30,W$4)) -> 2 | X30: =CHOOSE(uxb_works!$B$47,IF(iData!R25="","-",TEXT(iData!R25,$H30)),INDEX(aScores,$B30,X$4)) -> 2 | Y30: =CHOOSE(uxb_works!$B$47,IF(iData!S25="","-",TEXT(iData!S25,$H30)),INDEX(aScores,$B30,Y$4)) -> 2 | Z30: =CHOOSE(uxb_works!$B$47,IF(iData!T25="","-",TEXT(iData!T25,$H30)),INDEX(aScores,$B30,Z$4)) -> 2 | AA30: =CHOOSE(uxb_works!$B$47,IF(iData!U25="","-",TEXT(iData!U25,$H30)),INDEX(aScores,$B30,AA$4)) -> 2 | AB30: =CHOOSE(uxb_works!$B$47,IF(iData!V25="","-",TEXT(iData!V25,$H30)),INDEX(aScores,$B30,AB$4)) -> 2 | AC30: =CHOOSE(uxb_works!$B$47,IF(iData!W25="","-",TEXT(iData!W25,$H30)),INDEX(aScores,$B30,AC$4)) -> 0 | AD30: =CHOOSE(uxb_works!$B$47,IF(iData!X25="","-",TEXT(iData!X25,$H30)),INDEX(aScores,$B30,AD$4)) -> 2 | AE30: =CHOOSE(uxb_works!$B$47,IF(iData!Y25="","-",TEXT(iData!Y25,$H30)),INDEX(aScores,$B30,AE$4)) -> 2 | AF30: =CHOOSE(uxb_works!$B$47,IF(iData!Z25="","-",TEXT(iData!Z25,$H30)),INDEX(aScores,$B30,AF$4)) -> 2 | AG30: =CHOOSE(uxb_works!$B$47,IF(iData!AA25="","-",TEXT(iData!AA25,$H30)),INDEX(aScores,$B30,AG$4)) -> 2 | AH30: =CHOOSE(uxb_works!$B$47,IF(iData!AB25="","-",TEXT(iData!AB25,$H30)),INDEX(aScores,$B30,AH$4)) -> 2 | AI30: =CHOOSE(uxb_works!$B$47,IF(iData!AC25="","-",TEXT(iData!AC25,$H30)),INDEX(aScores,$B30,AI$4)) -> 0 | AJ30: =CHOOSE(uxb_works!$B$47,IF(iData!AD25="","-",TEXT(iData!AD25,$H30)),INDEX(aScores,$B30,AJ$4)) -> 2
B31: =tblIndicators!A22 -> 21 | F31: =iScores!F26 -> 1 | H31: =tblIndicators!AC22 -> #,##0.0 | K31: =IF(uxb_works!$B$46>=L31,1,0) -> 1 | L31: =tblIndicators!G22 -> 1 | N31: =iScores!N26 -> 2) BUSINESS ENVIRONMENT FOR COASTAL ACTIVITIES | O31: =CHOOSE(uxb_works!$B$47,iData!I26,iScores!O26) ->  | P31: =IF(tblIndicators!T22="","",IF(AND(uxb_works!$B$47=1,OR(F31=5,Scores!F31<=2)),"",tblIndicators!T22)) ->  | Q31: =CHOOSE(uxb_works!$B$47,IF(iData!K26="","-",TEXT(iData!K26,$H31)),INDEX(aScores,$B31,Q$4)) -> - | R31: =CHOOSE(uxb_works!$B$47,IF(iData!L26="","-",TEXT(iData!L26,$H31)),INDEX(aScores,$B31,R$4)) -> - | S31: =CHOOSE(uxb_works!$B$47,IF(iData!M26="","-",TEXT(iData!M26,$H31)),INDEX(aScores,$B31,S$4)) -> - | T31: =CHOOSE(uxb_works!$B$47,IF(iData!N26="","-",TEXT(iData!N26,$H31)),INDEX(aScores,$B31,T$4)) -> - | U31: =CHOOSE(uxb_works!$B$47,IF(iData!O26="","-",TEXT(iData!O26,$H31)),INDEX(aScores,$B31,U$4)) -> - | V31: =CHOOSE(uxb_works!$B$47,IF(iData!P26="","-",TEXT(iData!P26,$H31)),INDEX(aScores,$B31,V$4)) -> - | W31: =CHOOSE(uxb_works!$B$47,IF(iData!Q26="","-",TEXT(iData!Q26,$H31)),INDEX(aScores,$B31,W$4)) -> - | X31: =CHOOSE(uxb_works!$B$47,IF(iData!R26="","-",TEXT(iData!R26,$H31)),INDEX(aScores,$B31,X$4)) -> - | Y31: =CHOOSE(uxb_works!$B$47,IF(iData!S26="","-",TEXT(iData!S26,$H31)),INDEX(aScores,$B31,Y$4)) -> - | Z31: =CHOOSE(uxb_works!$B$47,IF(iData!T26="","-",TEXT(iData!T26,$H31)),INDEX(aScores,$B31,Z$4)) -> - | AA31: =CHOOSE(uxb_works!$B$47,IF(iData!U26="","-",TEXT(iData!U26,$H31)),INDEX(aScores,$B31,AA$4)) -> - | AB31: =CHOOSE(uxb_works!$B$47,IF(iData!V26="","-",TEXT(iData!V26,$H31)),INDEX(aScores,$B31,AB$4)) -> - | AC31: =CHOOSE(uxb_works!$B$47,IF(iData!W26="","-",TEXT(iData!W26,$H31)),INDEX(aScores,$B31,AC$4)) -> - | AD31: =CHOOSE(uxb_works!$B$47,IF(iData!X26="","-",TEXT(iData!X26,$H31)),INDEX(aScores,$B31,AD$4)) -> - | AE31: =CHOOSE(uxb_works!$B$47,IF(iData!Y26="","-",TEXT(iData!Y26,$H31)),INDEX(aScores,$B31,AE$4)) -> - | AF31: =CHOOSE(uxb_works!$B$47,IF(iData!Z26="","-",TEXT(iData!Z26,$H31)),INDEX(aScores,$B31,AF$4)) -> - | AG31: =CHOOSE(uxb_works!$B$47,IF(iData!AA26="","-",TEXT(iData!AA26,$H31)),INDEX(aScores,$B31,AG$4)) -> - | AH31: =CHOOSE(uxb_works!$B$47,IF(iData!AB26="","-",TEXT(iData!AB26,$H31)),INDEX(aScores,$B31,AH$4)) -> - | AI31: =CHOOSE(uxb_works!$B$47,IF(iData!AC26="","-",TEXT(iData!AC26,$H31)),INDEX(aScores,$B31,AI$4)) -> - | AJ31: =CHOOSE(uxb_works!$B$47,IF(iData!AD26="","-",TEXT(iData!AD26,$H31)),INDEX(aScores,$B31,AJ$4)) -> -
B32: =tblIndicators!A23 -> 22 | F32: =iScores!F27 -> 2 | H32: =tblIndicators!AC23 -> #,##0.0 | K32: =IF(uxb_works!$B$46>=L32,1,0) -> 1 | L32: =tblIndicators!G23 -> 2 | N32: =iScores!N27 -> 2.1) Ease of doing business | O32: =CHOOSE(uxb_works!$B$47,iData!I27,iScores!O27) ->  | P32: =IF(tblIndicators!T23="","",IF(AND(uxb_works!$B$47=1,OR(F32=5,Scores!F32<=2)),"",tblIndicators!T23)) ->  | Q32: =CHOOSE(uxb_works!$B$47,IF(iData!K27="","-",TEXT(iData!K27,$H32)),INDEX(aScores,$B32,Q$4)) -> - | R32: =CHOOSE(uxb_works!$B$47,IF(iData!L27="","-",TEXT(iData!L27,$H32)),INDEX(aScores,$B32,R$4)) -> - | S32: =CHOOSE(uxb_works!$B$47,IF(iData!M27="","-",TEXT(iData!M27,$H32)),INDEX(aScores,$B32,S$4)) -> - | T32: =CHOOSE(uxb_works!$B$47,IF(iData!N27="","-",TEXT(iData!N27,$H32)),INDEX(aScores,$B32,T$4)) -> - | U32: =CHOOSE(uxb_works!$B$47,IF(iData!O27="","-",TEXT(iData!O27,$H32)),INDEX(aScores,$B32,U$4)) -> - | V32: =CHOOSE(uxb_works!$B$47,IF(iData!P27="","-",TEXT(iData!P27,$H32)),INDEX(aScores,$B32,V$4)) -> - | W32: =CHOOSE(uxb_works!$B$47,IF(iData!Q27="","-",TEXT(iData!Q27,$H32)),INDEX(aScores,$B32,W$4)) -> - | X32: =CHOOSE(uxb_works!$B$47,IF(iData!R27="","-",TEXT(iData!R27,$H32)),INDEX(aScores,$B32,X$4)) -> - | Y32: =CHOOSE(uxb_works!$B$47,IF(iData!S27="","-",TEXT(iData!S27,$H32)),INDEX(aScores,$B32,Y$4)) -> - | Z32: =CHOOSE(uxb_works!$B$47,IF(iData!T27="","-",TEXT(iData!T27,$H32)),INDEX(aScores,$B32,Z$4)) -> - | AA32: =CHOOSE(uxb_works!$B$47,IF(iData!U27="","-",TEXT(iData!U27,$H32)),INDEX(aScores,$B32,AA$4)) -> - | AB32: =CHOOSE(uxb_works!$B$47,IF(iData!V27="","-",TEXT(iData!V27,$H32)),INDEX(aScores,$B32,AB$4)) -> - | AC32: =CHOOSE(uxb_works!$B$47,IF(iData!W27="","-",TEXT(iData!W27,$H32)),INDEX(aScores,$B32,AC$4)) -> - | AD32: =CHOOSE(uxb_works!$B$47,IF(iData!X27="","-",TEXT(iData!X27,$H32)),INDEX(aScores,$B32,AD$4)) -> - | AE32: =CHOOSE(uxb_works!$B$47,IF(iData!Y27="","-",TEXT(iData!Y27,$H32)),INDEX(aScores,$B32,AE$4)) -> - | AF32: =CHOOSE(uxb_works!$B$47,IF(iData!Z27="","-",TEXT(iData!Z27,$H32)),INDEX(aScores,$B32,AF$4)) -> - | AG32: =CHOOSE(uxb_works!$B$47,IF(iData!AA27="","-",TEXT(iData!AA27,$H32)),INDEX(aScores,$B32,AG$4)) -> - | AH32: =CHOOSE(uxb_works!$B$47,IF(iData!AB27="","-",TEXT(iData!AB27,$H32)),INDEX(aScores,$B32,AH$4)) -> - | AI32: =CHOOSE(uxb_works!$B$47,IF(iData!AC27="","-",TEXT(iData!AC27,$H32)),INDEX(aScores,$B32,AI$4)) -> - | AJ32: =CHOOSE(uxb_works!$B$47,IF(iData!AD27="","-",TEXT(iData!AD27,$H32)),INDEX(aScores,$B32,AJ$4)) -> -
B33: =tblIndicators!A24 -> 23 | F33: =iScores!F28 -> 3 | H33: =tblIndicators!AC24 -> #,##0.0 | K33: =IF(uxb_works!$B$46>=L33,1,0) -> 1 | L33: =tblIndicators!G24 -> 3 | N33: =iScores!N28 -> 2.1.1) Business environment | O33: =CHOOSE(uxb_works!$B$47,iData!I28,iScores!O28) -> Score 0-9 | P33: =IF(tblIndicators!T24="","",IF(AND(uxb_works!$B$47=1,OR(F33=5,Scores!F33<=2)),"",tblIndicators!T24)) -> 8.37 | Q33: =CHOOSE(uxb_works!$B$47,IF(iData!K28="","-",TEXT(iData!K28,$H33)),INDEX(aScores,$B33,Q$4)) -> 6.1 | R33: =CHOOSE(uxb_works!$B$47,IF(iData!L28="","-",TEXT(iData!L28,$H33)),INDEX(aScores,$B33,R$4)) -> 8.4 | S33: =CHOOSE(uxb_works!$B$47,IF(iData!M28="","-",TEXT(iData!M28,$H33)),INDEX(aScores,$B33,S$4)) -> 8.0 | T33: =CHOOSE(uxb_works!$B$47,IF(iData!N28="","-",TEXT(iData!N28,$H33)),INDEX(aScores,$B33,T$4)) -> 6.2 | U33: =CHOOSE(uxb_works!$B$47,IF(iData!O28="","-",TEXT(iData!O28,$H33)),INDEX(aScores,$B33,U$4)) -> 8.2 | V33: =CHOOSE(uxb_works!$B$47,IF(iData!P28="","-",TEXT(iData!P28,$H33)),INDEX(aScores,$B33,V$4)) -> 5.6 | W33: =CHOOSE(uxb_works!$B$47,IF(iData!Q28="","-",TEXT(iData!Q28,$H33)),INDEX(aScores,$B33,W$4)) -> 6.1 | X33: =CHOOSE(uxb_works!$B$47,IF(iData!R28="","-",TEXT(iData!R28,$H33)),INDEX(aScores,$B33,X$4)) -> 7.7 | Y33: =CHOOSE(uxb_works!$B$47,IF(iData!S28="","-",TEXT(iData!S28,$H33)),INDEX(aScores,$B33,Y$4)) -> 6.6 | Z33: =CHOOSE(uxb_works!$B$47,IF(iData!T28="","-",TEXT(iData!T28,$H33)),INDEX(aScores,$B33,Z$4)) -> 8.4 | AA33: =CHOOSE(uxb_works!$B$47,IF(iData!U28="","-",TEXT(iData!U28,$H33)),INDEX(aScores,$B33,AA$4)) -> 4.4 | AB33: =CHOOSE(uxb_works!$B$47,IF(iData!V28="","-",TEXT(iData!V28,$H33)),INDEX(aScores,$B33,AB$4)) -> 8.3 | AC33: =CHOOSE(uxb_works!$B$47,IF(iData!W28="","-",TEXT(iData!W28,$H33)),INDEX(aScores,$B33,AC$4)) -> 6.5 | AD33: =CHOOSE(uxb_works!$B$47,IF(iData!X28="","-",TEXT(iData!X28,$H33)),INDEX(aScores,$B33,AD$4)) -> 6.2 | AE33: =CHOOSE(uxb_works!$B$47,IF(iData!Y28="","-",TEXT(iData!Y28,$H33)),INDEX(aScores,$B33,AE$4)) -> 5.6 | AF33: =CHOOSE(uxb_works!$B$47,IF(iData!Z28="","-",TEXT(iData!Z28,$H33)),INDEX(aScores,$B33,AF$4)) -> 6.1 | AG33: =CHOOSE(uxb_works!$B$47,IF(iData!AA28="","-",TEXT(iData!AA28,$H33)),INDEX(aScores,$B33,AG$4)) -> 7.4 | AH33: =CHOOSE(uxb_works!$B$47,IF(iData!AB28="","-",TEXT(iData!AB28,$H33)),INDEX(aScores,$B33,AH$4)) -> 7.4 | AI33: =CHOOSE(uxb_works!$B$47,IF(iData!AC28="","-",TEXT(iData!AC28,$H33)),INDEX(aScores,$B33,AI$4)) -> 8.3 | AJ33: =CHOOSE(uxb_works!$B$47,IF(iData!AD28="","-",TEXT(iData!AD28,$H33)),INDEX(aScores,$B33,AJ$4)) -> 6.1
B34: =tblIndicators!A25 -> 24 | F34: =iScores!F29 -> 2 | H34: =tblIndicators!AC25 -> #,##0.0 | K34: =IF(uxb_works!$B$46>=L34,1,0) -> 1 | L34: =tblIndicators!G25 -> 2 | N34: =iScores!N29 -> 2.2) Corruption perception | O34: =CHOOSE(uxb_works!$B$47,iData!I29,iScores!O29) ->  | P34: =IF(tblIndicators!T25="","",IF(AND(uxb_works!$B$47=1,OR(F34=5,Scores!F34<=2)),"",tblIndicators!T25)) ->  | Q34: =CHOOSE(uxb_works!$B$47,IF(iData!K29="","-",TEXT(iData!K29,$H34)),INDEX(aScores,$B34,Q$4)) -> - | R34: =CHOOSE(uxb_works!$B$47,IF(iData!L29="","-",TEXT(iData!L29,$H34)),INDEX(aScores,$B34,R$4)) -> - | S34: =CHOOSE(uxb_works!$B$47,IF(iData!M29="","-",TEXT(iData!M29,$H34)),INDEX(aScores,$B34,S$4)) -> - | T34: =CHOOSE(uxb_works!$B$47,IF(iData!N29="","-",TEXT(iData!N29,$H34)),INDEX(aScores,$B34,T$4)) -> - | U34: =CHOOSE(uxb_works!$B$47,IF(iData!O29="","-",TEXT(iData!O29,$H34)),INDEX(aScores,$B34,U$4)) -> - | V34: =CHOOSE(uxb_works!$B$47,IF(iData!P29="","-",TEXT(iData!P29,$H34)),INDEX(aScores,$B34,V$4)) -> - | W34: =CHOOSE(uxb_works!$B$47,IF(iData!Q29="","-",TEXT(iData!Q29,$H34)),INDEX(aScores,$B34,W$4)) -> - | X34: =CHOOSE(uxb_works!$B$47,IF(iData!R29="","-",TEXT(iData!R29,$H34)),INDEX(aScores,$B34,X$4)) -> - | Y34: =CHOOSE(uxb_works!$B$47,IF(iData!S29="","-",TEXT(iData!S29,$H34)),INDEX(aScores,$B34,Y$4)) -> - | Z34: =CHOOSE(uxb_works!$B$47,IF(iData!T29="","-",TEXT(iData!T29,$H34)),INDEX(aScores,$B34,Z$4)) -> - | AA34: =CHOOSE(uxb_works!$B$47,IF(iData!U29="","-",TEXT(iData!U29,$H34)),INDEX(aScores,$B34,AA$4)) -> - | AB34: =CHOOSE(uxb_works!$B$47,IF(iData!V29="","-",TEXT(iData!V29,$H34)),INDEX(aScores,$B34,AB$4)) -> - | AC34: =CHOOSE(uxb_works!$B$47,IF(iData!W29="","-",TEXT(iData!W29,$H34)),INDEX(aScores,$B34,AC$4)) -> - | AD34: =CHOOSE(uxb_works!$B$47,IF(iData!X29="","-",TEXT(iData!X29,$H34)),INDEX(aScores,$B34,AD$4)) -> - | AE34: =CHOOSE(uxb_works!$B$47,IF(iData!Y29="","-",TEXT(iData!Y29,$H34)),INDEX(aScores,$B34,AE$4)) -> - | AF34: =CHOOSE(uxb_works!$B$47,IF(iData!Z29="","-",TEXT(iData!Z29,$H34)),INDEX(aScores,$B34,AF$4)) -> - | AG34: =CHOOSE(uxb_works!$B$47,IF(iData!AA29="","-",TEXT(iData!AA29,$H34)),INDEX(aScores,$B34,AG$4)) -> - | AH34: =CHOOSE(uxb_works!$B$47,IF(iData!AB29="","-",TEXT(iData!AB29,$H34)),INDEX(aScores,$B34,AH$4)) -> - | AI34: =CHOOSE(uxb_works!$B$47,IF(iData!AC29="","-",TEXT(iData!AC29,$H34)),INDEX(aScores,$B34,AI$4)) -> - | AJ34: =CHOOSE(uxb_works!$B$47,IF(iData!AD29="","-",TEXT(iData!AD29,$H34)),INDEX(aScores,$B34,AJ$4)) -> -
B35: =tblIndicators!A26 -> 25 | F35: =iScores!F30 -> 3 | H35: =tblIndicators!AC26 -> #,##0.00 | K35: =IF(uxb_works!$B$46>=L35,1,0) -> 1 | L35: =tblIndicators!G26 -> 3 | N35: =iScores!N30 -> 2.2.1) Control of corruption | O35: =CHOOSE(uxb_works!$B$47,iData!I30,iScores!O30) -> Score 0-100 | P35: =IF(tblIndicators!T26="","",IF(AND(uxb_works!$B$47=1,OR(F35=5,Scores!F35<=2)),"",tblIndicators!T26)) -> 100 | Q35: =CHOOSE(uxb_works!$B$47,IF(iData!K30="","-",TEXT(iData!K30,$H35)),INDEX(aScores,$B35,Q$4)) -> 36.10 | R35: =CHOOSE(uxb_works!$B$47,IF(iData!L30="","-",TEXT(iData!L30,$H35)),INDEX(aScores,$B35,R$4)) -> 95.70 | S35: =CHOOSE(uxb_works!$B$47,IF(iData!M30="","-",TEXT(iData!M30,$H35)),INDEX(aScores,$B35,S$4)) -> 82.20 | T35: =CHOOSE(uxb_works!$B$47,IF(iData!N30="","-",TEXT(iData!N30,$H35)),INDEX(aScores,$B35,T$4)) -> 46.60 | U35: =CHOOSE(uxb_works!$B$47,IF(iData!O30="","-",TEXT(iData!O30,$H35)),INDEX(aScores,$B35,U$4)) -> 87.50 | V35: =CHOOSE(uxb_works!$B$47,IF(iData!P30="","-",TEXT(iData!P30,$H35)),INDEX(aScores,$B35,V$4)) -> 48.60 | W35: =CHOOSE(uxb_works!$B$47,IF(iData!Q30="","-",TEXT(iData!Q30,$H35)),INDEX(aScores,$B35,W$4)) -> 48.10 | X35: =CHOOSE(uxb_works!$B$47,IF(iData!R30="","-",TEXT(iData!R30,$H35)),INDEX(aScores,$B35,X$4)) -> 90.40 | Y35: =CHOOSE(uxb_works!$B$47,IF(iData!S30="","-",TEXT(iData!S30,$H35)),INDEX(aScores,$B35,Y$4)) -> 16.30 | Z35: =CHOOSE(uxb_works!$B$47,IF(iData!T30="","-",TEXT(iData!T30,$H35)),INDEX(aScores,$B35,Z$4)) -> 100.00 | AA35: =CHOOSE(uxb_works!$B$47,IF(iData!U30="","-",TEXT(iData!U30,$H35)),INDEX(aScores,$B35,AA$4)) -> 12.50 | AB35: =CHOOSE(uxb_works!$B$47,IF(iData!V30="","-",TEXT(iData!V30,$H35)),INDEX(aScores,$B35,AB$4)) -> 99.50 | AC35: =CHOOSE(uxb_works!$B$47,IF(iData!W30="","-",TEXT(iData!W30,$H35)),INDEX(aScores,$B35,AC$4)) -> 38.90 | AD35: =CHOOSE(uxb_works!$B$47,IF(iData!X30="","-",TEXT(iData!X30,$H35)),INDEX(aScores,$B35,AD$4)) -> 39.90 | AE35: =CHOOSE(uxb_works!$B$47,IF(iData!Y30="","-",TEXT(iData!Y30,$H35)),INDEX(aScores,$B35,AE$4)) -> 17.30 | AF35: =CHOOSE(uxb_works!$B$47,IF(iData!Z30="","-",TEXT(iData!Z30,$H35)),INDEX(aScores,$B35,AF$4)) -> 56.70 | AG35: =CHOOSE(uxb_works!$B$47,IF(iData!AA30="","-",TEXT(iData!AA30,$H35)),INDEX(aScores,$B35,AG$4)) -> 67.80 | AH35: =CHOOSE(uxb_works!$B$47,IF(iData!AB30="","-",TEXT(iData!AB30,$H35)),INDEX(aScores,$B35,AH$4)) -> 68.30 | AI35: =CHOOSE(uxb_works!$B$47,IF(iData!AC30="","-",TEXT(iData!AC30,$H35)),INDEX(aScores,$B35,AI$4)) -> 88.90 | AJ35: =CHOOSE(uxb_works!$B$47,IF(iData!AD30="","-",TEXT(iData!AD30,$H35)),INDEX(aScores,$B35,AJ$4)) -> 31.70
B36: =tblIndicators!A27 -> 26 | F36: =iScores!F31 -> 2 | H36: =tblIndicators!AC27 -> #,##0.0 | K36: =IF(uxb_works!$B$46>=L36,1,0) -> 1 | L36: =tblIndicators!G27 -> 2 | N36: =iScores!N31 -> 2.3) Effectiveness of dispute resolution mechanisms | O36: =CHOOSE(uxb_works!$B$47,iData!I31,iScores!O31) ->  | P36: =IF(tblIndicators!T27="","",IF(AND(uxb_works!$B$47=1,OR(F36=5,Scores!F36<=2)),"",tblIndicators!T27)) ->  | Q36: =CHOOSE(uxb_works!$B$47,IF(iData!K31="","-",TEXT(iData!K31,$H36)),INDEX(aScores,$B36,Q$4)) -> - | R36: =CHOOSE(uxb_works!$B$47,IF(iData!L31="","-",TEXT(iData!L31,$H36)),INDEX(aScores,$B36,R$4)) -> - | S36: =CHOOSE(uxb_works!$B$47,IF(iData!M31="","-",TEXT(iData!M31,$H36)),INDEX(aScores,$B36,S$4)) -> - | T36: =CHOOSE(uxb_works!$B$47,IF(iData!N31="","-",TEXT(iData!N31,$H36)),INDEX(aScores,$B36,T$4)) -> - | U36: =CHOOSE(uxb_works!$B$47,IF(iData!O31="","-",TEXT(iData!O31,$H36)),INDEX(aScores,$B36,U$4)) -> - | V36: =CHOOSE(uxb_works!$B$47,IF(iData!P31="","-",TEXT(iData!P31,$H36)),INDEX(aScores,$B36,V$4)) -> - | W36: =CHOOSE(uxb_works!$B$47,IF(iData!Q31="","-",TEXT(iData!Q31,$H36)),INDEX(aScores,$B36,W$4)) -> - | X36: =CHOOSE(uxb_works!$B$47,IF(iData!R31="","-",TEXT(iData!R31,$H36)),INDEX(aScores,$B36,X$4)) -> - | Y36: =CHOOSE(uxb_works!$B$47,IF(iData!S31="","-",TEXT(iData!S31,$H36)),INDEX(aScores,$B36,Y$4)) -> - | Z36: =CHOOSE(uxb_works!$B$47,IF(iData!T31="","-",TEXT(iData!T31,$H36)),INDEX(aScores,$B36,Z$4)) -> - | AA36: =CHOOSE(uxb_works!$B$47,IF(iData!U31="","-",TEXT(iData!U31,$H36)),INDEX(aScores,$B36,AA$4)) -> - | AB36: =CHOOSE(uxb_works!$B$47,IF(iData!V31="","-",TEXT(iData!V31,$H36)),INDEX(aScores,$B36,AB$4)) -> - | AC36: =CHOOSE(uxb_works!$B$47,IF(iData!W31="","-",TEXT(iData!W31,$H36)),INDEX(aScores,$B36,AC$4)) -> - | AD36: =CHOOSE(uxb_works!$B$47,IF(iData!X31="","-",TEXT(iData!X31,$H36)),INDEX(aScores,$B36,AD$4)) -> - | AE36: =CHOOSE(uxb_works!$B$47,IF(iData!Y31="","-",TEXT(iData!Y31,$H36)),INDEX(aScores,$B36,AE$4)) -> - | AF36: =CHOOSE(uxb_works!$B$47,IF(iData!Z31="","-",TEXT(iData!Z31,$H36)),INDEX(aScores,$B36,AF$4)) -> - | AG36: =CHOOSE(uxb_works!$B$47,IF(iData!AA31="","-",TEXT(iData!AA31,$H36)),INDEX(aScores,$B36,AG$4)) -> - | AH36: =CHOOSE(uxb_works!$B$47,IF(iData!AB31="","-",TEXT(iData!AB31,$H36)),INDEX(aScores,$B36,AH$4)) -> - | AI36: =CHOOSE(uxb_works!$B$47,IF(iData!AC31="","-",TEXT(iData!AC31,$H36)),INDEX(aScores,$B36,AI$4)) -> - | AJ36: =CHOOSE(uxb_works!$B$47,IF(iData!AD31="","-",TEXT(iData!AD31,$H36)),INDEX(aScores,$B36,AJ$4)) -> -
B37: =tblIndicators!A28 -> 27 | F37: =iScores!F32 -> 3 | H37: =tblIndicators!AC28 -> #,##0 | K37: =IF(uxb_works!$B$46>=L37,1,0) -> 1 | L37: =tblIndicators!G28 -> 3 | N37: =iScores!N32 -> 2.3.1) Fairness of judicial process | O37: =CHOOSE(uxb_works!$B$47,iData!I32,iScores!O32) -> Score 0-4 | P37: =IF(tblIndicators!T28="","",IF(AND(uxb_works!$B$47=1,OR(F37=5,Scores!F37<=2)),"",tblIndicators!T28)) -> 4 | Q37: =CHOOSE(uxb_works!$B$47,IF(iData!K32="","-",TEXT(iData!K32,$H37)),INDEX(aScores,$B37,Q$4)) -> 3 | R37: =CHOOSE(uxb_works!$B$47,IF(iData!L32="","-",TEXT(iData!L32,$H37)),INDEX(aScores,$B37,R$4)) -> 4 | S37: =CHOOSE(uxb_works!$B$47,IF(iData!M32="","-",TEXT(iData!M32,$H37)),INDEX(aScores,$B37,S$4)) -> 3 | T37: =CHOOSE(uxb_works!$B$47,IF(iData!N32="","-",TEXT(iData!N32,$H37)),INDEX(aScores,$B37,T$4)) -> 1 | U37: =CHOOSE(uxb_works!$B$47,IF(iData!O32="","-",TEXT(iData!O32,$H37)),INDEX(aScores,$B37,U$4)) -> 3 | V37: =CHOOSE(uxb_works!$B$47,IF(iData!P32="","-",TEXT(iData!P32,$H37)),INDEX(aScores,$B37,V$4)) -> 2 | W37: =CHOOSE(uxb_works!$B$47,IF(iData!Q32="","-",TEXT(iData!Q32,$H37)),INDEX(aScores,$B37,W$4)) -> 1 | X37: =CHOOSE(uxb_works!$B$47,IF(iData!R32="","-",TEXT(iData!R32,$H37)),INDEX(aScores,$B37,X$4)) -> 3 | Y37: =CHOOSE(uxb_works!$B$47,IF(iData!S32="","-",TEXT(iData!S32,$H37)),INDEX(aScores,$B37,Y$4)) -> 2 | Z37: =CHOOSE(uxb_works!$B$47,IF(iData!T32="","-",TEXT(iData!T32,$H37)),INDEX(aScores,$B37,Z$4)) -> 4 | AA37: =CHOOSE(uxb_works!$B$47,IF(iData!U32="","-",TEXT(iData!U32,$H37)),INDEX(aScores,$B37,AA$4)) -> 2 | AB37: =CHOOSE(uxb_works!$B$47,IF(iData!V32="","-",TEXT(iData!V32,$H37)),INDEX(aScores,$B37,AB$4)) -> 4 | AC37: =CHOOSE(uxb_works!$B$47,IF(iData!W32="","-",TEXT(iData!W32,$H37)),INDEX(aScores,$B37,AC$4)) -> 1 | AD37: =CHOOSE(uxb_works!$B$47,IF(iData!X32="","-",TEXT(iData!X32,$H37)),INDEX(aScores,$B37,AD$4)) -> 2 | AE37: =CHOOSE(uxb_works!$B$47,IF(iData!Y32="","-",TEXT(iData!Y32,$H37)),INDEX(aScores,$B37,AE$4)) -> 1 | AF37: =CHOOSE(uxb_works!$B$47,IF(iData!Z32="","-",TEXT(iData!Z32,$H37)),INDEX(aScores,$B37,AF$4)) -> 3 | AG37: =CHOOSE(uxb_works!$B$47,IF(iData!AA32="","-",TEXT(iData!AA32,$H37)),INDEX(aScores,$B37,AG$4)) -> 3 | AH37: =CHOOSE(uxb_works!$B$47,IF(iData!AB32="","-",TEXT(iData!AB32,$H37)),INDEX(aScores,$B37,AH$4)) -> 2 | AI37: =CHOOSE(uxb_works!$B$47,IF(iData!AC32="","-",TEXT(iData!AC32,$H37)),INDEX(aScores,$B37,AI$4)) -> 4 | AJ37: =CHOOSE(uxb_works!$B$47,IF(iData!AD32="","-",TEXT(iData!AD32,$H37)),INDEX(aScores,$B37,AJ$4)) -> 1
B38: =tblIndicators!A29 -> 28 | F38: =iScores!F33 -> 3 | H38: =tblIndicators!AC29 -> #,##0 | K38: =IF(uxb_works!$B$46>=L38,1,0) -> 1 | L38: =tblIndicators!G29 -> 3 | N38: =iScores!N33 -> 2.3.2) Enforceability of contracts | O38: =CHOOSE(uxb_works!$B$47,iData!I33,iScores!O33) -> Score 0-4 | P38: =IF(tblIndicators!T29="","",IF(AND(uxb_works!$B$47=1,OR(F38=5,Scores!F38<=2)),"",tblIndicators!T29)) -> 4 | Q38: =CHOOSE(uxb_works!$B$47,IF(iData!K33="","-",TEXT(iData!K33,$H38)),INDEX(aScores,$B38,Q$4)) -> 2 | R38: =CHOOSE(uxb_works!$B$47,IF(iData!L33="","-",TEXT(iData!L33,$H38)),INDEX(aScores,$B38,R$4)) -> 4 | S38: =CHOOSE(uxb_works!$B$47,IF(iData!M33="","-",TEXT(iData!M33,$H38)),INDEX(aScores,$B38,S$4)) -> 3 | T38: =CHOOSE(uxb_works!$B$47,IF(iData!N33="","-",TEXT(iData!N33,$H38)),INDEX(aScores,$B38,T$4)) -> 2 | U38: =CHOOSE(uxb_works!$B$47,IF(iData!O33="","-",TEXT(iData!O33,$H38)),INDEX(aScores,$B38,U$4)) -> 4 | V38: =CHOOSE(uxb_works!$B$47,IF(iData!P33="","-",TEXT(iData!P33,$H38)),INDEX(aScores,$B38,V$4)) -> 1 | W38: =CHOOSE(uxb_works!$B$47,IF(iData!Q33="","-",TEXT(iData!Q33,$H38)),INDEX(aScores,$B38,W$4)) -> 1 | X38: =CHOOSE(uxb_works!$B$47,IF(iData!R33="","-",TEXT(iData!R33,$H38)),INDEX(aScores,$B38,X$4)) -> 4 | Y38: =CHOOSE(uxb_works!$B$47,IF(iData!S33="","-",TEXT(iData!S33,$H38)),INDEX(aScores,$B38,Y$4)) -> 3 | Z38: =CHOOSE(uxb_works!$B$47,IF(iData!T33="","-",TEXT(iData!T33,$H38)),INDEX(aScores,$B38,Z$4)) -> 4 | AA38: =CHOOSE(uxb_works!$B$47,IF(iData!U33="","-",TEXT(iData!U33,$H38)),INDEX(aScores,$B38,AA$4)) -> 1 | AB38: =CHOOSE(uxb_works!$B$47,IF(iData!V33="","-",TEXT(iData!V33,$H38)),INDEX(aScores,$B38,AB$4)) -> 4 | AC38: =CHOOSE(uxb_works!$B$47,IF(iData!W33="","-",TEXT(iData!W33,$H38)),INDEX(aScores,$B38,AC$4)) -> 2 | AD38: =CHOOSE(uxb_works!$B$47,IF(iData!X33="","-",TEXT(iData!X33,$H38)),INDEX(aScores,$B38,AD$4)) -> 1 | AE38: =CHOOSE(uxb_works!$B$47,IF(iData!Y33="","-",TEXT(iData!Y33,$H38)),INDEX(aScores,$B38,AE$4)) -> 1 | AF38: =CHOOSE(uxb_works!$B$47,IF(iData!Z33="","-",TEXT(iData!Z33,$H38)),INDEX(aScores,$B38,AF$4)) -> 2 | AG38: =CHOOSE(uxb_works!$B$47,IF(iData!AA33="","-",TEXT(iData!AA33,$H38)),INDEX(aScores,$B38,AG$4)) -> 3 | AH38: =CHOOSE(uxb_works!$B$47,IF(iData!AB33="","-",TEXT(iData!AB33,$H38)),INDEX(aScores,$B38,AH$4)) -> 4 | AI38: =CHOOSE(uxb_works!$B$47,IF(iData!AC33="","-",TEXT(iData!AC33,$H38)),INDEX(aScores,$B38,AI$4)) -> 4 | AJ38: =CHOOSE(uxb_works!$B$47,IF(iData!AD33="","-",TEXT(iData!AD33,$H38)),INDEX(aScores,$B38,AJ$4)) -> 2
B39: =tblIndicators!A30 -> 29 | F39: =iScores!F34 -> 2 | H39: =tblIndicators!AC30 -> #,##0 | K39: =IF(uxb_works!$B$46>=L39,1,0) -> 1 | L39: =tblIndicators!G30 -> 2 | N39: =iScores!N34 -> 2.4) Quality of coastal infrastructure | O39: =CHOOSE(uxb_works!$B$47,iData!I34,iScores!O34) ->  | P39: =IF(tblIndicators!T30="","",IF(AND(uxb_works!$B$47=1,OR(F39=5,Scores!F39<=2)),"",tblIndicators!T30)) ->  | Q39: =CHOOSE(uxb_works!$B$47,IF(iData!K34="","-",TEXT(iData!K34,$H39)),INDEX(aScores,$B39,Q$4)) -> - | R39: =CHOOSE(uxb_works!$B$47,IF(iData!L34="","-",TEXT(iData!L34,$H39)),INDEX(aScores,$B39,R$4)) -> - | S39: =CHOOSE(uxb_works!$B$47,IF(iData!M34="","-",TEXT(iData!M34,$H39)),INDEX(aScores,$B39,S$4)) -> - | T39: =CHOOSE(uxb_works!$B$47,IF(iData!N34="","-",TEXT(iData!N34,$H39)),INDEX(aScores,$B39,T$4)) -> - | U39: =CHOOSE(uxb_works!$B$47,IF(iData!O34="","-",TEXT(iData!O34,$H39)),INDEX(aScores,$B39,U$4)) -> - | V39: =CHOOSE(uxb_works!$B$47,IF(iData!P34="","-",TEXT(iData!P34,$H39)),INDEX(aScores,$B39,V$4)) -> - | W39: =CHOOSE(uxb_works!$B$47,IF(iData!Q34="","-",TEXT(iData!Q34,$H39)),INDEX(aScores,$B39,W$4)) -> - | X39: =CHOOSE(uxb_works!$B$47,IF(iData!R34="","-",TEXT(iData!R34,$H39)),INDEX(aScores,$B39,X$4)) -> - | Y39: =CHOOSE(uxb_works!$B$47,IF(iData!S34="","-",TEXT(iData!S34,$H39)),INDEX(aScores,$B39,Y$4)) -> - | Z39: =CHOOSE(uxb_works!$B$47,IF(iData!T34="","-",TEXT(iData!T34,$H39)),INDEX(aScores,$B39,Z$4)) -> - | AA39: =CHOOSE(uxb_works!$B$47,IF(iData!U34="","-",TEXT(iData!U34,$H39)),INDEX(aScores,$B39,AA$4)) -> - | AB39: =CHOOSE(uxb_works!$B$47,IF(iData!V34="","-",TEXT(iData!V34,$H39)),INDEX(aScores,$B39,AB$4)) -> - | AC39: =CHOOSE(uxb_works!$B$47,IF(iData!W34="","-",TEXT(iData!W34,$H39)),INDEX(aScores,$B39,AC$4)) -> - | AD39: =CHOOSE(uxb_works!$B$47,IF(iData!X34="","-",TEXT(iData!X34,$H39)),INDEX(aScores,$B39,AD$4)) -> - | AE39: =CHOOSE(uxb_works!$B$47,IF(iData!Y34="","-",TEXT(iData!Y34,$H39)),INDEX(aScores,$B39,AE$4)) -> - | AF39: =CHOOSE(uxb_works!$B$47,IF(iData!Z34="","-",TEXT(iData!Z34,$H39)),INDEX(aScores,$B39,AF$4)) -> - | AG39: =CHOOSE(uxb_works!$B$47,IF(iData!AA34="","-",TEXT(iData!AA34,$H39)),INDEX(aScores,$B39,AG$4)) -> - | AH39: =CHOOSE(uxb_works!$B$47,IF(iData!AB34="","-",TEXT(iData!AB34,$H39)),INDEX(aScores,$B39,AH$4)) -> - | AI39: =CHOOSE(uxb_works!$B$47,IF(iData!AC34="","-",TEXT(iData!AC34,$H39)),INDEX(aScores,$B39,AI$4)) -> - | AJ39: =CHOOSE(uxb_works!$B$47,IF(iData!AD34="","-",TEXT(iData!AD34,$H39)),INDEX(aScores,$B39,AJ$4)) -> -
B40: =tblIndicators!A31 -> 30 | F40: =iScores!F35 -> 3 | H40: =tblIndicators!AC31 -> #,##0.00 | K40: =IF(uxb_works!$B$46>=L40,1,0) -> 1 | L40: =tblIndicators!G31 -> 3 | N40: =iScores!N35 -> 2.4.1) Quality of port facilities | O40: =CHOOSE(uxb_works!$B$47,iData!I35,iScores!O35) -> Score 0-6 | P40: =IF(tblIndicators!T31="","",IF(AND(uxb_works!$B$47=1,OR(F40=5,Scores!F40<=2)),"",tblIndicators!T31)) -> 4.1 | Q40: =CHOOSE(uxb_works!$B$47,IF(iData!K35="","-",TEXT(iData!K35,$H40)),INDEX(aScores,$B40,Q$4)) -> 2.10 | R40: =CHOOSE(uxb_works!$B$47,IF(iData!L35="","-",TEXT(iData!L35,$H40)),INDEX(aScores,$B40,R$4)) -> 4.10 | S40: =CHOOSE(uxb_works!$B$47,IF(iData!M35="","-",TEXT(iData!M35,$H40)),INDEX(aScores,$B40,S$4)) -> 3.80 | T40: =CHOOSE(uxb_works!$B$47,IF(iData!N35="","-",TEXT(iData!N35,$H40)),INDEX(aScores,$B40,T$4)) -> 3.50 | U40: =CHOOSE(uxb_works!$B$47,IF(iData!O35="","-",TEXT(iData!O35,$H40)),INDEX(aScores,$B40,U$4)) -> 4.00 | V40: =CHOOSE(uxb_works!$B$47,IF(iData!P35="","-",TEXT(iData!P35,$H40)),INDEX(aScores,$B40,V$4)) -> 3.60 | W40: =CHOOSE(uxb_works!$B$47,IF(iData!Q35="","-",TEXT(iData!Q35,$H40)),INDEX(aScores,$B40,W$4)) -> 3.20 | X40: =CHOOSE(uxb_works!$B$47,IF(iData!R35="","-",TEXT(iData!R35,$H40)),INDEX(aScores,$B40,X$4)) -> 4.60 | Y40: =CHOOSE(uxb_works!$B$47,IF(iData!S35="","-",TEXT(iData!S35,$H40)),INDEX(aScores,$B40,Y$4)) -> 3.30 | Z40: =CHOOSE(uxb_works!$B$47,IF(iData!T35="","-",TEXT(iData!T35,$H40)),INDEX(aScores,$B40,Z$4)) -> 4.10 | AA40: =CHOOSE(uxb_works!$B$47,IF(iData!U35="","-",TEXT(iData!U35,$H40)),INDEX(aScores,$B40,AA$4)) -> 1.50 | AB40: =CHOOSE(uxb_works!$B$47,IF(iData!V35="","-",TEXT(iData!V35,$H40)),INDEX(aScores,$B40,AB$4)) -> 4.10 | AC40: =CHOOSE(uxb_works!$B$47,IF(iData!W35="","-",TEXT(iData!W35,$H40)),INDEX(aScores,$B40,AC$4)) -> 2.60 | AD40: =CHOOSE(uxb_works!$B$47,IF(iData!X35="","-",TEXT(iData!X35,$H40)),INDEX(aScores,$B40,AD$4)) -> 2.60 | AE40: =CHOOSE(uxb_works!$B$47,IF(iData!Y35="","-",TEXT(iData!Y35,$H40)),INDEX(aScores,$B40,AE$4)) -> 3.60 | AF40: =CHOOSE(uxb_works!$B$47,IF(iData!Z35="","-",TEXT(iData!Z35,$H40)),INDEX(aScores,$B40,AF$4)) -> 3.50 | AG40: =CHOOSE(uxb_works!$B$47,IF(iData!AA35="","-",TEXT(iData!AA35,$H40)),INDEX(aScores,$B40,AG$4)) -> 4.40 | AH40: =CHOOSE(uxb_works!$B$47,IF(iData!AB35="","-",TEXT(iData!AB35,$H40)),INDEX(aScores,$B40,AH$4)) -> 4.20 | AI40: =CHOOSE(uxb_works!$B$47,IF(iData!AC35="","-",TEXT(iData!AC35,$H40)),INDEX(aScores,$B40,AI$4)) -> 4.80 | AJ40: =CHOOSE(uxb_works!$B$47,IF(iData!AD35="","-",TEXT(iData!AD35,$H40)),INDEX(aScores,$B40,AJ$4)) -> 2.80
B41: =tblIndicators!A32 -> 31 | F41: =iScores!F36 -> 3 | H41: =tblIndicators!AC32 -> #,##0.00 | K41: =IF(uxb_works!$B$46>=L41,1,0) -> 1 | L41: =tblIndicators!G32 -> 3 | N41: =iScores!N36 -> 2.4.2) Quality of electricity supply | O41: =CHOOSE(uxb_works!$B$47,iData!I36,iScores!O36) -> Score 0-6 | P41: =IF(tblIndicators!T32="","",IF(AND(uxb_works!$B$47=1,OR(F41=5,Scores!F41<=2)),"",tblIndicators!T32)) -> 5.5 | Q41: =CHOOSE(uxb_works!$B$47,IF(iData!K36="","-",TEXT(iData!K36,$H41)),INDEX(aScores,$B41,Q$4)) -> 3.50 | R41: =CHOOSE(uxb_works!$B$47,IF(iData!L36="","-",TEXT(iData!L36,$H41)),INDEX(aScores,$B41,R$4)) -> 5.60 | S41: =CHOOSE(uxb_works!$B$47,IF(iData!M36="","-",TEXT(iData!M36,$H41)),INDEX(aScores,$B41,S$4)) -> 5.10 | T41: =CHOOSE(uxb_works!$B$47,IF(iData!N36="","-",TEXT(iData!N36,$H41)),INDEX(aScores,$B41,T$4)) -> 4.00 | U41: =CHOOSE(uxb_works!$B$47,IF(iData!O36="","-",TEXT(iData!O36,$H41)),INDEX(aScores,$B41,U$4)) -> 5.80 | V41: =CHOOSE(uxb_works!$B$47,IF(iData!P36="","-",TEXT(iData!P36,$H41)),INDEX(aScores,$B41,V$4)) -> 3.70 | W41: =CHOOSE(uxb_works!$B$47,IF(iData!Q36="","-",TEXT(iData!Q36,$H41)),INDEX(aScores,$B41,W$4)) -> 3.40 | X41: =CHOOSE(uxb_works!$B$47,IF(iData!R36="","-",TEXT(iData!R36,$H41)),INDEX(aScores,$B41,X$4)) -> 5.70 | Y41: =CHOOSE(uxb_works!$B$47,IF(iData!S36="","-",TEXT(iData!S36,$H41)),INDEX(aScores,$B41,Y$4)) -> 3.90 | Z41: =CHOOSE(uxb_works!$B$47,IF(iData!T36="","-",TEXT(iData!T36,$H41)),INDEX(aScores,$B41,Z$4)) -> 5.50 | AA41: =CHOOSE(uxb_works!$B$47,IF(iData!U36="","-",TEXT(iData!U36,$H41)),INDEX(aScores,$B41,AA$4)) -> 0.40 | AB41: =CHOOSE(uxb_works!$B$47,IF(iData!V36="","-",TEXT(iData!V36,$H41)),INDEX(aScores,$B41,AB$4)) -> 5.90 | AC41: =CHOOSE(uxb_works!$B$47,IF(iData!W36="","-",TEXT(iData!W36,$H41)),INDEX(aScores,$B41,AC$4)) -> 4.10 | AD41: =CHOOSE(uxb_works!$B$47,IF(iData!X36="","-",TEXT(iData!X36,$H41)),INDEX(aScores,$B41,AD$4)) -> 3.20 | AE41: =CHOOSE(uxb_works!$B$47,IF(iData!Y36="","-",TEXT(iData!Y36,$H41)),INDEX(aScores,$B41,AE$4)) -> 4.10 | AF41: =CHOOSE(uxb_works!$B$47,IF(iData!Z36="","-",TEXT(iData!Z36,$H41)),INDEX(aScores,$B41,AF$4)) -> 2.90 | AG41: =CHOOSE(uxb_works!$B$47,IF(iData!AA36="","-",TEXT(iData!AA36,$H41)),INDEX(aScores,$B41,AG$4)) -> 5.40 | AH41: =CHOOSE(uxb_works!$B$47,IF(iData!AB36="","-",TEXT(iData!AB36,$H41)),INDEX(aScores,$B41,AH$4)) -> 5.20 | AI41: =CHOOSE(uxb_works!$B$47,IF(iData!AC36="","-",TEXT(iData!AC36,$H41)),INDEX(aScores,$B41,AI$4)) -> 5.20 | AJ41: =CHOOSE(uxb_works!$B$47,IF(iData!AD36="","-",TEXT(iData!AD36,$H41)),INDEX(aScores,$B41,AJ$4)) -> 3.30
B42: =tblIndicators!A33 -> 32 | F42: =iScores!F37 -> 3 | H42: =tblIndicators!AC33 -> #,##0.00 | K42: =IF(uxb_works!$B$46>=L42,1,0) -> 1 | L42: =tblIndicators!G33 -> 3 | N42: =iScores!N37 -> 2.4.3) Quality of road infrastructure | O42: =CHOOSE(uxb_works!$B$47,iData!I37,iScores!O37) -> Score 0-6 | P42: =IF(tblIndicators!T33="","",IF(AND(uxb_works!$B$47=1,OR(F42=5,Scores!F42<=2)),"",tblIndicators!T33)) -> 3.7 | Q42: =CHOOSE(uxb_works!$B$47,IF(iData!K37="","-",TEXT(iData!K37,$H42)),INDEX(aScores,$B42,Q$4)) -> 2.00 | R42: =CHOOSE(uxb_works!$B$47,IF(iData!L37="","-",TEXT(iData!L37,$H42)),INDEX(aScores,$B42,R$4)) -> 4.20 | S42: =CHOOSE(uxb_works!$B$47,IF(iData!M37="","-",TEXT(iData!M37,$H42)),INDEX(aScores,$B42,S$4)) -> 4.20 | T42: =CHOOSE(uxb_works!$B$47,IF(iData!N37="","-",TEXT(iData!N37,$H42)),INDEX(aScores,$B42,T$4)) -> 3.60 | U42: =CHOOSE(uxb_works!$B$47,IF(iData!O37="","-",TEXT(iData!O37,$H42)),INDEX(aScores,$B42,U$4)) -> 5.00 | V42: =CHOOSE(uxb_works!$B$47,IF(iData!P37="","-",TEXT(iData!P37,$H42)),INDEX(aScores,$B42,V$4)) -> 3.40 | W42: =CHOOSE(uxb_works!$B$47,IF(iData!Q37="","-",TEXT(iData!Q37,$H42)),INDEX(aScores,$B42,W$4)) -> 2.90 | X42: =CHOOSE(uxb_works!$B$47,IF(iData!R37="","-",TEXT(iData!R37,$H42)),INDEX(aScores,$B42,X$4)) -> 5.00 | Y42: =CHOOSE(uxb_works!$B$47,IF(iData!S37="","-",TEXT(iData!S37,$H42)),INDEX(aScores,$B42,Y$4)) -> 3.50 | Z42: =CHOOSE(uxb_works!$B$47,IF(iData!T37="","-",TEXT(iData!T37,$H42)),INDEX(aScores,$B42,Z$4)) -> 3.70 | AA42: =CHOOSE(uxb_works!$B$47,IF(iData!U37="","-",TEXT(iData!U37,$H42)),INDEX(aScores,$B42,AA$4)) -> 1.40 | AB42: =CHOOSE(uxb_works!$B$47,IF(iData!V37="","-",TEXT(iData!V37,$H42)),INDEX(aScores,$B42,AB$4)) -> 3.50 | AC42: =CHOOSE(uxb_works!$B$47,IF(iData!W37="","-",TEXT(iData!W37,$H42)),INDEX(aScores,$B42,AC$4)) -> 2.20 | AD42: =CHOOSE(uxb_works!$B$47,IF(iData!X37="","-",TEXT(iData!X37,$H42)),INDEX(aScores,$B42,AD$4)) -> 2.50 | AE42: =CHOOSE(uxb_works!$B$47,IF(iData!Y37="","-",TEXT(iData!Y37,$H42)),INDEX(aScores,$B42,AE$4)) -> 2.30 | AF42: =CHOOSE(uxb_works!$B$47,IF(iData!Z37="","-",TEXT(iData!Z37,$H42)),INDEX(aScores,$B42,AF$4)) -> 3.30 | AG42: =CHOOSE(uxb_works!$B$47,IF(iData!AA37="","-",TEXT(iData!AA37,$H42)),INDEX(aScores,$B42,AG$4)) -> 4.70 | AH42: =CHOOSE(uxb_works!$B$47,IF(iData!AB37="","-",TEXT(iData!AB37,$H42)),INDEX(aScores,$B42,AH$4)) -> 4.60 | AI42: =CHOOSE(uxb_works!$B$47,IF(iData!AC37="","-",TEXT(iData!AC37,$H42)),INDEX(aScores,$B42,AI$4)) -> 4.90 | AJ42: =CHOOSE(uxb_works!$B$47,IF(iData!AD37="","-",TEXT(iData!AD37,$H42)),INDEX(aScores,$B42,AJ$4)) -> 2.20
B43: =tblIndicators!A34 -> 33 | F43: =iScores!F38 -> 3 | H43: =tblIndicators!AC34 -> #,##0.00 | K43: =IF(uxb_works!$B$46>=L43,1,0) -> 1 | L43: =tblIndicators!G34 -> 3 | N43: =iScores!N38 -> 2.4.4) Quality of railroad infrastructure | O43: =CHOOSE(uxb_works!$B$47,iData!I38,iScores!O38) -> Score 0-6 | P43: =IF(tblIndicators!T34="","",IF(AND(uxb_works!$B$47=1,OR(F43=5,Scores!F43<=2)),"",tblIndicators!T34)) -> 2.5 | Q43: =CHOOSE(uxb_works!$B$47,IF(iData!K38="","-",TEXT(iData!K38,$H43)),INDEX(aScores,$B43,Q$4)) -> 1.00 | R43: =CHOOSE(uxb_works!$B$47,IF(iData!L38="","-",TEXT(iData!L38,$H43)),INDEX(aScores,$B43,R$4)) -> 3.90 | S43: =CHOOSE(uxb_works!$B$47,IF(iData!M38="","-",TEXT(iData!M38,$H43)),INDEX(aScores,$B43,S$4)) -> 1.50 | T43: =CHOOSE(uxb_works!$B$47,IF(iData!N38="","-",TEXT(iData!N38,$H43)),INDEX(aScores,$B43,T$4)) -> 3.80 | U43: =CHOOSE(uxb_works!$B$47,IF(iData!O38="","-",TEXT(iData!O38,$H43)),INDEX(aScores,$B43,U$4)) -> 4.80 | V43: =CHOOSE(uxb_works!$B$47,IF(iData!P38="","-",TEXT(iData!P38,$H43)),INDEX(aScores,$B43,V$4)) -> 3.40 | W43: =CHOOSE(uxb_works!$B$47,IF(iData!Q38="","-",TEXT(iData!Q38,$H43)),INDEX(aScores,$B43,W$4)) -> 3.20 | X43: =CHOOSE(uxb_works!$B$47,IF(iData!R38="","-",TEXT(iData!R38,$H43)),INDEX(aScores,$B43,X$4)) -> 5.60 | Y43: =CHOOSE(uxb_works!$B$47,IF(iData!S38="","-",TEXT(iData!S38,$H43)),INDEX(aScores,$B43,Y$4)) -> 1.80 | Z43: =CHOOSE(uxb_works!$B$47,IF(iData!T38="","-",TEXT(iData!T38,$H43)),INDEX(aScores,$B43,Z$4)) -> 2.50 | AA43: =CHOOSE(uxb_works!$B$47,IF(iData!U38="","-",TEXT(iData!U38,$H43)),INDEX(aScores,$B43,AA$4)) -> 0.50 | AB43: =CHOOSE(uxb_works!$B$47,IF(iData!V38="","-",TEXT(iData!V38,$H43)),INDEX(aScores,$B43,AB$4)) -> 3.00 | AC43: =CHOOSE(uxb_works!$B$47,IF(iData!W38="","-",TEXT(iData!W38,$H43)),INDEX(aScores,$B43,AC$4)) -> 1.00 | AD43: =CHOOSE(uxb_works!$B$47,IF(iData!X38="","-",TEXT(iData!X38,$H43)),INDEX(aScores,$B43,AD$4)) -> 0.90 | AE43: =CHOOSE(uxb_works!$B$47,IF(iData!Y38="","-",TEXT(iData!Y38,$H43)),INDEX(aScores,$B43,AE$4)) -> 3.50 | AF43: =CHOOSE(uxb_works!$B$47,IF(iData!Z38="","-",TEXT(iData!Z38,$H43)),INDEX(aScores,$B43,AF$4)) -> 2.50 | AG43: =CHOOSE(uxb_works!$B$47,IF(iData!AA38="","-",TEXT(iData!AA38,$H43)),INDEX(aScores,$B43,AG$4)) -> 4.70 | AH43: =CHOOSE(uxb_works!$B$47,IF(iData!AB38="","-",TEXT(iData!AB38,$H43)),INDEX(aScores,$B43,AH$4)) -> 4.50 | AI43: =CHOOSE(uxb_works!$B$47,IF(iData!AC38="","-",TEXT(iData!AC38,$H43)),INDEX(aScores,$B43,AI$4)) -> 4.50 | AJ43: =CHOOSE(uxb_works!$B$47,IF(iData!AD38="","-",TEXT(iData!AD38,$H43)),INDEX(aScores,$B43,AJ$4)) -> 2.00
B44: =tblIndicators!A35 -> 34 | F44: =iScores!F39 -> 3 | H44: =tblIndicators!AC35 -> #,##0.0 | K44: =IF(uxb_works!$B$46>=L44,1,0) -> 1 | L44: =tblIndicators!G35 -> 3 | N44: =iScores!N39 -> 2.4.5) Quality of water infrastructure | O44: =CHOOSE(uxb_works!$B$47,iData!I39,iScores!O39) -> Score 0-100 | P44: =IF(tblIndicators!T35="","",IF(AND(uxb_works!$B$47=1,OR(F44=5,Scores!F44<=2)),"",tblIndicators!T35)) -> 93.37 | Q44: =CHOOSE(uxb_works!$B$47,IF(iData!K39="","-",TEXT(iData!K39,$H44)),INDEX(aScores,$B44,Q$4)) -> 45.9 | R44: =CHOOSE(uxb_works!$B$47,IF(iData!L39="","-",TEXT(iData!L39,$H44)),INDEX(aScores,$B44,R$4)) -> 94.7 | S44: =CHOOSE(uxb_works!$B$47,IF(iData!M39="","-",TEXT(iData!M39,$H44)),INDEX(aScores,$B44,S$4)) -> 79.6 | T44: =CHOOSE(uxb_works!$B$47,IF(iData!N39="","-",TEXT(iData!N39,$H44)),INDEX(aScores,$B44,T$4)) -> 68.2 | U44: =CHOOSE(uxb_works!$B$47,IF(iData!O39="","-",TEXT(iData!O39,$H44)),INDEX(aScores,$B44,U$4)) -> 97.2 | V44: =CHOOSE(uxb_works!$B$47,IF(iData!P39="","-",TEXT(iData!P39,$H44)),INDEX(aScores,$B44,V$4)) -> 15.8 | W44: =CHOOSE(uxb_works!$B$47,IF(iData!Q39="","-",TEXT(iData!Q39,$H44)),INDEX(aScores,$B44,W$4)) -> 31.4 | X44: =CHOOSE(uxb_works!$B$47,IF(iData!R39="","-",TEXT(iData!R39,$H44)),INDEX(aScores,$B44,X$4)) -> 96.6 | Y44: =CHOOSE(uxb_works!$B$47,IF(iData!S39="","-",TEXT(iData!S39,$H44)),INDEX(aScores,$B44,Y$4)) -> 57.6 | Z44: =CHOOSE(uxb_works!$B$47,IF(iData!T39="","-",TEXT(iData!T39,$H44)),INDEX(aScores,$B44,Z$4)) -> 93.4 | AA44: =CHOOSE(uxb_works!$B$47,IF(iData!U39="","-",TEXT(iData!U39,$H44)),INDEX(aScores,$B44,AA$4)) -> 7.8 | AB44: =CHOOSE(uxb_works!$B$47,IF(iData!V39="","-",TEXT(iData!V39,$H44)),INDEX(aScores,$B44,AB$4)) -> 99.7 | AC44: =CHOOSE(uxb_works!$B$47,IF(iData!W39="","-",TEXT(iData!W39,$H44)),INDEX(aScores,$B44,AC$4)) -> 50.4 | AD44: =CHOOSE(uxb_works!$B$47,IF(iData!X39="","-",TEXT(iData!X39,$H44)),INDEX(aScores,$B44,AD$4)) -> 42.9 | AE44: =CHOOSE(uxb_works!$B$47,IF(iData!Y39="","-",TEXT(iData!Y39,$H44)),INDEX(aScores,$B44,AE$4)) -> 63.9 | AF44: =CHOOSE(uxb_works!$B$47,IF(iData!Z39="","-",TEXT(iData!Z39,$H44)),INDEX(aScores,$B44,AF$4)) -> 24.7 | AG44: =CHOOSE(uxb_works!$B$47,IF(iData!AA39="","-",TEXT(iData!AA39,$H44)),INDEX(aScores,$B44,AG$4)) -> 96.5 | AH44: =CHOOSE(uxb_works!$B$47,IF(iData!AB39="","-",TEXT(iData!AB39,$H44)),INDEX(aScores,$B44,AH$4)) -> 100.0 | AI44: =CHOOSE(uxb_works!$B$47,IF(iData!AC39="","-",TEXT(iData!AC39,$H44)),INDEX(aScores,$B44,AI$4)) -> 90.9 | AJ44: =CHOOSE(uxb_works!$B$47,IF(iData!AD39="","-",TEXT(iData!AD39,$H44)),INDEX(aScores,$B44,AJ$4)) -> 53.9
B45: =tblIndicators!A36 -> 35 | F45: =iScores!F40 -> 1 | H45: =tblIndicators!AC36 -> #,##0.0 | K45: =IF(uxb_works!$B$46>=L45,1,0) -> 1 | L45: =tblIndicators!G36 -> 1 | N45: =iScores!N40 -> 3) WATER QUALITY | O45: =CHOOSE(uxb_works!$B$47,iData!I40,iScores!O40) ->  | P45: =IF(tblIndicators!T36="","",IF(AND(uxb_works!$B$47=1,OR(F45=5,Scores!F45<=2)),"",tblIndicators!T36)) ->  | Q45: =CHOOSE(uxb_works!$B$47,IF(iData!K40="","-",TEXT(iData!K40,$H45)),INDEX(aScores,$B45,Q$4)) -> - | R45: =CHOOSE(uxb_works!$B$47,IF(iData!L40="","-",TEXT(iData!L40,$H45)),INDEX(aScores,$B45,R$4)) -> - | S45: =CHOOSE(uxb_works!$B$47,IF(iData!M40="","-",TEXT(iData!M40,$H45)),INDEX(aScores,$B45,S$4)) -> - | T45: =CHOOSE(uxb_works!$B$47,IF(iData!N40="","-",TEXT(iData!N40,$H45)),INDEX(aScores,$B45,T$4)) -> - | U45: =CHOOSE(uxb_works!$B$47,IF(iData!O40="","-",TEXT(iData!O40,$H45)),INDEX(aScores,$B45,U$4)) -> - | V45: =CHOOSE(uxb_works!$B$47,IF(iData!P40="","-",TEXT(iData!P40,$H45)),INDEX(aScores,$B45,V$4)) -> - | W45: =CHOOSE(uxb_works!$B$47,IF(iData!Q40="","-",TEXT(iData!Q40,$H45)),INDEX(aScores,$B45,W$4)) -> - | X45: =CHOOSE(uxb_works!$B$47,IF(iData!R40="","-",TEXT(iData!R40,$H45)),INDEX(aScores,$B45,X$4)) -> - | Y45: =CHOOSE(uxb_works!$B$47,IF(iData!S40="","-",TEXT(iData!S40,$H45)),INDEX(aScores,$B45,Y$4)) -> - | Z45: =CHOOSE(uxb_works!$B$47,IF(iData!T40="","-",TEXT(iData!T40,$H45)),INDEX(aScores,$B45,Z$4)) -> - | AA45: =CHOOSE(uxb_works!$B$47,IF(iData!U40="","-",TEXT(iData!U40,$H45)),INDEX(aScores,$B45,AA$4)) -> - | AB45: =CHOOSE(uxb_works!$B$47,IF(iData!V40="","-",TEXT(iData!V40,$H45)),INDEX(aScores,$B45,AB$4)) -> - | AC45: =CHOOSE(uxb_works!$B$47,IF(iData!W40="","-",TEXT(iData!W40,$H45)),INDEX(aScores,$B45,AC$4)) -> - | AD45: =CHOOSE(uxb_works!$B$47,IF(iData!X40="","-",TEXT(iData!X40,$H45)),INDEX(aScores,$B45,AD$4)) -> - | AE45: =CHOOSE(uxb_works!$B$47,IF(iData!Y40="","-",TEXT(iData!Y40,$H45)),INDEX(aScores,$B45,AE$4)) -> - | AF45: =CHOOSE(uxb_works!$B$47,IF(iData!Z40="","-",TEXT(iData!Z40,$H45)),INDEX(aScores,$B45,AF$4)) -> - | AG45: =CHOOSE(uxb_works!$B$47,IF(iData!AA40="","-",TEXT(iData!AA40,$H45)),INDEX(aScores,$B45,AG$4)) -> - | AH45: =CHOOSE(uxb_works!$B$47,IF(iData!AB40="","-",TEXT(iData!AB40,$H45)),INDEX(aScores,$B45,AH$4)) -> - | AI45: =CHOOSE(uxb_works!$B$47,IF(iData!AC40="","-",TEXT(iData!AC40,$H45)),INDEX(aScores,$B45,AI$4)) -> - | AJ45: =CHOOSE(uxb_works!$B$47,IF(iData!AD40="","-",TEXT(iData!AD40,$H45)),INDEX(aScores,$B45,AJ$4)) -> -
B46: =tblIndicators!A37 -> 36 | F46: =iScores!F41 -> 2 | H46: =tblIndicators!AC37 -> #,##0.0 | K46: =IF(uxb_works!$B$46>=L46,1,0) -> 1 | L46: =tblIndicators!G37 -> 2 | N46: =iScores!N41 -> 3.1) Freshwater pollution control agency | O46: =CHOOSE(uxb_works!$B$47,iData!I41,iScores!O41) ->  | P46: =IF(tblIndicators!T37="","",IF(AND(uxb_works!$B$47=1,OR(F46=5,Scores!F46<=2)),"",tblIndicators!T37)) ->  | Q46: =CHOOSE(uxb_works!$B$47,IF(iData!K41="","-",TEXT(iData!K41,$H46)),INDEX(aScores,$B46,Q$4)) -> - | R46: =CHOOSE(uxb_works!$B$47,IF(iData!L41="","-",TEXT(iData!L41,$H46)),INDEX(aScores,$B46,R$4)) -> - | S46: =CHOOSE(uxb_works!$B$47,IF(iData!M41="","-",TEXT(iData!M41,$H46)),INDEX(aScores,$B46,S$4)) -> - | T46: =CHOOSE(uxb_works!$B$47,IF(iData!N41="","-",TEXT(iData!N41,$H46)),INDEX(aScores,$B46,T$4)) -> - | U46: =CHOOSE(uxb_works!$B$47,IF(iData!O41="","-",TEXT(iData!O41,$H46)),INDEX(aScores,$B46,U$4)) -> - | V46: =CHOOSE(uxb_works!$B$47,IF(iData!P41="","-",TEXT(iData!P41,$H46)),INDEX(aScores,$B46,V$4)) -> - | W46: =CHOOSE(uxb_works!$B$47,IF(iData!Q41="","-",TEXT(iData!Q41,$H46)),INDEX(aScores,$B46,W$4)) -> - | X46: =CHOOSE(uxb_works!$B$47,IF(iData!R41="","-",TEXT(iData!R41,$H46)),INDEX(aScores,$B46,X$4)) -> - | Y46: =CHOOSE(uxb_works!$B$47,IF(iData!S41="","-",TEXT(iData!S41,$H46)),INDEX(aScores,$B46,Y$4)) -> - | Z46: =CHOOSE(uxb_works!$B$47,IF(iData!T41="","-",TEXT(iData!T41,$H46)),INDEX(aScores,$B46,Z$4)) -> - | AA46: =CHOOSE(uxb_works!$B$47,IF(iData!U41="","-",TEXT(iData!U41,$H46)),INDEX(aScores,$B46,AA$4)) -> - | AB46: =CHOOSE(uxb_works!$B$47,IF(iData!V41="","-",TEXT(iData!V41,$H46)),INDEX(aScores,$B46,AB$4)) -> - | AC46: =CHOOSE(uxb_works!$B$47,IF(iData!W41="","-",TEXT(iData!W41,$H46)),INDEX(aScores,$B46,AC$4)) -> - | AD46: =CHOOSE(uxb_works!$B$47,IF(iData!X41="","-",TEXT(iData!X41,$H46)),INDEX(aScores,$B46,AD$4)) -> - | AE46: =CHOOSE(uxb_works!$B$47,IF(iData!Y41="","-",TEXT(iData!Y41,$H46)),INDEX(aScores,$B46,AE$4)) -> - | AF46: =CHOOSE(uxb_works!$B$47,IF(iData!Z41="","-",TEXT(iData!Z41,$H46)),INDEX(aScores,$B46,AF$4)) -> - | AG46: =CHOOSE(uxb_works!$B$47,IF(iData!AA41="","-",TEXT(iData!AA41,$H46)),INDEX(aScores,$B46,AG$4)) -> - | AH46: =CHOOSE(uxb_works!$B$47,IF(iData!AB41="","-",TEXT(iData!AB41,$H46)),INDEX(aScores,$B46,AH$4)) -> - | AI46: =CHOOSE(uxb_works!$B$47,IF(iData!AC41="","-",TEXT(iData!AC41,$H46)),INDEX(aScores,$B46,AI$4)) -> - | AJ46: =CHOOSE(uxb_works!$B$47,IF(iData!AD41="","-",TEXT(iData!AD41,$H46)),INDEX(aScores,$B46,AJ$4)) -> -
B47: =tblIndicators!A38 -> 37 | F47: =iScores!F42 -> 3 | H47: =tblIndicators!AC38 -> #,##0 | K47: =IF(uxb_works!$B$46>=L47,1,0) -> 1 | L47: =tblIndicators!G38 -> 3 | N47: =iScores!N42 -> 3.1.1) Agency responsible for freshwater pollution controls | O47: =CHOOSE(uxb_works!$B$47,iData!I42,iScores!O42) -> Score 0-2 | P47: =IF(tblIndicators!T38="","",IF(AND(uxb_works!$B$47=1,OR(F47=5,Scores!F47<=2)),"",tblIndicators!T38)) -> 2 | Q47: =CHOOSE(uxb_works!$B$47,IF(iData!K42="","-",TEXT(iData!K42,$H47)),INDEX(aScores,$B47,Q$4)) -> 2 | R47: =CHOOSE(uxb_works!$B$47,IF(iData!L42="","-",TEXT(iData!L42,$H47)),INDEX(aScores,$B47,R$4)) -> 2 | S47: =CHOOSE(uxb_works!$B$47,IF(iData!M42="","-",TEXT(iData!M42,$H47)),INDEX(aScores,$B47,S$4)) -> 2 | T47: =CHOOSE(uxb_works!$B$47,IF(iData!N42="","-",TEXT(iData!N42,$H47)),INDEX(aScores,$B47,T$4)) -> 2 | U47: =CHOOSE(uxb_works!$B$47,IF(iData!O42="","-",TEXT(iData!O42,$H47)),INDEX(aScores,$B47,U$4)) -> 2 | V47: =CHOOSE(uxb_works!$B$47,IF(iData!P42="","-",TEXT(iData!P42,$H47)),INDEX(aScores,$B47,V$4)) -> 2 | W47: =CHOOSE(uxb_works!$B$47,IF(iData!Q42="","-",TEXT(iData!Q42,$H47)),INDEX(aScores,$B47,W$4)) -> 2 | X47: =CHOOSE(uxb_works!$B$47,IF(iData!R42="","-",TEXT(iData!R42,$H47)),INDEX(aScores,$B47,X$4)) -> 2 | Y47: =CHOOSE(uxb_works!$B$47,IF(iData!S42="","-",TEXT(iData!S42,$H47)),INDEX(aScores,$B47,Y$4)) -> 2 | Z47: =CHOOSE(uxb_works!$B$47,IF(iData!T42="","-",TEXT(iData!T42,$H47)),INDEX(aScores,$B47,Z$4)) -> 2 | AA47: =CHOOSE(uxb_works!$B$47,IF(iData!U42="","-",TEXT(iData!U42,$H47)),INDEX(aScores,$B47,AA$4)) -> 2 | AB47: =CHOOSE(uxb_works!$B$47,IF(iData!V42="","-",TEXT(iData!V42,$H47)),INDEX(aScores,$B47,AB$4)) -> 2 | AC47: =CHOOSE(uxb_works!$B$47,IF(iData!W42="","-",TEXT(iData!W42,$H47)),INDEX(aScores,$B47,AC$4)) -> 2 | AD47: =CHOOSE(uxb_works!$B$47,IF(iData!X42="","-",TEXT(iData!X42,$H47)),INDEX(aScores,$B47,AD$4)) -> 2 | AE47: =CHOOSE(uxb_works!$B$47,IF(iData!Y42="","-",TEXT(iData!Y42,$H47)),INDEX(aScores,$B47,AE$4)) -> 2 | AF47: =CHOOSE(uxb_works!$B$47,IF(iData!Z42="","-",TEXT(iData!Z42,$H47)),INDEX(aScores,$B47,AF$4)) -> 2 | AG47: =CHOOSE(uxb_works!$B$47,IF(iData!AA42="","-",TEXT(iData!AA42,$H47)),INDEX(aScores,$B47,AG$4)) -> 2 | AH47: =CHOOSE(uxb_works!$B$47,IF(iData!AB42="","-",TEXT(iData!AB42,$H47)),INDEX(aScores,$B47,AH$4)) -> 2 | AI47: =CHOOSE(uxb_works!$B$47,IF(iData!AC42="","-",TEXT(iData!AC42,$H47)),INDEX(aScores,$B47,AI$4)) -> 2 | AJ47: =CHOOSE(uxb_works!$B$47,IF(iData!AD42="","-",TEXT(iData!AD42,$H47)),INDEX(aScores,$B47,AJ$4)) -> 2
B48: =tblIndicators!A39 -> 38 | F48: =iScores!F43 -> 2 | H48: =tblIndicators!AC39 -> #,##0.0 | K48: =IF(uxb_works!$B$46>=L48,1,0) -> 1 | L48: =tblIndicators!G39 -> 2 | N48: =iScores!N43 -> 3.2) Regulatory standards for water pollution | O48: =CHOOSE(uxb_works!$B$47,iData!I43,iScores!O43) ->  | P48: =IF(tblIndicators!T39="","",IF(AND(uxb_works!$B$47=1,OR(F48=5,Scores!F48<=2)),"",tblIndicators!T39)) ->  | Q48: =CHOOSE(uxb_works!$B$47,IF(iData!K43="","-",TEXT(iData!K43,$H48)),INDEX(aScores,$B48,Q$4)) -> - | R48: =CHOOSE(uxb_works!$B$47,IF(iData!L43="","-",TEXT(iData!L43,$H48)),INDEX(aScores,$B48,R$4)) -> - | S48: =CHOOSE(uxb_works!$B$47,IF(iData!M43="","-",TEXT(iData!M43,$H48)),INDEX(aScores,$B48,S$4)) -> - | T48: =CHOOSE(uxb_works!$B$47,IF(iData!N43="","-",TEXT(iData!N43,$H48)),INDEX(aScores,$B48,T$4)) -> - | U48: =CHOOSE(uxb_works!$B$47,IF(iData!O43="","-",TEXT(iData!O43,$H48)),INDEX(aScores,$B48,U$4)) -> - | V48: =CHOOSE(uxb_works!$B$47,IF(iData!P43="","-",TEXT(iData!P43,$H48)),INDEX(aScores,$B48,V$4)) -> - | W48: =CHOOSE(uxb_works!$B$47,IF(iData!Q43="","-",TEXT(iData!Q43,$H48)),INDEX(aScores,$B48,W$4)) -> - | X48: =CHOOSE(uxb_works!$B$47,IF(iData!R43="","-",TEXT(iData!R43,$H48)),INDEX(aScores,$B48,X$4)) -> - | Y48: =CHOOSE(uxb_works!$B$47,IF(iData!S43="","-",TEXT(iData!S43,$H48)),INDEX(aScores,$B48,Y$4)) -> - | Z48: =CHOOSE(uxb_works!$B$47,IF(iData!T43="","-",TEXT(iData!T43,$H48)),INDEX(aScores,$B48,Z$4)) -> - | AA48: =CHOOSE(uxb_works!$B$47,IF(iData!U43="","-",TEXT(iData!U43,$H48)),INDEX(aScores,$B48,AA$4)) -> - | AB48: =CHOOSE(uxb_works!$B$47,IF(iData!V43="","-",TEXT(iData!V43,$H48)),INDEX(aScores,$B48,AB$4)) -> - | AC48: =CHOOSE(uxb_works!$B$47,IF(iData!W43="","-",TEXT(iData!W43,$H48)),INDEX(aScores,$B48,AC$4)) -> - | AD48: =CHOOSE(uxb_works!$B$47,IF(iData!X43="","-",TEXT(iData!X43,$H48)),INDEX(aScores,$B48,AD$4)) -> - | AE48: =CHOOSE(uxb_works!$B$47,IF(iData!Y43="","-",TEXT(iData!Y43,$H48)),INDEX(aScores,$B48,AE$4)) -> - | AF48: =CHOOSE(uxb_works!$B$47,IF(iData!Z43="","-",TEXT(iData!Z43,$H48)),INDEX(aScores,$B48,AF$4)) -> - | AG48: =CHOOSE(uxb_works!$B$47,IF(iData!AA43="","-",TEXT(iData!AA43,$H48)),INDEX(aScores,$B48,AG$4)) -> - | AH48: =CHOOSE(uxb_works!$B$47,IF(iData!AB43="","-",TEXT(iData!AB43,$H48)),INDEX(aScores,$B48,AH$4)) -> - | AI48: =CHOOSE(uxb_works!$B$47,IF(iData!AC43="","-",TEXT(iData!AC43,$H48)),INDEX(aScores,$B48,AI$4)) -> - | AJ48: =CHOOSE(uxb_works!$B$47,IF(iData!AD43="","-",TEXT(iData!AD43,$H48)),INDEX(aScores,$B48,AJ$4)) -> -
B49: =tblIndicators!A40 -> 39 | F49: =iScores!F44 -> 3 | H49: =tblIndicators!AC40 -> #,##0 | K49: =IF(uxb_works!$B$46>=L49,1,0) -> 1 | L49: =tblIndicators!G40 -> 3 | N49: =iScores!N44 -> 3.2.1) Standards for point source pollution | O49: =CHOOSE(uxb_works!$B$47,iData!I44,iScores!O44) -> Score 0-1 | P49: =IF(tblIndicators!T40="","",IF(AND(uxb_works!$B$47=1,OR(F49=5,Scores!F49<=2)),"",tblIndicators!T40)) -> 1 | Q49: =CHOOSE(uxb_works!$B$47,IF(iData!K44="","-",TEXT(iData!K44,$H49)),INDEX(aScores,$B49,Q$4)) -> 1 | R49: =CHOOSE(uxb_works!$B$47,IF(iData!L44="","-",TEXT(iData!L44,$H49)),INDEX(aScores,$B49,R$4)) -> 1 | S49: =CHOOSE(uxb_works!$B$47,IF(iData!M44="","-",TEXT(iData!M44,$H49)),INDEX(aScores,$B49,S$4)) -> 1 | T49: =CHOOSE(uxb_works!$B$47,IF(iData!N44="","-",TEXT(iData!N44,$H49)),INDEX(aScores,$B49,T$4)) -> 1 | U49: =CHOOSE(uxb_works!$B$47,IF(iData!O44="","-",TEXT(iData!O44,$H49)),INDEX(aScores,$B49,U$4)) -> 1 | V49: =CHOOSE(uxb_works!$B$47,IF(iData!P44="","-",TEXT(iData!P44,$H49)),INDEX(aScores,$B49,V$4)) -> 1 | W49: =CHOOSE(uxb_works!$B$47,IF(iData!Q44="","-",TEXT(iData!Q44,$H49)),INDEX(aScores,$B49,W$4)) -> 1 | X49: =CHOOSE(uxb_works!$B$47,IF(iData!R44="","-",TEXT(iData!R44,$H49)),INDEX(aScores,$B49,X$4)) -> 1 | Y49: =CHOOSE(uxb_works!$B$47,IF(iData!S44="","-",TEXT(iData!S44,$H49)),INDEX(aScores,$B49,Y$4)) -> 1 | Z49: =CHOOSE(uxb_works!$B$47,IF(iData!T44="","-",TEXT(iData!T44,$H49)),INDEX(aScores,$B49,Z$4)) -> 1 | AA49: =CHOOSE(uxb_works!$B$47,IF(iData!U44="","-",TEXT(iData!U44,$H49)),INDEX(aScores,$B49,AA$4)) -> 1 | AB49: =CHOOSE(uxb_works!$B$47,IF(iData!V44="","-",TEXT(iData!V44,$H49)),INDEX(aScores,$B49,AB$4)) -> 1 | AC49: =CHOOSE(uxb_works!$B$47,IF(iData!W44="","-",TEXT(iData!W44,$H49)),INDEX(aScores,$B49,AC$4)) -> 1 | AD49: =CHOOSE(uxb_works!$B$47,IF(iData!X44="","-",TEXT(iData!X44,$H49)),INDEX(aScores,$B49,AD$4)) -> 1 | AE49: =CHOOSE(uxb_works!$B$47,IF(iData!Y44="","-",TEXT(iData!Y44,$H49)),INDEX(aScores,$B49,AE$4)) -> 1 | AF49: =CHOOSE(uxb_works!$B$47,IF(iData!Z44="","-",TEXT(iData!Z44,$H49)),INDEX(aScores,$B49,AF$4)) -> 1 | AG49: =CHOOSE(uxb_works!$B$47,IF(iData!AA44="","-",TEXT(iData!AA44,$H49)),INDEX(aScores,$B49,AG$4)) -> 1 | AH49: =CHOOSE(uxb_works!$B$47,IF(iData!AB44="","-",TEXT(iData!AB44,$H49)),INDEX(aScores,$B49,AH$4)) -> 1 | AI49: =CHOOSE(uxb_works!$B$47,IF(iData!AC44="","-",TEXT(iData!AC44,$H49)),INDEX(aScores,$B49,AI$4)) -> 1 | AJ49: =CHOOSE(uxb_works!$B$47,IF(iData!AD44="","-",TEXT(iData!AD44,$H49)),INDEX(aScores,$B49,AJ$4)) -> 1
B50: =tblIndicators!A41 -> 40 | F50: =iScores!F45 -> 3 | H50: =tblIndicators!AC41 -> #,##0 | K50: =IF(uxb_works!$B$46>=L50,1,0) -> 1 | L50: =tblIndicators!G41 -> 3 | N50: =iScores!N45 -> 3.2.2) Restrictions on “Dirty Dozen” persistent organic pollutants | O50: =CHOOSE(uxb_works!$B$47,iData!I45,iScores!O45) -> Score 0-25 | P50: =IF(tblIndicators!T41="","",IF(AND(uxb_works!$B$47=1,OR(F50=5,Scores!F50<=2)),"",tblIndicators!T41)) -> 24 | Q50: =CHOOSE(uxb_works!$B$47,IF(iData!K45="","-",TEXT(iData!K45,$H50)),INDEX(aScores,$B50,Q$4)) -> 22 | R50: =CHOOSE(uxb_works!$B$47,IF(iData!L45="","-",TEXT(iData!L45,$H50)),INDEX(aScores,$B50,R$4)) -> 24 | S50: =CHOOSE(uxb_works!$B$47,IF(iData!M45="","-",TEXT(iData!M45,$H50)),INDEX(aScores,$B50,S$4)) -> 23 | T50: =CHOOSE(uxb_works!$B$47,IF(iData!N45="","-",TEXT(iData!N45,$H50)),INDEX(aScores,$B50,T$4)) -> 13 | U50: =CHOOSE(uxb_works!$B$47,IF(iData!O45="","-",TEXT(iData!O45,$H50)),INDEX(aScores,$B50,U$4)) -> 23 | V50: =CHOOSE(uxb_works!$B$47,IF(iData!P45="","-",TEXT(iData!P45,$H50)),INDEX(aScores,$B50,V$4)) -> 23 | W50: =CHOOSE(uxb_works!$B$47,IF(iData!Q45="","-",TEXT(iData!Q45,$H50)),INDEX(aScores,$B50,W$4)) -> 21 | X50: =CHOOSE(uxb_works!$B$47,IF(iData!R45="","-",TEXT(iData!R45,$H50)),INDEX(aScores,$B50,X$4)) -> 23 | Y50: =CHOOSE(uxb_works!$B$47,IF(iData!S45="","-",TEXT(iData!S45,$H50)),INDEX(aScores,$B50,Y$4)) -> 20 | Z50: =CHOOSE(uxb_works!$B$47,IF(iData!T45="","-",TEXT(iData!T45,$H50)),INDEX(aScores,$B50,Z$4)) -> 24 | AA50: =CHOOSE(uxb_works!$B$47,IF(iData!U45="","-",TEXT(iData!U45,$H50)),INDEX(aScores,$B50,AA$4)) -> 21 | AB50: =CHOOSE(uxb_works!$B$47,IF(iData!V45="","-",TEXT(iData!V45,$H50)),INDEX(aScores,$B50,AB$4)) -> 23 | AC50: =CHOOSE(uxb_works!$B$47,IF(iData!W45="","-",TEXT(iData!W45,$H50)),INDEX(aScores,$B50,AC$4)) -> 21 | AD50: =CHOOSE(uxb_works!$B$47,IF(iData!X45="","-",TEXT(iData!X45,$H50)),INDEX(aScores,$B50,AD$4)) -> 18 | AE50: =CHOOSE(uxb_works!$B$47,IF(iData!Y45="","-",TEXT(iData!Y45,$H50)),INDEX(aScores,$B50,AE$4)) -> 3 | AF50: =CHOOSE(uxb_works!$B$47,IF(iData!Z45="","-",TEXT(iData!Z45,$H50)),INDEX(aScores,$B50,AF$4)) -> 22 | AG50: =CHOOSE(uxb_works!$B$47,IF(iData!AA45="","-",TEXT(iData!AA45,$H50)),INDEX(aScores,$B50,AG$4)) -> 23 | AH50: =CHOOSE(uxb_works!$B$47,IF(iData!AB45="","-",TEXT(iData!AB45,$H50)),INDEX(aScores,$B50,AH$4)) -> 23 | AI50: =CHOOSE(uxb_works!$B$47,IF(iData!AC45="","-",TEXT(iData!AC45,$H50)),INDEX(aScores,$B50,AI$4)) -> 20 | AJ50: =CHOOSE(uxb_works!$B$47,IF(iData!AD45="","-",TEXT(iData!AD45,$H50)),INDEX(aScores,$B50,AJ$4)) -> 22
B51: =tblIndicators!A42 -> 41 | F51: =iScores!F46 -> 3 | H51: =tblIndicators!AC42 -> #,##0.0 | K51: =IF(uxb_works!$B$46>=L51,1,0) -> 1 | L51: =tblIndicators!G42 -> 3 | N51: =iScores!N46 -> 3.2.3) Wastewater treatment | O51: =CHOOSE(uxb_works!$B$47,iData!I46,iScores!O46) -> Score 0-100 | P51: =IF(tblIndicators!T42="","",IF(AND(uxb_works!$B$47=1,OR(F51=5,Scores!F51<=2)),"",tblIndicators!T42)) -> 96.16 | Q51: =CHOOSE(uxb_works!$B$47,IF(iData!K46="","-",TEXT(iData!K46,$H51)),INDEX(aScores,$B51,Q$4)) -> 81.1 | R51: =CHOOSE(uxb_works!$B$47,IF(iData!L46="","-",TEXT(iData!L46,$H51)),INDEX(aScores,$B51,R$4)) -> 96.4 | S51: =CHOOSE(uxb_works!$B$47,IF(iData!M46="","-",TEXT(iData!M46,$H51)),INDEX(aScores,$B51,S$4)) -> 98.6 | T51: =CHOOSE(uxb_works!$B$47,IF(iData!N46="","-",TEXT(iData!N46,$H51)),INDEX(aScores,$B51,T$4)) -> 80.2 | U51: =CHOOSE(uxb_works!$B$47,IF(iData!O46="","-",TEXT(iData!O46,$H51)),INDEX(aScores,$B51,U$4)) -> 95.6 | V51: =CHOOSE(uxb_works!$B$47,IF(iData!P46="","-",TEXT(iData!P46,$H51)),INDEX(aScores,$B51,V$4)) -> 58.8 | W51: =CHOOSE(uxb_works!$B$47,IF(iData!Q46="","-",TEXT(iData!Q46,$H51)),INDEX(aScores,$B51,W$4)) -> 13.6 | X51: =CHOOSE(uxb_works!$B$47,IF(iData!R46="","-",TEXT(iData!R46,$H51)),INDEX(aScores,$B51,X$4)) -> 94.1 | Y51: =CHOOSE(uxb_works!$B$47,IF(iData!S46="","-",TEXT(iData!S46,$H51)),INDEX(aScores,$B51,Y$4)) -> 91.5 | Z51: =CHOOSE(uxb_works!$B$47,IF(iData!T46="","-",TEXT(iData!T46,$H51)),INDEX(aScores,$B51,Z$4)) -> 96.2 | AA51: =CHOOSE(uxb_works!$B$47,IF(iData!U46="","-",TEXT(iData!U46,$H51)),INDEX(aScores,$B51,AA$4)) -> 30.8 | AB51: =CHOOSE(uxb_works!$B$47,IF(iData!V46="","-",TEXT(iData!V46,$H51)),INDEX(aScores,$B51,AB$4)) -> 96.1 | AC51: =CHOOSE(uxb_works!$B$47,IF(iData!W46="","-",TEXT(iData!W46,$H51)),INDEX(aScores,$B51,AC$4)) -> 88.5 | AD51: =CHOOSE(uxb_works!$B$47,IF(iData!X46="","-",TEXT(iData!X46,$H51)),INDEX(aScores,$B51,AD$4)) -> 60.3 | AE51: =CHOOSE(uxb_works!$B$47,IF(iData!Y46="","-",TEXT(iData!Y46,$H51)),INDEX(aScores,$B51,AE$4)) -> 96.5 | AF51: =CHOOSE(uxb_works!$B$47,IF(iData!Z46="","-",TEXT(iData!Z46,$H51)),INDEX(aScores,$B51,AF$4)) -> 87.8 | AG51: =CHOOSE(uxb_works!$B$47,IF(iData!AA46="","-",TEXT(iData!AA46,$H51)),INDEX(aScores,$B51,AG$4)) -> 98.2 | AH51: =CHOOSE(uxb_works!$B$47,IF(iData!AB46="","-",TEXT(iData!AB46,$H51)),INDEX(aScores,$B51,AH$4)) -> 99.7 | AI51: =CHOOSE(uxb_works!$B$47,IF(iData!AC46="","-",TEXT(iData!AC46,$H51)),INDEX(aScores,$B51,AI$4)) -> 92.6 | AJ51: =CHOOSE(uxb_works!$B$47,IF(iData!AD46="","-",TEXT(iData!AD46,$H51)),INDEX(aScores,$B51,AJ$4)) -> 33.1
B52: =tblIndicators!A43 -> 42 | F52: =iScores!F47 -> 2 | H52: =tblIndicators!AC43 -> #,##0.0 | K52: =IF(uxb_works!$B$46>=L52,1,0) -> 1 | L52: =tblIndicators!G43 -> 2 | N52: =iScores!N47 -> 3.3) Monitoring and enforcement | O52: =CHOOSE(uxb_works!$B$47,iData!I47,iScores!O47) ->  | P52: =IF(tblIndicators!T43="","",IF(AND(uxb_works!$B$47=1,OR(F52=5,Scores!F52<=2)),"",tblIndicators!T43)) ->  | Q52: =CHOOSE(uxb_works!$B$47,IF(iData!K47="","-",TEXT(iData!K47,$H52)),INDEX(aScores,$B52,Q$4)) -> - | R52: =CHOOSE(uxb_works!$B$47,IF(iData!L47="","-",TEXT(iData!L47,$H52)),INDEX(aScores,$B52,R$4)) -> - | S52: =CHOOSE(uxb_works!$B$47,IF(iData!M47="","-",TEXT(iData!M47,$H52)),INDEX(aScores,$B52,S$4)) -> - | T52: =CHOOSE(uxb_works!$B$47,IF(iData!N47="","-",TEXT(iData!N47,$H52)),INDEX(aScores,$B52,T$4)) -> - | U52: =CHOOSE(uxb_works!$B$47,IF(iData!O47="","-",TEXT(iData!O47,$H52)),INDEX(aScores,$B52,U$4)) -> - | V52: =CHOOSE(uxb_works!$B$47,IF(iData!P47="","-",TEXT(iData!P47,$H52)),INDEX(aScores,$B52,V$4)) -> - | W52: =CHOOSE(uxb_works!$B$47,IF(iData!Q47="","-",TEXT(iData!Q47,$H52)),INDEX(aScores,$B52,W$4)) -> - | X52: =CHOOSE(uxb_works!$B$47,IF(iData!R47="","-",TEXT(iData!R47,$H52)),INDEX(aScores,$B52,X$4)) -> - | Y52: =CHOOSE(uxb_works!$B$47,IF(iData!S47="","-",TEXT(iData!S47,$H52)),INDEX(aScores,$B52,Y$4)) -> - | Z52: =CHOOSE(uxb_works!$B$47,IF(iData!T47="","-",TEXT(iData!T47,$H52)),INDEX(aScores,$B52,Z$4)) -> - | AA52: =CHOOSE(uxb_works!$B$47,IF(iData!U47="","-",TEXT(iData!U47,$H52)),INDEX(aScores,$B52,AA$4)) -> - | AB52: =CHOOSE(uxb_works!$B$47,IF(iData!V47="","-",TEXT(iData!V47,$H52)),INDEX(aScores,$B52,AB$4)) -> - | AC52: =CHOOSE(uxb_works!$B$47,IF(iData!W47="","-",TEXT(iData!W47,$H52)),INDEX(aScores,$B52,AC$4)) -> - | AD52: =CHOOSE(uxb_works!$B$47,IF(iData!X47="","-",TEXT(iData!X47,$H52)),INDEX(aScores,$B52,AD$4)) -> - | AE52: =CHOOSE(uxb_works!$B$47,IF(iData!Y47="","-",TEXT(iData!Y47,$H52)),INDEX(aScores,$B52,AE$4)) -> - | AF52: =CHOOSE(uxb_works!$B$47,IF(iData!Z47="","-",TEXT(iData!Z47,$H52)),INDEX(aScores,$B52,AF$4)) -> - | AG52: =CHOOSE(uxb_works!$B$47,IF(iData!AA47="","-",TEXT(iData!AA47,$H52)),INDEX(aScores,$B52,AG$4)) -> - | AH52: =CHOOSE(uxb_works!$B$47,IF(iData!AB47="","-",TEXT(iData!AB47,$H52)),INDEX(aScores,$B52,AH$4)) -> - | AI52: =CHOOSE(uxb_works!$B$47,IF(iData!AC47="","-",TEXT(iData!AC47,$H52)),INDEX(aScores,$B52,AI$4)) -> - | AJ52: =CHOOSE(uxb_works!$B$47,IF(iData!AD47="","-",TEXT(iData!AD47,$H52)),INDEX(aScores,$B52,AJ$4)) -> -
B53: =tblIndicators!A44 -> 43 | F53: =iScores!F48 -> 3 | H53: =tblIndicators!AC44 -> #,##0 | K53: =IF(uxb_works!$B$46>=L53,1,0) -> 1 | L53: =tblIndicators!G44 -> 3 | N53: =iScores!N48 -> 3.3.1) Coastal water quality data | O53: =CHOOSE(uxb_works!$B$47,iData!I48,iScores!O48) -> Score 0-3 | P53: =IF(tblIndicators!T44="","",IF(AND(uxb_works!$B$47=1,OR(F53=5,Scores!F53<=2)),"",tblIndicators!T44)) -> 3 | Q53: =CHOOSE(uxb_works!$B$47,IF(iData!K48="","-",TEXT(iData!K48,$H53)),INDEX(aScores,$B53,Q$4)) -> 3 | R53: =CHOOSE(uxb_works!$B$47,IF(iData!L48="","-",TEXT(iData!L48,$H53)),INDEX(aScores,$B53,R$4)) -> 3 | S53: =CHOOSE(uxb_works!$B$47,IF(iData!M48="","-",TEXT(iData!M48,$H53)),INDEX(aScores,$B53,S$4)) -> 3 | T53: =CHOOSE(uxb_works!$B$47,IF(iData!N48="","-",TEXT(iData!N48,$H53)),INDEX(aScores,$B53,T$4)) -> 3 | U53: =CHOOSE(uxb_works!$B$47,IF(iData!O48="","-",TEXT(iData!O48,$H53)),INDEX(aScores,$B53,U$4)) -> 3 | V53: =CHOOSE(uxb_works!$B$47,IF(iData!P48="","-",TEXT(iData!P48,$H53)),INDEX(aScores,$B53,V$4)) -> 3 | W53: =CHOOSE(uxb_works!$B$47,IF(iData!Q48="","-",TEXT(iData!Q48,$H53)),INDEX(aScores,$B53,W$4)) -> 3 | X53: =CHOOSE(uxb_works!$B$47,IF(iData!R48="","-",TEXT(iData!R48,$H53)),INDEX(aScores,$B53,X$4)) -> 3 | Y53: =CHOOSE(uxb_works!$B$47,IF(iData!S48="","-",TEXT(iData!S48,$H53)),INDEX(aScores,$B53,Y$4)) -> 3 | Z53: =CHOOSE(uxb_works!$B$47,IF(iData!T48="","-",TEXT(iData!T48,$H53)),INDEX(aScores,$B53,Z$4)) -> 3 | AA53: =CHOOSE(uxb_works!$B$47,IF(iData!U48="","-",TEXT(iData!U48,$H53)),INDEX(aScores,$B53,AA$4)) -> 1 | AB53: =CHOOSE(uxb_works!$B$47,IF(iData!V48="","-",TEXT(iData!V48,$H53)),INDEX(aScores,$B53,AB$4)) -> 3 | AC53: =CHOOSE(uxb_works!$B$47,IF(iData!W48="","-",TEXT(iData!W48,$H53)),INDEX(aScores,$B53,AC$4)) -> 3 | AD53: =CHOOSE(uxb_works!$B$47,IF(iData!X48="","-",TEXT(iData!X48,$H53)),INDEX(aScores,$B53,AD$4)) -> 3 | AE53: =CHOOSE(uxb_works!$B$47,IF(iData!Y48="","-",TEXT(iData!Y48,$H53)),INDEX(aScores,$B53,AE$4)) -> 1 | AF53: =CHOOSE(uxb_works!$B$47,IF(iData!Z48="","-",TEXT(iData!Z48,$H53)),INDEX(aScores,$B53,AF$4)) -> 3 | AG53: =CHOOSE(uxb_works!$B$47,IF(iData!AA48="","-",TEXT(iData!AA48,$H53)),INDEX(aScores,$B53,AG$4)) -> 2 | AH53: =CHOOSE(uxb_works!$B$47,IF(iData!AB48="","-",TEXT(iData!AB48,$H53)),INDEX(aScores,$B53,AH$4)) -> 3 | AI53: =CHOOSE(uxb_works!$B$47,IF(iData!AC48="","-",TEXT(iData!AC48,$H53)),INDEX(aScores,$B53,AI$4)) -> 3 | AJ53: =CHOOSE(uxb_works!$B$47,IF(iData!AD48="","-",TEXT(iData!AD48,$H53)),INDEX(aScores,$B53,AJ$4)) -> 3
B54: =tblIndicators!A45 -> 44 | F54: =iScores!F49 -> 3 | H54: =tblIndicators!AC45 -> #,##0 | K54: =IF(uxb_works!$B$46>=L54,1,0) -> 1 | L54: =tblIndicators!G45 -> 3 | N54: =iScores!N49 -> 3.3.2) Penalties for water quality violations | O54: =CHOOSE(uxb_works!$B$47,iData!I49,iScores!O49) -> Score 0-1 | P54: =IF(tblIndicators!T45="","",IF(AND(uxb_works!$B$47=1,OR(F54=5,Scores!F54<=2)),"",tblIndicators!T45)) -> 1 | Q54: =CHOOSE(uxb_works!$B$47,IF(iData!K49="","-",TEXT(iData!K49,$H54)),INDEX(aScores,$B54,Q$4)) -> 1 | R54: =CHOOSE(uxb_works!$B$47,IF(iData!L49="","-",TEXT(iData!L49,$H54)),INDEX(aScores,$B54,R$4)) -> 1 | S54: =CHOOSE(uxb_works!$B$47,IF(iData!M49="","-",TEXT(iData!M49,$H54)),INDEX(aScores,$B54,S$4)) -> 1 | T54: =CHOOSE(uxb_works!$B$47,IF(iData!N49="","-",TEXT(iData!N49,$H54)),INDEX(aScores,$B54,T$4)) -> 1 | U54: =CHOOSE(uxb_works!$B$47,IF(iData!O49="","-",TEXT(iData!O49,$H54)),INDEX(aScores,$B54,U$4)) -> 1 | V54: =CHOOSE(uxb_works!$B$47,IF(iData!P49="","-",TEXT(iData!P49,$H54)),INDEX(aScores,$B54,V$4)) -> 1 | W54: =CHOOSE(uxb_works!$B$47,IF(iData!Q49="","-",TEXT(iData!Q49,$H54)),INDEX(aScores,$B54,W$4)) -> 1 | X54: =CHOOSE(uxb_works!$B$47,IF(iData!R49="","-",TEXT(iData!R49,$H54)),INDEX(aScores,$B54,X$4)) -> 1 | Y54: =CHOOSE(uxb_works!$B$47,IF(iData!S49="","-",TEXT(iData!S49,$H54)),INDEX(aScores,$B54,Y$4)) -> 1 | Z54: =CHOOSE(uxb_works!$B$47,IF(iData!T49="","-",TEXT(iData!T49,$H54)),INDEX(aScores,$B54,Z$4)) -> 1 | AA54: =CHOOSE(uxb_works!$B$47,IF(iData!U49="","-",TEXT(iData!U49,$H54)),INDEX(aScores,$B54,AA$4)) -> 1 | AB54: =CHOOSE(uxb_works!$B$47,IF(iData!V49="","-",TEXT(iData!V49,$H54)),INDEX(aScores,$B54,AB$4)) -> 1 | AC54: =CHOOSE(uxb_works!$B$47,IF(iData!W49="","-",TEXT(iData!W49,$H54)),INDEX(aScores,$B54,AC$4)) -> 1 | AD54: =CHOOSE(uxb_works!$B$47,IF(iData!X49="","-",TEXT(iData!X49,$H54)),INDEX(aScores,$B54,AD$4)) -> 1 | AE54: =CHOOSE(uxb_works!$B$47,IF(iData!Y49="","-",TEXT(iData!Y49,$H54)),INDEX(aScores,$B54,AE$4)) -> 1 | AF54: =CHOOSE(uxb_works!$B$47,IF(iData!Z49="","-",TEXT(iData!Z49,$H54)),INDEX(aScores,$B54,AF$4)) -> 1 | AG54: =CHOOSE(uxb_works!$B$47,IF(iData!AA49="","-",TEXT(iData!AA49,$H54)),INDEX(aScores,$B54,AG$4)) -> 1 | AH54: =CHOOSE(uxb_works!$B$47,IF(iData!AB49="","-",TEXT(iData!AB49,$H54)),INDEX(aScores,$B54,AH$4)) -> 1 | AI54: =CHOOSE(uxb_works!$B$47,IF(iData!AC49="","-",TEXT(iData!AC49,$H54)),INDEX(aScores,$B54,AI$4)) -> 1 | AJ54: =CHOOSE(uxb_works!$B$47,IF(iData!AD49="","-",TEXT(iData!AD49,$H54)),INDEX(aScores,$B54,AJ$4)) -> 1
B55: =tblIndicators!A46 -> 45 | F55: =iScores!F50 -> 1 | H55: =tblIndicators!AC46 -> #,##0.0 | K55: =IF(uxb_works!$B$46>=L55,1,0) -> 1 | L55: =tblIndicators!G46 -> 1 | N55: =iScores!N50 -> 4) MINERALS, ENERGY AND SHIPPING | O55: =CHOOSE(uxb_works!$B$47,iData!I50,iScores!O50) ->  | P55: =IF(tblIndicators!T46="","",IF(AND(uxb_works!$B$47=1,OR(F55=5,Scores!F55<=2)),"",tblIndicators!T46)) ->  | Q55: =CHOOSE(uxb_works!$B$47,IF(iData!K50="","-",TEXT(iData!K50,$H55)),INDEX(aScores,$B55,Q$4)) -> - | R55: =CHOOSE(uxb_works!$B$47,IF(iData!L50="","-",TEXT(iData!L50,$H55)),INDEX(aScores,$B55,R$4)) -> - | S55: =CHOOSE(uxb_works!$B$47,IF(iData!M50="","-",TEXT(iData!M50,$H55)),INDEX(aScores,$B55,S$4)) -> - | T55: =CHOOSE(uxb_works!$B$47,IF(iData!N50="","-",TEXT(iData!N50,$H55)),INDEX(aScores,$B55,T$4)) -> - | U55: =CHOOSE(uxb_works!$B$47,IF(iData!O50="","-",TEXT(iData!O50,$H55)),INDEX(aScores,$B55,U$4)) -> - | V55: =CHOOSE(uxb_works!$B$47,IF(iData!P50="","-",TEXT(iData!P50,$H55)),INDEX(aScores,$B55,V$4)) -> - | W55: =CHOOSE(uxb_works!$B$47,IF(iData!Q50="","-",TEXT(iData!Q50,$H55)),INDEX(aScores,$B55,W$4)) -> - | X55: =CHOOSE(uxb_works!$B$47,IF(iData!R50="","-",TEXT(iData!R50,$H55)),INDEX(aScores,$B55,X$4)) -> - | Y55: =CHOOSE(uxb_works!$B$47,IF(iData!S50="","-",TEXT(iData!S50,$H55)),INDEX(aScores,$B55,Y$4)) -> - | Z55: =CHOOSE(uxb_works!$B$47,IF(iData!T50="","-",TEXT(iData!T50,$H55)),INDEX(aScores,$B55,Z$4)) -> - | AA55: =CHOOSE(uxb_works!$B$47,IF(iData!U50="","-",TEXT(iData!U50,$H55)),INDEX(aScores,$B55,AA$4)) -> - | AB55: =CHOOSE(uxb_works!$B$47,IF(iData!V50="","-",TEXT(iData!V50,$H55)),INDEX(aScores,$B55,AB$4)) -> - | AC55: =CHOOSE(uxb_works!$B$47,IF(iData!W50="","-",TEXT(iData!W50,$H55)),INDEX(aScores,$B55,AC$4)) -> - | AD55: =CHOOSE(uxb_works!$B$47,IF(iData!X50="","-",TEXT(iData!X50,$H55)),INDEX(aScores,$B55,AD$4)) -> - | AE55: =CHOOSE(uxb_works!$B$47,IF(iData!Y50="","-",TEXT(iData!Y50,$H55)),INDEX(aScores,$B55,AE$4)) -> - | AF55: =CHOOSE(uxb_works!$B$47,IF(iData!Z50="","-",TEXT(iData!Z50,$H55)),INDEX(aScores,$B55,AF$4)) -> - | AG55: =CHOOSE(uxb_works!$B$47,IF(iData!AA50="","-",TEXT(iData!AA50,$H55)),INDEX(aScores,$B55,AG$4)) -> - | AH55: =CHOOSE(uxb_works!$B$47,IF(iData!AB50="","-",TEXT(iData!AB50,$H55)),INDEX(aScores,$B55,AH$4)) -> - | AI55: =CHOOSE(uxb_works!$B$47,IF(iData!AC50="","-",TEXT(iData!AC50,$H55)),INDEX(aScores,$B55,AI$4)) -> - | AJ55: =CHOOSE(uxb_works!$B$47,IF(iData!AD50="","-",TEXT(iData!AD50,$H55)),INDEX(aScores,$B55,AJ$4)) -> -
B56: =tblIndicators!A47 -> 46 | F56: =iScores!F51 -> 2 | H56: =tblIndicators!AC47 -> #,##0.0 | K56: =IF(uxb_works!$B$46>=L56,1,0) -> 1 | L56: =tblIndicators!G47 -> 2 | N56: =iScores!N51 -> 4.1) Permitting and licensing | O56: =CHOOSE(uxb_works!$B$47,iData!I51,iScores!O51) ->  | P56: =IF(tblIndicators!T47="","",IF(AND(uxb_works!$B$47=1,OR(F56=5,Scores!F56<=2)),"",tblIndicators!T47)) ->  | Q56: =CHOOSE(uxb_works!$B$47,IF(iData!K51="","-",TEXT(iData!K51,$H56)),INDEX(aScores,$B56,Q$4)) -> - | R56: =CHOOSE(uxb_works!$B$47,IF(iData!L51="","-",TEXT(iData!L51,$H56)),INDEX(aScores,$B56,R$4)) -> - | S56: =CHOOSE(uxb_works!$B$47,IF(iData!M51="","-",TEXT(iData!M51,$H56)),INDEX(aScores,$B56,S$4)) -> - | T56: =CHOOSE(uxb_works!$B$47,IF(iData!N51="","-",TEXT(iData!N51,$H56)),INDEX(aScores,$B56,T$4)) -> - | U56: =CHOOSE(uxb_works!$B$47,IF(iData!O51="","-",TEXT(iData!O51,$H56)),INDEX(aScores,$B56,U$4)) -> - | V56: =CHOOSE(uxb_works!$B$47,IF(iData!P51="","-",TEXT(iData!P51,$H56)),INDEX(aScores,$B56,V$4)) -> - | W56: =CHOOSE(uxb_works!$B$47,IF(iData!Q51="","-",TEXT(iData!Q51,$H56)),INDEX(aScores,$B56,W$4)) -> - | X56: =CHOOSE(uxb_works!$B$47,IF(iData!R51="","-",TEXT(iData!R51,$H56)),INDEX(aScores,$B56,X$4)) -> - | Y56: =CHOOSE(uxb_works!$B$47,IF(iData!S51="","-",TEXT(iData!S51,$H56)),INDEX(aScores,$B56,Y$4)) -> - | Z56: =CHOOSE(uxb_works!$B$47,IF(iData!T51="","-",TEXT(iData!T51,$H56)),INDEX(aScores,$B56,Z$4)) -> - | AA56: =CHOOSE(uxb_works!$B$47,IF(iData!U51="","-",TEXT(iData!U51,$H56)),INDEX(aScores,$B56,AA$4)) -> - | AB56: =CHOOSE(uxb_works!$B$47,IF(iData!V51="","-",TEXT(iData!V51,$H56)),INDEX(aScores,$B56,AB$4)) -> - | AC56: =CHOOSE(uxb_works!$B$47,IF(iData!W51="","-",TEXT(iData!W51,$H56)),INDEX(aScores,$B56,AC$4)) -> - | AD56: =CHOOSE(uxb_works!$B$47,IF(iData!X51="","-",TEXT(iData!X51,$H56)),INDEX(aScores,$B56,AD$4)) -> - | AE56: =CHOOSE(uxb_works!$B$47,IF(iData!Y51="","-",TEXT(iData!Y51,$H56)),INDEX(aScores,$B56,AE$4)) -> - | AF56: =CHOOSE(uxb_works!$B$47,IF(iData!Z51="","-",TEXT(iData!Z51,$H56)),INDEX(aScores,$B56,AF$4)) -> - | AG56: =CHOOSE(uxb_works!$B$47,IF(iData!AA51="","-",TEXT(iData!AA51,$H56)),INDEX(aScores,$B56,AG$4)) -> - | AH56: =CHOOSE(uxb_works!$B$47,IF(iData!AB51="","-",TEXT(iData!AB51,$H56)),INDEX(aScores,$B56,AH$4)) -> - | AI56: =CHOOSE(uxb_works!$B$47,IF(iData!AC51="","-",TEXT(iData!AC51,$H56)),INDEX(aScores,$B56,AI$4)) -> - | AJ56: =CHOOSE(uxb_works!$B$47,IF(iData!AD51="","-",TEXT(iData!AD51,$H56)),INDEX(aScores,$B56,AJ$4)) -> -
B57: =tblIndicators!A48 -> 47 | F57: =iScores!F52 -> 3 | H57: =tblIndicators!AC48 -> #,##0 | K57: =IF(uxb_works!$B$46>=L57,1,0) -> 1 | L57: =tblIndicators!G48 -> 3 | N57: =iScores!N52 -> 4.1.1) Oil and gas tenure | O57: =CHOOSE(uxb_works!$B$47,iData!I52,iScores!O52) -> Score 0-2 | P57: =IF(tblIndicators!T48="","",IF(AND(uxb_works!$B$47=1,OR(F57=5,Scores!F57<=2)),"",tblIndicators!T48)) -> 2 | Q57: =CHOOSE(uxb_works!$B$47,IF(iData!K52="","-",TEXT(iData!K52,$H57)),INDEX(aScores,$B57,Q$4)) -> 2 | R57: =CHOOSE(uxb_works!$B$47,IF(iData!L52="","-",TEXT(iData!L52,$H57)),INDEX(aScores,$B57,R$4)) -> 2 | S57: =CHOOSE(uxb_works!$B$47,IF(iData!M52="","-",TEXT(iData!M52,$H57)),INDEX(aScores,$B57,S$4)) -> 1 | T57: =CHOOSE(uxb_works!$B$47,IF(iData!N52="","-",TEXT(iData!N52,$H57)),INDEX(aScores,$B57,T$4)) -> 2 | U57: =CHOOSE(uxb_works!$B$47,IF(iData!O52="","-",TEXT(iData!O52,$H57)),INDEX(aScores,$B57,U$4)) -> 2 | V57: =CHOOSE(uxb_works!$B$47,IF(iData!P52="","-",TEXT(iData!P52,$H57)),INDEX(aScores,$B57,V$4)) -> 2 | W57: =CHOOSE(uxb_works!$B$47,IF(iData!Q52="","-",TEXT(iData!Q52,$H57)),INDEX(aScores,$B57,W$4)) -> 1 | X57: =CHOOSE(uxb_works!$B$47,IF(iData!R52="","-",TEXT(iData!R52,$H57)),INDEX(aScores,$B57,X$4)) -> 2 | Y57: =CHOOSE(uxb_works!$B$47,IF(iData!S52="","-",TEXT(iData!S52,$H57)),INDEX(aScores,$B57,Y$4)) -> 2 | Z57: =CHOOSE(uxb_works!$B$47,IF(iData!T52="","-",TEXT(iData!T52,$H57)),INDEX(aScores,$B57,Z$4)) -> 2 | AA57: =CHOOSE(uxb_works!$B$47,IF(iData!U52="","-",TEXT(iData!U52,$H57)),INDEX(aScores,$B57,AA$4)) -> 2 | AB57: =CHOOSE(uxb_works!$B$47,IF(iData!V52="","-",TEXT(iData!V52,$H57)),INDEX(aScores,$B57,AB$4)) -> 2 | AC57: =CHOOSE(uxb_works!$B$47,IF(iData!W52="","-",TEXT(iData!W52,$H57)),INDEX(aScores,$B57,AC$4)) -> 2 | AD57: =CHOOSE(uxb_works!$B$47,IF(iData!X52="","-",TEXT(iData!X52,$H57)),INDEX(aScores,$B57,AD$4)) -> 2 | AE57: =CHOOSE(uxb_works!$B$47,IF(iData!Y52="","-",TEXT(iData!Y52,$H57)),INDEX(aScores,$B57,AE$4)) -> 2 | AF57: =CHOOSE(uxb_works!$B$47,IF(iData!Z52="","-",TEXT(iData!Z52,$H57)),INDEX(aScores,$B57,AF$4)) -> 2 | AG57: =CHOOSE(uxb_works!$B$47,IF(iData!AA52="","-",TEXT(iData!AA52,$H57)),INDEX(aScores,$B57,AG$4)) -> 2 | AH57: =CHOOSE(uxb_works!$B$47,IF(iData!AB52="","-",TEXT(iData!AB52,$H57)),INDEX(aScores,$B57,AH$4)) -> 2 | AI57: =CHOOSE(uxb_works!$B$47,IF(iData!AC52="","-",TEXT(iData!AC52,$H57)),INDEX(aScores,$B57,AI$4)) -> 2 | AJ57: =CHOOSE(uxb_works!$B$47,IF(iData!AD52="","-",TEXT(iData!AD52,$H57)),INDEX(aScores,$B57,AJ$4)) -> 2
B58: =tblIndicators!A49 -> 48 | F58: =iScores!F53 -> 3 | H58: =tblIndicators!AC49 -> #,##0 | K58: =IF(uxb_works!$B$46>=L58,1,0) -> 1 | L58: =tblIndicators!G49 -> 3 | N58: =iScores!N53 -> 4.1.2) Mining and minerals tenure | O58: =CHOOSE(uxb_works!$B$47,iData!I53,iScores!O53) -> Score 0-2 | P58: =IF(tblIndicators!T49="","",IF(AND(uxb_works!$B$47=1,OR(F58=5,Scores!F58<=2)),"",tblIndicators!T49)) -> 2 | Q58: =CHOOSE(uxb_works!$B$47,IF(iData!K53="","-",TEXT(iData!K53,$H58)),INDEX(aScores,$B58,Q$4)) -> 2 | R58: =CHOOSE(uxb_works!$B$47,IF(iData!L53="","-",TEXT(iData!L53,$H58)),INDEX(aScores,$B58,R$4)) -> 2 | S58: =CHOOSE(uxb_works!$B$47,IF(iData!M53="","-",TEXT(iData!M53,$H58)),INDEX(aScores,$B58,S$4)) -> 2 | T58: =CHOOSE(uxb_works!$B$47,IF(iData!N53="","-",TEXT(iData!N53,$H58)),INDEX(aScores,$B58,T$4)) -> 2 | U58: =CHOOSE(uxb_works!$B$47,IF(iData!O53="","-",TEXT(iData!O53,$H58)),INDEX(aScores,$B58,U$4)) -> 2 | V58: =CHOOSE(uxb_works!$B$47,IF(iData!P53="","-",TEXT(iData!P53,$H58)),INDEX(aScores,$B58,V$4)) -> 2 | W58: =CHOOSE(uxb_works!$B$47,IF(iData!Q53="","-",TEXT(iData!Q53,$H58)),INDEX(aScores,$B58,W$4)) -> 1 | X58: =CHOOSE(uxb_works!$B$47,IF(iData!R53="","-",TEXT(iData!R53,$H58)),INDEX(aScores,$B58,X$4)) -> 2 | Y58: =CHOOSE(uxb_works!$B$47,IF(iData!S53="","-",TEXT(iData!S53,$H58)),INDEX(aScores,$B58,Y$4)) -> 2 | Z58: =CHOOSE(uxb_works!$B$47,IF(iData!T53="","-",TEXT(iData!T53,$H58)),INDEX(aScores,$B58,Z$4)) -> 2 | AA58: =CHOOSE(uxb_works!$B$47,IF(iData!U53="","-",TEXT(iData!U53,$H58)),INDEX(aScores,$B58,AA$4)) -> 2 | AB58: =CHOOSE(uxb_works!$B$47,IF(iData!V53="","-",TEXT(iData!V53,$H58)),INDEX(aScores,$B58,AB$4)) -> 2 | AC58: =CHOOSE(uxb_works!$B$47,IF(iData!W53="","-",TEXT(iData!W53,$H58)),INDEX(aScores,$B58,AC$4)) -> 2 | AD58: =CHOOSE(uxb_works!$B$47,IF(iData!X53="","-",TEXT(iData!X53,$H58)),INDEX(aScores,$B58,AD$4)) -> 2 | AE58: =CHOOSE(uxb_works!$B$47,IF(iData!Y53="","-",TEXT(iData!Y53,$H58)),INDEX(aScores,$B58,AE$4)) -> 2 | AF58: =CHOOSE(uxb_works!$B$47,IF(iData!Z53="","-",TEXT(iData!Z53,$H58)),INDEX(aScores,$B58,AF$4)) -> 2 | AG58: =CHOOSE(uxb_works!$B$47,IF(iData!AA53="","-",TEXT(iData!AA53,$H58)),INDEX(aScores,$B58,AG$4)) -> 2 | AH58: =CHOOSE(uxb_works!$B$47,IF(iData!AB53="","-",TEXT(iData!AB53,$H58)),INDEX(aScores,$B58,AH$4)) -> 2 | AI58: =CHOOSE(uxb_works!$B$47,IF(iData!AC53="","-",TEXT(iData!AC53,$H58)),INDEX(aScores,$B58,AI$4)) -> 2 | AJ58: =CHOOSE(uxb_works!$B$47,IF(iData!AD53="","-",TEXT(iData!AD53,$H58)),INDEX(aScores,$B58,AJ$4)) -> 2
B59: =tblIndicators!A50 -> 49 | F59: =iScores!F54 -> 2 | H59: =tblIndicators!AC50 -> #,##0.0 | K59: =IF(uxb_works!$B$46>=L59,1,0) -> 1 | L59: =tblIndicators!G50 -> 2 | N59: =iScores!N54 -> 4.2) Monitoring and enforcement | O59: =CHOOSE(uxb_works!$B$47,iData!I54,iScores!O54) ->  | P59: =IF(tblIndicators!T50="","",IF(AND(uxb_works!$B$47=1,OR(F59=5,Scores!F59<=2)),"",tblIndicators!T50)) ->  | Q59: =CHOOSE(uxb_works!$B$47,IF(iData!K54="","-",TEXT(iData!K54,$H59)),INDEX(aScores,$B59,Q$4)) -> - | R59: =CHOOSE(uxb_works!$B$47,IF(iData!L54="","-",TEXT(iData!L54,$H59)),INDEX(aScores,$B59,R$4)) -> - | S59: =CHOOSE(uxb_works!$B$47,IF(iData!M54="","-",TEXT(iData!M54,$H59)),INDEX(aScores,$B59,S$4)) -> - | T59: =CHOOSE(uxb_works!$B$47,IF(iData!N54="","-",TEXT(iData!N54,$H59)),INDEX(aScores,$B59,T$4)) -> - | U59: =CHOOSE(uxb_works!$B$47,IF(iData!O54="","-",TEXT(iData!O54,$H59)),INDEX(aScores,$B59,U$4)) -> - | V59: =CHOOSE(uxb_works!$B$47,IF(iData!P54="","-",TEXT(iData!P54,$H59)),INDEX(aScores,$B59,V$4)) -> - | W59: =CHOOSE(uxb_works!$B$47,IF(iData!Q54="","-",TEXT(iData!Q54,$H59)),INDEX(aScores,$B59,W$4)) -> - | X59: =CHOOSE(uxb_works!$B$47,IF(iData!R54="","-",TEXT(iData!R54,$H59)),INDEX(aScores,$B59,X$4)) -> - | Y59: =CHOOSE(uxb_works!$B$47,IF(iData!S54="","-",TEXT(iData!S54,$H59)),INDEX(aScores,$B59,Y$4)) -> - | Z59: =CHOOSE(uxb_works!$B$47,IF(iData!T54="","-",TEXT(iData!T54,$H59)),INDEX(aScores,$B59,Z$4)) -> - | AA59: =CHOOSE(uxb_works!$B$47,IF(iData!U54="","-",TEXT(iData!U54,$H59)),INDEX(aScores,$B59,AA$4)) -> - | AB59: =CHOOSE(uxb_works!$B$47,IF(iData!V54="","-",TEXT(iData!V54,$H59)),INDEX(aScores,$B59,AB$4)) -> - | AC59: =CHOOSE(uxb_works!$B$47,IF(iData!W54="","-",TEXT(iData!W54,$H59)),INDEX(aScores,$B59,AC$4)) -> - | AD59: =CHOOSE(uxb_works!$B$47,IF(iData!X54="","-",TEXT(iData!X54,$H59)),INDEX(aScores,$B59,AD$4)) -> - | AE59: =CHOOSE(uxb_works!$B$47,IF(iData!Y54="","-",TEXT(iData!Y54,$H59)),INDEX(aScores,$B59,AE$4)) -> - | AF59: =CHOOSE(uxb_works!$B$47,IF(iData!Z54="","-",TEXT(iData!Z54,$H59)),INDEX(aScores,$B59,AF$4)) -> - | AG59: =CHOOSE(uxb_works!$B$47,IF(iData!AA54="","-",TEXT(iData!AA54,$H59)),INDEX(aScores,$B59,AG$4)) -> - | AH59: =CHOOSE(uxb_works!$B$47,IF(iData!AB54="","-",TEXT(iData!AB54,$H59)),INDEX(aScores,$B59,AH$4)) -> - | AI59: =CHOOSE(uxb_works!$B$47,IF(iData!AC54="","-",TEXT(iData!AC54,$H59)),INDEX(aScores,$B59,AI$4)) -> - | AJ59: =CHOOSE(uxb_works!$B$47,IF(iData!AD54="","-",TEXT(iData!AD54,$H59)),INDEX(aScores,$B59,AJ$4)) -> -
B60: =tblIndicators!A51 -> 50 | F60: =iScores!F55 -> 3 | H60: =tblIndicators!AC51 -> #,##0 | K60: =IF(uxb_works!$B$46>=L60,1,0) -> 1 | L60: =tblIndicators!G51 -> 3 | N60: =iScores!N55 -> 4.2.1) Environmental impact assessment for oil and gas | O60: =CHOOSE(uxb_works!$B$47,iData!I55,iScores!O55) -> Score 0-1 | P60: =IF(tblIndicators!T51="","",IF(AND(uxb_works!$B$47=1,OR(F60=5,Scores!F60<=2)),"",tblIndicators!T51)) -> 1 | Q60: =CHOOSE(uxb_works!$B$47,IF(iData!K55="","-",TEXT(iData!K55,$H60)),INDEX(aScores,$B60,Q$4)) -> 1 | R60: =CHOOSE(uxb_works!$B$47,IF(iData!L55="","-",TEXT(iData!L55,$H60)),INDEX(aScores,$B60,R$4)) -> 1 | S60: =CHOOSE(uxb_works!$B$47,IF(iData!M55="","-",TEXT(iData!M55,$H60)),INDEX(aScores,$B60,S$4)) -> 1 | T60: =CHOOSE(uxb_works!$B$47,IF(iData!N55="","-",TEXT(iData!N55,$H60)),INDEX(aScores,$B60,T$4)) -> 1 | U60: =CHOOSE(uxb_works!$B$47,IF(iData!O55="","-",TEXT(iData!O55,$H60)),INDEX(aScores,$B60,U$4)) -> 1 | V60: =CHOOSE(uxb_works!$B$47,IF(iData!P55="","-",TEXT(iData!P55,$H60)),INDEX(aScores,$B60,V$4)) -> 1 | W60: =CHOOSE(uxb_works!$B$47,IF(iData!Q55="","-",TEXT(iData!Q55,$H60)),INDEX(aScores,$B60,W$4)) -> 1 | X60: =CHOOSE(uxb_works!$B$47,IF(iData!R55="","-",TEXT(iData!R55,$H60)),INDEX(aScores,$B60,X$4)) -> 1 | Y60: =CHOOSE(uxb_works!$B$47,IF(iData!S55="","-",TEXT(iData!S55,$H60)),INDEX(aScores,$B60,Y$4)) -> 1 | Z60: =CHOOSE(uxb_works!$B$47,IF(iData!T55="","-",TEXT(iData!T55,$H60)),INDEX(aScores,$B60,Z$4)) -> 1 | AA60: =CHOOSE(uxb_works!$B$47,IF(iData!U55="","-",TEXT(iData!U55,$H60)),INDEX(aScores,$B60,AA$4)) -> 1 | AB60: =CHOOSE(uxb_works!$B$47,IF(iData!V55="","-",TEXT(iData!V55,$H60)),INDEX(aScores,$B60,AB$4)) -> 1 | AC60: =CHOOSE(uxb_works!$B$47,IF(iData!W55="","-",TEXT(iData!W55,$H60)),INDEX(aScores,$B60,AC$4)) -> 1 | AD60: =CHOOSE(uxb_works!$B$47,IF(iData!X55="","-",TEXT(iData!X55,$H60)),INDEX(aScores,$B60,AD$4)) -> 1 | AE60: =CHOOSE(uxb_works!$B$47,IF(iData!Y55="","-",TEXT(iData!Y55,$H60)),INDEX(aScores,$B60,AE$4)) -> 1 | AF60: =CHOOSE(uxb_works!$B$47,IF(iData!Z55="","-",TEXT(iData!Z55,$H60)),INDEX(aScores,$B60,AF$4)) -> 1 | AG60: =CHOOSE(uxb_works!$B$47,IF(iData!AA55="","-",TEXT(iData!AA55,$H60)),INDEX(aScores,$B60,AG$4)) -> 1 | AH60: =CHOOSE(uxb_works!$B$47,IF(iData!AB55="","-",TEXT(iData!AB55,$H60)),INDEX(aScores,$B60,AH$4)) -> 1 | AI60: =CHOOSE(uxb_works!$B$47,IF(iData!AC55="","-",TEXT(iData!AC55,$H60)),INDEX(aScores,$B60,AI$4)) -> 1 | AJ60: =CHOOSE(uxb_works!$B$47,IF(iData!AD55="","-",TEXT(iData!AD55,$H60)),INDEX(aScores,$B60,AJ$4)) -> 1
B61: =tblIndicators!A52 -> 51 | F61: =iScores!F56 -> 3 | H61: =tblIndicators!AC52 -> #,##0 | K61: =IF(uxb_works!$B$46>=L61,1,0) -> 1 | L61: =tblIndicators!G52 -> 3 | N61: =iScores!N56 -> 4.2.2) Environment impact assessment for mining and minerals | O61: =CHOOSE(uxb_works!$B$47,iData!I56,iScores!O56) -> Score 0-1 | P61: =IF(tblIndicators!T52="","",IF(AND(uxb_works!$B$47=1,OR(F61=5,Scores!F61<=2)),"",tblIndicators!T52)) -> 1 | Q61: =CHOOSE(uxb_works!$B$47,IF(iData!K56="","-",TEXT(iData!K56,$H61)),INDEX(aScores,$B61,Q$4)) -> 1 | R61: =CHOOSE(uxb_works!$B$47,IF(iData!L56="","-",TEXT(iData!L56,$H61)),INDEX(aScores,$B61,R$4)) -> 1 | S61: =CHOOSE(uxb_works!$B$47,IF(iData!M56="","-",TEXT(iData!M56,$H61)),INDEX(aScores,$B61,S$4)) -> 1 | T61: =CHOOSE(uxb_works!$B$47,IF(iData!N56="","-",TEXT(iData!N56,$H61)),INDEX(aScores,$B61,T$4)) -> 1 | U61: =CHOOSE(uxb_works!$B$47,IF(iData!O56="","-",TEXT(iData!O56,$H61)),INDEX(aScores,$B61,U$4)) -> 1 | V61: =CHOOSE(uxb_works!$B$47,IF(iData!P56="","-",TEXT(iData!P56,$H61)),INDEX(aScores,$B61,V$4)) -> 1 | W61: =CHOOSE(uxb_works!$B$47,IF(iData!Q56="","-",TEXT(iData!Q56,$H61)),INDEX(aScores,$B61,W$4)) -> 1 | X61: =CHOOSE(uxb_works!$B$47,IF(iData!R56="","-",TEXT(iData!R56,$H61)),INDEX(aScores,$B61,X$4)) -> 1 | Y61: =CHOOSE(uxb_works!$B$47,IF(iData!S56="","-",TEXT(iData!S56,$H61)),INDEX(aScores,$B61,Y$4)) -> 1 | Z61: =CHOOSE(uxb_works!$B$47,IF(iData!T56="","-",TEXT(iData!T56,$H61)),INDEX(aScores,$B61,Z$4)) -> 1 | AA61: =CHOOSE(uxb_works!$B$47,IF(iData!U56="","-",TEXT(iData!U56,$H61)),INDEX(aScores,$B61,AA$4)) -> 1 | AB61: =CHOOSE(uxb_works!$B$47,IF(iData!V56="","-",TEXT(iData!V56,$H61)),INDEX(aScores,$B61,AB$4)) -> 1 | AC61: =CHOOSE(uxb_works!$B$47,IF(iData!W56="","-",TEXT(iData!W56,$H61)),INDEX(aScores,$B61,AC$4)) -> 1 | AD61: =CHOOSE(uxb_works!$B$47,IF(iData!X56="","-",TEXT(iData!X56,$H61)),INDEX(aScores,$B61,AD$4)) -> 1 | AE61: =CHOOSE(uxb_works!$B$47,IF(iData!Y56="","-",TEXT(iData!Y56,$H61)),INDEX(aScores,$B61,AE$4)) -> 1 | AF61: =CHOOSE(uxb_works!$B$47,IF(iData!Z56="","-",TEXT(iData!Z56,$H61)),INDEX(aScores,$B61,AF$4)) -> 1 | AG61: =CHOOSE(uxb_works!$B$47,IF(iData!AA56="","-",TEXT(iData!AA56,$H61)),INDEX(aScores,$B61,AG$4)) -> 1 | AH61: =CHOOSE(uxb_works!$B$47,IF(iData!AB56="","-",TEXT(iData!AB56,$H61)),INDEX(aScores,$B61,AH$4)) -> 1 | AI61: =CHOOSE(uxb_works!$B$47,IF(iData!AC56="","-",TEXT(iData!AC56,$H61)),INDEX(aScores,$B61,AI$4)) -> 1 | AJ61: =CHOOSE(uxb_works!$B$47,IF(iData!AD56="","-",TEXT(iData!AD56,$H61)),INDEX(aScores,$B61,AJ$4)) -> 1
B62: =tblIndicators!A53 -> 52 | F62: =iScores!F57 -> 3 | H62: =tblIndicators!AC53 -> #,##0 | K62: =IF(uxb_works!$B$46>=L62,1,0) -> 1 | L62: =tblIndicators!G53 -> 3 | N62: =iScores!N57 -> 4.2.3) On-site reviews (mining and energy) | O62: =CHOOSE(uxb_works!$B$47,iData!I57,iScores!O57) -> Score 0-1 | P62: =IF(tblIndicators!T53="","",IF(AND(uxb_works!$B$47=1,OR(F62=5,Scores!F62<=2)),"",tblIndicators!T53)) -> 1 | Q62: =CHOOSE(uxb_works!$B$47,IF(iData!K57="","-",TEXT(iData!K57,$H62)),INDEX(aScores,$B62,Q$4)) -> 1 | R62: =CHOOSE(uxb_works!$B$47,IF(iData!L57="","-",TEXT(iData!L57,$H62)),INDEX(aScores,$B62,R$4)) -> 1 | S62: =CHOOSE(uxb_works!$B$47,IF(iData!M57="","-",TEXT(iData!M57,$H62)),INDEX(aScores,$B62,S$4)) -> 1 | T62: =CHOOSE(uxb_works!$B$47,IF(iData!N57="","-",TEXT(iData!N57,$H62)),INDEX(aScores,$B62,T$4)) -> 1 | U62: =CHOOSE(uxb_works!$B$47,IF(iData!O57="","-",TEXT(iData!O57,$H62)),INDEX(aScores,$B62,U$4)) -> 0 | V62: =CHOOSE(uxb_works!$B$47,IF(iData!P57="","-",TEXT(iData!P57,$H62)),INDEX(aScores,$B62,V$4)) -> 1 | W62: =CHOOSE(uxb_works!$B$47,IF(iData!Q57="","-",TEXT(iData!Q57,$H62)),INDEX(aScores,$B62,W$4)) -> 1 | X62: =CHOOSE(uxb_works!$B$47,IF(iData!R57="","-",TEXT(iData!R57,$H62)),INDEX(aScores,$B62,X$4)) -> 1 | Y62: =CHOOSE(uxb_works!$B$47,IF(iData!S57="","-",TEXT(iData!S57,$H62)),INDEX(aScores,$B62,Y$4)) -> 1 | Z62: =CHOOSE(uxb_works!$B$47,IF(iData!T57="","-",TEXT(iData!T57,$H62)),INDEX(aScores,$B62,Z$4)) -> 1 | AA62: =CHOOSE(uxb_works!$B$47,IF(iData!U57="","-",TEXT(iData!U57,$H62)),INDEX(aScores,$B62,AA$4)) -> 1 | AB62: =CHOOSE(uxb_works!$B$47,IF(iData!V57="","-",TEXT(iData!V57,$H62)),INDEX(aScores,$B62,AB$4)) -> 1 | AC62: =CHOOSE(uxb_works!$B$47,IF(iData!W57="","-",TEXT(iData!W57,$H62)),INDEX(aScores,$B62,AC$4)) -> 1 | AD62: =CHOOSE(uxb_works!$B$47,IF(iData!X57="","-",TEXT(iData!X57,$H62)),INDEX(aScores,$B62,AD$4)) -> 1 | AE62: =CHOOSE(uxb_works!$B$47,IF(iData!Y57="","-",TEXT(iData!Y57,$H62)),INDEX(aScores,$B62,AE$4)) -> 1 | AF62: =CHOOSE(uxb_works!$B$47,IF(iData!Z57="","-",TEXT(iData!Z57,$H62)),INDEX(aScores,$B62,AF$4)) -> 1 | AG62: =CHOOSE(uxb_works!$B$47,IF(iData!AA57="","-",TEXT(iData!AA57,$H62)),INDEX(aScores,$B62,AG$4)) -> 1 | AH62: =CHOOSE(uxb_works!$B$47,IF(iData!AB57="","-",TEXT(iData!AB57,$H62)),INDEX(aScores,$B62,AH$4)) -> 0 | AI62: =CHOOSE(uxb_works!$B$47,IF(iData!AC57="","-",TEXT(iData!AC57,$H62)),INDEX(aScores,$B62,AI$4)) -> 1 | AJ62: =CHOOSE(uxb_works!$B$47,IF(iData!AD57="","-",TEXT(iData!AD57,$H62)),INDEX(aScores,$B62,AJ$4)) -> 1
B63: =tblIndicators!A54 -> 53 | F63: =iScores!F58 -> 3 | H63: =tblIndicators!AC54 -> #,##0 | K63: =IF(uxb_works!$B$46>=L63,1,0) -> 1 | L63: =tblIndicators!G54 -> 3 | N63: =iScores!N58 -> 4.2.4) Collection of oil spills data | O63: =CHOOSE(uxb_works!$B$47,iData!I58,iScores!O58) -> Score 0-2 | P63: =IF(tblIndicators!T54="","",IF(AND(uxb_works!$B$47=1,OR(F63=5,Scores!F63<=2)),"",tblIndicators!T54)) -> 1 | Q63: =CHOOSE(uxb_works!$B$47,IF(iData!K58="","-",TEXT(iData!K58,$H63)),INDEX(aScores,$B63,Q$4)) -> 1 | R63: =CHOOSE(uxb_works!$B$47,IF(iData!L58="","-",TEXT(iData!L58,$H63)),INDEX(aScores,$B63,R$4)) -> 2 | S63: =CHOOSE(uxb_works!$B$47,IF(iData!M58="","-",TEXT(iData!M58,$H63)),INDEX(aScores,$B63,S$4)) -> 2 | T63: =CHOOSE(uxb_works!$B$47,IF(iData!N58="","-",TEXT(iData!N58,$H63)),INDEX(aScores,$B63,T$4)) -> 2 | U63: =CHOOSE(uxb_works!$B$47,IF(iData!O58="","-",TEXT(iData!O58,$H63)),INDEX(aScores,$B63,U$4)) -> 1 | V63: =CHOOSE(uxb_works!$B$47,IF(iData!P58="","-",TEXT(iData!P58,$H63)),INDEX(aScores,$B63,V$4)) -> 1 | W63: =CHOOSE(uxb_works!$B$47,IF(iData!Q58="","-",TEXT(iData!Q58,$H63)),INDEX(aScores,$B63,W$4)) -> 1 | X63: =CHOOSE(uxb_works!$B$47,IF(iData!R58="","-",TEXT(iData!R58,$H63)),INDEX(aScores,$B63,X$4)) -> 2 | Y63: =CHOOSE(uxb_works!$B$47,IF(iData!S58="","-",TEXT(iData!S58,$H63)),INDEX(aScores,$B63,Y$4)) -> 1 | Z63: =CHOOSE(uxb_works!$B$47,IF(iData!T58="","-",TEXT(iData!T58,$H63)),INDEX(aScores,$B63,Z$4)) -> 1 | AA63: =CHOOSE(uxb_works!$B$47,IF(iData!U58="","-",TEXT(iData!U58,$H63)),INDEX(aScores,$B63,AA$4)) -> 2 | AB63: =CHOOSE(uxb_works!$B$47,IF(iData!V58="","-",TEXT(iData!V58,$H63)),INDEX(aScores,$B63,AB$4)) -> 2 | AC63: =CHOOSE(uxb_works!$B$47,IF(iData!W58="","-",TEXT(iData!W58,$H63)),INDEX(aScores,$B63,AC$4)) -> 1 | AD63: =CHOOSE(uxb_works!$B$47,IF(iData!X58="","-",TEXT(iData!X58,$H63)),INDEX(aScores,$B63,AD$4)) -> 1 | AE63: =CHOOSE(uxb_works!$B$47,IF(iData!Y58="","-",TEXT(iData!Y58,$H63)),INDEX(aScores,$B63,AE$4)) -> 1 | AF63: =CHOOSE(uxb_works!$B$47,IF(iData!Z58="","-",TEXT(iData!Z58,$H63)),INDEX(aScores,$B63,AF$4)) -> 1 | AG63: =CHOOSE(uxb_works!$B$47,IF(iData!AA58="","-",TEXT(iData!AA58,$H63)),INDEX(aScores,$B63,AG$4)) -> 2 | AH63: =CHOOSE(uxb_works!$B$47,IF(iData!AB58="","-",TEXT(iData!AB58,$H63)),INDEX(aScores,$B63,AH$4)) -> 1 | AI63: =CHOOSE(uxb_works!$B$47,IF(iData!AC58="","-",TEXT(iData!AC58,$H63)),INDEX(aScores,$B63,AI$4)) -> 2 | AJ63: =CHOOSE(uxb_works!$B$47,IF(iData!AD58="","-",TEXT(iData!AD58,$H63)),INDEX(aScores,$B63,AJ$4)) -> 1
B64: =tblIndicators!A55 -> 54 | F64: =iScores!F59 -> 2 | H64: =tblIndicators!AC55 -> #,##0.0 | K64: =IF(uxb_works!$B$46>=L64,1,0) -> 1 | L64: =tblIndicators!G55 -> 2 | N64: =iScores!N59 -> 4.3) Risk mitigation for the mineral and oil and gas industries | O64: =CHOOSE(uxb_works!$B$47,iData!I59,iScores!O59) ->  | P64: =IF(tblIndicators!T55="","",IF(AND(uxb_works!$B$47=1,OR(F64=5,Scores!F64<=2)),"",tblIndicators!T55)) ->  | Q64: =CHOOSE(uxb_works!$B$47,IF(iData!K59="","-",TEXT(iData!K59,$H64)),INDEX(aScores,$B64,Q$4)) -> - | R64: =CHOOSE(uxb_works!$B$47,IF(iData!L59="","-",TEXT(iData!L59,$H64)),INDEX(aScores,$B64,R$4)) -> - | S64: =CHOOSE(uxb_works!$B$47,IF(iData!M59="","-",TEXT(iData!M59,$H64)),INDEX(aScores,$B64,S$4)) -> - | T64: =CHOOSE(uxb_works!$B$47,IF(iData!N59="","-",TEXT(iData!N59,$H64)),INDEX(aScores,$B64,T$4)) -> - | U64: =CHOOSE(uxb_works!$B$47,IF(iData!O59="","-",TEXT(iData!O59,$H64)),INDEX(aScores,$B64,U$4)) -> - | V64: =CHOOSE(uxb_works!$B$47,IF(iData!P59="","-",TEXT(iData!P59,$H64)),INDEX(aScores,$B64,V$4)) -> - | W64: =CHOOSE(uxb_works!$B$47,IF(iData!Q59="","-",TEXT(iData!Q59,$H64)),INDEX(aScores,$B64,W$4)) -> - | X64: =CHOOSE(uxb_works!$B$47,IF(iData!R59="","-",TEXT(iData!R59,$H64)),INDEX(aScores,$B64,X$4)) -> - | Y64: =CHOOSE(uxb_works!$B$47,IF(iData!S59="","-",TEXT(iData!S59,$H64)),INDEX(aScores,$B64,Y$4)) -> - | Z64: =CHOOSE(uxb_works!$B$47,IF(iData!T59="","-",TEXT(iData!T59,$H64)),INDEX(aScores,$B64,Z$4)) -> - | AA64: =CHOOSE(uxb_works!$B$47,IF(iData!U59="","-",TEXT(iData!U59,$H64)),INDEX(aScores,$B64,AA$4)) -> - | AB64: =CHOOSE(uxb_works!$B$47,IF(iData!V59="","-",TEXT(iData!V59,$H64)),INDEX(aScores,$B64,AB$4)) -> - | AC64: =CHOOSE(uxb_works!$B$47,IF(iData!W59="","-",TEXT(iData!W59,$H64)),INDEX(aScores,$B64,AC$4)) -> - | AD64: =CHOOSE(uxb_works!$B$47,IF(iData!X59="","-",TEXT(iData!X59,$H64)),INDEX(aScores,$B64,AD$4)) -> - | AE64: =CHOOSE(uxb_works!$B$47,IF(iData!Y59="","-",TEXT(iData!Y59,$H64)),INDEX(aScores,$B64,AE$4)) -> - | AF64: =CHOOSE(uxb_works!$B$47,IF(iData!Z59="","-",TEXT(iData!Z59,$H64)),INDEX(aScores,$B64,AF$4)) -> - | AG64: =CHOOSE(uxb_works!$B$47,IF(iData!AA59="","-",TEXT(iData!AA59,$H64)),INDEX(aScores,$B64,AG$4)) -> - | AH64: =CHOOSE(uxb_works!$B$47,IF(iData!AB59="","-",TEXT(iData!AB59,$H64)),INDEX(aScores,$B64,AH$4)) -> - | AI64: =CHOOSE(uxb_works!$B$47,IF(iData!AC59="","-",TEXT(iData!AC59,$H64)),INDEX(aScores,$B64,AI$4)) -> - | AJ64: =CHOOSE(uxb_works!$B$47,IF(iData!AD59="","-",TEXT(iData!AD59,$H64)),INDEX(aScores,$B64,AJ$4)) -> -
B65: =tblIndicators!A56 -> 55 | F65: =iScores!F60 -> 3 | H65: =tblIndicators!AC56 -> #,##0 | K65: =IF(uxb_works!$B$46>=L65,1,0) -> 1 | L65: =tblIndicators!G56 -> 3 | N65: =iScores!N60 -> 4.3.1) Adoption of the OPRC | O65: =CHOOSE(uxb_works!$B$47,iData!I60,iScores!O60) -> Score 0-2 | P65: =IF(tblIndicators!T56="","",IF(AND(uxb_works!$B$47=1,OR(F65=5,Scores!F65<=2)),"",tblIndicators!T56)) -> 1 | Q65: =CHOOSE(uxb_works!$B$47,IF(iData!K60="","-",TEXT(iData!K60,$H65)),INDEX(aScores,$B65,Q$4)) -> 1 | R65: =CHOOSE(uxb_works!$B$47,IF(iData!L60="","-",TEXT(iData!L60,$H65)),INDEX(aScores,$B65,R$4)) -> 1 | S65: =CHOOSE(uxb_works!$B$47,IF(iData!M60="","-",TEXT(iData!M60,$H65)),INDEX(aScores,$B65,S$4)) -> 2 | T65: =CHOOSE(uxb_works!$B$47,IF(iData!N60="","-",TEXT(iData!N60,$H65)),INDEX(aScores,$B65,T$4)) -> 2 | U65: =CHOOSE(uxb_works!$B$47,IF(iData!O60="","-",TEXT(iData!O60,$H65)),INDEX(aScores,$B65,U$4)) -> 2 | V65: =CHOOSE(uxb_works!$B$47,IF(iData!P60="","-",TEXT(iData!P60,$H65)),INDEX(aScores,$B65,V$4)) -> 1 | W65: =CHOOSE(uxb_works!$B$47,IF(iData!Q60="","-",TEXT(iData!Q60,$H65)),INDEX(aScores,$B65,W$4)) -> 0 | X65: =CHOOSE(uxb_works!$B$47,IF(iData!R60="","-",TEXT(iData!R60,$H65)),INDEX(aScores,$B65,X$4)) -> 2 | Y65: =CHOOSE(uxb_works!$B$47,IF(iData!S60="","-",TEXT(iData!S60,$H65)),INDEX(aScores,$B65,Y$4)) -> 1 | Z65: =CHOOSE(uxb_works!$B$47,IF(iData!T60="","-",TEXT(iData!T60,$H65)),INDEX(aScores,$B65,Z$4)) -> 1 | AA65: =CHOOSE(uxb_works!$B$47,IF(iData!U60="","-",TEXT(iData!U60,$H65)),INDEX(aScores,$B65,AA$4)) -> 1 | AB65: =CHOOSE(uxb_works!$B$47,IF(iData!V60="","-",TEXT(iData!V60,$H65)),INDEX(aScores,$B65,AB$4)) -> 2 | AC65: =CHOOSE(uxb_works!$B$47,IF(iData!W60="","-",TEXT(iData!W60,$H65)),INDEX(aScores,$B65,AC$4)) -> 1 | AD65: =CHOOSE(uxb_works!$B$47,IF(iData!X60="","-",TEXT(iData!X60,$H65)),INDEX(aScores,$B65,AD$4)) -> 1 | AE65: =CHOOSE(uxb_works!$B$47,IF(iData!Y60="","-",TEXT(iData!Y60,$H65)),INDEX(aScores,$B65,AE$4)) -> 1 | AF65: =CHOOSE(uxb_works!$B$47,IF(iData!Z60="","-",TEXT(iData!Z60,$H65)),INDEX(aScores,$B65,AF$4)) -> 1 | AG65: =CHOOSE(uxb_works!$B$47,IF(iData!AA60="","-",TEXT(iData!AA60,$H65)),INDEX(aScores,$B65,AG$4)) -> 2 | AH65: =CHOOSE(uxb_works!$B$47,IF(iData!AB60="","-",TEXT(iData!AB60,$H65)),INDEX(aScores,$B65,AH$4)) -> 2 | AI65: =CHOOSE(uxb_works!$B$47,IF(iData!AC60="","-",TEXT(iData!AC60,$H65)),INDEX(aScores,$B65,AI$4)) -> 1 | AJ65: =CHOOSE(uxb_works!$B$47,IF(iData!AD60="","-",TEXT(iData!AD60,$H65)),INDEX(aScores,$B65,AJ$4)) -> 0
B66: =tblIndicators!A57 -> 56 | F66: =iScores!F61 -> 3 | H66: =tblIndicators!AC57 -> #,##0 | K66: =IF(uxb_works!$B$46>=L66,1,0) -> 1 | L66: =tblIndicators!G57 -> 3 | N66: =iScores!N61 -> 4.3.2) Emergency plan | O66: =CHOOSE(uxb_works!$B$47,iData!I61,iScores!O61) -> Score 0-1 | P66: =IF(tblIndicators!T57="","",IF(AND(uxb_works!$B$47=1,OR(F66=5,Scores!F66<=2)),"",tblIndicators!T57)) -> 1 | Q66: =CHOOSE(uxb_works!$B$47,IF(iData!K61="","-",TEXT(iData!K61,$H66)),INDEX(aScores,$B66,Q$4)) -> 1 | R66: =CHOOSE(uxb_works!$B$47,IF(iData!L61="","-",TEXT(iData!L61,$H66)),INDEX(aScores,$B66,R$4)) -> 1 | S66: =CHOOSE(uxb_works!$B$47,IF(iData!M61="","-",TEXT(iData!M61,$H66)),INDEX(aScores,$B66,S$4)) -> 0 | T66: =CHOOSE(uxb_works!$B$47,IF(iData!N61="","-",TEXT(iData!N61,$H66)),INDEX(aScores,$B66,T$4)) -> 1 | U66: =CHOOSE(uxb_works!$B$47,IF(iData!O61="","-",TEXT(iData!O61,$H66)),INDEX(aScores,$B66,U$4)) -> 1 | V66: =CHOOSE(uxb_works!$B$47,IF(iData!P61="","-",TEXT(iData!P61,$H66)),INDEX(aScores,$B66,V$4)) -> 1 | W66: =CHOOSE(uxb_works!$B$47,IF(iData!Q61="","-",TEXT(iData!Q61,$H66)),INDEX(aScores,$B66,W$4)) -> 1 | X66: =CHOOSE(uxb_works!$B$47,IF(iData!R61="","-",TEXT(iData!R61,$H66)),INDEX(aScores,$B66,X$4)) -> 1 | Y66: =CHOOSE(uxb_works!$B$47,IF(iData!S61="","-",TEXT(iData!S61,$H66)),INDEX(aScores,$B66,Y$4)) -> 1 | Z66: =CHOOSE(uxb_works!$B$47,IF(iData!T61="","-",TEXT(iData!T61,$H66)),INDEX(aScores,$B66,Z$4)) -> 1 | AA66: =CHOOSE(uxb_works!$B$47,IF(iData!U61="","-",TEXT(iData!U61,$H66)),INDEX(aScores,$B66,AA$4)) -> 1 | AB66: =CHOOSE(uxb_works!$B$47,IF(iData!V61="","-",TEXT(iData!V61,$H66)),INDEX(aScores,$B66,AB$4)) -> 1 | AC66: =CHOOSE(uxb_works!$B$47,IF(iData!W61="","-",TEXT(iData!W61,$H66)),INDEX(aScores,$B66,AC$4)) -> 1 | AD66: =CHOOSE(uxb_works!$B$47,IF(iData!X61="","-",TEXT(iData!X61,$H66)),INDEX(aScores,$B66,AD$4)) -> 0 | AE66: =CHOOSE(uxb_works!$B$47,IF(iData!Y61="","-",TEXT(iData!Y61,$H66)),INDEX(aScores,$B66,AE$4)) -> 1 | AF66: =CHOOSE(uxb_works!$B$47,IF(iData!Z61="","-",TEXT(iData!Z61,$H66)),INDEX(aScores,$B66,AF$4)) -> 1 | AG66: =CHOOSE(uxb_works!$B$47,IF(iData!AA61="","-",TEXT(iData!AA61,$H66)),INDEX(aScores,$B66,AG$4)) -> 1 | AH66: =CHOOSE(uxb_works!$B$47,IF(iData!AB61="","-",TEXT(iData!AB61,$H66)),INDEX(aScores,$B66,AH$4)) -> 1 | AI66: =CHOOSE(uxb_works!$B$47,IF(iData!AC61="","-",TEXT(iData!AC61,$H66)),INDEX(aScores,$B66,AI$4)) -> 1 | AJ66: =CHOOSE(uxb_works!$B$47,IF(iData!AD61="","-",TEXT(iData!AD61,$H66)),INDEX(aScores,$B66,AJ$4)) -> 1
B67: =tblIndicators!A58 -> 57 | F67: =iScores!F62 -> 3 | H67: =tblIndicators!AC58 -> #,##0 | K67: =IF(uxb_works!$B$46>=L67,1,0) -> 1 | L67: =tblIndicators!G58 -> 3 | N67: =iScores!N62 -> 4.3.3) Off-limit areas | O67: =CHOOSE(uxb_works!$B$47,iData!I62,iScores!O62) -> Score 0-1 | P67: =IF(tblIndicators!T58="","",IF(AND(uxb_works!$B$47=1,OR(F67=5,Scores!F67<=2)),"",tblIndicators!T58)) -> 0 | Q67: =CHOOSE(uxb_works!$B$47,IF(iData!K62="","-",TEXT(iData!K62,$H67)),INDEX(aScores,$B67,Q$4)) -> 1 | R67: =CHOOSE(uxb_works!$B$47,IF(iData!L62="","-",TEXT(iData!L62,$H67)),INDEX(aScores,$B67,R$4)) -> 1 | S67: =CHOOSE(uxb_works!$B$47,IF(iData!M62="","-",TEXT(iData!M62,$H67)),INDEX(aScores,$B67,S$4)) -> 1 | T67: =CHOOSE(uxb_works!$B$47,IF(iData!N62="","-",TEXT(iData!N62,$H67)),INDEX(aScores,$B67,T$4)) -> 1 | U67: =CHOOSE(uxb_works!$B$47,IF(iData!O62="","-",TEXT(iData!O62,$H67)),INDEX(aScores,$B67,U$4)) -> 0 | V67: =CHOOSE(uxb_works!$B$47,IF(iData!P62="","-",TEXT(iData!P62,$H67)),INDEX(aScores,$B67,V$4)) -> 1 | W67: =CHOOSE(uxb_works!$B$47,IF(iData!Q62="","-",TEXT(iData!Q62,$H67)),INDEX(aScores,$B67,W$4)) -> 1 | X67: =CHOOSE(uxb_works!$B$47,IF(iData!R62="","-",TEXT(iData!R62,$H67)),INDEX(aScores,$B67,X$4)) -> 1 | Y67: =CHOOSE(uxb_works!$B$47,IF(iData!S62="","-",TEXT(iData!S62,$H67)),INDEX(aScores,$B67,Y$4)) -> 1 | Z67: =CHOOSE(uxb_works!$B$47,IF(iData!T62="","-",TEXT(iData!T62,$H67)),INDEX(aScores,$B67,Z$4)) -> 1 | AA67: =CHOOSE(uxb_works!$B$47,IF(iData!U62="","-",TEXT(iData!U62,$H67)),INDEX(aScores,$B67,AA$4)) -> 0 | AB67: =CHOOSE(uxb_works!$B$47,IF(iData!V62="","-",TEXT(iData!V62,$H67)),INDEX(aScores,$B67,AB$4)) -> 1 | AC67: =CHOOSE(uxb_works!$B$47,IF(iData!W62="","-",TEXT(iData!W62,$H67)),INDEX(aScores,$B67,AC$4)) -> 0 | AD67: =CHOOSE(uxb_works!$B$47,IF(iData!X62="","-",TEXT(iData!X62,$H67)),INDEX(aScores,$B67,AD$4)) -> 1 | AE67: =CHOOSE(uxb_works!$B$47,IF(iData!Y62="","-",TEXT(iData!Y62,$H67)),INDEX(aScores,$B67,AE$4)) -> 0 | AF67: =CHOOSE(uxb_works!$B$47,IF(iData!Z62="","-",TEXT(iData!Z62,$H67)),INDEX(aScores,$B67,AF$4)) -> 1 | AG67: =CHOOSE(uxb_works!$B$47,IF(iData!AA62="","-",TEXT(iData!AA62,$H67)),INDEX(aScores,$B67,AG$4)) -> 0 | AH67: =CHOOSE(uxb_works!$B$47,IF(iData!AB62="","-",TEXT(iData!AB62,$H67)),INDEX(aScores,$B67,AH$4)) -> 0 | AI67: =CHOOSE(uxb_works!$B$47,IF(iData!AC62="","-",TEXT(iData!AC62,$H67)),INDEX(aScores,$B67,AI$4)) -> 1 | AJ67: =CHOOSE(uxb_works!$B$47,IF(iData!AD62="","-",TEXT(iData!AD62,$H67)),INDEX(aScores,$B67,AJ$4)) -> 0
B68: =tblIndicators!A59 -> 58 | F68: =iScores!F63 -> 2 | H68: =tblIndicators!AC59 -> #,##0.0 | K68: =IF(uxb_works!$B$46>=L68,1,0) -> 1 | L68: =tblIndicators!G59 -> 2 | N68: =iScores!N63 -> 4.4) Shipping/maritime pollution | O68: =CHOOSE(uxb_works!$B$47,iData!I63,iScores!O63) ->  | P68: =IF(tblIndicators!T59="","",IF(AND(uxb_works!$B$47=1,OR(F68=5,Scores!F68<=2)),"",tblIndicators!T59)) ->  | Q68: =CHOOSE(uxb_works!$B$47,IF(iData!K63="","-",TEXT(iData!K63,$H68)),INDEX(aScores,$B68,Q$4)) -> - | R68: =CHOOSE(uxb_works!$B$47,IF(iData!L63="","-",TEXT(iData!L63,$H68)),INDEX(aScores,$B68,R$4)) -> - | S68: =CHOOSE(uxb_works!$B$47,IF(iData!M63="","-",TEXT(iData!M63,$H68)),INDEX(aScores,$B68,S$4)) -> - | T68: =CHOOSE(uxb_works!$B$47,IF(iData!N63="","-",TEXT(iData!N63,$H68)),INDEX(aScores,$B68,T$4)) -> - | U68: =CHOOSE(uxb_works!$B$47,IF(iData!O63="","-",TEXT(iData!O63,$H68)),INDEX(aScores,$B68,U$4)) -> - | V68: =CHOOSE(uxb_works!$B$47,IF(iData!P63="","-",TEXT(iData!P63,$H68)),INDEX(aScores,$B68,V$4)) -> - | W68: =CHOOSE(uxb_works!$B$47,IF(iData!Q63="","-",TEXT(iData!Q63,$H68)),INDEX(aScores,$B68,W$4)) -> - | X68: =CHOOSE(uxb_works!$B$47,IF(iData!R63="","-",TEXT(iData!R63,$H68)),INDEX(aScores,$B68,X$4)) -> - | Y68: =CHOOSE(uxb_works!$B$47,IF(iData!S63="","-",TEXT(iData!S63,$H68)),INDEX(aScores,$B68,Y$4)) -> - | Z68: =CHOOSE(uxb_works!$B$47,IF(iData!T63="","-",TEXT(iData!T63,$H68)),INDEX(aScores,$B68,Z$4)) -> - | AA68: =CHOOSE(uxb_works!$B$47,IF(iData!U63="","-",TEXT(iData!U63,$H68)),INDEX(aScores,$B68,AA$4)) -> - | AB68: =CHOOSE(uxb_works!$B$47,IF(iData!V63="","-",TEXT(iData!V63,$H68)),INDEX(aScores,$B68,AB$4)) -> - | AC68: =CHOOSE(uxb_works!$B$47,IF(iData!W63="","-",TEXT(iData!W63,$H68)),INDEX(aScores,$B68,AC$4)) -> - | AD68: =CHOOSE(uxb_works!$B$47,IF(iData!X63="","-",TEXT(iData!X63,$H68)),INDEX(aScores,$B68,AD$4)) -> - | AE68: =CHOOSE(uxb_works!$B$47,IF(iData!Y63="","-",TEXT(iData!Y63,$H68)),INDEX(aScores,$B68,AE$4)) -> - | AF68: =CHOOSE(uxb_works!$B$47,IF(iData!Z63="","-",TEXT(iData!Z63,$H68)),INDEX(aScores,$B68,AF$4)) -> - | AG68: =CHOOSE(uxb_works!$B$47,IF(iData!AA63="","-",TEXT(iData!AA63,$H68)),INDEX(aScores,$B68,AG$4)) -> - | AH68: =CHOOSE(uxb_works!$B$47,IF(iData!AB63="","-",TEXT(iData!AB63,$H68)),INDEX(aScores,$B68,AH$4)) -> - | AI68: =CHOOSE(uxb_works!$B$47,IF(iData!AC63="","-",TEXT(iData!AC63,$H68)),INDEX(aScores,$B68,AI$4)) -> - | AJ68: =CHOOSE(uxb_works!$B$47,IF(iData!AD63="","-",TEXT(iData!AD63,$H68)),INDEX(aScores,$B68,AJ$4)) -> -
B69: =tblIndicators!A60 -> 59 | F69: =iScores!F64 -> 3 | H69: =tblIndicators!AC60 -> #,##0 | K69: =IF(uxb_works!$B$46>=L69,1,0) -> 1 | L69: =tblIndicators!G60 -> 3 | N69: =iScores!N64 -> 4.4.1) Ratification of IMO Conventions on shipping/maritime pollution | O69: =CHOOSE(uxb_works!$B$47,iData!I64,iScores!O64) -> Score 0-3 | P69: =IF(tblIndicators!T60="","",IF(AND(uxb_works!$B$47=1,OR(F69=5,Scores!F69<=2)),"",tblIndicators!T60)) ->  | Q69: =CHOOSE(uxb_works!$B$47,IF(iData!K64="","-",TEXT(iData!K64,$H69)),INDEX(aScores,$B69,Q$4)) -> 2 | R69: =CHOOSE(uxb_works!$B$47,IF(iData!L64="","-",TEXT(iData!L64,$H69)),INDEX(aScores,$B69,R$4)) -> 2 | S69: =CHOOSE(uxb_works!$B$47,IF(iData!M64="","-",TEXT(iData!M64,$H69)),INDEX(aScores,$B69,S$4)) -> 2 | T69: =CHOOSE(uxb_works!$B$47,IF(iData!N64="","-",TEXT(iData!N64,$H69)),INDEX(aScores,$B69,T$4)) -> 2 | U69: =CHOOSE(uxb_works!$B$47,IF(iData!O64="","-",TEXT(iData!O64,$H69)),INDEX(aScores,$B69,U$4)) -> 3 | V69: =CHOOSE(uxb_works!$B$47,IF(iData!P64="","-",TEXT(iData!P64,$H69)),INDEX(aScores,$B69,V$4)) -> 2 | W69: =CHOOSE(uxb_works!$B$47,IF(iData!Q64="","-",TEXT(iData!Q64,$H69)),INDEX(aScores,$B69,W$4)) -> 1 | X69: =CHOOSE(uxb_works!$B$47,IF(iData!R64="","-",TEXT(iData!R64,$H69)),INDEX(aScores,$B69,X$4)) -> 2 | Y69: =CHOOSE(uxb_works!$B$47,IF(iData!S64="","-",TEXT(iData!S64,$H69)),INDEX(aScores,$B69,Y$4)) -> 2 | Z69: =CHOOSE(uxb_works!$B$47,IF(iData!T64="","-",TEXT(iData!T64,$H69)),INDEX(aScores,$B69,Z$4)) -> 2 | AA69: =CHOOSE(uxb_works!$B$47,IF(iData!U64="","-",TEXT(iData!U64,$H69)),INDEX(aScores,$B69,AA$4)) -> 2 | AB69: =CHOOSE(uxb_works!$B$47,IF(iData!V64="","-",TEXT(iData!V64,$H69)),INDEX(aScores,$B69,AB$4)) -> 3 | AC69: =CHOOSE(uxb_works!$B$47,IF(iData!W64="","-",TEXT(iData!W64,$H69)),INDEX(aScores,$B69,AC$4)) -> 1 | AD69: =CHOOSE(uxb_works!$B$47,IF(iData!X64="","-",TEXT(iData!X64,$H69)),INDEX(aScores,$B69,AD$4)) -> 1 | AE69: =CHOOSE(uxb_works!$B$47,IF(iData!Y64="","-",TEXT(iData!Y64,$H69)),INDEX(aScores,$B69,AE$4)) -> 2 | AF69: =CHOOSE(uxb_works!$B$47,IF(iData!Z64="","-",TEXT(iData!Z64,$H69)),INDEX(aScores,$B69,AF$4)) -> 2 | AG69: =CHOOSE(uxb_works!$B$47,IF(iData!AA64="","-",TEXT(iData!AA64,$H69)),INDEX(aScores,$B69,AG$4)) -> 2 | AH69: =CHOOSE(uxb_works!$B$47,IF(iData!AB64="","-",TEXT(iData!AB64,$H69)),INDEX(aScores,$B69,AH$4)) -> 3 | AI69: =CHOOSE(uxb_works!$B$47,IF(iData!AC64="","-",TEXT(iData!AC64,$H69)),INDEX(aScores,$B69,AI$4)) -> 1 | AJ69: =CHOOSE(uxb_works!$B$47,IF(iData!AD64="","-",TEXT(iData!AD64,$H69)),INDEX(aScores,$B69,AJ$4)) -> 1
B70: =tblIndicators!A61 -> 60 | F70: =iScores!F65 -> 1 | H70: =tblIndicators!AC61 -> #,##0.0 | K70: =IF(uxb_works!$B$46>=L70,1,0) -> 1 | L70: =tblIndicators!G61 -> 1 | N70: =iScores!N65 -> 5) LAND | O70: =CHOOSE(uxb_works!$B$47,iData!I65,iScores!O65) ->  | P70: =IF(tblIndicators!T61="","",IF(AND(uxb_works!$B$47=1,OR(F70=5,Scores!F70<=2)),"",tblIndicators!T61)) ->  | Q70: =CHOOSE(uxb_works!$B$47,IF(iData!K65="","-",TEXT(iData!K65,$H70)),INDEX(aScores,$B70,Q$4)) -> - | R70: =CHOOSE(uxb_works!$B$47,IF(iData!L65="","-",TEXT(iData!L65,$H70)),INDEX(aScores,$B70,R$4)) -> - | S70: =CHOOSE(uxb_works!$B$47,IF(iData!M65="","-",TEXT(iData!M65,$H70)),INDEX(aScores,$B70,S$4)) -> - | T70: =CHOOSE(uxb_works!$B$47,IF(iData!N65="","-",TEXT(iData!N65,$H70)),INDEX(aScores,$B70,T$4)) -> - | U70: =CHOOSE(uxb_works!$B$47,IF(iData!O65="","-",TEXT(iData!O65,$H70)),INDEX(aScores,$B70,U$4)) -> - | V70: =CHOOSE(uxb_works!$B$47,IF(iData!P65="","-",TEXT(iData!P65,$H70)),INDEX(aScores,$B70,V$4)) -> - | W70: =CHOOSE(uxb_works!$B$47,IF(iData!Q65="","-",TEXT(iData!Q65,$H70)),INDEX(aScores,$B70,W$4)) -> - | X70: =CHOOSE(uxb_works!$B$47,IF(iData!R65="","-",TEXT(iData!R65,$H70)),INDEX(aScores,$B70,X$4)) -> - | Y70: =CHOOSE(uxb_works!$B$47,IF(iData!S65="","-",TEXT(iData!S65,$H70)),INDEX(aScores,$B70,Y$4)) -> - | Z70: =CHOOSE(uxb_works!$B$47,IF(iData!T65="","-",TEXT(iData!T65,$H70)),INDEX(aScores,$B70,Z$4)) -> - | AA70: =CHOOSE(uxb_works!$B$47,IF(iData!U65="","-",TEXT(iData!U65,$H70)),INDEX(aScores,$B70,AA$4)) -> - | AB70: =CHOOSE(uxb_works!$B$47,IF(iData!V65="","-",TEXT(iData!V65,$H70)),INDEX(aScores,$B70,AB$4)) -> - | AC70: =CHOOSE(uxb_works!$B$47,IF(iData!W65="","-",TEXT(iData!W65,$H70)),INDEX(aScores,$B70,AC$4)) -> - | AD70: =CHOOSE(uxb_works!$B$47,IF(iData!X65="","-",TEXT(iData!X65,$H70)),INDEX(aScores,$B70,AD$4)) -> - | AE70: =CHOOSE(uxb_works!$B$47,IF(iData!Y65="","-",TEXT(iData!Y65,$H70)),INDEX(aScores,$B70,AE$4)) -> - | AF70: =CHOOSE(uxb_works!$B$47,IF(iData!Z65="","-",TEXT(iData!Z65,$H70)),INDEX(aScores,$B70,AF$4)) -> - | AG70: =CHOOSE(uxb_works!$B$47,IF(iData!AA65="","-",TEXT(iData!AA65,$H70)),INDEX(aScores,$B70,AG$4)) -> - | AH70: =CHOOSE(uxb_works!$B$47,IF(iData!AB65="","-",TEXT(iData!AB65,$H70)),INDEX(aScores,$B70,AH$4)) -> - | AI70: =CHOOSE(uxb_works!$B$47,IF(iData!AC65="","-",TEXT(iData!AC65,$H70)),INDEX(aScores,$B70,AI$4)) -> - | AJ70: =CHOOSE(uxb_works!$B$47,IF(iData!AD65="","-",TEXT(iData!AD65,$H70)),INDEX(aScores,$B70,AJ$4)) -> -
B71: =tblIndicators!A62 -> 61 | F71: =iScores!F66 -> 2 | H71: =tblIndicators!AC62 -> #,##0.0 | K71: =IF(uxb_works!$B$46>=L71,1,0) -> 1 | L71: =tblIndicators!G62 -> 2 | N71: =iScores!N66 -> 5.1) Prevalence of coastal protected areas | O71: =CHOOSE(uxb_works!$B$47,iData!I66,iScores!O66) ->  | P71: =IF(tblIndicators!T62="","",IF(AND(uxb_works!$B$47=1,OR(F71=5,Scores!F71<=2)),"",tblIndicators!T62)) ->  | Q71: =CHOOSE(uxb_works!$B$47,IF(iData!K66="","-",TEXT(iData!K66,$H71)),INDEX(aScores,$B71,Q$4)) -> - | R71: =CHOOSE(uxb_works!$B$47,IF(iData!L66="","-",TEXT(iData!L66,$H71)),INDEX(aScores,$B71,R$4)) -> - | S71: =CHOOSE(uxb_works!$B$47,IF(iData!M66="","-",TEXT(iData!M66,$H71)),INDEX(aScores,$B71,S$4)) -> - | T71: =CHOOSE(uxb_works!$B$47,IF(iData!N66="","-",TEXT(iData!N66,$H71)),INDEX(aScores,$B71,T$4)) -> - | U71: =CHOOSE(uxb_works!$B$47,IF(iData!O66="","-",TEXT(iData!O66,$H71)),INDEX(aScores,$B71,U$4)) -> - | V71: =CHOOSE(uxb_works!$B$47,IF(iData!P66="","-",TEXT(iData!P66,$H71)),INDEX(aScores,$B71,V$4)) -> - | W71: =CHOOSE(uxb_works!$B$47,IF(iData!Q66="","-",TEXT(iData!Q66,$H71)),INDEX(aScores,$B71,W$4)) -> - | X71: =CHOOSE(uxb_works!$B$47,IF(iData!R66="","-",TEXT(iData!R66,$H71)),INDEX(aScores,$B71,X$4)) -> - | Y71: =CHOOSE(uxb_works!$B$47,IF(iData!S66="","-",TEXT(iData!S66,$H71)),INDEX(aScores,$B71,Y$4)) -> - | Z71: =CHOOSE(uxb_works!$B$47,IF(iData!T66="","-",TEXT(iData!T66,$H71)),INDEX(aScores,$B71,Z$4)) -> - | AA71: =CHOOSE(uxb_works!$B$47,IF(iData!U66="","-",TEXT(iData!U66,$H71)),INDEX(aScores,$B71,AA$4)) -> - | AB71: =CHOOSE(uxb_works!$B$47,IF(iData!V66="","-",TEXT(iData!V66,$H71)),INDEX(aScores,$B71,AB$4)) -> - | AC71: =CHOOSE(uxb_works!$B$47,IF(iData!W66="","-",TEXT(iData!W66,$H71)),INDEX(aScores,$B71,AC$4)) -> - | AD71: =CHOOSE(uxb_works!$B$47,IF(iData!X66="","-",TEXT(iData!X66,$H71)),INDEX(aScores,$B71,AD$4)) -> - | AE71: =CHOOSE(uxb_works!$B$47,IF(iData!Y66="","-",TEXT(iData!Y66,$H71)),INDEX(aScores,$B71,AE$4)) -> - | AF71: =CHOOSE(uxb_works!$B$47,IF(iData!Z66="","-",TEXT(iData!Z66,$H71)),INDEX(aScores,$B71,AF$4)) -> - | AG71: =CHOOSE(uxb_works!$B$47,IF(iData!AA66="","-",TEXT(iData!AA66,$H71)),INDEX(aScores,$B71,AG$4)) -> - | AH71: =CHOOSE(uxb_works!$B$47,IF(iData!AB66="","-",TEXT(iData!AB66,$H71)),INDEX(aScores,$B71,AH$4)) -> - | AI71: =CHOOSE(uxb_works!$B$47,IF(iData!AC66="","-",TEXT(iData!AC66,$H71)),INDEX(aScores,$B71,AI$4)) -> - | AJ71: =CHOOSE(uxb_works!$B$47,IF(iData!AD66="","-",TEXT(iData!AD66,$H71)),INDEX(aScores,$B71,AJ$4)) -> -
B72: =tblIndicators!A63 -> 62 | F72: =iScores!F67 -> 3 | H72: =tblIndicators!AC63 -> #,##0 | K72: =IF(uxb_works!$B$46>=L72,1,0) -> 1 | L72: =tblIndicators!G63 -> 3 | N72: =iScores!N67 -> 5.1.1) Terrestrial protected areas | O72: =CHOOSE(uxb_works!$B$47,iData!I67,iScores!O67) -> Score 0-2 | P72: =IF(tblIndicators!T63="","",IF(AND(uxb_works!$B$47=1,OR(F72=5,Scores!F72<=2)),"",tblIndicators!T63)) -> 2 | Q72: =CHOOSE(uxb_works!$B$47,IF(iData!K67="","-",TEXT(iData!K67,$H72)),INDEX(aScores,$B72,Q$4)) -> 2 | R72: =CHOOSE(uxb_works!$B$47,IF(iData!L67="","-",TEXT(iData!L67,$H72)),INDEX(aScores,$B72,R$4)) -> 0 | S72: =CHOOSE(uxb_works!$B$47,IF(iData!M67="","-",TEXT(iData!M67,$H72)),INDEX(aScores,$B72,S$4)) -> 2 | T72: =CHOOSE(uxb_works!$B$47,IF(iData!N67="","-",TEXT(iData!N67,$H72)),INDEX(aScores,$B72,T$4)) -> 1 | U72: =CHOOSE(uxb_works!$B$47,IF(iData!O67="","-",TEXT(iData!O67,$H72)),INDEX(aScores,$B72,U$4)) -> 2 | V72: =CHOOSE(uxb_works!$B$47,IF(iData!P67="","-",TEXT(iData!P67,$H72)),INDEX(aScores,$B72,V$4)) -> 0 | W72: =CHOOSE(uxb_works!$B$47,IF(iData!Q67="","-",TEXT(iData!Q67,$H72)),INDEX(aScores,$B72,W$4)) -> 1 | X72: =CHOOSE(uxb_works!$B$47,IF(iData!R67="","-",TEXT(iData!R67,$H72)),INDEX(aScores,$B72,X$4)) -> 2 | Y72: =CHOOSE(uxb_works!$B$47,IF(iData!S67="","-",TEXT(iData!S67,$H72)),INDEX(aScores,$B72,Y$4)) -> 1 | Z72: =CHOOSE(uxb_works!$B$47,IF(iData!T67="","-",TEXT(iData!T67,$H72)),INDEX(aScores,$B72,Z$4)) -> 2 | AA72: =CHOOSE(uxb_works!$B$47,IF(iData!U67="","-",TEXT(iData!U67,$H72)),INDEX(aScores,$B72,AA$4)) -> 1 | AB72: =CHOOSE(uxb_works!$B$47,IF(iData!V67="","-",TEXT(iData!V67,$H72)),INDEX(aScores,$B72,AB$4)) -> 2 | AC72: =CHOOSE(uxb_works!$B$47,IF(iData!W67="","-",TEXT(iData!W67,$H72)),INDEX(aScores,$B72,AC$4)) -> 2 | AD72: =CHOOSE(uxb_works!$B$47,IF(iData!X67="","-",TEXT(iData!X67,$H72)),INDEX(aScores,$B72,AD$4)) -> 1 | AE72: =CHOOSE(uxb_works!$B$47,IF(iData!Y67="","-",TEXT(iData!Y67,$H72)),INDEX(aScores,$B72,AE$4)) -> 0 | AF72: =CHOOSE(uxb_works!$B$47,IF(iData!Z67="","-",TEXT(iData!Z67,$H72)),INDEX(aScores,$B72,AF$4)) -> 0 | AG72: =CHOOSE(uxb_works!$B$47,IF(iData!AA67="","-",TEXT(iData!AA67,$H72)),INDEX(aScores,$B72,AG$4)) -> 1 | AH72: =CHOOSE(uxb_works!$B$47,IF(iData!AB67="","-",TEXT(iData!AB67,$H72)),INDEX(aScores,$B72,AH$4)) -> 2 | AI72: =CHOOSE(uxb_works!$B$47,IF(iData!AC67="","-",TEXT(iData!AC67,$H72)),INDEX(aScores,$B72,AI$4)) -> 1 | AJ72: =CHOOSE(uxb_works!$B$47,IF(iData!AD67="","-",TEXT(iData!AD67,$H72)),INDEX(aScores,$B72,AJ$4)) -> 0
B73: =tblIndicators!A64 -> 63 | F73: =iScores!F68 -> 2 | H73: =tblIndicators!AC64 -> #,##0.0 | K73: =IF(uxb_works!$B$46>=L73,1,0) -> 1 | L73: =tblIndicators!G64 -> 2 | N73: =iScores!N68 -> 5.2) Environmental impact of coastal development | O73: =CHOOSE(uxb_works!$B$47,iData!I68,iScores!O68) ->  | P73: =IF(tblIndicators!T64="","",IF(AND(uxb_works!$B$47=1,OR(F73=5,Scores!F73<=2)),"",tblIndicators!T64)) ->  | Q73: =CHOOSE(uxb_works!$B$47,IF(iData!K68="","-",TEXT(iData!K68,$H73)),INDEX(aScores,$B73,Q$4)) -> - | R73: =CHOOSE(uxb_works!$B$47,IF(iData!L68="","-",TEXT(iData!L68,$H73)),INDEX(aScores,$B73,R$4)) -> - | S73: =CHOOSE(uxb_works!$B$47,IF(iData!M68="","-",TEXT(iData!M68,$H73)),INDEX(aScores,$B73,S$4)) -> - | T73: =CHOOSE(uxb_works!$B$47,IF(iData!N68="","-",TEXT(iData!N68,$H73)),INDEX(aScores,$B73,T$4)) -> - | U73: =CHOOSE(uxb_works!$B$47,IF(iData!O68="","-",TEXT(iData!O68,$H73)),INDEX(aScores,$B73,U$4)) -> - | V73: =CHOOSE(uxb_works!$B$47,IF(iData!P68="","-",TEXT(iData!P68,$H73)),INDEX(aScores,$B73,V$4)) -> - | W73: =CHOOSE(uxb_works!$B$47,IF(iData!Q68="","-",TEXT(iData!Q68,$H73)),INDEX(aScores,$B73,W$4)) -> - | X73: =CHOOSE(uxb_works!$B$47,IF(iData!R68="","-",TEXT(iData!R68,$H73)),INDEX(aScores,$B73,X$4)) -> - | Y73: =CHOOSE(uxb_works!$B$47,IF(iData!S68="","-",TEXT(iData!S68,$H73)),INDEX(aScores,$B73,Y$4)) -> - | Z73: =CHOOSE(uxb_works!$B$47,IF(iData!T68="","-",TEXT(iData!T68,$H73)),INDEX(aScores,$B73,Z$4)) -> - | AA73: =CHOOSE(uxb_works!$B$47,IF(iData!U68="","-",TEXT(iData!U68,$H73)),INDEX(aScores,$B73,AA$4)) -> - | AB73: =CHOOSE(uxb_works!$B$47,IF(iData!V68="","-",TEXT(iData!V68,$H73)),INDEX(aScores,$B73,AB$4)) -> - | AC73: =CHOOSE(uxb_works!$B$47,IF(iData!W68="","-",TEXT(iData!W68,$H73)),INDEX(aScores,$B73,AC$4)) -> - | AD73: =CHOOSE(uxb_works!$B$47,IF(iData!X68="","-",TEXT(iData!X68,$H73)),INDEX(aScores,$B73,AD$4)) -> - | AE73: =CHOOSE(uxb_works!$B$47,IF(iData!Y68="","-",TEXT(iData!Y68,$H73)),INDEX(aScores,$B73,AE$4)) -> - | AF73: =CHOOSE(uxb_works!$B$47,IF(iData!Z68="","-",TEXT(iData!Z68,$H73)),INDEX(aScores,$B73,AF$4)) -> - | AG73: =CHOOSE(uxb_works!$B$47,IF(iData!AA68="","-",TEXT(iData!AA68,$H73)),INDEX(aScores,$B73,AG$4)) -> - | AH73: =CHOOSE(uxb_works!$B$47,IF(iData!AB68="","-",TEXT(iData!AB68,$H73)),INDEX(aScores,$B73,AH$4)) -> - | AI73: =CHOOSE(uxb_works!$B$47,IF(iData!AC68="","-",TEXT(iData!AC68,$H73)),INDEX(aScores,$B73,AI$4)) -> - | AJ73: =CHOOSE(uxb_works!$B$47,IF(iData!AD68="","-",TEXT(iData!AD68,$H73)),INDEX(aScores,$B73,AJ$4)) -> -
B74: =tblIndicators!A65 -> 64 | F74: =iScores!F69 -> 3 | H74: =tblIndicators!AC65 -> #,##0 | K74: =IF(uxb_works!$B$46>=L74,1,0) -> 1 | L74: =tblIndicators!G65 -> 3 | N74: =iScores!N69 -> 5.2.1) Environment impact assessment for coastal development | O74: =CHOOSE(uxb_works!$B$47,iData!I69,iScores!O69) -> Score 0-1 | P74: =IF(tblIndicators!T65="","",IF(AND(uxb_works!$B$47=1,OR(F74=5,Scores!F74<=2)),"",tblIndicators!T65)) -> 1 | Q74: =CHOOSE(uxb_works!$B$47,IF(iData!K69="","-",TEXT(iData!K69,$H74)),INDEX(aScores,$B74,Q$4)) -> 1 | R74: =CHOOSE(uxb_works!$B$47,IF(iData!L69="","-",TEXT(iData!L69,$H74)),INDEX(aScores,$B74,R$4)) -> 1 | S74: =CHOOSE(uxb_works!$B$47,IF(iData!M69="","-",TEXT(iData!M69,$H74)),INDEX(aScores,$B74,S$4)) -> 1 | T74: =CHOOSE(uxb_works!$B$47,IF(iData!N69="","-",TEXT(iData!N69,$H74)),INDEX(aScores,$B74,T$4)) -> 1 | U74: =CHOOSE(uxb_works!$B$47,IF(iData!O69="","-",TEXT(iData!O69,$H74)),INDEX(aScores,$B74,U$4)) -> 1 | V74: =CHOOSE(uxb_works!$B$47,IF(iData!P69="","-",TEXT(iData!P69,$H74)),INDEX(aScores,$B74,V$4)) -> 1 | W74: =CHOOSE(uxb_works!$B$47,IF(iData!Q69="","-",TEXT(iData!Q69,$H74)),INDEX(aScores,$B74,W$4)) -> 1 | X74: =CHOOSE(uxb_works!$B$47,IF(iData!R69="","-",TEXT(iData!R69,$H74)),INDEX(aScores,$B74,X$4)) -> 1 | Y74: =CHOOSE(uxb_works!$B$47,IF(iData!S69="","-",TEXT(iData!S69,$H74)),INDEX(aScores,$B74,Y$4)) -> 1 | Z74: =CHOOSE(uxb_works!$B$47,IF(iData!T69="","-",TEXT(iData!T69,$H74)),INDEX(aScores,$B74,Z$4)) -> 1 | AA74: =CHOOSE(uxb_works!$B$47,IF(iData!U69="","-",TEXT(iData!U69,$H74)),INDEX(aScores,$B74,AA$4)) -> 1 | AB74: =CHOOSE(uxb_works!$B$47,IF(iData!V69="","-",TEXT(iData!V69,$H74)),INDEX(aScores,$B74,AB$4)) -> 1 | AC74: =CHOOSE(uxb_works!$B$47,IF(iData!W69="","-",TEXT(iData!W69,$H74)),INDEX(aScores,$B74,AC$4)) -> 1 | AD74: =CHOOSE(uxb_works!$B$47,IF(iData!X69="","-",TEXT(iData!X69,$H74)),INDEX(aScores,$B74,AD$4)) -> 1 | AE74: =CHOOSE(uxb_works!$B$47,IF(iData!Y69="","-",TEXT(iData!Y69,$H74)),INDEX(aScores,$B74,AE$4)) -> 1 | AF74: =CHOOSE(uxb_works!$B$47,IF(iData!Z69="","-",TEXT(iData!Z69,$H74)),INDEX(aScores,$B74,AF$4)) -> 1 | AG74: =CHOOSE(uxb_works!$B$47,IF(iData!AA69="","-",TEXT(iData!AA69,$H74)),INDEX(aScores,$B74,AG$4)) -> 1 | AH74: =CHOOSE(uxb_works!$B$47,IF(iData!AB69="","-",TEXT(iData!AB69,$H74)),INDEX(aScores,$B74,AH$4)) -> 1 | AI74: =CHOOSE(uxb_works!$B$47,IF(iData!AC69="","-",TEXT(iData!AC69,$H74)),INDEX(aScores,$B74,AI$4)) -> 1 | AJ74: =CHOOSE(uxb_works!$B$47,IF(iData!AD69="","-",TEXT(iData!AD69,$H74)),INDEX(aScores,$B74,AJ$4)) -> 1
B75: =tblIndicators!A66 -> 65 | F75: =iScores!F70 -> 3 | H75: =tblIndicators!AC66 -> #,##0 | K75: =IF(uxb_works!$B$46>=L75,1,0) -> 1 | L75: =tblIndicators!G66 -> 3 | N75: =iScores!N70 -> 5.2.2) On-site reviews (coastal development) | O75: =CHOOSE(uxb_works!$B$47,iData!I70,iScores!O70) -> Score 0-1 | P75: =IF(tblIndicators!T66="","",IF(AND(uxb_works!$B$47=1,OR(F75=5,Scores!F75<=2)),"",tblIndicators!T66)) -> 1 | Q75: =CHOOSE(uxb_works!$B$47,IF(iData!K70="","-",TEXT(iData!K70,$H75)),INDEX(aScores,$B75,Q$4)) -> 0 | R75: =CHOOSE(uxb_works!$B$47,IF(iData!L70="","-",TEXT(iData!L70,$H75)),INDEX(aScores,$B75,R$4)) -> 1 | S75: =CHOOSE(uxb_works!$B$47,IF(iData!M70="","-",TEXT(iData!M70,$H75)),INDEX(aScores,$B75,S$4)) -> 1 | T75: =CHOOSE(uxb_works!$B$47,IF(iData!N70="","-",TEXT(iData!N70,$H75)),INDEX(aScores,$B75,T$4)) -> 1 | U75: =CHOOSE(uxb_works!$B$47,IF(iData!O70="","-",TEXT(iData!O70,$H75)),INDEX(aScores,$B75,U$4)) -> 0 | V75: =CHOOSE(uxb_works!$B$47,IF(iData!P70="","-",TEXT(iData!P70,$H75)),INDEX(aScores,$B75,V$4)) -> 1 | W75: =CHOOSE(uxb_works!$B$47,IF(iData!Q70="","-",TEXT(iData!Q70,$H75)),INDEX(aScores,$B75,W$4)) -> 1 | X75: =CHOOSE(uxb_works!$B$47,IF(iData!R70="","-",TEXT(iData!R70,$H75)),INDEX(aScores,$B75,X$4)) -> 1 | Y75: =CHOOSE(uxb_works!$B$47,IF(iData!S70="","-",TEXT(iData!S70,$H75)),INDEX(aScores,$B75,Y$4)) -> 1 | Z75: =CHOOSE(uxb_works!$B$47,IF(iData!T70="","-",TEXT(iData!T70,$H75)),INDEX(aScores,$B75,Z$4)) -> 1 | AA75: =CHOOSE(uxb_works!$B$47,IF(iData!U70="","-",TEXT(iData!U70,$H75)),INDEX(aScores,$B75,AA$4)) -> 0 | AB75: =CHOOSE(uxb_works!$B$47,IF(iData!V70="","-",TEXT(iData!V70,$H75)),INDEX(aScores,$B75,AB$4)) -> 1 | AC75: =CHOOSE(uxb_works!$B$47,IF(iData!W70="","-",TEXT(iData!W70,$H75)),INDEX(aScores,$B75,AC$4)) -> 1 | AD75: =CHOOSE(uxb_works!$B$47,IF(iData!X70="","-",TEXT(iData!X70,$H75)),INDEX(aScores,$B75,AD$4)) -> 1 | AE75: =CHOOSE(uxb_works!$B$47,IF(iData!Y70="","-",TEXT(iData!Y70,$H75)),INDEX(aScores,$B75,AE$4)) -> 0 | AF75: =CHOOSE(uxb_works!$B$47,IF(iData!Z70="","-",TEXT(iData!Z70,$H75)),INDEX(aScores,$B75,AF$4)) -> 0 | AG75: =CHOOSE(uxb_works!$B$47,IF(iData!AA70="","-",TEXT(iData!AA70,$H75)),INDEX(aScores,$B75,AG$4)) -> 1 | AH75: =CHOOSE(uxb_works!$B$47,IF(iData!AB70="","-",TEXT(iData!AB70,$H75)),INDEX(aScores,$B75,AH$4)) -> 0 | AI75: =CHOOSE(uxb_works!$B$47,IF(iData!AC70="","-",TEXT(iData!AC70,$H75)),INDEX(aScores,$B75,AI$4)) -> 1 | AJ75: =CHOOSE(uxb_works!$B$47,IF(iData!AD70="","-",TEXT(iData!AD70,$H75)),INDEX(aScores,$B75,AJ$4)) -> 1
